Workbook

Sheet Disclaimer
C5: 2015-16 BPT Model
C7: Produced by: Monitor

Sheet Expert & Final Monitor comments
A1: Expert & Final Monitor comments
A2: Model | B2: HRG | C2: HRG description | D2: Expert comments | E2: Final Monitor comments
A3: Acute stroke care | B3: - | C3: Rapid brain imaging
A4: Acute stroke care | B4: - | C4: Direct admission and 90% of spell spent in an acute stroke unit
A5: Acute stroke care | B5: - | C5: Alteplase
A6: Acute stroke care | B6: AA22A | C6: Non-Transient Stroke or Cerebrovascular Accident, Nervous System Infections or Encephalopathy with CC
A7: Acute stroke care | B7: AA22B | C7: Non-Transient Stroke or Cerebrovascular Accident, Nervous System Infections or Encephalopathy without CC
A8: Acute stroke care | B8: AA23A | C8: Haemorrhagic Cerebrovascular Disorders with CC
A9: Acute stroke care | B9: AA23B | C9: Haemorrhagic Cerebrovascular Disorders without CC
A10: 2a Adult renal dialysis | B10: LD01A | C10: Hospital Haemodialysis/Filtration with Access via Haemodialysis Catheter 19 years and over
A11: 2a Adult renal dialysis | B11: LD02A | C11: Hospital Haemodialysis/Filtration with Access via Arteriovenous Fistula or Graft 19 years and over
A12: 2a Adult renal dialysis | B12: LD03A | C12: Hospital Haemodialysis/Filtration with Access via Haemodialysis Catheter with Blood Borne Virus 19 years and over
A13: 2a Adult renal dialysis | B13: LD04A | C13: Hospital Haemodialysis/Filtration with Access via Arteriovenous Fistula or Graft with Blood Borne Virus 19 years and over
A14: 2a Adult renal dialysis | B14: LD05A | C14: Satellite Haemodialysis/Filtration with Access via Haemodialysis Catheter 19 years and over
A15: 2a Adult renal dialysis | B15: LD06A | C15: Satellite Haemodialysis/Filtration with Access via Arteriovenous Fistula or Graft 19 years and over
A16: 2a Adult renal dialysis | B16: LD07A | C16: Satellite Haemodialysis/Filtration with Access via Haemodialysis Catheter with Blood Borne Virus 19 years and over
A17: 2a Adult renal dialysis | B17: LD08A | C17: Satellite Haemodialysis/Filtration with Access via Arteriovenous Fistula or Graft with Blood Borne Virus 19 years and over
A18: 2a Adult renal dialysis | B18: LD09A | C18: Home Haemodialysis/Filtration with Access via Haemodialysis Catheter 19 years and over
A19: 2a Adult renal dialysis | B19: LD10A | C19: Home Haemodialysis/Filtration with Access via Arteriovenous Fistula or Graft 19 years and over
A20: 2b Peritoneal dialysis | B20: LD11A | C20: Continuous Ambulatory Peritoneal Dialysis 19 years and over
A21: 2b Peritoneal dialysis | B21: LD12A | C21: Automated Peritoneal Dialysis 19 years and over
A22: 2b Peritoneal dialysis | B22: LD13A | C22: Assisted Automated Peritoneal Dialysis 19 years and over
A23: 2b Peritoneal dialysis | B23: LD13B | C23: Assisted Automated Peritoneal Dialysis, 18 years and under
A24: Breast Surgery | B24: JA20B | C24: Unilateral Major Breast Procedures with Intermediate CC
A25: Breast Surgery | B25: JA20C | C25: Unilateral Major Breast Procedures without CC
A26: Breast Surgery | B26: JA24C | C26: Unilateral Intermediate Breast Procedures without CC
A27: Breast Surgery | B27: JA20B | C27: Unilateral Major Breast Procedures with Intermediate CC
A28: Breast Surgery | B28: JA20C | C28: Unilateral Major Breast Procedures without CC
A29: Breast Surgery | B29: JA26Z | C29: Major Breast Procedures with Lymph Node Surgery
A30: Breast Surgery | B30: JA24B | C30: Unilateral Intermediate Breast Procedures with Intermediate CC
A31: Breast Surgery | B31: JA24C | C31: Unilateral Intermediate Breast Procedures without CC
A32: Breast Surgery | B32: JA20B | C32: Unilateral Major Breast Procedures with Intermediate CC
A33: Breast Surgery | B33: JA20C | C33: Unilateral Major Breast Procedures without CC
A34: Gynaecology | B34: LB51Z | C34: Vaginal Tape Operations for Urinary Incontinence
A35: Urology | B35: LB25B | C35: Prostate Transurethral Resection Procedure with Intermediate CC
A36: Urology | B36: LB25C | C36: Prostate Transurethral Resection Procedure without CC
A37: Urology | B37: LB25C | C37: Prostate Transurethral Resection Procedure without CC
A38: General Surgery | B38: FZ18B | C38: Inguinal Umbilical or Femoral Hernia Repairs 19 years and over with Intermediate CC
A39: General Surgery | B39: FZ18C | C39: Inguinal Umbilical or Femoral Hernia Repairs 19 years and over without CC
A40: General Surgery | B40: GA10D | C40: Laparoscopic Cholecystectomy with length of stay 1 day or more without CC
A41: General Surgery | B41: GA10E | C41: Laparoscopic Cholecystectomy with length of stay 0 days without CC
A42: Orthopaedic Surgery | B42: HB62C | C42: Intermediate Shoulder and Upper Arm Procedures for Non-Trauma without CC
A43: Orthopaedic Surgery | B43: HB34E | C43: Minor Foot Procedures for Non-Trauma category 2 19 years and over without CC
A44: Orthopaedic Surgery | B44: HB35B | C44: Minor Foot Procedures for Non-Trauma category 1 with CC
A45: Orthopaedic Surgery | B45: HB35C | C45: Minor Foot Procedures for Non-Trauma category 1 without CC
A46: Orthopaedic Surgery | B46: HB53Z | C46: Intermediate Hand Procedures for Non-Trauma category 2
A47: Ear, nose and throat (ENT) | B47: CZ05T | C47: Tonsillectomy 18 years and under without CC
A48: Ear, nose and throat (ENT) | B48: CZ05V | C48: Tonsillectomy 19 years and over with CC
A49: Ear, nose and throat (ENT) | B49: CZ05Y | C49: Tonsillectomy 19 years and over without CC
A50: Ear, nose and throat (ENT) | B50: CZ13V | C50: Intermediate Nose Procedures 19 years and over with CC
A51: Ear, nose and throat (ENT) | B51: CZ13Y | C51: Intermediate Nose Procedures 19 years and over without CC
A52: Ear, nose and throat (ENT) | B52: CZ10U | C52: Major Ear Procedures 18 years and under
A53: Ear, nose and throat (ENT) | B53: CZ10V | C53: Major Ear Procedures 19 years and over with CC
A54: Ear, nose and throat (ENT) | B54: CZ10Y | C54: Major Ear Procedures 19 years and over without CC
A55: Diabetic ketoacidosis and hypoglycaemia | B55: KB01A | C55: Diabetes with Hypoglycaemic Disorders 70 years and over
A56: Diabetic ketoacidosis and hypoglycaemia | B56: KB01B | C56: Diabetes with Hypoglycaemic Disorders 69 years and under
A57: Diabetic ketoacidosis and hypoglycaemia | B57: KB02A | C57: Diabetes with Hyperglycaemic Disorders 70 years and over with Major CC
A58: Diabetic ketoacidosis and hypoglycaemia | B58: KB02B | C58: Diabetes with Hyperglycaemic Disorders 70 years and over with Intermediate CC
A59: Diabetic ketoacidosis and hypoglycaemia | B59: KB02C | C59: Diabetes with Hyperglycaemic Disorders 70 years and over without CC
A60: Diabetic ketoacidosis and hypoglycaemia | B60: KB02D | C60: Diabetes with Hyperglycaemic Disorders 69 years and under with Major CC
A61: Diabetic ketoacidosis and hypoglycaemia | B61: KB02E | C61: Diabetes with Hyperglycaemic Disorders 69 years and under with Intermediate CC
A62: Diabetic ketoacidosis and hypoglycaemia | B62: KB02F | C62: Diabetes with Hyperglycaemic Disorders 69 years and under without CC
A63: Early inflammatory arthritis | B63: - | C63: Diagnosis and discharge
A64: Early inflammatory arthritis | B64: - | C64: DMARDS Therapy
A65: Early inflammatory arthritis | B65: - | C65: Biological Therapy *
A66: Endoscopy procedures | B66: FZ24C | C66: Major Therapeutic Open or Endoscopic Procedures 19 years and over without CC
A67: Endoscopy procedures | B67: FZ51Z | C67: Diagnostic Colonoscopy 19 years and over
A68: Endoscopy procedures | B68: FZ52Z | C68: Diagnostic Colonoscopy with biopsy 19 years and over
A69: Endoscopy procedures | B69: FZ53Z | C69: Therapeutic Colonoscopy 19 years and over
A70: Endoscopy procedures | B70: FZ54Z | C70: Diagnostic Flexible Sigmoidoscopy 19 years and over
A71: Endoscopy procedures | B71: FZ55Z | C71: Diagnostic Flexible Sigmoidoscopy with biopsy 19 years and over
A72: Endoscopy procedures | B72: FZ56Z | C72: Therapeutic Flexible Sigmoidoscopy 19 years and over
A73: Endoscopy procedures | B73: FZ60Z | C73: Diagnostic Endoscopic Procedures on the Upper GI Tract 19 years and over
A74: Endoscopy procedures | B74: FZ61Z | C74: Diagnostic Endoscopic Procedures on the Upper GI Tract with biopsy 19 years and over
A75: Endoscopy procedures | B75: FZ63Z | C75: Combined Upper and Lower GI Tract Diagnostic Endoscopic Procedures
A76: Endoscopy procedures | B76: FZ65Z | C76: Combined Upper and Lower GI Tract Therapeutic Endoscopic Procedures
A77: Endoscopy procedures | B77: FZ64A | C77: Combined Upper and Lower GI Tract Diagnostic Endoscopic Procedures with Biopsy, 19 years and over
A78: Endoscopy procedures | B78: FZ88A | C78: Insertion of Gastrostomy Tube, 19 years and over
A79: Endoscopy procedures | B79: FZ70Z | C79: Therapeutic Endoscopic Upper GI Tract Procedures, 19 years and over
A80: Fragility hip fracture | B80: HA11A | C80: Major Hip Procedures category 2 for Trauma with Major CC
A81: Fragility hip fracture | B81: HA11B | C81: Major Hip Procedures category 2 for Trauma with Intermediate CC
A82: Fragility hip fracture | B82: HA11C | C82: Major Hip Procedures category 2 for Trauma without CC
A83: Fragility hip fracture | B83: HA12B | C83: Major Hip Procedures category 1 for Trauma with CC
A84: Fragility hip fracture | B84: HA12C | C84: Major Hip Procedures category 1 for Trauma without CC
A85: Fragility hip fracture | B85: HA13A | C85: Intermediate Hip Procedures for Trauma with Major CC
A86: Fragility hip fracture | B86: HA13B | C86: Intermediate Hip Procedures for Trauma with Intermediate CC
A87: Fragility hip fracture | B87: HA13C | C87: Intermediate Hip Procedures for Trauma without CC
A88: Fragility hip fracture | B88: HA14A | C88: Minor Hip Procedures for Trauma with Major CC
A89: Fragility hip fracture | B89: HA14B | C89: Minor Hip Procedures for Trauma with Intermediate CC
A90: Fragility hip fracture | B90: HA14C | C90: Minor Hip Procedures for Trauma without CC
A91: Fragility hip fracture | B91: VA11A | C91: Multiple Trauma Diagnoses score <=23, with Interventions score 1-8
A92: Fragility hip fracture | B92: VA11B | C92: Multiple Trauma Diagnoses score 24-32, with Interventions score 1-8
A93: Fragility hip fracture | B93: VA11C | C93: Multiple Trauma Diagnoses score 33-50, with Interventions score 1-8
A94: Fragility hip fracture | B94: VA11D | C94: Multiple Trauma Diagnoses score >=51, with Interventions score 1-8
A95: Fragility hip fracture | B95: VA12A | C95: Multiple Trauma Diagnoses score <=23, with Interventions score 9-18
A96: Fragility hip fracture | B96: VA12B | C96: Multiple Trauma Diagnoses score 24-32, with Interventions score 9-18
A97: Fragility hip fracture | B97: VA12C | C97: Multiple Trauma Diagnoses score 33-50, with Interventions score 9-18
A98: Fragility hip fracture | B98: VA12D | C98: Multiple Trauma Diagnoses score >=51, with Interventions score 9-18
A99: Fragility hip fracture | B99: - | C99: Compliance with all 7 best practice criteria
A100: Interventional radiology | B100: RC12A | C100: Infrarenal or Aorto-Uni-Iliac Endovascular Stent Graft for Non-Ruptured Abdominal Aortic Aneurysm, One Branched Stent Graft
A101: Interventional radiology | B101: RC12B | C101: Infrarenal or Aorto-Uni-Iliac Endovascular Stent Graft for Non-Ruptured Abdominal Aortic Aneurysm, One Fenestrated Stent Graft
A102: Interventional radiology | B102: RC12C | C102: Infrarenal or Aorto-Uni-Iliac Endovascular Stent Graft for Non-Ruptured Abdominal Aortic Aneurysm, One Stent Graft
A103: Interventional radiology | B103: RC12D | C103: Infrarenal or Aorto-Uni-Iliac Endovascular Stent Graft for Non-Ruptured Abdominal Aortic Aneurysm, Two Stent Grafts
A104: Interventional radiology | B104: RC12E | C104: Infrarenal or Aorto-Uni-Iliac Endovascular Stent Graft for Non-Ruptured Abdominal Aortic Aneurysm, Three or more Stent Grafts
A105: Interventional radiology | B105: RC13A | C105: Other Endovascular Stent Graft for Non-Ruptured Abdominal Aortic Aneurysm, One Branched Stent Graft
A106: Interventional radiology | B106: RC13B | C106: Other Endovascular Stent Graft for Non-Ruptured Abdominal Aortic Aneurysm, One Fenestrated Stent Graft
A107: Interventional radiology | B107: RC13C | C107: Other Endovascular Stent Graft for Non-Ruptured Abdominal Aortic Aneurysm, One Stent Graft
A108: Interventional radiology | B108: RC13D | C108: Other Endovascular Stent Graft for Non-Ruptured Abdominal Aortic Aneurysm, Two Stent Grafts
A109: Interventional radiology | B109: RC13E | C109: Other Endovascular Stent Graft for Non-Ruptured Abdominal Aortic Aneurysm, Three or more Stent Grafts
A110: Interventional radiology | B110: RC41Z | C110: Interventional Radiology - Obs & Gynae - Uterine Fibroid Embolisation
A111: Interventional radiology | B111: QZ01A | C111: Aortic or Abdominal Surgery with CC
A112: Interventional radiology | B112: QZ01B | C112: Aortic or Abdominal Surgery without CC
A113: Interventional radiology | B113: QZ15B | C113: Therapeutic Endovascular Procedures with Intermediate CC
A114: Interventional radiology | B114: QZ15C | C114: Therapeutic Endovascular Procedures without CC
A115: Interventional radiology | B115: RC14Z | C115: IR Procedures - Vascular - Major
A116: Interventional radiology | B116: QZ15B | C116: Therapeutic Endovascular Procedures with Intermediate CC
A117: Interventional radiology | B117: QZ15C | C117: Therapeutic Endovascular Procedures without CC
A118: Interventional radiology | B118: RC31Z | C118: IR Procedures - Hepatobiliary - Major
A119: Interventional radiology | B119: JA24A | C119: Unilateral Intermediate Breast Procedures with Major CC
A120: Interventional radiology | B120: JA24B | C120: Unilateral Intermediate Breast Procedures with Intermediate CC
A121: Interventional radiology | B121: JA24C | C121: Unilateral Intermediate Breast Procedures without CC
A122: Major trauma | B122: - | C122: Level 1 (ISS 9 to 15)
A123: Major trauma | B123: - | C123: Level 2 (ISS 16+)
A124: Outpatient procedures | B124: MA10Z | C124: Upper Genital Tract Laparoscopic / Endoscopic Minor Procedures
A125: Outpatient procedures | B125: MA21Z | C125: Diagnostic Hysteroscopy
A126: Outpatient procedures | B126: LB14Z (formerly LB14E) | C126: -
A127: Outpatient procedures | B127: LB72A (formerly LB14E) | C127: -
A128: Sub model title | B128: HRG | C128: HRG names /Treatment function name
A129: Paediatric diabetes | B129: - | C129: Paediatric diabetes year of care
A130: Sub model title | B130: HRG | C130: HRG names /Treatment function name
A131: Paediatric Epilepsy | B131: - | C131: Paediatric Epilepsy
A132: Parkinson's Disease | B132: - | C132: Parkinson's Disease
A133: Pleural effusion | B133: DZ06Z | C133: Minor Thoracic Procedures
A134: Pleural effusion | B134: DZ16B | C134: Pleural Effusion with CC
A135: Pleural effusion | B135: DZ16C | C135: Pleural Effusion without CC
A136: Primary total hip and knee replacements | B136: HB12B | C136: Major Hip Procedures for non Trauma Category 1 with CC
A137: Primary total hip and knee replacements | B137: HB12C | C137: Major Hip Procedures for non Trauma Category 1 without CC
A138: Primary total hip and knee replacements | B138: HB21B | C138: Major Knee Procedures for non Trauma Category 2 with CC
A139: Primary total hip and knee replacements | B139: HB21C | C139: Major Knee Procedures for non Trauma Category 2 without CC
A140: Same day emergency care | B140: AA26A | C140: Muscular, Balance, Cranial or Peripheral Nerve Disorders; Epilepsy; Head Injury with CC
A141: Same day emergency care | B141: AA26B | C141: Muscular, Balance, Cranial or Peripheral Nerve Disorders; Epilepsy; Head Injury without CC
A142: Same day emergency care | B142: AA31A | C142: Headache, Migraine or Cerebrospinal Fluid Leak with CC
A143: Same day emergency care | B143: AA31B | C143: Headache, Migraine or Cerebrospinal Fluid Leak without CC
A144: Same day emergency care | B144: DZ15E | C144: Asthma with CC without Intubation
A145: Same day emergency care | B145: DZ15F | C145: Asthma without CC without Intubation
A146: Same day emergency care | B146: DZ22C | C146: Unspecified Acute Lower Respiratory Infection without CC
A147: Same day emergency care | B147: DZ09B | C147: Pulmonary Embolus with CC
A148: Same day emergency care | B148: DZ09C | C148: Pulmonary Embolus without CC
A149: Same day emergency care | B149: EB01Z | C149: Non-Interventional Acquired Cardiac Conditions
A150: Same day emergency care | B150: HA92Z | C150: Knee Trauma Diagnosis without Procedure
A151: Same day emergency care | B151: HA93Z | C151: Foot Trauma Diagnosis without Procedure
A152: Same day emergency care | B152: HA94Z | C152: Arm Trauma Diagnosis without Procedure
A153: Same day emergency care | B153: HA95Z | C153: Hand Trauma Diagnosis without Procedure
A154: Same day emergency care | B154: JD03B | C154: Intermediate Skin Disorders category 2 with Intermediate CC
A155: Same day emergency care | B155: JD03C | C155: Intermediate Skin Disorders category 2 without CC
A156: Same day emergency care | B156: JD04B | C156: Intermediate Skin Disorders category 1 with Intermediate CC
A157: Same day emergency care | B157: JD04C | C157: Intermediate Skin Disorders category 1 without CC
A158: Same day emergency care | B158: LB40A | C158: Urinary Tract Stone Disease with CC
A159: Same day emergency care | B159: LB40B | C159: Urinary Tract Stone Disease without CC
A160: Same day emergency care | B160: QZ20Z | C160: Deep Vein Thrombosis
A161: Same day emergency care | B161: WA11X | C161: Poisoning, Toxic, Environmental and Unspecified Effects with Intermediate CC
A162: Same day emergency care | B162: WA11Y | C162: Poisoning, Toxic, Environmental and Unspecified Effects without CC
A163: Same day emergency care | B163: EB08I | C163: Syncope or Collapse without CC
A164: Same day emergency care | B164: DZ11C | C164: Lobar, Atypical or Viral Pneumonia without CC
A165: Same day emergency care | B165: EB07H | C165: Arrhythmia or Conduction Disorders with CC
A166: Same day emergency care | B166: EB07I | C166: Arrhythmia or Conduction Disorders without CC
A167: Same day emergency care | B167: HA83B | C167: Head Injury with CC
A168: Same day emergency care | B168: HA83C | C168: Head Injury without CC
A169: Same day emergency care | B169: HA91Z | C169: Hip Trauma Diagnosis without Procedure
A170: Same day emergency care | B170: LB16B | C170: Urinary Incontinence and Other Urinary Problems with Intermediate CC
A171: Same day emergency care | B171: LB16C | C171: Urinary Incontinence and Other Urinary Problems without CC
A172: Same day emergency care | B172: SA03D | C172: Haemolytic Anaemia with CC
A173: Same day emergency care | B173: SA03F | C173: Haemolytic Anaemia without CC
A174: Same day emergency care | B174: SA04D | C174: Iron Deficiency Anaemia with CC
A175: Same day emergency care | B175: SA04F | C175: Iron Deficiency Anaemia without CC
A176: Same day emergency care | B176: SA05D | C176: Megaloblastic Anaemia with CC
A177: Same day emergency care | B177: SA05F | C177: Megaloblastic Anaemia without CC
A178: Same day emergency care | B178: FZ47B | C178: Non-Malignant General Abdominal Disorders with length of stay 2 days or more without Major CC
A179: Same day emergency care | B179: FZ47C | C179: Non-Malignant General Abdominal Disorders with length of stay 1 day or less
A180: Transient Ischaemic Attack | C180: Transient Ischaemic Attack
A181: Transient Ischaemic Attack | C181: Diagnosis and Treatment of High Risk Patients within 24 hours

Sheet Linked Sheet Tariff Layout
A1: 2015-16 BPT
A3: 1 | B3: Acute stroke care
A4: 2 | B4: Adult renal dialysis
A5: 3 | B5: Daycases
A6: 4 | B6: Diabetic ketoacidosis and hypoglycaemia
A7: 5 | B7: Early inflammatory arthritis
A8: 6 | B8: Endoscopy procedures
A9: 7 | B9: Fragility hip fracture
A10: 8 | B10: Interventional radiology
A11: 9 | B11: Major trauma
A12: 10 | B12: Outpatient procedures
A13: 11 | B13: Paediatric diabetes year of care
A14: 12 | B14: Paediatric epilepsy
A15: 13 | B15: Parkinson's disease
A16: 14 | B16: Pleural effusion
A17: 15 | B17: Primary total hip and knee replacements
A18: 16 | B18: Same day emergency care
A19: 17 | B19: Transient ischaemic attack
A22: 1 | B22: Acute stroke care
A24: The BPT is made up of four components: a base tariff and three conditional payments. The base tariff is payable to all activity irrespective of whether the characteristics of best practice were met. The three conditional payments are conditional on meeting best practice characteristics described in the guidance.
A25: The base tariff and the additional payment apply at the sub-HRG level with the use of BPT flag 05 to capture the relevant activity within the associated HRGs.
A26: For each of the HRGs there will be a conventional tariff applicable to the HRG. The conventional tariff however is to reimburse the costs of the activity unrelated to the BPT within the same HRG. The BPT is the mandatory tariff for the activity identified by the flag and is therefore not optional.
A27: The alteplase additional payment is only for payable spells with core HRG AA22A and AA22B and unbundled HRG XD07Z.
A28: Short stay emergency adjustment does not apply. Long stay payments and specialist top-ups apply where appropriate.
A29: SUS PbR will apply the base tariff to spells with a BPT flag 05 in the HRGs below. SUS PbR will only apply the additional payment for alteplase and not those for the other two characteristics of best practice. See guidance.
B31: Best practice tariff additional payments | C31: Additional payments (£) | J31: Calculation Method
B32: Rapid brain imaging | C32: ='02_Stroke'!C19 -> 399 | J32: ='02_Stroke'!$AD$29 -> PbR Methodology
B33: Direct admission and 90% of spell spent in an acute stroke unit | C33: ='02_Stroke'!C20 -> 1026 | J33: ='02_Stroke'!$AD$29 -> PbR Methodology
B34: Alteplase | C34: ='02_Stroke'!C21 -> 828 | J34: ='02_Stroke'!$AD$29 -> PbR Methodology
A36: HRG code | B36: HRG name | C36: Base tariff (£) | D36: Best practice tariff (£) (excl. alteplase) | E36: BPT flag (see BPT Flag sheet)
A37: AA22A | B37: Non-Transient Stroke or Cerebrovascular Accident, Nervous System Infections or Encephalopathy with CC | C37: ='02_Stroke'!AS29 -> 2747 | D37: ='02_Stroke'!AQ29 -> 4095 | E37: BP05 | J37: =VLOOKUP(A37,'02_Stroke'!$AB$29:$AD$32,3,FALSE) -> PbR Methodology
A38: AA22B | B38: Non-Transient Stroke or Cerebrovascular Accident, Nervous System Infections or Encephalopathy without CC | C38: ='02_Stroke'!AS30 -> 1198 | D38: ='02_Stroke'!AQ30 -> 2547 | J38: =VLOOKUP(A38,'02_Stroke'!$AB$29:$AD$32,3,FALSE) -> PbR Methodology
A39: AA23A | B39: Haemorrhagic Cerebrovascular Disorders with CC | C39: ='02_Stroke'!AS31 -> 2985 | D39: ='02_Stroke'!AQ31 -> 4334 | J39: =VLOOKUP(A39,'02_Stroke'!$AB$29:$AD$32,3,FALSE) -> PbR Methodology
A40: AA23B | B40: Haemorrhagic Cerebrovascular Disorders without CC | C40: ='02_Stroke'!AS32 -> 1104 | D40: ='02_Stroke'!AQ32 -> 2452 | J40: =VLOOKUP(A40,'02_Stroke'!$AB$29:$AD$32,3,FALSE) -> PbR Methodology
A43: 2 | B43: Adult renal dialysis
A45: 2a | B45: Haemodialysis
A47: The tariff prices apply at the HRG level.
A48: The BPTs are set to encourage the adoption of clinical best practice with respect to vascular access (see PbR guidance for further info).
A49: Please note that the mandatory tariffs for Peritoneal Dialysis are not classed as BPTs, however they are included in this sheet for ease of reference.
A50: The HRGs are generated by data items from the National Renal Dataset, listed in the guidance. Organisations need to establish local reporting processes to support payment of the tariffs.
A52: HRG code | B52: HRG name | C52: Best practice tariff (£)
A53: Hospital | C53: (per session) | J53: Calculation Method
A54: LD01A | B54: Hospital Haemodialysis/Filtration with Access via Haemodialysis Catheter 19 years and over | C54: 104 | J54: PbR Methodology
A55: LD02A | B55: Hospital Haemodialysis/Filtration with Access via Arteriovenous Fistula or Graft 19 years and over | C55: 130 | J55: PbR Methodology
A56: LD03A | B56: Hospital Haemodialysis/Filtration with Access via Haemodialysis Catheter with Blood Borne Virus 19 years and over | C56: 150 | J56: PbR Methodology
A57: LD04A | B57: Hospital Haemodialysis/Filtration with Access via Arteriovenous Fistula or Graft with Blood Borne Virus 19 years and over | C57: 186 | J57: PbR Methodology
A58: Satellite | C58: (per session)
A59: LD05A | B59: Satellite Haemodialysis/Filtration with Access via Haemodialysis Catheter 19 years and over | C59: 104 | J59: PbR Methodology
A60: LD06A | B60: Satellite Haemodialysis/Filtration with Access via Arteriovenous Fistula or Graft 19 years and over | C60: 130 | J60: PbR Methodology
A61: LD07A | B61: Satellite Haemodialysis/Filtration with Access via Haemodialysis Catheter with Blood Borne Virus 19 years and over | C61: 150 | J61: PbR Methodology
A62: LD08A | B62: Satellite Haemodialysis/Filtration with Access via Arteriovenous Fistula or Graft with Blood Borne Virus 19 years and over | C62: 186 | J62: PbR Methodology
A63: Home | C63: (per week)
A64: LD09A | B64: Home Haemodialysis/Filtration with Access via Haemodialysis Catheter 19 years and over | C64: 390 | J64: PbR Methodology
A65: LD10A | B65: Home Haemodialysis/Filtration with Access via Arteriovenous Fistula or Graft 19 years and over | C65: 390 | J65: PbR Methodology
A67: 2b | B67: Peritoneal dialysis
A69: HRG code | B69: HRG name | C69: Best practice tariff (£) (per day)
A70: LD11A | B70: Continuous Ambulatory Peritoneal Dialysis 19 years and over | C70: 37 | J70: PbR Methodology
A71: LD12A | B71: Automated Peritoneal Dialysis 19 years and over | C71: 53 | J71: PbR Methodology
A72: LD13A | B72: Assisted Automated Peritoneal Dialysis 19 years and over | C72: 79 | J72: PbR Methodology
A73: LD13B | B73: Assisted Automated Peritoneal Dialysis, 18 years and under | C73: 79 | J73: Rollover
A76: 3 | B76: Day cases
A78: The BPT for each procedure is made up of a pair of prices: one applied to day case admissions, the other to ordinary elective admissions.
A79: For some procedures the BPT will apply to the HRG and for others it will apply at the sub-HRG level with the use of a BPT flag to capture the relevant activity within the associated HRGs.
A80: Where the BPT applies at the sub-HRG level, with the use of a BPT flag, there will be a conventional tariff applicable to the HRG. The conventional tariff however is to reimburse the costs of the activity unrelated to the BPT within the same HRG. The BPT is the mandatory tariff for the activity identified by the flag and is therefore not optional.
A81: Elective long stay payments and specialist top-ups apply where appropriate.
A82: SUS PbR will automate payment by: (a) generating the relevant flag, where required (b) applying relevant prices either to the BPT flag within relevant HRGs or at the HRG as appropriate.
G83: BPT applies to:
A84: HRG code | B84: HRG name | C84: Surgical sub speciality | D84: Procedure | E84: Best practice day case tariff (£) | F84: Ordinary elective tariff (£) | G84: HRG or sub-HRG level | H84: BPT Flag (see BPT Flag sheet) | J84: Calculation Method
A85: JA20B | B85: Unilateral Major Breast Procedures with Intermediate CC | C85: Breast Surgery | D85: Excision* | E85: 0*** | F85: 0*** | G85: sub-HRG | H85: BP29 | J85: -
A86: JA20C | B86: Unilateral Major Breast Procedures without CC | E86: 0*** | F86: 0*** | J86: -
A87: JA24C | B87: Unilateral Intermediate Breast Procedures without CC | E87: 0*** | F87: 0*** | J87: -
A88: JA20B | B88: Unilateral Major Breast Procedures with Intermediate CC | D88: Mastectomy | E88: 0*** | F88: 0*** | G88: sub-HRG | H88: BP28 | J88: -
A89: JA20C | B89: Unilateral Major Breast Procedures without CC | E89: 0*** | F89: 0*** | J89: -
A90: JA26Z | B90: Major Breast Procedures with Lymph Node Surgery | E90: 0*** | F90: 0*** | J90: -
A91: JA24B | B91: Unilateral Intermediate Breast Procedures with Intermediate CC | D91: Sentinel lymph node biopsy | E91: 0*** | F91: 0*** | G91: sub-HRG | H91: BP31 | J91: -
A92: JA24C | B92: Unilateral Intermediate Breast Procedures without CC | E92: 0*** | F92: 0*** | J92: -
A93: JA20B | B93: Unilateral Major Breast Procedures with Intermediate CC | D93: Axillary clearance | E93: 0*** | F93: 0*** | G93: sub-HRG | H93: BP32 | J93: -
A94: JA20C | B94: Unilateral Major Breast Procedures without CC | E94: 0*** | F94: 0*** | J94: -
A95: LB51Z | B95: Vaginal Tape Operations for Urinary Incontinence | C95: Gynaecology | D95: Operations to manage female incontinence | E95: =VLOOKUP($A95,'08_DayCase'!$AP:$BG,16,FALSE) -> 1148 | F95: =VLOOKUP($A95,'08_DayCase'!$AP:$BG,18,FALSE) -> 958 | G95: HRG | H95: n/a | J95: =VLOOKUP(A95,'08_DayCase'!$AP:$AR,3,FALSE) -> PbR Methodology
A96: LB25B | B96: Prostate Transurethral Resection Procedure with Intermediate CC | C96: Urology | D96: Endoscopic resection of prostate (TUR) | E96: =VLOOKUP($A96,'08_DayCase'!$AP:$BG,16,FALSE) -> 1962 | F96: =VLOOKUP($A96,'08_DayCase'!$AP:$BG,18,FALSE) -> 1773 | G96: HRG | H96: n/a | J96: =VLOOKUP(A96,'08_DayCase'!$AP:$AR,3,FALSE) -> PbR Methodology
A97: LB25C | B97: Prostate Transurethral Resection Procedure without CC | E97: =VLOOKUP($A97,'08_DayCase'!$AP:$BG,16,FALSE) -> 1874 | F97: =VLOOKUP($A97,'08_DayCase'!$AP:$BG,18,FALSE) -> 1684 | J97: =VLOOKUP(A97,'08_DayCase'!$AP:$AR,3,FALSE) -> PbR Methodology
A98: LB25C | B98: Prostate Transurethral Resection Procedure without CC | D98: Resection of prostate by laser | E98: =VLOOKUP($A98,'08_DayCase'!$AP:$BG,16,FALSE) -> 1874 | F98: =VLOOKUP($A98,'08_DayCase'!$AP:$BG,18,FALSE) -> 1684 | G98: HRG | H98: n/a | J98: =VLOOKUP(A98,'08_DayCase'!$AP:$AR,3,FALSE) -> PbR Methodology
A99: FZ18B | B99: Inguinal Umbilical or Femoral Hernia Repairs 19 years and over with Intermediate CC | C99: General Surgery | D99: Repair of a range of hernias | E99: =VLOOKUP($A99,'08_DayCase'!$AP:$BG,16,FALSE) -> 1358 | F99: =VLOOKUP($A99,'08_DayCase'!$AP:$BG,18,FALSE) -> 1074 | G99: HRG | H99: n/a | J99: =VLOOKUP(A99,'08_DayCase'!$AP:$AR,3,FALSE) -> PbR Methodology
A100: FZ18C | B100: Inguinal Umbilical or Femoral Hernia Repairs 19 years and over without CC | E100: =VLOOKUP($A100,'08_DayCase'!$AP:$BG,16,FALSE) -> 1162 | F100: =VLOOKUP($A100,'08_DayCase'!$AP:$BG,18,FALSE) -> 878 | J100: =VLOOKUP(A100,'08_DayCase'!$AP:$AR,3,FALSE) -> PbR Methodology
A101: GA10D | B101: Laparoscopic Cholecystectomy with length of stay 1 day or more without CC | D101: Cholecystectomy (gall bladder removal) | E101: ='03_Chole'!$AR$27 -> - | F101: ='03_Chole'!$AT$27 -> 1384 | G101: HRG | H101: n/a | J101: =VLOOKUP(A101,'03_Chole'!$AC$26:$AE$27,3,FALSE) -> PbR Methodology
A102: GA10E | B102: Laparoscopic Cholecystectomy with length of stay 0 days without CC | E102: ='03_Chole'!$AR$26 -> 1691 | F102: ='03_Chole'!$AT$26 -> 1384 | J102: =VLOOKUP(A102,'03_Chole'!$AC$26:$AE$27,3,FALSE) -> PbR Methodology
A103: HB62C | B103: Intermediate Shoulder and Upper Arm Procedures for Non-Trauma without CC | C103: Orthopaedic Surgery | D103: Therapeutic arthroscopy of shoulder | E103: =VLOOKUP($A103,'08_DayCase'!$AP:$BG,16,FALSE) -> 1407 | F103: =VLOOKUP($A103,'08_DayCase'!$AP:$BG,18,FALSE) -> 1217 | G103: sub-HRG | H103: BP15 | J103: =VLOOKUP(A103,'08_DayCase'!$AP:$AR,3,FALSE) -> PbR Methodology
A104: HB34E | B104: Minor Foot Procedures for Non-Trauma category 2 19 years and over without CC | D104: Bunion operations with or without internal fixation and soft tissue correction | E104: =VLOOKUP($A104,'08_DayCase'!$AP:$BG,16,FALSE) -> 1234 | F104: =VLOOKUP($A104,'08_DayCase'!$AP:$BG,18,FALSE) -> 1044 | G104: sub-HRG | H104: BP16 | J104: =VLOOKUP(A104,'08_DayCase'!$AP:$AR,3,FALSE) -> PbR Methodology
A105: HB35B | B105: Minor Foot Procedures for Non-Trauma category 1 with CC | E105: =VLOOKUP($A105,'08_DayCase'!$AP:$BG,16,FALSE) -> 1675 | F105: =VLOOKUP($A105,'08_DayCase'!$AP:$BG,18,FALSE) -> 1486 | J105: =VLOOKUP(A105,'08_DayCase'!$AP:$AR,3,FALSE) -> PbR Methodology
A106: HB35C | B106: Minor Foot Procedures for Non-Trauma category 1 without CC | E106: =VLOOKUP($A106,'08_DayCase'!$AP:$BG,16,FALSE) -> 1147 | F106: =VLOOKUP($A106,'08_DayCase'!$AP:$BG,18,FALSE) -> 958 | J106: =VLOOKUP(A106,'08_DayCase'!$AP:$AR,3,FALSE) -> PbR Methodology
A107: HB53Z | B107: Intermediate Hand Procedures for Non-Trauma category 2 | D107: Dupuytren's fasciectomy | E107: =VLOOKUP($A107,'08_DayCase'!$AP:$BG,16,FALSE) -> 1464 | F107: =VLOOKUP($A107,'08_DayCase'!$AP:$BG,18,FALSE) -> 1275 | G107: sub-HRG | H107: BP17 | J107: =VLOOKUP(A107,'08_DayCase'!$AP:$AR,3,FALSE) -> PbR Methodology
A108: CZ05T | B108: Tonsillectomy 18 years and under without CC | C108: Ear, nose and throat (ENT) | D108: Tonsillectomy | E108: =VLOOKUP($A108,'08_DayCase'!$AP:$BG,16,FALSE) -> 1019 | F108: =VLOOKUP($A108,'08_DayCase'!$AP:$BG,18,FALSE) -> 735 | G108: sub-HRG | H108: BP33 | J108: =VLOOKUP(A108,'08_DayCase'!$AP:$AR,3,FALSE) -> PbR Methodology
A109: CZ05V | B109: Tonsillectomy 19 years and over with CC | E109: =VLOOKUP($A109,'08_DayCase'!$AP:$BG,16,FALSE) -> 1160 | F109: =VLOOKUP($A109,'08_DayCase'!$AP:$BG,18,FALSE) -> 876 | J109: =VLOOKUP(A109,'08_DayCase'!$AP:$AR,3,FALSE) -> PbR Methodology
A110: CZ05Y | B110: Tonsillectomy 19 years and over without CC | E110: =VLOOKUP($A110,'08_DayCase'!$AP:$BG,16,FALSE) -> 1076 | F110: =VLOOKUP($A110,'08_DayCase'!$AP:$BG,18,FALSE) -> 792 | J110: =VLOOKUP(A110,'08_DayCase'!$AP:$AR,3,FALSE) -> PbR Methodology
A111: CZ13V | B111: Intermediate Nose Procedures 19 years and over with CC | D111: Septoplasty | E111: =VLOOKUP($A111,'08_DayCase'!$AP:$BG,16,FALSE) -> 1129 | F111: =VLOOKUP($A111,'08_DayCase'!$AP:$BG,18,FALSE) -> 939 | G111: sub-HRG | H111: BP34 | J111: =VLOOKUP(A111,'08_DayCase'!$AP:$AR,3,FALSE) -> PbR Methodology
A112: CZ13Y | B112: Intermediate Nose Procedures 19 years and over without CC | E112: =VLOOKUP($A112,'08_DayCase'!$AP:$BG,16,FALSE) -> 1082 | F112: =VLOOKUP($A112,'08_DayCase'!$AP:$BG,18,FALSE) -> 893 | J112: =VLOOKUP(A112,'08_DayCase'!$AP:$AR,3,FALSE) -> PbR Methodology
A113: CZ10U | B113: Major Ear Procedures 18 years and under | D113: Tympanoplasty** | E113: =VLOOKUP($A113,'08_DayCase'!$AP:$BG,16,FALSE) -> 2023 | F113: =VLOOKUP($A113,'08_DayCase'!$AP:$BG,18,FALSE) -> 1739 | G113: HRG | H113: n/a | J113: =VLOOKUP(A113,'08_DayCase'!$AP:$AR,3,FALSE) -> PbR Methodology
A114: CZ10V | B114: Major Ear Procedures 19 years and over with CC | E114: =VLOOKUP($A114,'08_DayCase'!$AP:$BG,16,FALSE) -> 2133 | F114: =VLOOKUP($A114,'08_DayCase'!$AP:$BG,18,FALSE) -> 1849 | J114: =VLOOKUP(A114,'08_DayCase'!$AP:$AR,3,FALSE) -> PbR Methodology
A115: CZ10Y | B115: Major Ear Procedures 19 years and over without CC | E115: =VLOOKUP($A115,'08_DayCase'!$AP:$BG,16,FALSE) -> 2018 | F115: =VLOOKUP($A115,'08_DayCase'!$AP:$BG,18,FALSE) -> 1734 | J115: =VLOOKUP(A115,'08_DayCase'!$AP:$AR,3,FALSE) -> PbR Methodology
A117: - A price is listed for GA10E for an ordinary elective admission even though the HRG has a zero length of stay because a day case has to be planned as such.
A118: * Excision of breast includes quadrantectomy, partial excision, any other excision.
A119: ** Tympanoplasty includes myringoplasty, mastoidectomy, ossiculoplasty and stapedectomy.
A120: *** These HRGs are now considered within scope of the BPT as a result of the move to the 2011/12 Reference Cost design. There has not been sufficient time to calculate draft prices for this engagement, but we intend to propose prices as part of the statutory consultation notice.
A122: 4 | B122: Diabetic ketoacidosis and hypoglycaemia
A124: The BPT will apply at the sub-HRG level to emergency admissions.
A125: SUS PbR will automate payment of the base tariff to activity eligible for the BPT, with a top-up for best practice to be paid locally subject to the relevant criteria being met.
A126: Activity outside of the scope of the BPT will be paid the conventional tariff in the main tariff spreadsheet. The conventional tariff price for this activity is in line with the tariff for best practice.
A128: HRG code | B128: HRG name | C128: Base tariff (£) | D128: Best practice tariff (£) | E128: HRG or sub-HRG level | F128: BPT Flag (see BPT Flag sheet) | J128: Calculation Method
A129: KB01A | B129: Diabetes with Hypoglycaemic Disorders 70 years and over | C129: ='00_Other'!BA128 -> 1840 | D129: ='00_Other'!AY128 -> 2165 | E129: sub-HRG | F129: BP52 | J129: =VLOOKUP(A129,'00_Other'!$AH$128:$AJ$135,3,FALSE) -> PbR Methodology
A130: KB01B | B130: Diabetes with Hypoglycaemic Disorders 69 years and under | C130: ='00_Other'!BA129 -> 1108 | D130: ='00_Other'!AY129 -> 1304 | J130: =VLOOKUP(A130,'00_Other'!$AH$128:$AJ$135,3,FALSE) -> PbR Methodology
A131: KB02A | B131: Diabetes with Hyperglycaemic Disorders 70 years and over with Major CC | C131: ='00_Other'!BA130 -> 2661 | D131: ='00_Other'!AY130 -> 3130 | J131: =VLOOKUP(A131,'00_Other'!$AH$128:$AJ$135,3,FALSE) -> PbR Methodology
A132: KB02B | B132: Diabetes with Hyperglycaemic Disorders 70 years and over with Intermediate CC | C132: ='00_Other'!BA131 -> 1654 | D132: ='00_Other'!AY131 -> 1946 | J132: =VLOOKUP(A132,'00_Other'!$AH$128:$AJ$135,3,FALSE) -> PbR Methodology
A133: KB02C | B133: Diabetes with Hyperglycaemic Disorders 70 years and over without CC | C133: ='00_Other'!BA132 -> 1111 | D133: ='00_Other'!AY132 -> 1307 | J133: =VLOOKUP(A133,'00_Other'!$AH$128:$AJ$135,3,FALSE) -> PbR Methodology
A134: KB02D | B134: Diabetes with Hyperglycaemic Disorders 69 years and under with Major CC | C134: ='00_Other'!BA133 -> 1952 | D134: ='00_Other'!AY133 -> 2297 | J134: =VLOOKUP(A134,'00_Other'!$AH$128:$AJ$135,3,FALSE) -> PbR Methodology
A135: KB02E | B135: Diabetes with Hyperglycaemic Disorders 69 years and under with Intermediate CC | C135: ='00_Other'!BA134 -> 1008 | D135: ='00_Other'!AY134 -> 1186 | J135: =VLOOKUP(A135,'00_Other'!$AH$128:$AJ$135,3,FALSE) -> PbR Methodology
A136: KB02F | B136: Diabetes with Hyperglycaemic Disorders 69 years and under without CC | C136: ='00_Other'!BA135 -> 653 | D136: ='00_Other'!AY135 -> 769 | J136: =VLOOKUP(A136,'00_Other'!$AH$128:$AJ$135,3,FALSE) -> PbR Methodology
A139: 5 | B139: Early inflammatory arthritis
A141: Each of the BPT prices is an annual payment, applicable to all newly referred patients who are seen in adult rheumatology services.
A142: There is no discrete treatment function code for early inflammatory arthritis, therefore activity deemed eligible for the BPT should be excluded from the rheumatology TFC and paid for locally.
A144: Code | B144: HRG name | C144: Best practice tariff (£) | J144: Calculation Method
A145: n/a | B145: Diagnosis and discharge | C145: ='00_Other'!AY144 -> 282 | J145: =VLOOKUP(B145,'00_Other'!$AI$144:$AJ$146,2,FALSE) -> Rollover
A146: n/a | B146: DMARDS Therapy | C146: ='00_Other'!AY145 -> 892 | J146: =VLOOKUP(B146,'00_Other'!$AI$144:$AJ$146,2,FALSE) -> Rollover
A147: n/a | B147: Biological Therapy * | C147: ='00_Other'!AY146 -> 917 | J147: =VLOOKUP(B147,'00_Other'!$AI$144:$AJ$146,2,FALSE) -> Rollover
A149: * Excludes costs of biological drugs
A152: 6 | B152: Endoscopy procedures
A154: The BPT will apply at the HRG level to all daycase and elective activity.
A155: SUS PbR will automate payment of the best practice tariff to all activity eligible for the BPT. Where the criteria is not met then commissioners should recover monies to reduce the payment down to the non best practice tariff payment.
A157: HRG code | B157: HRG name | C157: Non-best practice tariff (£) | D157: Best practice tariff (£) | E157: HRG or sub-HRG level | F157: BPT Flag (see BPT Flag sheet) | J157: Calculation Method
A158: FZ24C | B158: Major Therapeutic Open or Endoscopic Procedures 19 years and over without CC | C158: ='00_Other'!BA157 -> 550 | D158: ='00_Other'!AY157 -> 579 | E158: HRG | F158: n/a | J158: =VLOOKUP(A158,'00_Other'!$AH$157:$AJ$175,3,FALSE) -> PbR Methodology
A159: FZ25A | B159: Therapeutic Endoscopic or Intermediate Stomach or Duodenum Procedures 19 years and over | C159: Removed | D159: Removed | J159: -
A160: FZ28A | B160: Endoscopic or Intermediate Procedures for Inflammatory Bowel Disease 19 years and over with CC | C160: Removed | D160: Removed | J160: -
A161: FZ28B | B161: Endoscopic or Intermediate Procedures for Inflammatory Bowel Disease 19 years and over without CC | C161: Removed | D161: Removed | J161: -
A162: FZ30Z | B162: Diagnostic Endoscopic or Intermediate Procedures for Gastrointestinal Bleed | C162: Removed | D162: Removed | J162: -
A163: FZ51Z | B163: Diagnostic Colonoscopy 19 years and over | C163: ='00_Other'!BA162 -> 413 | D163: ='00_Other'!AY162 -> 435 | J163: =VLOOKUP(A163,'00_Other'!$AH$157:$AJ$175,3,FALSE) -> PbR Methodology
A164: FZ52Z | B164: Diagnostic Colonoscopy with biopsy 19 years and over | C164: ='00_Other'!BA163 -> 446 | D164: ='00_Other'!AY163 -> 470 | J164: =VLOOKUP(A164,'00_Other'!$AH$157:$AJ$175,3,FALSE) -> PbR Methodology
A165: FZ53Z | B165: Therapeutic Colonoscopy 19 years and over | C165: ='00_Other'!BA164 -> 451 | D165: ='00_Other'!AY164 -> 474 | J165: =VLOOKUP(A165,'00_Other'!$AH$157:$AJ$175,3,FALSE) -> PbR Methodology
A166: FZ54Z | B166: Diagnostic Flexible Sigmoidoscopy 19 years and over | C166: ='00_Other'!BA165 -> 323 | D166: ='00_Other'!AY165 -> 340 | J166: =VLOOKUP(A166,'00_Other'!$AH$157:$AJ$175,3,FALSE) -> PbR Methodology
A167: FZ55Z | B167: Diagnostic Flexible Sigmoidoscopy with biopsy 19 years and over | C167: ='00_Other'!BA166 -> 367 | D167: ='00_Other'!AY166 -> 386 | J167: =VLOOKUP(A167,'00_Other'!$AH$157:$AJ$175,3,FALSE) -> PbR Methodology
A168: FZ56Z | B168: Therapeutic Flexible Sigmoidoscopy 19 years and over | C168: ='00_Other'!BA167 -> 407 | D168: ='00_Other'!AY167 -> 429 | J168: =VLOOKUP(A168,'00_Other'!$AH$157:$AJ$175,3,FALSE) -> PbR Methodology
A169: FZ60Z | B169: Diagnostic Endoscopic Procedures on the Upper GI Tract 19 years and over | C169: ='00_Other'!BA168 -> 334 | D169: ='00_Other'!AY168 -> 352 | J169: =VLOOKUP(A169,'00_Other'!$AH$157:$AJ$175,3,FALSE) -> PbR Methodology
A170: FZ61Z | B170: Diagnostic Endoscopic Procedures on the Upper GI Tract with biopsy 19 years and over | C170: ='00_Other'!BA169 -> 353 | D170: ='00_Other'!AY169 -> 372 | J170: =VLOOKUP(A170,'00_Other'!$AH$157:$AJ$175,3,FALSE) -> PbR Methodology
A171: FZ63Z | B171: Combined Upper and Lower GI Tract Diagnostic Endoscopic Procedures | C171: ='00_Other'!BA170 -> 474 | D171: ='00_Other'!AY170 -> 499 | J171: =VLOOKUP(A171,'00_Other'!$AH$157:$AJ$175,3,FALSE) -> PbR Methodology
A172: FZ64Z | B172: Combined Upper and Lower GI Tract Diagnostic Endoscopic Procedures with biopsy | C172: Removed | D172: Removed | J172: -
A173: FZ65Z | B173: Combined Upper and Lower GI Tract Therapeutic Endoscopic Procedures | C173: ='00_Other'!BA172 -> 503 | D173: ='00_Other'!AY172 -> 530 | J173: =VLOOKUP(A173,'00_Other'!$AH$157:$AJ$175,3,FALSE) -> PbR Methodology
A174: FZ64A | B174: Combined Upper and Lower GI Tract Diagnostic Endoscopic Procedures with Biopsy, 19 years and over | C174: ='00_Other'!BA173 -> 478 | D174: ='00_Other'!AY173 -> 503 | J174: =VLOOKUP(A174,'00_Other'!$AH$157:$AJ$175,3,FALSE) -> PbR Methodology
A175: FZ88A | B175: Insertion of Gastrostomy Tube, 19 years and over | C175: ='00_Other'!BA174 -> 842 | D175: ='00_Other'!AY174 -> 886 | J175: =VLOOKUP(A175,'00_Other'!$AH$157:$AJ$175,3,FALSE) -> PbR Methodology
A176: FZ70Z | B176: Therapeutic Endoscopic Upper GI Tract Procedures, 19 years and over | C176: ='00_Other'!BA175 -> 426 | D176: ='00_Other'!AY175 -> 448 | J176: =VLOOKUP(A176,'00_Other'!$AH$157:$AJ$175,3,FALSE) -> PbR Methodology
A179: 7 | B179: Fragility hip fracture
A181: The BPT is made up of two components: a base tariff and a conditional payment. The base tariff is payable to all activity irrespective of whether the characteristics of best practice were met. The conditional payment is payable if all seven characteristics are achieved (see guidance).
A182: The base tariff and the additional payment apply at the sub-HRG level with the use of BPT flag 01 to capture the relevant activity within the associated HRGs.
A183: For each of the HRGs there will be a conventional tariff applicable to the HRG. The conventional tariff however is to reimburse the costs of the activity unrelated to the BPT within the same HRG. The BPT is the mandatory tariff for the activity identified by the flag and is therefore not optional.
A184: Short stay emergency adjustment does not apply. Long stay payments and specialist top-ups do apply where appropriate.
A185: SUS PbR will apply the base tariff to spells with a BPT flag 01 in the HRGs below but it will not apply the additional payment. See guidance.
B187: Best practice tariff additional payment | C187: Additional payment (£) | J187: Calculation Method
B188: Compliance with all 7 best practice criteria | C188: ='201415_BPTs'!C184 -> 1335 | J188: ='01_FHF'!$AF$22 -> PbR Methodology
A190: HRG code | B190: HRG name | C190: Base tariff (£) | D190: Best practice tariff (£) | E190: BPT Flag (see BPT Flag sheet)
A191: HA11A | B191: Major Hip Procedures category 2 for Trauma with Major CC | C191: ='01_FHF'!AU22 -> 11997 | D191: ='01_FHF'!AS22 -> 13260 | E191: BP01 | J191: =VLOOKUP(A191,'01_FHF'!$AD$22:$AF$40,3,FALSE) -> PbR Methodology
A192: HA11B | B192: Major Hip Procedures category 2 for Trauma with Intermediate CC | C192: ='01_FHF'!AU23 -> 7345 | D192: ='01_FHF'!AS23 -> 8609 | J192: =VLOOKUP(A192,'01_FHF'!$AD$22:$AF$40,3,FALSE) -> PbR Methodology
A193: HA11C | B193: Major Hip Procedures category 2 for Trauma without CC | C193: ='01_FHF'!AU24 -> 6204 | D193: ='01_FHF'!AS24 -> 7467 | J193: =VLOOKUP(A193,'01_FHF'!$AD$22:$AF$40,3,FALSE) -> PbR Methodology
A194: HA12B | B194: Major Hip Procedures category 1 for Trauma with CC | C194: ='01_FHF'!AU25 -> 7084 | D194: ='01_FHF'!AS25 -> 8348 | J194: =VLOOKUP(A194,'01_FHF'!$AD$22:$AF$40,3,FALSE) -> PbR Methodology
A195: HA12C | B195: Major Hip Procedures category 1 for Trauma without CC | C195: ='01_FHF'!AU26 -> 4990 | D195: ='01_FHF'!AS26 -> 6254 | J195: =VLOOKUP(A195,'01_FHF'!$AD$22:$AF$40,3,FALSE) -> PbR Methodology
A196: HA13A | B196: Intermediate Hip Procedures for Trauma with Major CC | C196: ='01_FHF'!AU27 -> 7242 | D196: ='01_FHF'!AS27 -> 8506 | J196: =VLOOKUP(A196,'01_FHF'!$AD$22:$AF$40,3,FALSE) -> PbR Methodology
A197: HA13B | B197: Intermediate Hip Procedures for Trauma with Intermediate CC | C197: ='01_FHF'!AU28 -> 5037 | D197: ='01_FHF'!AS28 -> 6301 | J197: =VLOOKUP(A197,'01_FHF'!$AD$22:$AF$40,3,FALSE) -> PbR Methodology
A198: HA13C | B198: Intermediate Hip Procedures for Trauma without CC | C198: ='01_FHF'!AU29 -> 4297 | D198: ='01_FHF'!AS29 -> 5561 | J198: =VLOOKUP(A198,'01_FHF'!$AD$22:$AF$40,3,FALSE) -> PbR Methodology
A199: HA14A | B199: Minor Hip Procedures for Trauma with Major CC | C199: ='01_FHF'!AU30 -> 7243 | D199: ='01_FHF'!AS30 -> 8507 | J199: =VLOOKUP(A199,'01_FHF'!$AD$22:$AF$40,3,FALSE) -> PbR Methodology
A200: HA14B | B200: Minor Hip Procedures for Trauma with Intermediate CC | C200: ='01_FHF'!AU31 -> 3077 | D200: ='01_FHF'!AS31 -> 4341 | J200: =VLOOKUP(A200,'01_FHF'!$AD$22:$AF$40,3,FALSE) -> PbR Methodology
A201: HA14C | B201: Minor Hip Procedures for Trauma without CC | C201: ='01_FHF'!AU32 -> 2329 | D201: ='01_FHF'!AS32 -> 3593 | J201: =VLOOKUP(A201,'01_FHF'!$AD$22:$AF$40,3,FALSE) -> PbR Methodology
A202: VA11A | B202: Multiple Trauma Diagnoses score <=23, with Interventions score 1-8 | C202: ='01_FHF'!AU33 -> 564 | D202: ='01_FHF'!AS33 -> 1827 | J202: =VLOOKUP(A202,'01_FHF'!$AD$22:$AF$40,3,FALSE) -> PbR Methodology
A203: VA11B | B203: Multiple Trauma Diagnoses score 24-32, with Interventions score 1-8 | C203: ='01_FHF'!AU34 -> 1173 | D203: ='01_FHF'!AS34 -> 2436 | J203: =VLOOKUP(A203,'01_FHF'!$AD$22:$AF$40,3,FALSE) -> PbR Methodology
A204: VA11C | B204: Multiple Trauma Diagnoses score 33-50, with Interventions score 1-8 | C204: ='01_FHF'!AU35 -> 2635 | D204: ='01_FHF'!AS35 -> 3899 | J204: =VLOOKUP(A204,'01_FHF'!$AD$22:$AF$40,3,FALSE) -> PbR Methodology
A205: VA11D | B205: Multiple Trauma Diagnoses score >=51, with Interventions score 1-8 | C205: ='01_FHF'!AU36 -> 5794 | D205: ='01_FHF'!AS36 -> 7058 | J205: =VLOOKUP(A205,'01_FHF'!$AD$22:$AF$40,3,FALSE) -> PbR Methodology
A206: VA12A | B206: Multiple Trauma Diagnoses score <=23, with Interventions score 9-18 | C206: ='01_FHF'!AU37 -> 2486 | D206: ='01_FHF'!AS37 -> 3750 | J206: =VLOOKUP(A206,'01_FHF'!$AD$22:$AF$40,3,FALSE) -> PbR Methodology
A207: VA12B | B207: Multiple Trauma Diagnoses score 24-32, with Interventions score 9-18 | C207: ='01_FHF'!AU38 -> 3977 | D207: ='01_FHF'!AS38 -> 5241 | J207: =VLOOKUP(A207,'01_FHF'!$AD$22:$AF$40,3,FALSE) -> PbR Methodology
A208: VA12C | B208: Multiple Trauma Diagnoses score 33-50, with Interventions score 9-18 | C208: ='01_FHF'!AU39 -> 5324 | D208: ='01_FHF'!AS39 -> 6587 | J208: =VLOOKUP(A208,'01_FHF'!$AD$22:$AF$40,3,FALSE) -> PbR Methodology
A209: VA12D | B209: Multiple Trauma Diagnoses score >=51, with Interventions score 9-18 | C209: ='01_FHF'!AU40 -> 8383 | D209: ='01_FHF'!AS40 -> 9647 | J209: =VLOOKUP(A209,'01_FHF'!$AD$22:$AF$40,3,FALSE) -> PbR Methodology
A212: 8 | B212: Interventional radiology
A214: For abdominal EVAR and UFE, the BPT applies at the HRG level. For the other five procedures, the BPT applies at the sub-HRG level with the use of a BPT flag to capture the relevant activity within the associated HRGs.
A215: All IR BPTs apply only to elective (ordinary and daycase) admissions.
A216: Where the BPT applies at the sub-HRG level, with the use of a BPT flag, there will be a conventional tariff applicable to the HRG. The conventional tariff however is to reimburse the costs of the activity unrelated to the BPT within the same HRG. The BPT is the mandatory tariff for the activity identified by the flag and is therefore not optional.
A217: Elective long stay payments and specialist top-ups apply where appropriate.
A218: SUS PbR will automate payment by: (a) generating the relevant flag, where required (b) applying relevant prices either to the BPT flag within relevant HRGs or at the HRG as appropriate.
E219: BPT applies to:
A220: HRG code | B220: HRG name | C220: BPT name | D220: Best practice tariff (£) | E220: HRG or sub-HRG level | F220: BPT Flag (see BPT Flag sheet) | J220: Calculation Method
A221: RC12A | B221: Infrarenal or Aorto-Uni-Iliac Endovascular Stent Graft for Non-Ruptured Abdominal Aortic Aneurysm, One Branched Stent Graft | C221: Abdominal EVAR | D221: ='07_IR'!AE45 -> 5821 | E221: HRG | F221: n/a | J221: =VLOOKUP(A221,'07_IR'!$P:$R,3,FALSE) -> Rollover
A222: RC12B | B222: Infrarenal or Aorto-Uni-Iliac Endovascular Stent Graft for Non-Ruptured Abdominal Aortic Aneurysm, One Fenestrated Stent Graft | D222: ='07_IR'!AE46 -> 5821 | J222: =VLOOKUP(A222,'07_IR'!$P:$R,3,FALSE) -> Rollover
A223: RC12C | B223: Infrarenal or Aorto-Uni-Iliac Endovascular Stent Graft for Non-Ruptured Abdominal Aortic Aneurysm, One Stent Graft | D223: ='07_IR'!AE47 -> 5821 | J223: =VLOOKUP(A223,'07_IR'!$P:$R,3,FALSE) -> Rollover
A224: RC12D | B224: Infrarenal or Aorto-Uni-Iliac Endovascular Stent Graft for Non-Ruptured Abdominal Aortic Aneurysm, Two Stent Grafts | D224: ='07_IR'!AE48 -> 5821 | J224: =VLOOKUP(A224,'07_IR'!$P:$R,3,FALSE) -> Rollover
A225: RC12E | B225: Infrarenal or Aorto-Uni-Iliac Endovascular Stent Graft for Non-Ruptured Abdominal Aortic Aneurysm, Three or more Stent Grafts | D225: ='07_IR'!AE49 -> 5821 | J225: =VLOOKUP(A225,'07_IR'!$P:$R,3,FALSE) -> Rollover
A226: RC13A | B226: Other Endovascular Stent Graft for Non-Ruptured Abdominal Aortic Aneurysm, One Branched Stent Graft | D226: ='07_IR'!AE50 -> 5821 | J226: =VLOOKUP(A226,'07_IR'!$P:$R,3,FALSE) -> Rollover
A227: RC13B | B227: Other Endovascular Stent Graft for Non-Ruptured Abdominal Aortic Aneurysm, One Fenestrated Stent Graft | D227: ='07_IR'!AE51 -> 5821 | J227: =VLOOKUP(A227,'07_IR'!$P:$R,3,FALSE) -> Rollover
A228: RC13C | B228: Other Endovascular Stent Graft for Non-Ruptured Abdominal Aortic Aneurysm, One Stent Graft | D228: ='07_IR'!AE52 -> 5821 | J228: =VLOOKUP(A228,'07_IR'!$P:$R,3,FALSE) -> Rollover
A229: RC13D | B229: Other Endovascular Stent Graft for Non-Ruptured Abdominal Aortic Aneurysm, Two Stent Grafts | D229: ='07_IR'!AE53 -> 5821 | J229: =VLOOKUP(A229,'07_IR'!$P:$R,3,FALSE) -> Rollover
A230: RC13E | B230: Other Endovascular Stent Graft for Non-Ruptured Abdominal Aortic Aneurysm, Three or more Stent Grafts | D230: ='07_IR'!AE54 -> 5821 | J230: =VLOOKUP(A230,'07_IR'!$P:$R,3,FALSE) -> Rollover
A231: RC41Z | B231: Interventional Radiology - Obs & Gynae - Uterine Fibroid Embolisation | C231: UFE | D231: ='07_IR'!AE55 -> 2374 | E231: HRG | F231: n/a | J231: =VLOOKUP(A231,'07_IR'!$P:$R,3,FALSE) -> Rollover
A232: QZ01A | B232: Aortic or Abdominal Surgery with CC | C232: Thoracic EVAR | D232: ='07_IR'!AE56 -> 5849 | E232: sub-HRG | F232: BP23 | J232: =VLOOKUP(A232,'07_IR'!$P:$R,3,FALSE) -> Rollover
A233: QZ01B | B233: Aortic or Abdominal Surgery without CC | D233: ='07_IR'!AE57 -> 3781 | J233: =VLOOKUP(A233,'07_IR'!$P:$R,3,FALSE) -> Rollover
A234: QZ15B | B234: Therapeutic Endovascular Procedures with Intermediate CC | C234: Angioplasty and stenting of SFA or iliac artery for PAD | D234: ='07_IR'!AE58 -> 1687 | E234: sub-HRG | F234: BP24 | J234: =VLOOKUP(A234,'07_IR'!$P:$R,3,FALSE) -> Rollover
A235: QZ15C | B235: Therapeutic Endovascular Procedures without CC | D235: ='07_IR'!AE59 -> 1305 | J235: =VLOOKUP(A235,'07_IR'!$P:$R,3,FALSE) -> Rollover
A236: RC14Z | B236: IR Procedures - Vascular - Major | C236: Angioplasty or stenting for diabetic foot disease | D236: ='07_IR'!AE60 -> 1813 | E236: HRG | F236: n/a | J236: =VLOOKUP(A236,'07_IR'!$P:$R,3,FALSE) -> Rollover
A237: QZ15B | B237: Therapeutic Endovascular Procedures with Intermediate CC | D237: ='07_IR'!AE61 -> 1907 | E237: sub-HRG | F237: BP25 | J237: =VLOOKUP(A237,'07_IR'!$P:$R,3,FALSE) -> Rollover
... 116 more rows

Sheet BPT INPUT FROM APC
A2: 2015/16 APC model - snapshot | C2: Sheet | D2: APC Output for BPT
A4: Spell HRG | B4: OPROC | C4: DC tariff | D4: EL Tariff | E4: EL Trim | F4: NE Tariff
A5: AA02A | C5: 7762 | D5: 7762 | F5: 7172
A6: AA02B | C6: 2843 | D6: 2843 | F6: 5441
A7: AA03A | C7: 8125 | D7: 8125 | F7: 6250
A8: AA03B | C8: 5124 | D8: 5124 | F8: 4876
A9: AA04A | C9: 10331 | D9: 10331 | F9: 14110
A10: AA04B | C10: 4469 | D10: 4469 | F10: 10532
A11: AA05A | C11: 6425 | D11: 6425 | F11: 12684
A12: AA05B | C12: 4196 | D12: 4196 | F12: 9090
A13: AA06A | C13: 7754 | D13: 7754 | F13: 11236
A14: AA06B | C14: 4917 | D14: 4917 | F14: 8828
A15: AA07A | C15: 5039 | D15: 5039 | F15: 8913
A16: AA07B | C16: 3781 | D16: 3781 | F16: 6692
A17: AA08A | C17: 6823 | D17: 6823 | F17: 7066
A18: AA08B | C18: 7619 | D18: 7619 | F18: 5427
A19: AA09A | C19: 3172 | D19: 3172 | F19: 10099
A20: AA09B | C20: 1077 | D20: 1077 | F20: 7298
A21: AA10A | C21: 7211 | D21: 7211 | F21: 14145
A22: AA10B | C22: 4457 | D22: 4457 | F22: 6534
A23: AA11A | C23: 8563 | D23: 8563 | F23: 12838
A24: AA11B | C24: 2724 | D24: 2724 | F24: 8835
A25: AA12A | C25: 6505 | D25: 6505 | F25: 8622
A26: AA12B | C26: 6058 | D26: 6058 | F26: 7737
A27: AA13A | C27: 5578 | D27: 5578 | F27: 7497
A28: AA13B | C28: 5505 | D28: 5505 | F28: 5638
A29: AA14A | C29: 3032 | D29: 3032 | F29: 3758
A30: AA14B | C30: 3015 | D30: 3015 | F30: 5171
A31: AA15A | C31: 5752 | D31: 5752 | F31: 9629
A32: AA15B | C32: 4675 | D32: 4675 | F32: 7559
A33: AA16A | C33: 6394 | D33: 6394 | F33: 8317
A34: AA16B | C34: 2711 | D34: 2711 | F34: 7122
A35: AA17A | C35: 5778 | D35: 5778 | F35: 8412
A36: AA17B | C36: 8101 | D36: 8101 | F36: 5491
A37: AA18A | C37: 4475 | D37: 4475 | F37: 6578
A38: AA18B | C38: 4332 | D38: 4332 | F38: 5817
A39: AA19A | C39: 2105 | D39: 2105 | F39: 4827
A40: AA19B | C40: 1882 | D40: 1882 | F40: 3460
A41: AA20A | C41: 1669 | D41: 1669 | F41: 3601
A42: AA20B | C42: 1386 | D42: 1386 | F42: 1565
A43: AA21A | C43: 2175 | D43: 2175 | F43: 6122
A44: AA21B | C44: 1297 | D44: 1297 | F44: 4557
A45: AA22A | C45: 3734 | D45: 3734 | F45: 4193
A46: AA22B | C46: 738 | D46: 738 | F46: 2490
A47: AA23A | C47: 7783 | D47: 7783 | F47: 4455
A48: AA23B | C48: 3795 | D48: 3795 | F48: 2386
A49: AA24A | C49: 1040 | D49: 1040 | F49: 3599
A50: AA24B | C50: 707 | D50: 707 | F50: 2309
A51: AA25A | C51: 1393 | D51: 1393 | F51: 2900
A52: AA25B | C52: 540 | D52: 540 | F52: 1589
A53: AA26A | C53: 937 | D53: 937 | F53: 1314
A54: AA26B | C54: 648 | D54: 648 | F54: 649
A55: AA27A | C55: 3453 | D55: 3453 | F55: 5130
A56: AA27B | C56: 427 | D56: 427 | F56: 1909
A57: AA28A | C57: 2427 | D57: 2427 | F57: 5188
A58: AA28B | C58: 1690 | D58: 1690 | F58: 3083
A59: AA29A | C59: 493 | D59: 493 | F59: 1391
A60: AA29B | C60: 469 | D60: 469 | F60: 555
A61: AA30A | C61: 593 | D61: 593 | F61: 3705
A62: AA30B | C62: 442 | D62: 442 | F62: 2091
A63: AA31A | C63: 845 | D63: 845 | F63: 748
A64: AA31B | C64: 433 | D64: 433 | F64: 546
A65: AA32Z | C65: 427 | D65: 427 | F65: 382
A66: AA33C | B66: 173 | C66: 173 | D66: 173 | F66: 1207
A67: AA33D | C67: 823 | D67: 823 | F67: 1328
A68: AA34E | C68: 9 | D68: 9 | F68: 606
A69: AA34F | C69: 8 | D69: 8 | F69: 220
A70: AB02Z | C70: 754 | D70: 754 | F70: 1529
A71: AB03Z | C71: 750 | D71: 750 | F71: 4285
A72: AB04Z | C72: 647 | D72: 647 | F72: 2492
A73: AB05Z | B73: 171 | C73: 657 | D73: 657 | F73: 3205
A74: AB06Z | B74: 202 | C74: 202 | D74: 202 | F74: 3436
A75: AB07Z | C75: 3048 | D75: 3048 | F75: 4548
A76: AB08Z | C76: 695 | D76: 695 | F76: 3041
A77: AB09Z | B77: 116 | C77: 587 | D77: 587 | F77: 2357
A78: AB10Z | C78: 397 | D78: 397 | F78: 2172
A79: AB11Z | C79: 72 | D79: 72 | F79: 6590
A80: BZ01Z | C80: 1053 | D80: 1053 | F80: 2161
A81: BZ02Z | C81: 782 | D81: 782 | F81: 2805
A82: BZ03Z | C82: 1005 | D82: 1005 | F82: 1303
A83: BZ04Z | B83: 160 | C83: 160 | D83: 160 | F83: 465
A84: BZ05Z | C84: 1324 | D84: 1324 | F84: 8505
A85: BZ06A | C85: 916 | D85: 916 | F85: 1272
A86: BZ06B | C86: 1056 | D86: 1056 | F86: 1522
A87: BZ07A | B87: 121 | C87: 640 | D87: 640 | F87: 913
A88: BZ07B | B88: 151 | C88: 809 | D88: 809 | F88: 1009
A89: BZ08A | C89: 2120 | D89: 2120 | F89: 3342
A90: BZ08B | C90: 2007 | D90: 2007 | F90: 3431
A91: BZ09A | C91: 1471 | D91: 1471 | F91: 3013
A92: BZ09B | C92: 1603 | D92: 1603 | F92: 2628
A93: BZ10A | B93: 111 | C93: 638 | D93: 638 | F93: 1238
A94: BZ10B | B94: 128 | C94: 830 | D94: 830 | F94: 1331
A95: BZ11Z | C95: 2054 | D95: 2054 | F95: 3660
A96: BZ12Z | C96: 1592 | D96: 1592 | F96: 2649
A97: BZ13Z | B97: 153 | C97: 911 | D97: 911 | F97: 2199
A98: BZ14A | C98: 1284 | D98: 1284 | F98: 905
A99: BZ14B | C99: 1167 | D99: 1167 | F99: 2481
A100: BZ15A | C100: 1165 | D100: 1165 | F100: 1365
A101: BZ15B | C101: 1215 | D101: 1215 | F101: 1133
A102: BZ16A | C102: 1125 | D102: 1125 | F102: 966
A103: BZ16B | C103: 1106 | D103: 1106 | F103: 921
A104: BZ17Z | C104: 1435 | D104: 1435 | F104: 1469
A105: BZ18Z | B105: 98 | C105: 1026 | D105: 1026 | F105: 1648
A106: BZ19Z | B106: 107 | C106: 477 | D106: 477 | F106: 1032
A107: BZ20Z | C107: 1913 | D107: 1913 | F107: 2387
A108: BZ21Z | C108: 1496 | D108: 1496 | F108: 1630
A109: BZ22Z | B109: 157 | C109: 1243 | D109: 1243 | F109: 2008
A110: BZ23Z | B110: 120 | C110: 375 | D110: 375 | F110: 855
A111: BZ24A | C111: 2861 | D111: 2861 | F111: 2167
A112: BZ24C | C112: 331 | D112: 331 | F112: 424
A113: CZ01S | C113: 865 | D113: 865 | F113: 2768
A114: CZ01T | B114: 118 | C114: 699 | D114: 699 | F114: 853
A115: CZ01V | C115: 700 | D115: 700 | F115: 1704
A116: CZ01Y | B116: 151 | C116: 151 | D116: 151 | F116: 716
A117: CZ02S | C117: 1527 | D117: 1527 | F117: 3288
A118: CZ02T | B118: 118 | C118: 1099 | D118: 1099 | F118: 1299
A119: CZ02W | C119: 1586 | D119: 1586 | F119: 5210
A120: CZ02X | C120: 1084 | D120: 1084 | F120: 1808
A121: CZ02Y | B121: 121 | C121: 933 | D121: 933 | F121: 1154
A122: CZ03U | C122: 2857 | D122: 2857 | F122: 3209
A123: CZ03V | C123: 2728 | D123: 2728 | F123: 5270
A124: CZ03Y | C124: 2097 | D124: 2097 | F124: 2506
A125: CZ04O | C125: 19718 | D125: 19718 | F125: 22650
A126: CZ04P | C126: 11429 | D126: 11429 | F126: 17622
A127: CZ04Q | C127: 7482 | D127: 7482 | F127: 8447
A128: CZ05S | C128: 1430 | D128: 1430 | F128: 2212
A129: CZ05T | C129: 1205 | D129: 1205 | F129: 1118
A130: CZ05V | C130: 1294 | D130: 1294 | F130: 1012
A131: CZ05Y | C131: 1200 | D131: 1200 | F131: 857
A132: CZ07O | C132: 9603 | D132: 9603 | F132: 8563
A133: CZ07P | C133: 3629 | D133: 3629 | F133: 5179
A134: CZ07Q | C134: 3252 | D134: 3252 | F134: 3447
A135: CZ08S | C135: 1005 | D135: 1005 | F135: 1795
A136: CZ08T | B136: 109 | C136: 779 | D136: 779 | F136: 918
A137: CZ08V | C137: 743 | D137: 743 | F137: 1882
A138: CZ08Y | B138: 134 | C138: 134 | D138: 134 | F138: 777
A139: CZ09U | C139: 1615 | D139: 1615 | F139: 1112
A140: CZ09V | C140: 1132 | D140: 1132 | F140: 2007
A141: CZ09Y | C141: 1140 | D141: 1140 | F141: 1045
A142: CZ10U | C142: 2244 | D142: 2244 | F142: 4321
A143: CZ10V | C143: 2366 | D143: 2366 | F143: 6139
A144: CZ10Y | C144: 2238 | D144: 2238 | F144: 2716
A145: CZ11Z | C145: 3047 | D145: 3047 | F145: 3888
A146: CZ12U | B146: 120 | C146: 724 | D146: 724 | F146: 815
A147: CZ12V | C147: 765 | D147: 765 | F147: 1060
A148: CZ12Y | B148: 125 | C148: 651 | D148: 651 | F148: 800
A149: CZ13U | C149: 1276 | D149: 1276 | F149: 1550
A150: CZ13V | C150: 1316 | D150: 1316 | F150: 1206
A151: CZ13Y | B151: 129 | C151: 1261 | D151: 1261 | F151: 1007
A152: CZ14U | C152: 1892 | D152: 1892 | F152: 4274
A153: CZ14V | C153: 1643 | D153: 1643 | F153: 2195
A154: CZ14Y | C154: 1572 | D154: 1572 | F154: 1786
A155: CZ15N | C155: 1907 | D155: 1907 | F155: 4087
A156: CZ15Q | C156: 1703 | D156: 1703 | F156: 3357
A157: CZ16N | C157: 1435 | D157: 1435 | F157: 1785
A158: CZ16Q | C158: 1243 | D158: 1243 | F158: 1668
A159: CZ17U | C159: 1586 | D159: 1586 | F159: 2453
A160: CZ17V | C160: 2376 | D160: 2376 | F160: 2916
A161: CZ17Y | C161: 1519 | D161: 1519 | F161: 2279
A162: CZ18R | C162: 3968 | D162: 3968 | F162: 3911
A163: CZ18U | C163: 3731 | D163: 3731 | F163: 3350
A164: CZ19Z | C164: 6932 | D164: 6932 | F164: 6718
A165: CZ20Z | C165: 19038 | D165: 19038 | F165: 19038
A166: CZ21V | C166: 1057 | D166: 1057 | F166: 728
A167: CZ21Y | C167: 684 | D167: 684 | F167: 472
A168: CZ22W | C168: 2051 | D168: 2051 | F168: 2299
A169: CZ22X | C169: 1332 | D169: 1332 | F169: 938
A170: CZ22Y | C170: 781 | D170: 781 | F170: 662
A171: CZ23W | C171: 3019 | D171: 3019 | F171: 2756
A172: CZ23X | C172: 1343 | D172: 1343 | F172: 1340
A173: CZ23Y | C173: 1015 | D173: 1015 | F173: 621
A174: CZ24O | C174: 5442 | D174: 5442 | F174: 5162
A175: CZ24P | C175: 1739 | D175: 1739 | F175: 3024
A176: CZ24Q | C176: 1584 | D176: 1584 | F176: 2326
A177: CZ27Z | C177: 2601 | D177: 2601 | F177: 2601
A178: CZ30U | C178: 482 | D178: 482 | F178: 893
A179: CZ30Y | B179: 220 | C179: 220 | D179: 220 | F179: 853
A180: CZ31U | C180: 563 | D180: 563 | F180: 786
A181: CZ31Y | B181: 257 | C181: 257 | D181: 257 | F181: 651
A182: CZ32U | B182: 120 | C182: 1003 | D182: 1003 | F182: 652
A183: CZ32Y | B183: 130 | C183: 867 | D183: 867 | F183: 509
A184: CZ33U | C184: 560 | D184: 560 | F184: 753
A185: CZ33Y | B185: 245 | C185: 245 | D185: 245 | F185: 1090
A186: CZ34U | B186: 111 | C186: 607 | D186: 607 | F186: 1023
A187: CZ34Y | B187: 133 | C187: 133 | D187: 133 | F187: 1148
A188: CZ35U | B188: 117 | C188: 117 | D188: 117 | F188: 241
A189: CZ35Y | B189: 119 | C189: 119 | D189: 119 | F189: 1615
A190: CZ36U | C190: 717 | D190: 717 | F190: 913
A191: CZ36Y | B191: 177 | C191: 591 | D191: 591 | F191: 756
A192: CZ37U | C192: 827 | D192: 827 | F192: 1056
A193: CZ37Y | B193: 125 | C193: 525 | D193: 525 | F193: 1140
A194: CZ38U | B194: 124 | C194: 124 | D194: 124 | F194: 1350
A195: CZ38Y | B195: 142 | C195: 142 | D195: 142 | F195: 2337
A196: CZ39U | B196: 132 | C196: 955 | D196: 955 | F196: 1052
A197: CZ39Y | B197: 142 | C197: 852 | D197: 852 | F197: 982
A198: CZ40U | C198: 924 | D198: 924 | F198: 1266
A199: CZ40Y | B199: 131 | C199: 627 | D199: 627 | F199: 1342
A200: CZ41U | C200: 931 | D200: 931 | F200: 1039
A201: CZ41Y | B201: 147 | C201: 702 | D201: 702 | F201: 1211
A202: CZ42U | C202: 608 | D202: 608 | F202: 1052
... 1108 more rows

Sheet APC TED prices
A1: 2015-16 tariff - Admitted Patient Care
M2: Best practice tariff information
A3: HRG code | B3: HRG name | C3: Combined day case / ordinary elective spell tariff (£) | D3: Day case spell tariff (£) | E3: Ordinary elective spell tariff (£) | F3: Ordinary elective long stay trimpoint (days) | G3: Non-elective spell tariff (£) | H3: Non-elective long stay trimpoint (days) | I3: Per day long stay payment (for days exceeding trimpoint) (£) | J3: Reduced short stay emergency tariff applicable? | K3: % applied in calculation of reduced short stay emergency tariff | L3: Reduced short stay emergency tariff (£) | M3: HRGs within scope of BPTs? (if '1' see 'BPTs' sheet) | N3: BPT applies at HRG level , sub-HRG level or other basis?
A4: AA02A | B4: Intracranial Procedures for Trauma with Diagnosis of Intracranial Injury with CC | C4: 7126.887758 | D4: 7126.887758 | E4: 7126.887758 | F4: 37 | G4: 6585.163489 | H4: 45 | I4: 206.2715591 | J4: No | K4: 0 | L4: 0
A5: AA02B | B5: Intracranial Procedures for Trauma with Diagnosis of Intracranial Injury without CC | C5: 2610.376436 | D5: 2610.376436 | E5: 2610.376436 | F5: 15 | G5: 4995.799574 | H5: 21 | I5: 206.2715591 | J5: No | K5: 0 | L5: 0
A6: AA03A | B6: Intracranial Procedures for Trauma with Diagnosis of Head Injury or Skull Fracture, with CC | C6: 7460.18591 | D6: 7460.18591 | E6: 7460.18591 | F6: 26 | G6: 5738.604546 | H6: 28 | I6: 206.2715591 | J6: No | K6: 0 | L6: 0
A7: AA03B | B7: Intracranial Procedures for Trauma with Diagnosis of Head Injury or Skull Fracture, without CC | C7: 4704.737551 | D7: 4704.737551 | E7: 4704.737551 | F7: 10 | G7: 4477.029723 | H7: 16 | I7: 206.2715591 | J7: No | K7: 0 | L7: 0
A8: AA04A | B8: Major Intracranial Procedures Except Trauma with Non-Transient Stroke or Cerebrovascular Accident, Nervous System Infections or Encephalopathy, with CC | C8: 9485.683771 | D8: 9485.683771 | E8: 9485.683771 | F8: 50 | G8: 12955.47362 | H8: 87 | I8: 206.2715591 | J8: No | K8: 0 | L8: 0
A9: AA04B | B9: Major Intracranial Procedures Except Trauma with Non-Transient Stroke or Cerebrovascular Accident, Nervous System Infections or Encephalopathy, without CC | C9: 4103.331795 | D9: 4103.331795 | E9: 4103.331795 | F9: 13 | G9: 9670.237293 | H9: 61 | I9: 206.2715591 | J9: No | K9: 0 | L9: 0
A10: AA05A | B10: Major Intracranial Procedures Except Trauma with Haemorrhagic Cerebrovascular Disorders with CC | C10: 5899.285474 | D10: 5899.285474 | E10: 5899.285474 | F10: 20 | G10: 11646.15361 | H10: 62 | I10: 206.2715591 | J10: No | K10: 0 | L10: 0
A11: AA05B | B11: Major Intracranial Procedures Except Trauma with Haemorrhagic Cerebrovascular Disorders without CC | C11: 3852.669548 | D11: 3852.669548 | E11: 3852.669548 | F11: 5 | G11: 8346.226452 | H11: 34 | I11: 206.2715591 | J11: No | K11: 0 | L11: 0
A12: AA06A | B12: Major Intracranial Procedures Except Trauma with Brain Tumours or Cerebral Cysts, with CC | C12: 7119.542344 | D12: 7119.542344 | E12: 7119.542344 | F12: 18 | G12: 10316.63371 | H12: 42 | I12: 206.2715591 | J12: No | K12: 0 | L12: 0
A13: AA06B | B13: Major Intracranial Procedures Except Trauma with Brain Tumours or Cerebral Cysts, without CC | C13: 4514.674969 | D13: 4514.674969 | E13: 4514.674969 | F13: 14 | G13: 8105.66415 | H13: 24 | I13: 206.2715591 | J13: No | K13: 0 | L13: 0
A14: AA07A | B14: Major Intracranial Procedures Except Trauma with Cerebral Degenerations or Miscellaneous Disorders of Nervous System, with CC | C14: 4626.692529 | D14: 4626.692529 | E14: 4626.692529 | F14: 15 | G14: 8183.709171 | H14: 34 | I14: 206.2715591 | J14: No | K14: 0 | L14: 0
A15: AA07B | B15: Major Intracranial Procedures Except Trauma with Cerebral Degenerations or Miscellaneous Disorders of Nervous System, without CC | C15: 3471.626206 | D15: 3471.626206 | E15: 3471.626206 | F15: 10 | G15: 6144.43866 | H15: 22 | I15: 206.2715591 | J15: No | K15: 0 | L15: 0
A16: AA08A | B16: Major Intracranial Procedures Except Trauma with Muscular, Balance, Cranial or Peripheral Nerve Disorders or Epilepsy, with CC | C16: 6275.300615 | D16: 6275.300615 | E16: 6275.300615 | F16: 12 | G16: 6275.300615 | H16: 39 | I16: 206.2715591 | J16: No | K16: 0 | L16: 0
A17: AA08B | B17: Major Intracranial Procedures Except Trauma with Muscular, Balance, Cranial or Peripheral Nerve Disorders or Epilepsy, without CC | C17: 4998.200412 | D17: 4998.200412 | E17: 4998.200412 | F17: 11 | G17: 6275.300615 | H17: 17 | I17: 206.2715591 | J17: No | K17: 0 | L17: 0
A18: AA09A | B18: Major Intracranial Procedures Except Trauma with Other Diagnoses with CC | C18: 2912.456579 | D18: 2912.456579 | E18: 2912.456579 | F18: 8 | G18: 9272.66677 | H18: 54 | I18: 206.2715591 | J18: No | K18: 0 | L18: 0
A19: AA09B | B19: Major Intracranial Procedures Except Trauma with Other Diagnoses without CC | C19: 988.8763354 | D19: 988.8763354 | E19: 988.8763354 | F19: 5 | G19: 6700.853757 | H19: 34 | I19: 206.2715591 | J19: No | K19: 0 | L19: 0
A20: AA10A | B20: Intermediate Intracranial Procedures Except Trauma with Non-Transient Stroke or Cerebrovascular Accident, Nervous System Infections or Encephalopathy, with CC | C20: 6620.972381 | D20: 6620.972381 | E20: 6620.972381 | F20: 32 | G20: 12987.60981 | H20: 86 | I20: 206.2715591 | J20: No | K20: 0 | L20: 0
A21: AA10B | B21: Intermediate Intracranial Procedures Except Trauma with Non-Transient Stroke or Cerebrovascular Accident, Nervous System Infections or Encephalopathy, without CC | C21: 4092.313674 | D21: 4092.313674 | E21: 4092.313674 | F21: 19 | G21: 5999.366737 | H21: 34 | I21: 206.2715591 | J21: No | K21: 0 | L21: 0
A22: AA11A | B22: Intermediate Intracranial Procedures Except Trauma with Haemorrhagic Cerebrovascular Disorders with CC | C22: 7862.347317 | D22: 7862.347317 | E22: 7862.347317 | F22: 47 | G22: 11787.55283 | H22: 79 | I22: 206.2715591 | J22: No | K22: 0 | L22: 0
A23: AA11B | B23: Intermediate Intracranial Procedures Except Trauma with Haemorrhagic Cerebrovascular Disorders without CC | C23: 2501.113405 | D23: 2501.113405 | E23: 2501.113405 | F23: 188 | G23: 8112.091387 | H23: 53 | I23: 206.2715591 | J23: No | K23: 0 | L23: 0
A24: AA12A | B24: Intermediate Intracranial Procedures Except Trauma with Brain Tumours or Cerebral Cysts, with CC | C24: 5972.739612 | D24: 5972.739612 | E24: 5972.739612 | F24: 13 | G24: 7916.519744 | H24: 30 | I24: 206.2715591 | J24: No | K24: 0 | L24: 0
A25: AA12B | B25: Intermediate Intracranial Procedures Except Trauma with Brain Tumours or Cerebral Cysts, without CC | C25: 5562.314615 | D25: 5562.314615 | E25: 5562.314615 | F25: 11 | G25: 7103.93334 | H25: 20 | I25: 206.2715591 | J25: No | K25: 0 | L25: 0
A26: AA13A | B26: Intermediate Intracranial Procedures Except Trauma with Cerebral Degenerations or Miscellaneous Disorders of Nervous System with CC | C26: 5121.589785 | D26: 5121.589785 | E26: 5121.589785 | F26: 13 | G26: 6883.570925 | H26: 35 | I26: 206.2715591 | J26: No | K26: 0 | L26: 0
A27: AA13B | B27: Intermediate Intracranial Procedures Except Trauma with Cerebral Degenerations or Miscellaneous Disorders of Nervous System without CC | C27: 5054.562884 | D27: 5054.562884 | E27: 5054.562884 | F27: 10 | G27: 5176.680389 | H27: 21 | I27: 206.2715591 | J27: No | K27: 0 | L27: 0
A28: AA14A | B28: Intermediate Intracranial Procedures Except Trauma with Muscular, Balance, Cranial or Peripheral Nerve Disorders or Epilepsy, with CC | C28: 2783.911837 | D28: 2783.911837 | E28: 2783.911837 | F28: 5 | G28: 4113.131715 | H28: 23 | I28: 206.2715591 | J28: No | K28: 0 | L28: 0
A29: AA14B | B29: Intermediate Intracranial Procedures Except Trauma with Muscular, Balance, Cranial or Peripheral Nerve Disorders or Epilepsy, without CC | C29: 2783.911837 | D29: 2783.911837 | E29: 2783.911837 | F29: 8 | G29: 4113.131715 | H29: 19 | I29: 206.2715591 | J29: No | K29: 0 | L29: 0
A30: AA15A | B30: Intermediate Intracranial Procedures Except Trauma with Other Diagnoses with CC | C30: 5281.352536 | D30: 5281.352536 | E30: 5281.352536 | F30: 16 | G30: 8841.123708 | H30: 56 | I30: 206.2715591 | J30: No | K30: 0 | L30: 0
A31: AA15B | B31: Intermediate Intracranial Procedures Except Trauma with Other Diagnoses without CC | C31: 4292.476201 | D31: 4292.476201 | E31: 4292.476201 | F31: 11 | G31: 6940.497882 | H31: 40 | I31: 206.2715591 | J31: No | K31: 0 | L31: 0
A32: AA16A | B32: Minor Intracranial Procedures Except Trauma with Non-Transient Stroke or Cerebrovascular Accident, Nervous System Infections or Encephalopathy, with CC | C32: 5870.821995 | D32: 5870.821995 | E32: 5870.821995 | F32: 24 | G32: 7636.475842 | H32: 54 | I32: 206.2715591 | J32: No | K32: 0 | L32: 0
A33: AA16B | B33: Minor Intracranial Procedures Except Trauma with Non-Transient Stroke or Cerebrovascular Accident, Nervous System Infections or Encephalopathy, without CC | C33: 2489.177108 | D33: 2489.177108 | E33: 2489.177108 | F33: 6 | G33: 6539.254653 | H33: 38 | I33: 206.2715591 | J33: No | K33: 0 | L33: 0
A34: AA17A | B34: Minor Intracranial Procedures Except Trauma with Haemorrhagic Cerebrovascular Disorders with CC | C34: 5305.225131 | D34: 5305.225131 | E34: 5305.225131 | F34: 19 | G34: 7455.13196 | H34: 60 | I34: 206.2715591 | J34: No | K34: 0 | L34: 0
A35: AA17B | B35: Minor Intracranial Procedures Except Trauma with Haemorrhagic Cerebrovascular Disorders without CC | C35: 4295.098951 | D35: 4295.098951 | E35: 4295.098951 | F35: 8 | G35: 7455.13196 | H35: 33 | I35: 206.2715591 | J35: No | K35: 0 | L35: 0
A36: AA18A | B36: Minor Intracranial Procedures Except Trauma with Brain Tumours or Cerebral Cysts, with CC | C36: 4108.840855 | D36: 4108.840855 | E36: 4108.840855 | F36: 11 | G36: 6039.766513 | H36: 29 | I36: 206.2715591 | J36: No | K36: 0 | L36: 0
A37: AA18B | B37: Minor Intracranial Procedures Except Trauma with Brain Tumours or Cerebral Cysts, without CC | C37: 3977.541583 | D37: 3977.541583 | E37: 3977.541583 | F37: 9 | G37: 5341.034023 | H37: 21 | I37: 206.2715591 | J37: No | K37: 0 | L37: 0
A38: AA19A | B38: Minor Intracranial Procedures Except Trauma with Cerebral Degenerations or Miscellaneous Disorders of Nervous System, with CC | C38: 1932.762011 | D38: 1932.762011 | E38: 1932.762011 | F38: 8 | G38: 4432.039063 | H38: 20 | I38: 206.2715591 | J38: No | K38: 0 | L38: 0
A39: AA19B | B39: Minor Intracranial Procedures Except Trauma with Cerebral Degenerations or Miscellaneous Disorders of Nervous System, without CC | C39: 1728.008601 | D39: 1728.008601 | E39: 1728.008601 | F39: 5 | G39: 3176.891477 | H39: 11 | I39: 206.2715591 | J39: No | K39: 0 | L39: 0
A40: AA20A | B40: Minor Intracranial Procedures Except Trauma with Muscular, Balance, Cranial or Peripheral Nerve Disorders or Epilepsy, with CC | C40: 2542.653997 | D40: 2542.653997 | E40: 2542.653997 | F40: 5 | G40: 3473.088898 | H40: 19 | I40: 206.2715591 | J40: No | K40: 0 | L40: 0
A41: AA20B | B41: Minor Intracranial Procedures Except Trauma with Muscular, Balance, Cranial or Peripheral Nerve Disorders or Epilepsy, without CC | C41: 1838.812078 | D41: 1838.812078 | E41: 1838.812078 | F41: 5 | G41: 1533.011814 | H41: 10 | I41: 206.2715591 | J41: No | K41: 0 | L41: 0
A42: AA21A | B42: Minor Intracranial Procedures Except Trauma with Other Diagnoses with CC | C42: 1997.034382 | D42: 1997.034382 | E42: 1997.034382 | F42: 5 | G42: 5621.077925 | H42: 36 | I42: 206.2715591 | J42: No | K42: 0 | L42: 0
A43: AA21B | B43: Minor Intracranial Procedures Except Trauma with Other Diagnoses without CC | C43: 1190.875215 | D43: 1190.875215 | E43: 1190.875215 | F43: 5 | G43: 4184.131347 | H43: 21 | I43: 206.2715591 | J43: No | K43: 0 | L43: 0
A44: AA22A | B44: Non-Transient Stroke or Cerebrovascular Accident, Nervous System Infections or Encephalopathy, with CC | C44: 3428.4719 | D44: 3428.4719 | E44: 3428.4719 | F44: 63 | G44: 3849.915018 | H44: 41 | I44: 206.2715591 | J44: Yes | K44: 0.25 | L44: 962.4787545
A45: AA22B | B45: Non-Transient Stroke or Cerebrovascular Accident, Nervous System Infections or Encephalopathy, without CC | C45: 677.6144248 | D45: 677.6144248 | E45: 677.6144248 | F45: 5 | G45: 2286.260051 | H45: 16 | I45: 206.2715591 | J45: Yes | K45: 0.25 | L45: 571.5650128
A46: AA23A | B46: Haemorrhagic Cerebrovascular Disorders with CC | C46: 7146.169469 | D46: 7146.169469 | E46: 7146.169469 | F46: 117 | G46: 4090.477321 | H46: 45 | I46: 206.2715591 | J46: Yes | K46: 0.25 | L46: 1022.61933
A47: AA23B | B47: Haemorrhagic Cerebrovascular Disorders without CC | C47: 3484.48068 | D47: 3484.48068 | E47: 3484.48068 | F47: 44 | G47: 2190.769672 | H47: 13 | I47: 206.2715591 | J47: Yes | K47: 0.25 | L47: 547.6924179
A48: AA24A | B48: Brain Tumours or Cerebral Cysts, with CC | C48: 954.9037965 | D48: 954.9037965 | E48: 954.9037965 | F48: 5 | G48: 3304.518042 | H48: 32 | I48: 206.2715591 | J48: Yes | K48: 0.25 | L48: 826.1295105
A49: AA24B | B49: Brain Tumours or Cerebral Cysts, without CC | C49: 649.1509463 | D49: 649.1509463 | E49: 649.1509463 | F49: 5 | G49: 2120.070064 | H49: 14 | I49: 206.2715591 | J49: Yes | K49: 0.25 | L49: 530.0175159
A50: AA25A | B50: Cerebral Degenerations or Miscellaneous Disorders of Nervous System, with CC | C50: 1279.020181 | D50: 1279.020181 | E50: 1279.020181 | F50: 5 | G50: 2662.712509 | H50: 24 | I50: 206.2715591 | J50: Yes | K50: 0.25 | L50: 665.6781274
A51: AA25B | B51: Cerebral Degenerations or Miscellaneous Disorders of Nervous System, without CC | C51: 495.8154328 | D51: 495.8154328 | E51: 495.8154328 | F51: 5 | G51: 1458.98282 | H51: 8 | I51: 206.2715591 | J51: Yes | K51: 0.45 | L51: 656.5422689
A52: AA26A | B52: Muscular, Balance, Cranial or Peripheral Nerve Disorders, Epilepsy or Head Injury, with CC | C52: 860.3315936 | D52: 860.3315936 | E52: 860.3315936 | F52: 5 | G52: 1206.48422 | H52: 13 | I52: 206.2715591 | J52: No | K52: 0 | L52: 0
A53: AA26B | B53: Muscular, Balance, Cranial or Peripheral Nerve Disorders, Epilepsy or Head Injury, without CC | C53: 594.9785194 | D53: 594.9785194 | E53: 594.9785194 | F53: 5 | G53: 595.8966961 | H53: 5 | I53: 206.2715591 | J53: No | K53: 0 | L53: 0
A54: AA27A | B54: Medical Care of Patients with Alzheimer's Disease with CC | C54: 3170.46424 | D54: 3170.46424 | E54: 3170.46424 | F54: 84 | G54: 4710.246612 | H54: 55 | I54: 206.2715591 | J54: Yes | K54: 0.25 | L54: 1177.561653
A55: AA27B | B55: Medical Care of Patients with Alzheimer's Disease without CC | C55: 392.0614626 | D55: 392.0614626 | E55: 392.0614626 | F55: 5 | G55: 1752.799373 | H55: 9 | I55: 206.2715591 | J55: Yes | K55: 0.25 | L55: 438.1998432
A56: AA28A | B56: Motor Neuron Disease with CC | C56: 2228.414917 | D56: 2228.414917 | E56: 2228.414917 | F56: 18 | G56: 4763.500862 | H56: 51 | I56: 206.2715591 | J56: Yes | K56: 0.25 | L56: 1190.875215
A57: AA28B | B57: Motor Neuron Disease without CC | C57: 1551.718669 | D57: 1551.718669 | E57: 1551.718669 | F57: 10 | G57: 2830.738851 | H57: 19 | I57: 206.2715591 | J57: Yes | K57: 0.25 | L57: 707.6847126
A58: AA29A | B58: Transient Ischaemic Attack with CC | C58: 452.6611266 | D58: 452.6611266 | E58: 452.6611266 | F58: 5 | G58: 1277.183828 | H58: 6 | I58: 206.2715591 | J58: Yes | K58: 0.45 | L58: 574.7327225
A59: AA29B | B59: Transient Ischaemic Attack without CC | C59: 430.6248852 | D59: 430.6248852 | E59: 430.6248852 | F59: 5 | G59: 509.5880837 | H59: 5 | I59: 206.2715591 | J59: Yes | K59: 1 | L59: 509.5880837
A60: AA30A | B60: Medical Care of Patients with Multiple Sclerosis with CC | C60: 544.4787994 | D60: 544.4787994 | E60: 544.4787994 | F60: 5 | G60: 3401.844775 | H60: 37 | I60: 206.2715591 | J60: Yes | K60: 0.25 | L60: 850.4611938
A61: AA30B | B61: Medical Care of Patients with Multiple Sclerosis without CC | C61: 405.8341135 | D61: 405.8341135 | E61: 405.8341135 | F61: 5 | G61: 1919.907537 | H61: 13 | I61: 206.2715591 | J61: Yes | K61: 0.45 | L61: 863.9583917
A62: AA31A | B62: Headache, Migraine or Cerebrospinal Fluid Leak, with CC | C62: 775.8593347 | D62: 775.8593347 | E62: 775.8593347 | F62: 5 | G62: 686.7961921 | H62: 5 | I62: 206.2715591 | J62: No | K62: 0 | L62: 0
A63: AA31B | B63: Headache, Migraine or Cerebrospinal Fluid Leak, without CC | C63: 397.570523 | D63: 397.570523 | E63: 397.570523 | F63: 5 | G63: 501.3244932 | H63: 5 | I63: 206.2715591 | J63: No | K63: 0 | L63: 0
A64: AA32Z | B64: Neuropsychology Tests with length of stay 2 days or less | C64: 392.0614626 | D64: 392.0614626 | E64: 392.0614626 | F64: 5 | G64: 350.7435099 | H64: 5 | I64: 206.2715591 | J64: No | K64: 0 | L64: 0
A65: AA33C | B65: Conventional EEG, EMG or Nerve Conduction Studies with length of stay 2 days or less, 19 years and over | C65: 211.5536251 | D65: 211.5536251 | E65: 211.5536251 | F65: 5 | G65: 1111.909812 | H65: 5 | I65: 206.2715591 | J65: No | K65: 0 | L65: 0
A66: AA33D | B66: Conventional EEG, EMG or Nerve Conduction Studies with length of stay 2 days or less, 18 years and under | C66: 755.6594467 | D66: 755.6594467 | E66: 755.6594467 | F66: 5 | G66: 1219.338694 | H66: 5 | I66: 206.2715591 | J66: No | K66: 0 | L66: 0
A67: AA34E | B67: Neurophysiological operations 19 years and over | C67: 823.6517123 | D67: 823.6517123 | E67: 823.6517123 | F67: 5 | G67: 3544.169522 | H67: 36 | I67: 193.5771305 | J67: No | K67: 0 | L67: 0
A68: AA34F | B68: Neurophysiological Operations, 18 years and under | C68: 1346.499746 | D68: 1346.499746 | E68: 1346.499746 | F68: 5 | G68: 2901.759143 | H68: 19 | I68: 302.7014933 | J68: No | K68: 0 | L68: 0
A69: AB02Z | B69: Complex Major Pain Procedures | C69: 691.3207594 | D69: 691.3207594 | E69: 691.3207594 | F69: 5 | G69: 3885.225197 | H69: 52 | I69: 206.2715591 | J69: No | K69: 0 | L69: 0
A70: AB03Z | B70: Complex Pain Procedures | C70: 498.3040364 | D70: 498.3040364 | E70: 498.3040364 | F70: 5 | G70: 3885.225197 | H70: 45 | I70: 206.2715591 | J70: No | K70: 0 | L70: 0
A71: AB04Z | B71: Major Pain Procedures | C71: 593.2155588 | D71: 593.2155588 | E71: 593.2155588 | F71: 5 | G71: 2284.842616 | H71: 21 | I71: 206.2715591 | J71: No | K71: 0 | L71: 0
A72: AB05Z | B72: Intermediate Pain Procedures | C72: 602.3842691 | D72: 602.3842691 | E72: 602.3842691 | F72: 5 | G72: 2463.446715 | H72: 32 | I72: 206.2715591 | J72: No | K72: 0 | L72: 0
A73: AB06Z | B73: Minor Pain Procedures | C73: 185.2079488 | D73: 185.2079488 | E73: 185.2079488 | F73: 5 | G73: 2125.562489 | H73: 39 | I73: 206.2715591 | J73: No | K73: 0 | L73: 0
A74: AB07Z | B74: Insertion of Neurostimulator or Intrathecal Drug Delivery Device | C74: 2794.622911 | D74: 2794.622911 | E74: 2794.622911 | F74: 5 | G74: 4169.929461 | H74: 37 | I74: 206.2715591 | J74: No | K74: 0 | L74: 0
A75: AB08Z | B75: Pain Radiofrequency Treatments | C75: 637.2253684 | D75: 637.2253684 | E75: 637.2253684 | F75: 5 | G75: 2788.204813 | H75: 27 | I75: 206.2715591 | J75: No | K75: 0 | L75: 0
A76: AB09Z | B76: Other Specified Pain Procedures | C76: 538.2032968 | D76: 538.2032968 | E76: 538.2032968 | F76: 5 | G76: 2161.065026 | H76: 23 | I76: 206.2715591 | J76: No | K76: 0 | L76: 0
A77: AB10Z | B77: Unspecified Pain Procedures | C77: 363.9978004 | D77: 363.9978004 | E77: 363.9978004 | F77: 5 | G77: 1991.443885 | H77: 44 | I77: 206.2715591 | J77: No | K77: 0 | L77: 0
A78: AB11Z | B78: Cognitive Behavioural Therapy | C78: 68.36938952 | D78: 68.36938952 | E78: 68.36938952 | F78: 5 | G78: 68.36938952 | H78: 14 | I78: 206.2715591 | J78: No | K78: 0 | L78: 0
A79: BZ01Z | B79: Enhanced Cataract Surgery | C79: 960.5991898 | D79: 960.5991898 | E79: 960.5991898 | F79: 5 | G79: 1971.372126 | H79: 12 | I79: 245.6092781 | J79: No | K79: 0 | L79: 0
A80: BZ02Z | B80: Phacoemulsification Cataract Extraction and Lens Implant | C80: 713.3794553 | D80: 713.3794553 | E80: 713.3794553 | F80: 5 | G80: 2558.86109 | H80: 35 | I80: 245.6092781 | J80: No | K80: 0 | L80: 0
A81: BZ03Z | B81: Non-Phacoemulsification Cataract Surgery | C81: 916.8111925 | D81: 916.8111925 | E81: 916.8111925 | F81: 5 | G81: 1188.661675 | H81: 5 | I81: 245.6092781 | J81: No | K81: 0 | L81: 0
A82: BZ04Z | B82: Lens Capsulotomy | C82: 145.9599908 | D82: 145.9599908 | E82: 145.9599908 | F82: 5 | G82: 424.1962234 | H82: 5 | I82: 245.6092781 | J82: No | K82: 0 | L82: 0
A83: BZ05Z | B83: Major Oculoplastics Procedures | C83: 1207.818924 | D83: 1207.818924 | E83: 1207.818924 | F83: 5 | G83: 7758.685764 | H83: 50 | I83: 245.6092781 | J83: No | K83: 0 | L83: 0
A84: BZ06A | B84: Intermediate Oculoplastics Procedures, 19 years and over | C84: 835.6209476 | D84: 835.6209476 | E84: 835.6209476 | F84: 5 | G84: 1160.381927 | H84: 5 | I84: 245.6092781 | J84: No | K84: 0 | L84: 0
A85: BZ06B | B85: Intermediate Oculoplastics Procedures, 18 years and under | C85: 963.3359396 | D85: 963.3359396 | E85: 963.3359396 | F85: 5 | G85: 1388.444413 | H85: 8 | I85: 245.6092781 | J85: No | K85: 0 | L85: 0
A86: BZ07A | B86: Minor Oculoplastics Procedures, 19 years and over | C86: 583.8399634 | D86: 583.8399634 | E86: 583.8399634 | F86: 5 | G86: 832.8841978 | H86: 5 | I86: 245.6092781 | J86: No | K86: 0 | L86: 0
A87: BZ07B | B87: Minor Oculoplastics Procedures, 18 years and under | C87: 738.0102037 | D87: 738.0102037 | E87: 738.0102037 | F87: 5 | G87: 920.4601923 | H87: 5 | I87: 245.6092781 | J87: No | K87: 0 | L87: 0
A88: BZ08A | B88: Major Orbits or Lacrimal Procedures, 19 years and over | C88: 1933.969879 | D88: 1933.969879 | E88: 1933.969879 | F88: 5 | G88: 3048.739309 | H88: 14 | I88: 245.6092781 | J88: No | K88: 0 | L88: 0
A89: BZ08B | B89: Major Orbits or Lacrimal Procedures, 18 years and under | C89: 1830.885635 | D89: 1830.885635 | E89: 1830.885635 | F89: 5 | G89: 3129.929554 | H89: 10 | I89: 245.6092781 | J89: No | K89: 0 | L89: 0
A90: BZ09A | B90: Intermediate Orbits or Lacrimal Procedures, 19 years and over | C90: 1341.919666 | D90: 1341.919666 | E90: 1341.919666 | F90: 5 | G90: 2748.609078 | H90: 16 | I90: 245.6092781 | J90: No | K90: 0 | L90: 0
A91: BZ09B | B91: Intermediate Orbits or Lacrimal Procedures, 18 years and under | C91: 1462.336658 | D91: 1462.336658 | E91: 1462.336658 | F91: 5 | G91: 2397.39285 | H91: 5 | I91: 245.6092781 | J91: No | K91: 0 | L91: 0
A92: BZ10A | B92: Minor Orbits or Lacrimal Procedures, 19 years and over | C92: 582.0154635 | D92: 582.0154635 | E92: 582.0154635 | F92: 5 | G92: 1129.365429 | H92: 5 | I92: 245.6092781 | J92: No | K92: 0 | L92: 0
A93: BZ10B | B93: Minor Orbits or Lacrimal Procedures, 18 years and under | C93: 757.1674525 | D93: 757.1674525 | E93: 757.1674525 | F93: 5 | G93: 1214.204674 | H93: 8 | I93: 245.6092781 | J93: No | K93: 0 | L93: 0
A94: BZ11Z | B94: Major Cornea or Sclera Procedures | C94: 1873.761383 | D94: 1873.761383 | E94: 1873.761383 | F94: 5 | G94: 3338.834791 | H94: 20 | I94: 245.6092781 | J94: No | K94: 0 | L94: 0
A95: BZ12Z | B95: Intermediate Cornea or Sclera Procedures | C95: 1452.301909 | D95: 1452.301909 | E95: 1452.301909 | F95: 5 | G95: 2416.550098 | H95: 14 | I95: 245.6092781 | J95: No | K95: 0 | L95: 0
A96: BZ13Z | B96: Minor Cornea or Sclera Procedures | C96: 831.0596979 | D96: 831.0596979 | E96: 831.0596979 | F96: 5 | G96: 2006.037624 | H96: 13 | I96: 245.6092781 | J96: No | K96: 0 | L96: 0
A97: BZ14A | B97: Major Ocular Motility Procedures, 19 years and over | C97: 1171.328927 | D97: 1171.328927 | E97: 1171.328927 | F97: 5 | G97: 825.5861982 | H97: 5 | I97: 245.6092781 | J97: No | K97: 0 | L97: 0
A98: BZ14B | B98: Major Ocular Motility Procedures, 18 years and under | C98: 1064.595683 | D98: 1064.595683 | E98: 1064.595683 | F98: 5 | G98: 2263.292108 | H98: 5 | I98: 245.6092781 | J98: No | K98: 0 | L98: 0
A99: BZ15A | B99: Intermediate Ocular Motility Procedures, 19 years and over | C99: 1062.771183 | D99: 1062.771183 | E99: 1062.771183 | F99: 5 | G99: 1245.221172 | H99: 11 | I99: 245.6092781 | J99: No | K99: 0 | L99: 0
A100: BZ15B | B100: Intermediate Ocular Motility Procedures, 18 years and under | C100: 1108.383681 | D100: 1108.383681 | E100: 1108.383681 | F100: 5 | G100: 1033.579185 | H100: 5 | I100: 245.6092781 | J100: No | K100: 0 | L100: 0
A101: BZ16A | B101: Minor Ocular Motility Procedures, 19 years and over | C101: 1026.281186 | D101: 1026.281186 | E101: 1026.281186 | F101: 5 | G101: 881.2334447 | H101: 5 | I101: 245.6092781 | J101: No | K101: 0 | L101: 0
A102: BZ16B | B102: Minor Ocular Motility Procedures, 18 years and under | C102: 1008.948437 | D102: 1008.948437 | E102: 1008.948437 | F102: 5 | G102: 840.1821973 | H102: 5 | I102: 245.6092781 | J102: No | K102: 0 | L102: 0
A103: BZ17Z | B103: Major Glaucoma Procedures | C103: 1309.078668 | D103: 1309.078668 | E103: 1309.078668 | F103: 5 | G103: 1340.095166 | H103: 8 | I103: 245.6092781 | J103: No | K103: 0 | L103: 0
A104: BZ18Z | B104: Intermediate Glaucoma Procedures | C104: 935.9684413 | D104: 935.9684413 | E104: 935.9684413 | F104: 5 | G104: 1503.387906 | H104: 8 | I104: 245.6092781 | J104: No | K104: 0 | L104: 0
A105: BZ19Z | B105: Minor Glaucoma Procedures | C105: 435.1432227 | D105: 435.1432227 | E105: 435.1432227 | F105: 5 | G105: 941.441941 | H105: 5 | I105: 245.6092781 | J105: No | K105: 0 | L105: 0
A106: BZ20Z | B106: Complex Vitreous Retinal Procedures | C106: 1745.134141 | D106: 1745.134141 | E106: 1745.134141 | F106: 5 | G106: 2177.540613 | H106: 5 | I106: 245.6092781 | J106: No | K106: 0 | L106: 0
A107: BZ21Z | B107: Major Vitreous Retinal Procedures | C107: 1364.725914 | D107: 1364.725914 | E107: 1364.725914 | F107: 5 | G107: 1486.967407 | H107: 5 | I107: 245.6092781 | J107: No | K107: 0 | L107: 0
A108: BZ22Z | B108: Intermediate Vitreous Retinal Procedures | C108: 1133.926679 | D108: 1133.926679 | E108: 1133.926679 | F108: 5 | G108: 1831.797885 | H108: 5 | I108: 245.6092781 | J108: No | K108: 0 | L108: 0
A109: BZ23Z | B109: Minor Vitreous Retinal Procedures | C109: 342.0937286 | D109: 342.0937286 | E109: 342.0937286 | F109: 5 | G109: 779.9737011 | H109: 5 | I109: 245.6092781 | J109: No | K109: 0 | L109: 0
A110: BZ24A | B110: Non-Surgical Ophthalmology with length of stay 2 days or more | C110: 2609.947086 | D110: 2609.947086 | E110: 2609.947086 | F110: 12 | G110: 1976.845626 | H110: 17 | I110: 245.6092781 | J110: No | K110: 0 | L110: 0
A111: BZ24C | B111: Non-Surgical Ophthalmology with length of stay 1 day or less | C111: 301.9547311 | D111: 301.9547311 | E111: 301.9547311 | F111: 5 | G111: 386.7939757 | H111: 5 | I111: 245.6092781 | J111: Yes | K111: 1 | L111: 386.7939757
A112: CZ01S | B112: Minor Mouth or Throat Procedures, 18 years and under with CC | C112: 785.8539344 | D112: 785.8539344 | E112: 785.8539344 | F112: 5 | G112: 2514.73259 | H112: 8 | I112: 232.0146686 | J112: No | K112: 0 | L112: 0
A113: CZ01T | B113: Minor Mouth or Throat Procedures, 18 years and under without CC | C113: 635.0426591 | D113: 635.0426591 | E113: 635.0426591 | F113: 5 | G113: 774.9519145 | H113: 5 | I113: 232.0146686 | J113: No | K113: 0 | L113: 0
A114: CZ01V | B114: Minor Mouth or Throat Procedures, 19 years and over with CC | C114: 635.9511608 | D114: 635.9511608 | E114: 635.9511608 | F114: 5 | G114: 1548.086826 | H114: 11 | I114: 232.0146686 | J114: No | K114: 0 | L114: 0
A115: CZ01Y | B115: Minor Mouth or Throat Procedures, 19 years and over without CC | C115: 137.1837504 | D115: 137.1837504 | E115: 137.1837504 | F115: 5 | G115: 650.4871873 | H115: 5 | I115: 232.0146686 | J115: No | K115: 0 | L115: 0
A116: CZ02S | B116: Intermediate Mouth or Throat Procedures, 18 years and under with CC | C116: 1387.282032 | D116: 1387.282032 | E116: 1387.282032 | F116: 5 | G116: 2987.153452 | H116: 20 | I116: 232.0146686 | J116: No | K116: 0 | L116: 0
A117: CZ02T | B117: Intermediate Mouth or Throat Procedures, 18 years and under without CC | C117: 998.4433224 | D117: 998.4433224 | E117: 998.4433224 | F117: 5 | G117: 1180.143654 | H117: 5 | I117: 232.0146686 | J117: No | K117: 0 | L117: 0
A118: CZ02W | B118: Intermediate Mouth or Throat Procedures, 19 years and over with Major CC | C118: 1440.88363 | D118: 1440.88363 | E118: 1440.88363 | F118: 5 | G118: 4733.29364 | H118: 47 | I118: 232.0146686 | J118: No | K118: 0 | L118: 0
A119: CZ02X | B119: Intermediate Mouth or Throat Procedures, 19 years and over with Intermediate CC | C119: 984.8157976 | D119: 984.8157976 | E119: 984.8157976 | F119: 5 | G119: 1642.570998 | H119: 9 | I119: 232.0146686 | J119: No | K119: 0 | L119: 0
A120: CZ02Y | B120: Intermediate Mouth or Throat Procedures, 19 years and over without CC | C120: 847.6320472 | D120: 847.6320472 | E120: 847.6320472 | F120: 5 | G120: 1048.410914 | H120: 5 | I120: 232.0146686 | J120: No | K120: 0 | L120: 0
A121: CZ03U | B121: Major Mouth or Throat Procedures, 18 years and under | C121: 2595.589238 | D121: 2595.589238 | E121: 2595.589238 | F121: 5 | G121: 2915.381821 | H121: 12 | I121: 232.0146686 | J121: No | K121: 0 | L121: 0
A122: CZ03V | B122: Major Mouth or Throat Procedures, 19 years and over with CC | C122: 2478.392524 | D122: 2478.392524 | E122: 2478.392524 | F122: 5 | G122: 4787.803739 | H122: 31 | I122: 232.0146686 | J122: No | K122: 0 | L122: 0
A123: CZ03Y | B123: Major Mouth or Throat Procedures, 19 years and over without CC | C123: 1905.127977 | D123: 1905.127977 | E123: 1905.127977 | F123: 5 | G123: 2276.705156 | H123: 10 | I123: 232.0146686 | J123: No | K123: 0 | L123: 0
A124: CZ04O | B124: Complex Major Mouth or Throat Procedures, with Major CC | C124: 17913.8357 | D124: 17913.8357 | E124: 17913.8357 | F124: 67 | G124: 20577.56256 | H124: 110 | I124: 232.0146686 | J124: No | K124: 0 | L124: 0
A125: CZ04P | B125: Complex Major Mouth or Throat Procedures, with Intermediate CC | C125: 10383.26545 | D125: 10383.26545 | E125: 10383.26545 | F125: 42 | G125: 16009.61622 | H125: 86 | I125: 232.0146686 | J125: No | K125: 0 | L125: 0
A126: CZ04Q | B126: Complex Major Mouth or Throat Procedures, without CC | C126: 6797.409407 | D126: 6797.409407 | E126: 6797.409407 | F126: 35 | G126: 7674.113507 | H126: 60 | I126: 232.0146686 | J126: No | K126: 0 | L126: 0
A127: CZ05S | B127: Tonsillectomy, 18 years and under with CC | C127: 1299.157371 | D127: 1299.157371 | E127: 1299.157371 | F127: 5 | G127: 2009.605668 | H127: 6 | I127: 232.0146686 | J127: No | K127: 0 | L127: 0
A128: CZ05T | B128: Tonsillectomy, 18 years and under without CC | C128: 1094.744498 | D128: 1094.744498 | E128: 1094.744498 | F128: 5 | G128: 1015.704854 | H128: 5 | I128: 232.0146686 | J128: No | K128: 0 | L128: 0
A129: CZ05V | B129: Tonsillectomy, 19 years and over with CC | C129: 1175.601146 | D129: 1175.601146 | E129: 1175.601146 | F129: 5 | G129: 919.4036782 | H129: 5 | I129: 232.0146686 | J129: No | K129: 0 | L129: 0
A130: CZ05Y | B130: Tonsillectomy, 19 years and over without CC | C130: 1090.20199 | D130: 1090.20199 | E130: 1090.20199 | F130: 5 | G130: 778.5859211 | H130: 5 | I130: 232.0146686 | J130: No | K130: 0 | L130: 0
A131: CZ07O | B131: Exteriorisation of Trachea with Major CC | C131: 8724.341424 | D131: 8724.341424 | E131: 8724.341424 | F131: 104 | G131: 7779.4997 | H131: 99 | I131: 232.0146686 | J131: No | K131: 0 | L131: 0
A132: CZ07P | B132: Exteriorisation of Trachea with Intermediate CC | C132: 3296.952518 | D132: 3296.952518 | E132: 3296.952518 | F132: 21 | G132: 4705.130088 | H132: 60 | I132: 232.0146686 | J132: No | K132: 0 | L132: 0
A133: CZ07Q | B133: Exteriorisation of Trachea without CC | C133: 2954.447393 | D133: 2954.447393 | E133: 2954.447393 | F133: 11 | G133: 3131.605216 | H133: 35 | I133: 232.0146686 | J133: No | K133: 0 | L133: 0
A134: CZ08S | B134: Minor Ear Procedures, 18 years and under with CC | C134: 913.0441666 | D134: 913.0441666 | E134: 913.0441666 | F134: 5 | G134: 1630.760477 | H134: 11 | I134: 232.0146686 | J134: No | K134: 0 | L134: 0
A135: CZ08T | B135: Minor Ear Procedures, 18 years and under without CC | C135: 707.7227918 | D135: 707.7227918 | E135: 707.7227918 | F135: 5 | G135: 834.0045223 | H135: 5 | I135: 232.0146686 | J135: No | K135: 0 | L135: 0
A136: CZ08V | B136: Minor Ear Procedures, 19 years and over with CC | C136: 675.0167321 | D136: 675.0167321 | E136: 675.0167321 | F136: 5 | G136: 1709.800121 | H136: 16 | I136: 232.0146686 | J136: No | K136: 0 | L136: 0
A137: CZ08Y | B137: Minor Ear Procedures, 19 years and over without CC | C137: 121.7392222 | D137: 121.7392222 | E137: 121.7392222 | F137: 5 | G137: 705.9057885 | H137: 5 | I137: 232.0146686 | J137: No | K137: 0 | L137: 0
A138: CZ09U | B138: Intermediate Ear Procedures, 18 years and under | C138: 1467.230178 | D138: 1467.230178 | E138: 1467.230178 | F138: 5 | G138: 1010.253844 | H138: 8 | I138: 232.0146686 | J138: No | K138: 0 | L138: 0
A139: CZ09V | B139: Intermediate Ear Procedures, 19 years and over with CC | C139: 1032.413783 | D139: 1032.413783 | E139: 1032.413783 | F139: 5 | G139: 1443.372135 | H139: 16 | I139: 232.0146686 | J139: No | K139: 0 | L139: 0
A140: CZ09Y | B140: Intermediate Ear Procedures, 19 years and over without CC | C140: 1032.413783 | D140: 1032.413783 | E140: 1032.413783 | F140: 5 | G140: 1443.372135 | H140: 5 | I140: 232.0146686 | J140: No | K140: 0 | L140: 0
A141: CZ10U | B141: Major Ear Procedures, 18 years and under | C141: 2038.677721 | D141: 2038.677721 | E141: 2038.677721 | F141: 5 | G141: 3925.635665 | H141: 13 | I141: 232.0146686 | J141: No | K141: 0 | L141: 0
A142: CZ10V | B142: Major Ear Procedures, 19 years and over with CC | C142: 2149.514923 | D142: 2149.514923 | E142: 2149.514923 | F142: 5 | G142: 5577.29168 | H142: 39 | I142: 232.0146686 | J142: No | K142: 0 | L142: 0
A143: CZ10Y | B143: Major Ear Procedures, 19 years and over without CC | C143: 2033.226711 | D143: 2033.226711 | E143: 2033.226711 | F143: 5 | G143: 2467.490504 | H143: 15 | I143: 232.0146686 | J143: No | K143: 0 | L143: 0
A144: CZ11Z | B144: Complex Major Ear Procedures | C144: 2768.204553 | D144: 2768.204553 | E144: 2768.204553 | F144: 5 | G144: 3532.254447 | H144: 25 | I144: 232.0146686 | J144: No | K144: 0 | L144: 0
A145: CZ12U | B145: Minor Nose Procedures, 18 years and under | C145: 657.7552006 | D145: 657.7552006 | E145: 657.7552006 | F145: 5 | G145: 740.4288515 | H145: 5 | I145: 232.0146686 | J145: No | K145: 0 | L145: 0
A146: CZ12V | B146: Minor Nose Procedures, 19 years and over with CC | C146: 695.0037686 | D146: 695.0037686 | E146: 695.0037686 | F146: 5 | G146: 963.0117578 | H146: 6 | I146: 232.0146686 | J146: No | K146: 0 | L146: 0
A147: CZ12Y | B147: Minor Nose Procedures, 19 years and over without CC | C147: 591.4345795 | D147: 591.4345795 | E147: 591.4345795 | F147: 5 | G147: 726.8013266 | H147: 5 | I147: 232.0146686 | J147: No | K147: 0 | L147: 0
A148: CZ13U | B148: Intermediate Nose Procedures, 18 years and under | C148: 1159.248116 | D148: 1159.248116 | E148: 1159.248116 | F148: 5 | G148: 1408.17757 | H148: 8 | I148: 232.0146686 | J148: No | K148: 0 | L148: 0
A149: CZ13V | B149: Intermediate Nose Procedures, 19 years and over with CC | C149: 1195.588182 | D149: 1195.588182 | E149: 1195.588182 | F149: 5 | G149: 1095.653 | H149: 6 | I149: 232.0146686 | J149: No | K149: 0 | L149: 0
A150: CZ13Y | B150: Intermediate Nose Procedures, 19 years and over without CC | C150: 1145.620591 | D150: 1145.620591 | E150: 1145.620591 | F150: 5 | G150: 914.8611699 | H150: 5 | I150: 232.0146686 | J150: No | K150: 0 | L150: 0
A151: CZ14U | B151: Major Nose Procedures, 18 years and under | C151: 1718.885137 | D151: 1718.885137 | E151: 1718.885137 | F151: 5 | G151: 3882.936087 | H151: 17 | I151: 232.0146686 | J151: No | K151: 0 | L151: 0
A152: CZ14V | B152: Major Nose Procedures, 19 years and over with CC | C152: 1492.668225 | D152: 1492.668225 | E152: 1492.668225 | F152: 5 | G152: 1994.16114 | H152: 11 | I152: 232.0146686 | J152: No | K152: 0 | L152: 0
A153: CZ14Y | B153: Major Nose Procedures, 19 years and over without CC | C153: 1428.164607 | D153: 1428.164607 | E153: 1428.164607 | F153: 5 | G153: 1622.583962 | H153: 9 | I153: 232.0146686 | J153: No | K153: 0 | L153: 0
A154: CZ15N | B154: Complex Major Nose Procedures with CC | C154: 1732.512662 | D154: 1732.512662 | E154: 1732.512662 | F154: 5 | G154: 3713.046277 | H154: 16 | I154: 232.0146686 | J154: No | K154: 0 | L154: 0
A155: CZ15Q | B155: Complex Major Nose Procedures without CC | C155: 1547.178324 | D155: 1547.178324 | E155: 1547.178324 | F155: 5 | G155: 3049.840067 | H155: 12 | I155: 232.0146686 | J155: No | K155: 0 | L155: 0
A156: CZ16N | B156: Minor Maxillo-facial Procedures with CC | C156: 1303.69988 | D156: 1303.69988 | E156: 1303.69988 | F156: 5 | G156: 1621.67546 | H156: 5 | I156: 232.0146686 | J156: No | K156: 0 | L156: 0
A157: CZ16Q | B157: Minor Maxillo-facial Procedures without CC | C157: 1129.267561 | D157: 1129.267561 | E157: 1129.267561 | F157: 5 | G157: 1515.380766 | H157: 5 | I157: 232.0146686 | J157: No | K157: 0 | L157: 0
A158: CZ17U | B158: Intermediate Maxillo-facial Procedures, 18 years and under | C158: 1440.88363 | D158: 1440.88363 | E158: 1440.88363 | F158: 5 | G158: 2228.554568 | H158: 5 | I158: 232.0146686 | J158: No | K158: 0 | L158: 0
A159: CZ17V | B159: Intermediate Maxillo-facial Procedures, 19 years and over with CC | C159: 2158.59994 | D159: 2158.59994 | E159: 2158.59994 | F159: 5 | G159: 2649.190836 | H159: 9 | I159: 232.0146686 | J159: No | K159: 0 | L159: 0
A160: CZ17Y | B160: Intermediate Maxillo-facial Procedures, 19 years and over without CC | C160: 1380.014019 | D160: 1380.014019 | E160: 1380.014019 | F160: 5 | G160: 2070.475279 | H160: 5 | I160: 232.0146686 | J160: No | K160: 0 | L160: 0
A161: CZ18R | B161: Major Maxillo-facial Procedures, 19 years and over | C161: 3604.93458 | D161: 3604.93458 | E161: 3604.93458 | F161: 5 | G161: 3553.149986 | H161: 16 | I161: 232.0146686 | J161: No | K161: 0 | L161: 0
A162: CZ18U | B162: Major Maxillo-facial Procedures, 18 years and under | C162: 3389.619687 | D162: 3389.619687 | E162: 3389.619687 | F162: 5 | G162: 3043.480555 | H162: 10 | I162: 232.0146686 | J162: No | K162: 0 | L162: 0
A163: CZ19Z | B163: Complex Major Maxillo-facial Procedures | C163: 6297.733495 | D163: 6297.733495 | E163: 6297.733495 | F163: 21 | G163: 6103.31414 | H163: 35 | I163: 232.0146686 | J163: No | K163: 0 | L163: 0
A164: CZ20Z | B164: Complex Major Head or Neck Procedures with Reconstruction | C164: 17296.05457 | D164: 17296.05457 | E164: 17296.05457 | F164: 46 | G164: 17296.05457 | H164: 46 | I164: 232.0146686 | J164: No | K164: 0 | L164: 0
A165: CZ21V | B165: Minor Head, Neck and Ear Disorders, with CC | C165: 960.2862528 | D165: 960.2862528 | E165: 960.2862528 | F165: 5 | G165: 661.3892072 | H165: 5 | I165: 232.0146686 | J165: Yes | K165: 0.7 | L165: 462.9724451
A166: CZ21Y | B166: Minor Head, Neck and Ear Disorders, without CC | C166: 621.4151343 | D166: 621.4151343 | E166: 621.4151343 | F166: 5 | G166: 428.8127827 | H166: 5 | I166: 232.0146686 | J166: Yes | K166: 1 | L166: 428.8127827
A167: CZ22W | B167: Intermediate Head, Neck and Ear Disorders, with Major CC | C167: 1863.336901 | D167: 1863.336901 | E167: 1863.336901 | F167: 17 | G167: 2088.645312 | H167: 15 | I167: 232.0146686 | J167: Yes | K167: 0.25 | L167: 522.1613281
A168: CZ22X | B168: Intermediate Head, Neck and Ear Disorders, with Intermediate CC | C168: 1210.124209 | D168: 1210.124209 | E168: 1210.124209 | F168: 8 | G168: 852.1745555 | H168: 5 | I168: 232.0146686 | J168: Yes | K168: 0.7 | L168: 596.5221888
A169: CZ22Y | B169: Intermediate Head, Neck and Ear Disorders, without CC | C169: 709.5397951 | D169: 709.5397951 | E169: 709.5397951 | F169: 5 | G169: 601.4280978 | H169: 5 | I169: 232.0146686 | J169: Yes | K169: 1 | L169: 601.4280978
A170: CZ23W | B170: Major Head, Neck and Ear Disorders, with Major CC | C170: 2742.766506 | D170: 2742.766506 | E170: 2742.766506 | F170: 29 | G170: 2503.83057 | H170: 21 | I170: 232.0146686 | J170: Yes | K170: 0.25 | L170: 625.9576426
A171: CZ23X | B171: Major Head, Neck and Ear Disorders, with Intermediate CC | C171: 1220.117727 | D171: 1220.117727 | E171: 1220.117727 | F171: 10 | G171: 1217.392222 | H171: 8 | I171: 232.0146686 | J171: Yes | K171: 0.45 | L171: 547.8264999
A172: CZ23Y | B172: Major Head, Neck and Ear Disorders, without CC | C172: 922.1291832 | D172: 922.1291832 | E172: 922.1291832 | F172: 8 | G172: 564.1795298 | H172: 5 | I172: 232.0146686 | J172: Yes | K172: 1 | L172: 564.1795298
A173: CZ24O | B173: Complex Major Head, Neck and Ear Disorders, with Major CC | C173: 4944.066024 | D173: 4944.066024 | E173: 4944.066024 | F173: 42 | G173: 4689.68556 | H173: 44 | I173: 232.0146686 | J173: Yes | K173: 0.25 | L173: 1172.42139
A174: CZ24P | B174: Complex Major Head, Neck and Ear Disorders, with Intermediate CC | C174: 1579.884384 | D174: 1579.884384 | E174: 1579.884384 | F174: 11 | G174: 2747.309015 | H174: 20 | I174: 232.0146686 | J174: Yes | K174: 0.25 | L174: 686.8272537
A175: CZ24Q | B175: Complex Major Head, Neck and Ear Disorders, without CC | C175: 1439.066627 | D175: 1439.066627 | E175: 1439.066627 | F175: 13 | G175: 2113.174857 | H175: 14 | I175: 232.0146686 | J175: Yes | K175: 0.25 | L175: 528.2937143
A176: CZ27Z | B176: Fixture for Bone Anchored Hearing Aids | C176: 2363.012813 | D176: 2363.012813 | E176: 2363.012813 | F176: 5 | G176: 2363.012813 | H176: 5 | I176: 232.0146686 | J176: No | K176: 0 | L176: 0
A177: CZ30U | B177: Minor Extraction of Tooth, 18 years and under | C177: 437.8977993 | D177: 437.8977993 | E177: 437.8977993 | F177: 5 | G177: 811.2919808 | H177: 5 | I177: 232.0146686 | J177: No | K177: 0 | L177: 0
A178: CZ30Y | B178: Minor Extraction of Tooth, 19 years and over | C178: 199.8703648 | D178: 199.8703648 | E178: 199.8703648 | F178: 5 | G178: 774.9519145 | H178: 5 | I178: 232.0146686 | J178: No | K178: 0 | L178: 0
A179: CZ31U | B179: Minor Dental Biopsy, 18 years and under | C179: 511.4864336 | D179: 511.4864336 | E179: 511.4864336 | F179: 5 | G179: 714.0823034 | H179: 5 | I179: 232.0146686 | J179: No | K179: 0 | L179: 0
A180: CZ31Y | B180: Minor Dental Biopsy, 19 years and over | C180: 233.4849262 | D180: 233.4849262 | E180: 233.4849262 | F180: 5 | G180: 591.4345795 | H180: 5 | I180: 232.0146686 | J180: No | K180: 0 | L180: 0
A181: CZ32U | B181: Dental Fitting or Insertion Procedures, 18 years and under | C181: 908.2228718 | D181: 908.2228718 | E181: 908.2228718 | F181: 5 | G181: 908.2228718 | H181: 5 | I181: 232.0146686 | J181: No | K181: 0 | L181: 0
A182: CZ32Y | B182: Dental Fitting or Insertion Procedures, 19 years and over | C182: 774.2241742 | D182: 774.2241742 | E182: 774.2241742 | F182: 5 | G182: 774.2241742 | H182: 5 | I182: 232.0146686 | J182: No | K182: 0 | L182: 0
A183: CZ33U | B183: Minor Dental Restoration Procedures, 18 years and under | C183: 508.7609286 | D183: 508.7609286 | E183: 508.7609286 | F183: 5 | G183: 684.1017487 | H183: 5 | I183: 232.0146686 | J183: No | K183: 0 | L183: 0
A184: CZ33Y | B184: Minor Dental Restoration Procedures, 19 years and over | C184: 222.5829063 | D184: 222.5829063 | E184: 222.5829063 | F184: 5 | G184: 990.2668075 | H184: 5 | I184: 232.0146686 | J184: No | K184: 0 | L184: 0
A185: CZ34U | B185: Minor Dental Procedures, 18 years and under | C185: 551.4605066 | D185: 551.4605066 | E185: 551.4605066 | F185: 5 | G185: 929.3971964 | H185: 5 | I185: 232.0146686 | J185: No | K185: 0 | L185: 0
A186: CZ34Y | B186: Minor Dental Procedures, 19 years and over | C186: 120.8307206 | D186: 120.8307206 | E186: 120.8307206 | F186: 5 | G186: 1042.959904 | H186: 5 | I186: 232.0146686 | J186: No | K186: 0 | L186: 0
A187: CZ35U | B187: Adjustment of Dental Device, 18 years and under | C187: 106.294694 | D187: 106.294694 | E187: 106.294694 | F187: 5 | G187: 218.9488996 | H187: 5 | I187: 232.0146686 | J187: No | K187: 0 | L187: 0
A188: CZ35Y | B188: Adjustment of Dental Device, 19 years and over | C188: 108.1116973 | D188: 108.1116973 | E188: 108.1116973 | F188: 5 | G188: 1467.230178 | H188: 5 | I188: 232.0146686 | J188: No | K188: 0 | L188: 0
A189: CZ36U | B189: Dental Excision or Biopsy Procedures, 18 years and under | C189: 651.395689 | D189: 651.395689 | E189: 651.395689 | F189: 5 | G189: 829.462014 | H189: 5 | I189: 232.0146686 | J189: No | K189: 0 | L189: 0
A190: CZ36Y | B190: Dental Excision or Biopsy Procedures, 19 years and over | C190: 536.92448 | D190: 536.92448 | E190: 536.92448 | F190: 5 | G190: 686.8272537 | H190: 5 | I190: 232.0146686 | J190: No | K190: 0 | L190: 0
A191: CZ37U | B191: Surgical Removal of Tooth, 18 years and under | C191: 751.3308714 | D191: 751.3308714 | E191: 751.3308714 | F191: 5 | G191: 959.3777511 | H191: 5 | I191: 232.0146686 | J191: No | K191: 0 | L191: 0
A192: CZ37Y | B192: Surgical Removal of Tooth, 19 years and over | C192: 476.9633706 | D192: 476.9633706 | E192: 476.9633706 | F192: 5 | G192: 1035.69189 | H192: 5 | I192: 232.0146686 | J192: No | K192: 0 | L192: 0
A193: CZ38U | B193: Creation of Dental Impression, 18 years and under | C193: 112.6542056 | D193: 112.6542056 | E193: 112.6542056 | F193: 5 | G193: 1226.477239 | H193: 5 | I193: 232.0146686 | J193: No | K193: 0 | L193: 0
A194: CZ38Y | B194: Creation of Dental Impression, 19 years and over | C194: 129.0072355 | D194: 129.0072355 | E194: 129.0072355 | F194: 5 | G194: 2123.168375 | H194: 5 | I194: 232.0146686 | J194: No | K194: 0 | L194: 0
A195: CZ39U | B195: Intermediate Dental Procedures, 18 years and under | C195: 867.6190837 | D195: 867.6190837 | E195: 867.6190837 | F195: 5 | G195: 955.7437445 | H195: 5 | I195: 232.0146686 | J195: No | K195: 0 | L195: 0
A196: CZ39Y | B196: Intermediate Dental Procedures, 19 years and over | C196: 774.0434129 | D196: 774.0434129 | E196: 774.0434129 | F196: 5 | G196: 892.1486284 | H196: 5 | I196: 232.0146686 | J196: No | K196: 0 | L196: 0
A197: CZ40U | B197: Major Surgical Removal of Tooth, 18 years and under | C197: 839.4555322 | D197: 839.4555322 | E197: 839.4555322 | F197: 5 | G197: 1150.163099 | H197: 5 | I197: 232.0146686 | J197: No | K197: 0 | L197: 0
A198: CZ40Y | B198: Major Surgical Removal of Tooth, 19 years and over | C198: 569.6305397 | D198: 569.6305397 | E198: 569.6305397 | F198: 5 | G198: 1219.209225 | H198: 5 | I198: 232.0146686 | J198: No | K198: 0 | L198: 0
A199: CZ41U | B199: Major Dental Procedures, 18 years and under | C199: 845.8150439 | D199: 845.8150439 | E199: 845.8150439 | F199: 5 | G199: 943.9332229 | H199: 5 | I199: 232.0146686 | J199: No | K199: 0 | L199: 0
A200: CZ41Y | B200: Major Dental Procedures, 19 years and over | C200: 637.7681641 | D200: 637.7681641 | E200: 637.7681641 | F200: 5 | G200: 1100.195508 | H200: 5 | I200: 232.0146686 | J200: No | K200: 0 | L200: 0
... 1109 more rows

Sheet TED OP Procedures
A1: 2015-16 tariff - Outpatient procedures prices
A3: HRG code | B3: HRG name | C3: Outpatient procedure tariff (£) | D3: Modelled or roll-over
A4: AA33C | B4: Conventional EEG/EMG/Nerve conduction studies with length of stay 2 days or less 19 years and over | C4: 209.7143753 | D4: Manual adjusted
A5: AB05Z | B5: Intermediate Pain Procedures | C5: 203.9467407 | D5: Manual adjusted
A6: AB06Z | B6: Minor Pain Procedures | C6: 203.9467407 | D6: Manual adjusted
A7: AB09Z | B7: Other Specified Pain Procedures | C7: 176.2482597 | D7: Modelled
A8: BZ04Z | B8: Lens Capsulotomy | C8: 164.3409227 | D8: Modelled
A9: BZ07A | B9: Oculoplastics category 1: 19 years and over | C9: 124.2828228 | D9: Modelled
A10: BZ07B | B10: Oculoplastics category 1: 18 years and under | C10: 155.0967458 | D10: Modelled
A11: BZ10A | B11: Orbits / lacrimal category 1: 19 years and over | C11: 120.3939515 | D11: Modelled
A12: BZ10B | B12: Orbits / lacrimal category 1: 18 years and under | C12: 131.4727381 | D12: Modelled
A13: BZ13Z | B13: Cornea / Sclera - category 1 | C13: 157.1510073 | D13: Modelled
A14: BZ18Z | B14: Glaucoma - category 2 | C14: 100.6588151 | D14: Modelled
A15: BZ19Z | B15: Glaucoma - category 1 | C15: 120.3939515 | D15: Modelled
A16: BZ22Z | B16: Vitreous Retinal Procedures - category 2 | C16: 161.2595304 | D16: Modelled
A17: BZ23Z | B17: Vitreous Retinal Procedures - category 1 | C17: 123.255692 | D17: Modelled
A18: CZ01T | B18: Minor Mouth or Throat Procedures 18 years and under without CC | C18: 120.7437393 | D18: Modelled
A19: CZ01Y | B19: Minor Mouth or Throat Procedures 19 years and over without CC | C19: 154.5110563 | D19: Modelled
A20: CZ02T | B20: Intermediate Mouth or Throat Procedures 18 years and under without CC | C20: 120.7437393 | D20: Modelled
A21: CZ02Y | B21: Intermediate Mouth or Throat Procedures 19 years and over without CC | C21: 123.8134954 | D21: Modelled
A22: CZ08T | B22: Minor Ear Procedures 18 years and under without CC | C22: 114.0336654 | D22: Modelled
A23: CZ08Y | B23: Minor Ear Procedures 19 years and over without CC | C23: 137.1157718 | D23: Modelled
A24: CZ12U | B24: Minor Nose Procedures 18 years and under | C24: 122.7902434 | D24: Modelled
A25: CZ12Y | B25: Minor Nose Procedures 19 years and over without CC | C25: 127.9065035 | D25: Modelled
A26: CZ13Y | B26: Intermediate Nose Procedures 19 years and over without CC | C26: 131.9995117 | D26: Modelled
A27: CZ30Y | B27: Minor extraction of tooth 19 years and over | C27: 225.1154462 | D27: Modelled
A28: CZ31Y | B28: Minor dental biopsy 19 years and over | C28: 262.9757713 | D28: Modelled
A29: CZ32U | B29: Fitting/Insertion procedures 18 years and under | C29: 164.7235733 | D29: Modelled
A30: CZ32Y | B30: Fitting/Insertion procedures 19 years and over | C30: 164.7235733 | D30: Modelled
A31: CZ33Y | B31: Minor restoration procedures 19 years and over | C31: 250.696747 | D31: Modelled
A32: CZ34U | B32: Minor dental procedures 18 years and under | C32: 164.7235733 | D32: Modelled
A33: CZ34Y | B33: Minor dental procedures 19 years and over | C33: 136.0925198 | D33: Modelled
A34: CZ35U | B34: Adjustment of device 18 years and under | C34: 119.7204873 | D34: Modelled
A35: CZ35Y | B35: Adjustment of device 19 years and over | C35: 121.7669914 | D35: Modelled
A36: CZ36Y | B36: Excision/biopsy procedures 19 years and over | C36: 181.115609 | D36: Modelled
A37: CZ37Y | B37: Surgical removal of tooth 19 years and over | C37: 127.9065035 | D37: Modelled
A38: CZ38U | B38: Creation of impression 18 years and under | C38: 126.8832515 | D38: Modelled
A39: CZ38Y | B39: Creation of impression 19 years and over | C39: 145.301788 | D39: Modelled
A40: CZ39U | B40: Intermediate dental procedures 18 years and under | C40: 164.7235733 | D40: Modelled
A41: CZ39Y | B41: Intermediate dental procedures 19 years and over | C41: 164.7235733 | D41: Modelled
A42: CZ40Y | B42: Major surgical removal of tooth 19 years and over | C42: 134.0460157 | D42: Modelled
A43: CZ41Y | B43: Major dental procedures 19 years and over | C43: 150.4180482 | D43: Modelled
A44: CZ42Y | B44: Extraction of multiple teeth 19 years and over | C44: 129.9530076 | D44: Modelled
A45: DZ31Z | B45: Complex Lung Function Exercise Testing | C45: 209.9461659 | D45: Manual adjusted
A46: DZ32Z | B46: Simple Lung Function Exercise Testing | C46: 185.2962166 | D46: Manual adjusted
A47: DZ37A | B47: Non-Invasive Ventilation Support Assessment 19 years and over | C47: 260.8480317 | D47: Modelled
A48: DZ42Z | B48: TB Nurse Support | C48: 166.7381536 | D48: Modelled
A49: DZ50Z | B49: Respiratory Sleep Study | C49: 479.7033284 | D49: Manual adjusted
A50: DZ52Z | B50: Full Pulmonary Function Testing | C50: 194.4887759 | D50: Manual adjusted
A51: EA44Z | B51: Minor Cardiac Procedures | C51: 156.6348272 | D51: Modelled
A52: EA45Z | B52: Complex Echocardiogram (include Congenital, Transoesophageal and Fetal Echocardiography) | C52: 290.6422717 | D52: Modelled
A53: EA47Z | B53: Electrocardiogram Monitoring and stress testing | C53: 161.6953483 | D53: Modelled
A54: FZ22A | B54: Intermediate Anal Procedures 19 years and over | C54: 368.1578475 | D54: Modelled
A55: FZ50Z | B55: Intermediate Large Intestine Procedures 19 years and over | C55: 438.2831518 | D55: Modelled
A56: FZ51Z | B56: Diagnostic Colonoscopy 19 years and over | C56: 493.9708934 | D56: Modelled
A57: FZ52Z | B57: Diagnostic Colonoscopy with biopsy 19 years and over | C57: 533.1585634 | D57: Modelled
A58: FZ54Z | B58: Diagnostic Flexible Sigmoidoscopy 19 years and over | C58: 385.6891735 | D58: Modelled
A59: FZ55Z | B59: Diagnostic Flexible Sigmoidoscopy with biopsy 19 years and over | C59: 438.2831518 | D59: Modelled
A60: FZ57Z | B60: Diagnostic or Therapeutic Rigid Sigmoidoscopy 19 years and over | C60: 183.5632965 | D60: Modelled
A61: FZ59Z | B61: Intermediate Procedures on the Upper GI Tract 19 years and over | C61: 262.9698911 | D61: Modelled
A62: FZ60Z | B62: Diagnostic Endoscopic Procedures on the Upper GI Tract 19 years and over | C62: 399.0954817 | D62: Modelled
A63: FZ61Z | B63: Diagnostic Endoscopic Procedures on the Upper GI Tract with biopsy 19 years and over | C63: 421.7830802 | D63: Modelled
A64: FZ83B | B64: Major Oesophageal, Stomach or Duodenum Procedures, 19 years and over without Major CC | C64: 154.2721894 | D64: Modelled
A65: HB25F | B65: Minor Knee Procedures for non Trauma Category 1 19 years and over without CC | C65: 192.4252205 | D65: Modelled
A66: HB35C | B66: Minor Foot Procedures for Non -Trauma Category 1 without CC | C66: 454.5395748 | D66: Modelled
A67: HB56C | B67: Minor Hand Procedures for non Trauma Category 1 without CC | C67: 202.8265837 | D67: Modelled
A68: HB79Z | B68: Minimal Elbow and Lower Arm Procedures for Non-Trauma, with length of stay 1 day or less | C68: 309.5982268 | D68: Manual adjusted
A69: HB29Z | B69: Minimal Knee Procedures for Non-Trauma, with length of stay 1 day or less | C69: 395.6833697 | D69: Manual adjusted
A70: HB69Z | B70: Minimal Shoulder and Upper Arm Procedures for Non-Trauma, with length of stay 1 day or less | C70: 318.3814201 | D70: Manual adjusted
A71: JA18C | B71: Unilateral Minor Breast Procedures without CC | C71: 364.4360991 | D71: Modelled
A72: JC03C | B72: Major Skin Procedures category 1 without CC | C72: 124.3721884 | D72: Modelled
A73: JC04C | B73: Intermediate Skin Procedures category 2 without CC | C73: 133.6230123 | D73: Modelled
A74: JC05C | B74: Intermediate Skin Procedures category 1 without CC | C74: 149.0410522 | D74: Modelled
A75: JC09Z | B75: Patch Tests | C75: 104.8426712 | D75: Modelled
A76: JC10Z | B76: Specified Skin Examinations and Investigations | C76: 158.2918761 | D76: Modelled
A77: JC11Z | B77: Other Diagnostic Skin Tests | C77: 185.0164785 | D77: Modelled
A78: JC14Z | B78: Skin Therapies level 2 | C78: 131.5672736 | D78: Modelled
A79: JC15Z | B79: Skin Therapies level 3 | C79: 143.9017055 | D79: Modelled
A80: JC18Z | B80: Electrical and other invasive therapy 2 | C80: 118.2049724 | D80: Modelled
A81: JC19D | B81: Electrical and other invasive therapy 4 - 19 years and over | C81: 156.2361374 | D81: Modelled
A82: JC20Z | B82: Electrical and other invasive therapy 3 | C82: 114.7805089 | D82: Modelled
A83: JC46Z | B83: Photochemotherapy | C83: 114.7805089 | D83: Modelled
A84: JC47Z | B84: Phototherapy | C84: 114.7805089 | D84: Modelled
A85: KB04Z | B85: Continuous Subcutaneous Insulin Infusion | C85: 233.9717079 | D85: Modelled
A86: LA08E | B86: Chronic Kidney Disease with length of stay 1 day or less associated with Renal Dialysis | C86: 0 | D86: Modelled
A87: LB14Z | B87: Intermediate Endoscopic Bladder Procedures | C87: 574.2209758 | D87: Modelled
A88: LB15E | B88: Bladder Minor Procedure 19 years and over | C88: 330.7677177 | D88: Modelled
A89: LB17Z | B89: Introduction of Therapeutic Substance into Bladder | C89: 223.9359083 | D89: Modelled
A90: LB27Z | B90: Prostate or Bladder Neck Minor Endoscopic Procedure - Male | C90: 401.6465144 | D90: Modelled
A91: LB42A | B91: Dynamic Studies of Urinary Tract, 19 years and over | C91: 311.2503679 | D91: Modelled
A92: LB72A | B92: Diagnostic Flexible Cystoscopy, 19 years and over | C92: 166.4110878 | D92: Modelled
A93: MA10Z | B93: Upper Genital Tract Laparoscopic / Endoscopic Minor Procedures | C93: 154.5051792 | D93: Modelled
A94: MA21Z | B94: Diagnostic Hysteroscopy | C94: 197.1616799 | D94: Modelled
A95: MA23Z | B95: Lower Genital Tract Minor Procedures - Category 2 | C95: 165.9174792 | D95: Modelled
A96: MA25Z | B96: Upper Genital Tract Minor Procedures - Category 2 | C96: 155.1436169 | D96: Modelled
A97: PB03Z | B97: Healthy Baby | C97: 0 | D97: Modelled
A98: QZ05B | B98: Miscellaneous Vascular Procedures without CC | C98: 240.5033976 | D98: Modelled
A99: QZ14B | B99: Vascular Access except for Renal Replacement Therapy without CC | C99: 236.0515319 | D99: Modelled
A100: SA13A | B100: Single Plasma Exchange, Leucophoresis or Red Cell Exchange with length of stay 2 days or less and 19 years and over | C100: 163.3376316 | D100: Modelled
A101: SA13B | B101: Single Plasma Exchange, Leucophoresis or Red Cell Exchange with length of stay 2 days or less and 18 years and under | C101: 196.005158 | D101: Modelled
A102: SB97Z | B102: Same day Chemotherapy admission/attendance | C102: 0 | D102: Modelled
A103: SC97Z | B103: Same day Radiotherapy admission/attendance | C103: 0 | D103: Modelled
A104: UZ01Z | B104: Data invalid for grouping | C104: 0 | D104: Modelled

Sheet Prices Summary I
A1: 15/16 Post OPROC adjustment pre uplift prices.
A5: HRG Code | B5: OPROC Tariff | C5: DC Tariff | D5: EL Tariff | E5: EL Trim | F5: NE Tariff | G5: NE Trim | H5: Longstay Payment | I5: SSEM Apply? | J5: SSEM Tariff
B6: £ | C6: £ | D6: £ | E6: Days | F6: £ | G6: Days | H6: £ | I6: Y/N | J6: £
A7: ='APC Prices I'!A6 -> AA02A | C7: =VLOOKUP(A7,'APC Prices I'!$A$6:$V$13110,20,FALSE) -> 7762 | D7: =VLOOKUP(A7,'APC Prices I'!$A$6:$V$13110,21,FALSE) -> 7762 | F7: =VLOOKUP(A7,'APC Prices I'!$A$6:$V$13110,22,FALSE) -> 7172
A8: ='APC Prices I'!A7 -> AA02B | C8: =VLOOKUP(A8,'APC Prices I'!$A$6:$V$13110,20,FALSE) -> 2843 | D8: =VLOOKUP(A8,'APC Prices I'!$A$6:$V$13110,21,FALSE) -> 2843 | F8: =VLOOKUP(A8,'APC Prices I'!$A$6:$V$13110,22,FALSE) -> 5441
A9: ='APC Prices I'!A8 -> AA03A | C9: =VLOOKUP(A9,'APC Prices I'!$A$6:$V$13110,20,FALSE) -> 8125 | D9: =VLOOKUP(A9,'APC Prices I'!$A$6:$V$13110,21,FALSE) -> 8125 | F9: =VLOOKUP(A9,'APC Prices I'!$A$6:$V$13110,22,FALSE) -> 6250
A10: ='APC Prices I'!A9 -> AA03B | C10: =VLOOKUP(A10,'APC Prices I'!$A$6:$V$13110,20,FALSE) -> 5124 | D10: =VLOOKUP(A10,'APC Prices I'!$A$6:$V$13110,21,FALSE) -> 5124 | F10: =VLOOKUP(A10,'APC Prices I'!$A$6:$V$13110,22,FALSE) -> 4876
A11: ='APC Prices I'!A10 -> AA04A | C11: =VLOOKUP(A11,'APC Prices I'!$A$6:$V$13110,20,FALSE) -> 10331 | D11: =VLOOKUP(A11,'APC Prices I'!$A$6:$V$13110,21,FALSE) -> 10331 | F11: =VLOOKUP(A11,'APC Prices I'!$A$6:$V$13110,22,FALSE) -> 14110
A12: ='APC Prices I'!A11 -> AA04B | C12: =VLOOKUP(A12,'APC Prices I'!$A$6:$V$13110,20,FALSE) -> 4469 | D12: =VLOOKUP(A12,'APC Prices I'!$A$6:$V$13110,21,FALSE) -> 4469 | F12: =VLOOKUP(A12,'APC Prices I'!$A$6:$V$13110,22,FALSE) -> 10532
A13: ='APC Prices I'!A12 -> AA05A | C13: =VLOOKUP(A13,'APC Prices I'!$A$6:$V$13110,20,FALSE) -> 6425 | D13: =VLOOKUP(A13,'APC Prices I'!$A$6:$V$13110,21,FALSE) -> 6425 | F13: =VLOOKUP(A13,'APC Prices I'!$A$6:$V$13110,22,FALSE) -> 12684
A14: ='APC Prices I'!A13 -> AA05B | C14: =VLOOKUP(A14,'APC Prices I'!$A$6:$V$13110,20,FALSE) -> 4196 | D14: =VLOOKUP(A14,'APC Prices I'!$A$6:$V$13110,21,FALSE) -> 4196 | F14: =VLOOKUP(A14,'APC Prices I'!$A$6:$V$13110,22,FALSE) -> 9090
A15: ='APC Prices I'!A14 -> AA06A | C15: =VLOOKUP(A15,'APC Prices I'!$A$6:$V$13110,20,FALSE) -> 7754 | D15: =VLOOKUP(A15,'APC Prices I'!$A$6:$V$13110,21,FALSE) -> 7754 | F15: =VLOOKUP(A15,'APC Prices I'!$A$6:$V$13110,22,FALSE) -> 11236
A16: ='APC Prices I'!A15 -> AA06B | C16: =VLOOKUP(A16,'APC Prices I'!$A$6:$V$13110,20,FALSE) -> 4917 | D16: =VLOOKUP(A16,'APC Prices I'!$A$6:$V$13110,21,FALSE) -> 4917 | F16: =VLOOKUP(A16,'APC Prices I'!$A$6:$V$13110,22,FALSE) -> 8828
A17: ='APC Prices I'!A16 -> AA07A | C17: =VLOOKUP(A17,'APC Prices I'!$A$6:$V$13110,20,FALSE) -> 5039 | D17: =VLOOKUP(A17,'APC Prices I'!$A$6:$V$13110,21,FALSE) -> 5039 | F17: =VLOOKUP(A17,'APC Prices I'!$A$6:$V$13110,22,FALSE) -> 8913
A18: ='APC Prices I'!A17 -> AA07B | C18: =VLOOKUP(A18,'APC Prices I'!$A$6:$V$13110,20,FALSE) -> 3781 | D18: =VLOOKUP(A18,'APC Prices I'!$A$6:$V$13110,21,FALSE) -> 3781 | F18: =VLOOKUP(A18,'APC Prices I'!$A$6:$V$13110,22,FALSE) -> 6692
A19: ='APC Prices I'!A18 -> AA08A | C19: =VLOOKUP(A19,'APC Prices I'!$A$6:$V$13110,20,FALSE) -> 6823 | D19: =VLOOKUP(A19,'APC Prices I'!$A$6:$V$13110,21,FALSE) -> 6823 | F19: =VLOOKUP(A19,'APC Prices I'!$A$6:$V$13110,22,FALSE) -> 7066
A20: ='APC Prices I'!A19 -> AA08B | C20: =VLOOKUP(A20,'APC Prices I'!$A$6:$V$13110,20,FALSE) -> 7619 | D20: =VLOOKUP(A20,'APC Prices I'!$A$6:$V$13110,21,FALSE) -> 7619 | F20: =VLOOKUP(A20,'APC Prices I'!$A$6:$V$13110,22,FALSE) -> 5427
A21: ='APC Prices I'!A20 -> AA09A | C21: =VLOOKUP(A21,'APC Prices I'!$A$6:$V$13110,20,FALSE) -> 3172 | D21: =VLOOKUP(A21,'APC Prices I'!$A$6:$V$13110,21,FALSE) -> 3172 | F21: =VLOOKUP(A21,'APC Prices I'!$A$6:$V$13110,22,FALSE) -> 10099
A22: ='APC Prices I'!A21 -> AA09B | C22: =VLOOKUP(A22,'APC Prices I'!$A$6:$V$13110,20,FALSE) -> 1077 | D22: =VLOOKUP(A22,'APC Prices I'!$A$6:$V$13110,21,FALSE) -> 1077 | F22: =VLOOKUP(A22,'APC Prices I'!$A$6:$V$13110,22,FALSE) -> 7298
A23: ='APC Prices I'!A22 -> AA10A | C23: =VLOOKUP(A23,'APC Prices I'!$A$6:$V$13110,20,FALSE) -> 7211 | D23: =VLOOKUP(A23,'APC Prices I'!$A$6:$V$13110,21,FALSE) -> 7211 | F23: =VLOOKUP(A23,'APC Prices I'!$A$6:$V$13110,22,FALSE) -> 14145
A24: ='APC Prices I'!A23 -> AA10B | C24: =VLOOKUP(A24,'APC Prices I'!$A$6:$V$13110,20,FALSE) -> 4457 | D24: =VLOOKUP(A24,'APC Prices I'!$A$6:$V$13110,21,FALSE) -> 4457 | F24: =VLOOKUP(A24,'APC Prices I'!$A$6:$V$13110,22,FALSE) -> 6534
A25: ='APC Prices I'!A24 -> AA11A | C25: =VLOOKUP(A25,'APC Prices I'!$A$6:$V$13110,20,FALSE) -> 8563 | D25: =VLOOKUP(A25,'APC Prices I'!$A$6:$V$13110,21,FALSE) -> 8563 | F25: =VLOOKUP(A25,'APC Prices I'!$A$6:$V$13110,22,FALSE) -> 12838
A26: ='APC Prices I'!A25 -> AA11B | C26: =VLOOKUP(A26,'APC Prices I'!$A$6:$V$13110,20,FALSE) -> 2724 | D26: =VLOOKUP(A26,'APC Prices I'!$A$6:$V$13110,21,FALSE) -> 2724 | F26: =VLOOKUP(A26,'APC Prices I'!$A$6:$V$13110,22,FALSE) -> 8835
A27: ='APC Prices I'!A26 -> AA12A | C27: =VLOOKUP(A27,'APC Prices I'!$A$6:$V$13110,20,FALSE) -> 6505 | D27: =VLOOKUP(A27,'APC Prices I'!$A$6:$V$13110,21,FALSE) -> 6505 | F27: =VLOOKUP(A27,'APC Prices I'!$A$6:$V$13110,22,FALSE) -> 8622
A28: ='APC Prices I'!A27 -> AA12B | C28: =VLOOKUP(A28,'APC Prices I'!$A$6:$V$13110,20,FALSE) -> 6058 | D28: =VLOOKUP(A28,'APC Prices I'!$A$6:$V$13110,21,FALSE) -> 6058 | F28: =VLOOKUP(A28,'APC Prices I'!$A$6:$V$13110,22,FALSE) -> 7737
A29: ='APC Prices I'!A28 -> AA13A | C29: =VLOOKUP(A29,'APC Prices I'!$A$6:$V$13110,20,FALSE) -> 5578 | D29: =VLOOKUP(A29,'APC Prices I'!$A$6:$V$13110,21,FALSE) -> 5578 | F29: =VLOOKUP(A29,'APC Prices I'!$A$6:$V$13110,22,FALSE) -> 7497
A30: ='APC Prices I'!A29 -> AA13B | C30: =VLOOKUP(A30,'APC Prices I'!$A$6:$V$13110,20,FALSE) -> 5505 | D30: =VLOOKUP(A30,'APC Prices I'!$A$6:$V$13110,21,FALSE) -> 5505 | F30: =VLOOKUP(A30,'APC Prices I'!$A$6:$V$13110,22,FALSE) -> 5638
A31: ='APC Prices I'!A30 -> AA14A | C31: =VLOOKUP(A31,'APC Prices I'!$A$6:$V$13110,20,FALSE) -> 3032 | D31: =VLOOKUP(A31,'APC Prices I'!$A$6:$V$13110,21,FALSE) -> 3032 | F31: =VLOOKUP(A31,'APC Prices I'!$A$6:$V$13110,22,FALSE) -> 3758
A32: ='APC Prices I'!A31 -> AA14B | C32: =VLOOKUP(A32,'APC Prices I'!$A$6:$V$13110,20,FALSE) -> 3015 | D32: =VLOOKUP(A32,'APC Prices I'!$A$6:$V$13110,21,FALSE) -> 3015 | F32: =VLOOKUP(A32,'APC Prices I'!$A$6:$V$13110,22,FALSE) -> 5171
A33: ='APC Prices I'!A32 -> AA15A | C33: =VLOOKUP(A33,'APC Prices I'!$A$6:$V$13110,20,FALSE) -> 5752 | D33: =VLOOKUP(A33,'APC Prices I'!$A$6:$V$13110,21,FALSE) -> 5752 | F33: =VLOOKUP(A33,'APC Prices I'!$A$6:$V$13110,22,FALSE) -> 9629
A34: ='APC Prices I'!A33 -> AA15B | C34: =VLOOKUP(A34,'APC Prices I'!$A$6:$V$13110,20,FALSE) -> 4675 | D34: =VLOOKUP(A34,'APC Prices I'!$A$6:$V$13110,21,FALSE) -> 4675 | F34: =VLOOKUP(A34,'APC Prices I'!$A$6:$V$13110,22,FALSE) -> 7559
A35: ='APC Prices I'!A34 -> AA16A | C35: =VLOOKUP(A35,'APC Prices I'!$A$6:$V$13110,20,FALSE) -> 6394 | D35: =VLOOKUP(A35,'APC Prices I'!$A$6:$V$13110,21,FALSE) -> 6394 | F35: =VLOOKUP(A35,'APC Prices I'!$A$6:$V$13110,22,FALSE) -> 8317
A36: ='APC Prices I'!A35 -> AA16B | C36: =VLOOKUP(A36,'APC Prices I'!$A$6:$V$13110,20,FALSE) -> 2711 | D36: =VLOOKUP(A36,'APC Prices I'!$A$6:$V$13110,21,FALSE) -> 2711 | F36: =VLOOKUP(A36,'APC Prices I'!$A$6:$V$13110,22,FALSE) -> 7122
A37: ='APC Prices I'!A36 -> AA17A | C37: =VLOOKUP(A37,'APC Prices I'!$A$6:$V$13110,20,FALSE) -> 5778 | D37: =VLOOKUP(A37,'APC Prices I'!$A$6:$V$13110,21,FALSE) -> 5778 | F37: =VLOOKUP(A37,'APC Prices I'!$A$6:$V$13110,22,FALSE) -> 8412
A38: ='APC Prices I'!A37 -> AA17B | C38: =VLOOKUP(A38,'APC Prices I'!$A$6:$V$13110,20,FALSE) -> 8101 | D38: =VLOOKUP(A38,'APC Prices I'!$A$6:$V$13110,21,FALSE) -> 8101 | F38: =VLOOKUP(A38,'APC Prices I'!$A$6:$V$13110,22,FALSE) -> 5491
A39: ='APC Prices I'!A38 -> AA18A | C39: =VLOOKUP(A39,'APC Prices I'!$A$6:$V$13110,20,FALSE) -> 4475 | D39: =VLOOKUP(A39,'APC Prices I'!$A$6:$V$13110,21,FALSE) -> 4475 | F39: =VLOOKUP(A39,'APC Prices I'!$A$6:$V$13110,22,FALSE) -> 6578
A40: ='APC Prices I'!A39 -> AA18B | C40: =VLOOKUP(A40,'APC Prices I'!$A$6:$V$13110,20,FALSE) -> 4332 | D40: =VLOOKUP(A40,'APC Prices I'!$A$6:$V$13110,21,FALSE) -> 4332 | F40: =VLOOKUP(A40,'APC Prices I'!$A$6:$V$13110,22,FALSE) -> 5817
A41: ='APC Prices I'!A40 -> AA19A | C41: =VLOOKUP(A41,'APC Prices I'!$A$6:$V$13110,20,FALSE) -> 2105 | D41: =VLOOKUP(A41,'APC Prices I'!$A$6:$V$13110,21,FALSE) -> 2105 | F41: =VLOOKUP(A41,'APC Prices I'!$A$6:$V$13110,22,FALSE) -> 4827
A42: ='APC Prices I'!A41 -> AA19B | C42: =VLOOKUP(A42,'APC Prices I'!$A$6:$V$13110,20,FALSE) -> 1882 | D42: =VLOOKUP(A42,'APC Prices I'!$A$6:$V$13110,21,FALSE) -> 1882 | F42: =VLOOKUP(A42,'APC Prices I'!$A$6:$V$13110,22,FALSE) -> 3460
A43: ='APC Prices I'!A42 -> AA20A | C43: =VLOOKUP(A43,'APC Prices I'!$A$6:$V$13110,20,FALSE) -> 1669 | D43: =VLOOKUP(A43,'APC Prices I'!$A$6:$V$13110,21,FALSE) -> 1669 | F43: =VLOOKUP(A43,'APC Prices I'!$A$6:$V$13110,22,FALSE) -> 3601
A44: ='APC Prices I'!A43 -> AA20B | C44: =VLOOKUP(A44,'APC Prices I'!$A$6:$V$13110,20,FALSE) -> 1386 | D44: =VLOOKUP(A44,'APC Prices I'!$A$6:$V$13110,21,FALSE) -> 1386 | F44: =VLOOKUP(A44,'APC Prices I'!$A$6:$V$13110,22,FALSE) -> 1565
A45: ='APC Prices I'!A44 -> AA21A | C45: =VLOOKUP(A45,'APC Prices I'!$A$6:$V$13110,20,FALSE) -> 2175 | D45: =VLOOKUP(A45,'APC Prices I'!$A$6:$V$13110,21,FALSE) -> 2175 | F45: =VLOOKUP(A45,'APC Prices I'!$A$6:$V$13110,22,FALSE) -> 6122
A46: ='APC Prices I'!A45 -> AA21B | C46: =VLOOKUP(A46,'APC Prices I'!$A$6:$V$13110,20,FALSE) -> 1297 | D46: =VLOOKUP(A46,'APC Prices I'!$A$6:$V$13110,21,FALSE) -> 1297 | F46: =VLOOKUP(A46,'APC Prices I'!$A$6:$V$13110,22,FALSE) -> 4557
A47: ='APC Prices I'!A46 -> AA22A | C47: =VLOOKUP(A47,'APC Prices I'!$A$6:$V$13110,20,FALSE) -> 3734 | D47: =VLOOKUP(A47,'APC Prices I'!$A$6:$V$13110,21,FALSE) -> 3734 | F47: =VLOOKUP(A47,'APC Prices I'!$A$6:$V$13110,22,FALSE) -> 4193
A48: ='APC Prices I'!A47 -> AA22B | C48: =VLOOKUP(A48,'APC Prices I'!$A$6:$V$13110,20,FALSE) -> 738 | D48: =VLOOKUP(A48,'APC Prices I'!$A$6:$V$13110,21,FALSE) -> 738 | F48: =VLOOKUP(A48,'APC Prices I'!$A$6:$V$13110,22,FALSE) -> 2490
A49: ='APC Prices I'!A48 -> AA23A | C49: =VLOOKUP(A49,'APC Prices I'!$A$6:$V$13110,20,FALSE) -> 7783 | D49: =VLOOKUP(A49,'APC Prices I'!$A$6:$V$13110,21,FALSE) -> 7783 | F49: =VLOOKUP(A49,'APC Prices I'!$A$6:$V$13110,22,FALSE) -> 4455
A50: ='APC Prices I'!A49 -> AA23B | C50: =VLOOKUP(A50,'APC Prices I'!$A$6:$V$13110,20,FALSE) -> 3795 | D50: =VLOOKUP(A50,'APC Prices I'!$A$6:$V$13110,21,FALSE) -> 3795 | F50: =VLOOKUP(A50,'APC Prices I'!$A$6:$V$13110,22,FALSE) -> 2386
A51: ='APC Prices I'!A50 -> AA24A | C51: =VLOOKUP(A51,'APC Prices I'!$A$6:$V$13110,20,FALSE) -> 1040 | D51: =VLOOKUP(A51,'APC Prices I'!$A$6:$V$13110,21,FALSE) -> 1040 | F51: =VLOOKUP(A51,'APC Prices I'!$A$6:$V$13110,22,FALSE) -> 3599
A52: ='APC Prices I'!A51 -> AA24B | C52: =VLOOKUP(A52,'APC Prices I'!$A$6:$V$13110,20,FALSE) -> 707 | D52: =VLOOKUP(A52,'APC Prices I'!$A$6:$V$13110,21,FALSE) -> 707 | F52: =VLOOKUP(A52,'APC Prices I'!$A$6:$V$13110,22,FALSE) -> 2309
A53: ='APC Prices I'!A52 -> AA25A | C53: =VLOOKUP(A53,'APC Prices I'!$A$6:$V$13110,20,FALSE) -> 1393 | D53: =VLOOKUP(A53,'APC Prices I'!$A$6:$V$13110,21,FALSE) -> 1393 | F53: =VLOOKUP(A53,'APC Prices I'!$A$6:$V$13110,22,FALSE) -> 2900
A54: ='APC Prices I'!A53 -> AA25B | C54: =VLOOKUP(A54,'APC Prices I'!$A$6:$V$13110,20,FALSE) -> 540 | D54: =VLOOKUP(A54,'APC Prices I'!$A$6:$V$13110,21,FALSE) -> 540 | F54: =VLOOKUP(A54,'APC Prices I'!$A$6:$V$13110,22,FALSE) -> 1589
A55: ='APC Prices I'!A54 -> AA26A | C55: =VLOOKUP(A55,'APC Prices I'!$A$6:$V$13110,20,FALSE) -> 937 | D55: =VLOOKUP(A55,'APC Prices I'!$A$6:$V$13110,21,FALSE) -> 937 | F55: =VLOOKUP(A55,'APC Prices I'!$A$6:$V$13110,22,FALSE) -> 1314
A56: ='APC Prices I'!A55 -> AA26B | C56: =VLOOKUP(A56,'APC Prices I'!$A$6:$V$13110,20,FALSE) -> 648 | D56: =VLOOKUP(A56,'APC Prices I'!$A$6:$V$13110,21,FALSE) -> 648 | F56: =VLOOKUP(A56,'APC Prices I'!$A$6:$V$13110,22,FALSE) -> 649
A57: ='APC Prices I'!A56 -> AA27A | C57: =VLOOKUP(A57,'APC Prices I'!$A$6:$V$13110,20,FALSE) -> 3453 | D57: =VLOOKUP(A57,'APC Prices I'!$A$6:$V$13110,21,FALSE) -> 3453 | F57: =VLOOKUP(A57,'APC Prices I'!$A$6:$V$13110,22,FALSE) -> 5130
A58: ='APC Prices I'!A57 -> AA27B | C58: =VLOOKUP(A58,'APC Prices I'!$A$6:$V$13110,20,FALSE) -> 427 | D58: =VLOOKUP(A58,'APC Prices I'!$A$6:$V$13110,21,FALSE) -> 427 | F58: =VLOOKUP(A58,'APC Prices I'!$A$6:$V$13110,22,FALSE) -> 1909
A59: ='APC Prices I'!A58 -> AA28A | C59: =VLOOKUP(A59,'APC Prices I'!$A$6:$V$13110,20,FALSE) -> 2427 | D59: =VLOOKUP(A59,'APC Prices I'!$A$6:$V$13110,21,FALSE) -> 2427 | F59: =VLOOKUP(A59,'APC Prices I'!$A$6:$V$13110,22,FALSE) -> 5188
A60: ='APC Prices I'!A59 -> AA28B | C60: =VLOOKUP(A60,'APC Prices I'!$A$6:$V$13110,20,FALSE) -> 1690 | D60: =VLOOKUP(A60,'APC Prices I'!$A$6:$V$13110,21,FALSE) -> 1690 | F60: =VLOOKUP(A60,'APC Prices I'!$A$6:$V$13110,22,FALSE) -> 3083
A61: ='APC Prices I'!A60 -> AA29A | C61: =VLOOKUP(A61,'APC Prices I'!$A$6:$V$13110,20,FALSE) -> 493 | D61: =VLOOKUP(A61,'APC Prices I'!$A$6:$V$13110,21,FALSE) -> 493 | F61: =VLOOKUP(A61,'APC Prices I'!$A$6:$V$13110,22,FALSE) -> 1391
A62: ='APC Prices I'!A61 -> AA29B | C62: =VLOOKUP(A62,'APC Prices I'!$A$6:$V$13110,20,FALSE) -> 469 | D62: =VLOOKUP(A62,'APC Prices I'!$A$6:$V$13110,21,FALSE) -> 469 | F62: =VLOOKUP(A62,'APC Prices I'!$A$6:$V$13110,22,FALSE) -> 555
A63: ='APC Prices I'!A62 -> AA30A | C63: =VLOOKUP(A63,'APC Prices I'!$A$6:$V$13110,20,FALSE) -> 593 | D63: =VLOOKUP(A63,'APC Prices I'!$A$6:$V$13110,21,FALSE) -> 593 | F63: =VLOOKUP(A63,'APC Prices I'!$A$6:$V$13110,22,FALSE) -> 3705
A64: ='APC Prices I'!A63 -> AA30B | C64: =VLOOKUP(A64,'APC Prices I'!$A$6:$V$13110,20,FALSE) -> 442 | D64: =VLOOKUP(A64,'APC Prices I'!$A$6:$V$13110,21,FALSE) -> 442 | F64: =VLOOKUP(A64,'APC Prices I'!$A$6:$V$13110,22,FALSE) -> 2091
A65: ='APC Prices I'!A64 -> AA31A | C65: =VLOOKUP(A65,'APC Prices I'!$A$6:$V$13110,20,FALSE) -> 845 | D65: =VLOOKUP(A65,'APC Prices I'!$A$6:$V$13110,21,FALSE) -> 845 | F65: =VLOOKUP(A65,'APC Prices I'!$A$6:$V$13110,22,FALSE) -> 748
A66: ='APC Prices I'!A65 -> AA31B | C66: =VLOOKUP(A66,'APC Prices I'!$A$6:$V$13110,20,FALSE) -> 433 | D66: =VLOOKUP(A66,'APC Prices I'!$A$6:$V$13110,21,FALSE) -> 433 | F66: =VLOOKUP(A66,'APC Prices I'!$A$6:$V$13110,22,FALSE) -> 546
A67: ='APC Prices I'!A66 -> AA32Z | C67: =VLOOKUP(A67,'APC Prices I'!$A$6:$V$13110,20,FALSE) -> 427 | D67: =VLOOKUP(A67,'APC Prices I'!$A$6:$V$13110,21,FALSE) -> 427 | F67: =VLOOKUP(A67,'APC Prices I'!$A$6:$V$13110,22,FALSE) -> 382
A68: ='APC Prices I'!A67 -> AA33C | C68: =VLOOKUP(A68,'APC Prices I'!$A$6:$V$13110,20,FALSE) -> 173 | D68: =VLOOKUP(A68,'APC Prices I'!$A$6:$V$13110,21,FALSE) -> 173 | F68: =VLOOKUP(A68,'APC Prices I'!$A$6:$V$13110,22,FALSE) -> 1207
A69: ='APC Prices I'!A68 -> AA33D | C69: =VLOOKUP(A69,'APC Prices I'!$A$6:$V$13110,20,FALSE) -> 823 | D69: =VLOOKUP(A69,'APC Prices I'!$A$6:$V$13110,21,FALSE) -> 823 | F69: =VLOOKUP(A69,'APC Prices I'!$A$6:$V$13110,22,FALSE) -> 1328
A70: ='APC Prices I'!A69 -> AA34E | C70: =VLOOKUP(A70,'APC Prices I'!$A$6:$V$13110,20,FALSE) -> 9 | D70: =VLOOKUP(A70,'APC Prices I'!$A$6:$V$13110,21,FALSE) -> 9 | F70: =VLOOKUP(A70,'APC Prices I'!$A$6:$V$13110,22,FALSE) -> 606
A71: ='APC Prices I'!A70 -> AA34F | C71: =VLOOKUP(A71,'APC Prices I'!$A$6:$V$13110,20,FALSE) -> 8 | D71: =VLOOKUP(A71,'APC Prices I'!$A$6:$V$13110,21,FALSE) -> 8 | F71: =VLOOKUP(A71,'APC Prices I'!$A$6:$V$13110,22,FALSE) -> 220
A72: ='APC Prices I'!A71 -> AB02Z | C72: =VLOOKUP(A72,'APC Prices I'!$A$6:$V$13110,20,FALSE) -> 754 | D72: =VLOOKUP(A72,'APC Prices I'!$A$6:$V$13110,21,FALSE) -> 754 | F72: =VLOOKUP(A72,'APC Prices I'!$A$6:$V$13110,22,FALSE) -> 1529
A73: ='APC Prices I'!A72 -> AB03Z | C73: =VLOOKUP(A73,'APC Prices I'!$A$6:$V$13110,20,FALSE) -> 750 | D73: =VLOOKUP(A73,'APC Prices I'!$A$6:$V$13110,21,FALSE) -> 750 | F73: =VLOOKUP(A73,'APC Prices I'!$A$6:$V$13110,22,FALSE) -> 4285
A74: ='APC Prices I'!A73 -> AB04Z | C74: =VLOOKUP(A74,'APC Prices I'!$A$6:$V$13110,20,FALSE) -> 647 | D74: =VLOOKUP(A74,'APC Prices I'!$A$6:$V$13110,21,FALSE) -> 647 | F74: =VLOOKUP(A74,'APC Prices I'!$A$6:$V$13110,22,FALSE) -> 2492
A75: ='APC Prices I'!A74 -> AB05Z | C75: =VLOOKUP(A75,'APC Prices I'!$A$6:$V$13110,20,FALSE) -> 657 | D75: =VLOOKUP(A75,'APC Prices I'!$A$6:$V$13110,21,FALSE) -> 657 | F75: =VLOOKUP(A75,'APC Prices I'!$A$6:$V$13110,22,FALSE) -> 3205
A76: ='APC Prices I'!A75 -> AB06Z | C76: =VLOOKUP(A76,'APC Prices I'!$A$6:$V$13110,20,FALSE) -> 202 | D76: =VLOOKUP(A76,'APC Prices I'!$A$6:$V$13110,21,FALSE) -> 202 | F76: =VLOOKUP(A76,'APC Prices I'!$A$6:$V$13110,22,FALSE) -> 3436
A77: ='APC Prices I'!A76 -> AB07Z | C77: =VLOOKUP(A77,'APC Prices I'!$A$6:$V$13110,20,FALSE) -> 3048 | D77: =VLOOKUP(A77,'APC Prices I'!$A$6:$V$13110,21,FALSE) -> 3048 | F77: =VLOOKUP(A77,'APC Prices I'!$A$6:$V$13110,22,FALSE) -> 4548
A78: ='APC Prices I'!A77 -> AB08Z | C78: =VLOOKUP(A78,'APC Prices I'!$A$6:$V$13110,20,FALSE) -> 695 | D78: =VLOOKUP(A78,'APC Prices I'!$A$6:$V$13110,21,FALSE) -> 695 | F78: =VLOOKUP(A78,'APC Prices I'!$A$6:$V$13110,22,FALSE) -> 3041
A79: ='APC Prices I'!A78 -> AB09Z | C79: =VLOOKUP(A79,'APC Prices I'!$A$6:$V$13110,20,FALSE) -> 587 | D79: =VLOOKUP(A79,'APC Prices I'!$A$6:$V$13110,21,FALSE) -> 587 | F79: =VLOOKUP(A79,'APC Prices I'!$A$6:$V$13110,22,FALSE) -> 2357
A80: ='APC Prices I'!A79 -> AB10Z | C80: =VLOOKUP(A80,'APC Prices I'!$A$6:$V$13110,20,FALSE) -> 397 | D80: =VLOOKUP(A80,'APC Prices I'!$A$6:$V$13110,21,FALSE) -> 397 | F80: =VLOOKUP(A80,'APC Prices I'!$A$6:$V$13110,22,FALSE) -> 2172
A81: ='APC Prices I'!A80 -> AB11Z | C81: =VLOOKUP(A81,'APC Prices I'!$A$6:$V$13110,20,FALSE) -> 72 | D81: =VLOOKUP(A81,'APC Prices I'!$A$6:$V$13110,21,FALSE) -> 72 | F81: =VLOOKUP(A81,'APC Prices I'!$A$6:$V$13110,22,FALSE) -> 6590
A82: ='APC Prices I'!A81 -> BZ01Z | C82: =VLOOKUP(A82,'APC Prices I'!$A$6:$V$13110,20,FALSE) -> 1053 | D82: =VLOOKUP(A82,'APC Prices I'!$A$6:$V$13110,21,FALSE) -> 1053 | F82: =VLOOKUP(A82,'APC Prices I'!$A$6:$V$13110,22,FALSE) -> 2161
A83: ='APC Prices I'!A82 -> BZ02Z | C83: =VLOOKUP(A83,'APC Prices I'!$A$6:$V$13110,20,FALSE) -> 782 | D83: =VLOOKUP(A83,'APC Prices I'!$A$6:$V$13110,21,FALSE) -> 782 | F83: =VLOOKUP(A83,'APC Prices I'!$A$6:$V$13110,22,FALSE) -> 2805
A84: ='APC Prices I'!A83 -> BZ03Z | C84: =VLOOKUP(A84,'APC Prices I'!$A$6:$V$13110,20,FALSE) -> 1005 | D84: =VLOOKUP(A84,'APC Prices I'!$A$6:$V$13110,21,FALSE) -> 1005 | F84: =VLOOKUP(A84,'APC Prices I'!$A$6:$V$13110,22,FALSE) -> 1303
A85: ='APC Prices I'!A84 -> BZ04Z | C85: =VLOOKUP(A85,'APC Prices I'!$A$6:$V$13110,20,FALSE) -> 160 | D85: =VLOOKUP(A85,'APC Prices I'!$A$6:$V$13110,21,FALSE) -> 160 | F85: =VLOOKUP(A85,'APC Prices I'!$A$6:$V$13110,22,FALSE) -> 465
A86: ='APC Prices I'!A85 -> BZ05Z | C86: =VLOOKUP(A86,'APC Prices I'!$A$6:$V$13110,20,FALSE) -> 1324 | D86: =VLOOKUP(A86,'APC Prices I'!$A$6:$V$13110,21,FALSE) -> 1324 | F86: =VLOOKUP(A86,'APC Prices I'!$A$6:$V$13110,22,FALSE) -> 8505
A87: ='APC Prices I'!A86 -> BZ06A | C87: =VLOOKUP(A87,'APC Prices I'!$A$6:$V$13110,20,FALSE) -> 916 | D87: =VLOOKUP(A87,'APC Prices I'!$A$6:$V$13110,21,FALSE) -> 916 | F87: =VLOOKUP(A87,'APC Prices I'!$A$6:$V$13110,22,FALSE) -> 1272
A88: ='APC Prices I'!A87 -> BZ06B | C88: =VLOOKUP(A88,'APC Prices I'!$A$6:$V$13110,20,FALSE) -> 1056 | D88: =VLOOKUP(A88,'APC Prices I'!$A$6:$V$13110,21,FALSE) -> 1056 | F88: =VLOOKUP(A88,'APC Prices I'!$A$6:$V$13110,22,FALSE) -> 1522
A89: ='APC Prices I'!A88 -> BZ07A | C89: =VLOOKUP(A89,'APC Prices I'!$A$6:$V$13110,20,FALSE) -> 640 | D89: =VLOOKUP(A89,'APC Prices I'!$A$6:$V$13110,21,FALSE) -> 640 | F89: =VLOOKUP(A89,'APC Prices I'!$A$6:$V$13110,22,FALSE) -> 913
A90: ='APC Prices I'!A89 -> BZ07B | C90: =VLOOKUP(A90,'APC Prices I'!$A$6:$V$13110,20,FALSE) -> 809 | D90: =VLOOKUP(A90,'APC Prices I'!$A$6:$V$13110,21,FALSE) -> 809 | F90: =VLOOKUP(A90,'APC Prices I'!$A$6:$V$13110,22,FALSE) -> 1009
A91: ='APC Prices I'!A90 -> BZ08A | C91: =VLOOKUP(A91,'APC Prices I'!$A$6:$V$13110,20,FALSE) -> 2120 | D91: =VLOOKUP(A91,'APC Prices I'!$A$6:$V$13110,21,FALSE) -> 2120 | F91: =VLOOKUP(A91,'APC Prices I'!$A$6:$V$13110,22,FALSE) -> 3342
A92: ='APC Prices I'!A91 -> BZ08B | C92: =VLOOKUP(A92,'APC Prices I'!$A$6:$V$13110,20,FALSE) -> 2007 | D92: =VLOOKUP(A92,'APC Prices I'!$A$6:$V$13110,21,FALSE) -> 2007 | F92: =VLOOKUP(A92,'APC Prices I'!$A$6:$V$13110,22,FALSE) -> 3431
A93: ='APC Prices I'!A92 -> BZ09A | C93: =VLOOKUP(A93,'APC Prices I'!$A$6:$V$13110,20,FALSE) -> 1471 | D93: =VLOOKUP(A93,'APC Prices I'!$A$6:$V$13110,21,FALSE) -> 1471 | F93: =VLOOKUP(A93,'APC Prices I'!$A$6:$V$13110,22,FALSE) -> 3013
A94: ='APC Prices I'!A93 -> BZ09B | C94: =VLOOKUP(A94,'APC Prices I'!$A$6:$V$13110,20,FALSE) -> 1603 | D94: =VLOOKUP(A94,'APC Prices I'!$A$6:$V$13110,21,FALSE) -> 1603 | F94: =VLOOKUP(A94,'APC Prices I'!$A$6:$V$13110,22,FALSE) -> 2628
A95: ='APC Prices I'!A94 -> BZ10A | C95: =VLOOKUP(A95,'APC Prices I'!$A$6:$V$13110,20,FALSE) -> 638 | D95: =VLOOKUP(A95,'APC Prices I'!$A$6:$V$13110,21,FALSE) -> 638 | F95: =VLOOKUP(A95,'APC Prices I'!$A$6:$V$13110,22,FALSE) -> 1238
A96: ='APC Prices I'!A95 -> BZ10B | C96: =VLOOKUP(A96,'APC Prices I'!$A$6:$V$13110,20,FALSE) -> 830 | D96: =VLOOKUP(A96,'APC Prices I'!$A$6:$V$13110,21,FALSE) -> 830 | F96: =VLOOKUP(A96,'APC Prices I'!$A$6:$V$13110,22,FALSE) -> 1331
A97: ='APC Prices I'!A96 -> BZ11Z | C97: =VLOOKUP(A97,'APC Prices I'!$A$6:$V$13110,20,FALSE) -> 2054 | D97: =VLOOKUP(A97,'APC Prices I'!$A$6:$V$13110,21,FALSE) -> 2054 | F97: =VLOOKUP(A97,'APC Prices I'!$A$6:$V$13110,22,FALSE) -> 3660
A98: ='APC Prices I'!A97 -> BZ12Z | C98: =VLOOKUP(A98,'APC Prices I'!$A$6:$V$13110,20,FALSE) -> 1592 | D98: =VLOOKUP(A98,'APC Prices I'!$A$6:$V$13110,21,FALSE) -> 1592 | F98: =VLOOKUP(A98,'APC Prices I'!$A$6:$V$13110,22,FALSE) -> 2649
A99: ='APC Prices I'!A98 -> BZ13Z | C99: =VLOOKUP(A99,'APC Prices I'!$A$6:$V$13110,20,FALSE) -> 911 | D99: =VLOOKUP(A99,'APC Prices I'!$A$6:$V$13110,21,FALSE) -> 911 | F99: =VLOOKUP(A99,'APC Prices I'!$A$6:$V$13110,22,FALSE) -> 2199
A100: ='APC Prices I'!A99 -> BZ14A | C100: =VLOOKUP(A100,'APC Prices I'!$A$6:$V$13110,20,FALSE) -> 1284 | D100: =VLOOKUP(A100,'APC Prices I'!$A$6:$V$13110,21,FALSE) -> 1284 | F100: =VLOOKUP(A100,'APC Prices I'!$A$6:$V$13110,22,FALSE) -> 905
A101: ='APC Prices I'!A100 -> BZ14B | C101: =VLOOKUP(A101,'APC Prices I'!$A$6:$V$13110,20,FALSE) -> 1167 | D101: =VLOOKUP(A101,'APC Prices I'!$A$6:$V$13110,21,FALSE) -> 1167 | F101: =VLOOKUP(A101,'APC Prices I'!$A$6:$V$13110,22,FALSE) -> 2481
A102: ='APC Prices I'!A101 -> BZ15A | C102: =VLOOKUP(A102,'APC Prices I'!$A$6:$V$13110,20,FALSE) -> 1165 | D102: =VLOOKUP(A102,'APC Prices I'!$A$6:$V$13110,21,FALSE) -> 1165 | F102: =VLOOKUP(A102,'APC Prices I'!$A$6:$V$13110,22,FALSE) -> 1365
A103: ='APC Prices I'!A102 -> BZ15B | C103: =VLOOKUP(A103,'APC Prices I'!$A$6:$V$13110,20,FALSE) -> 1215 | D103: =VLOOKUP(A103,'APC Prices I'!$A$6:$V$13110,21,FALSE) -> 1215 | F103: =VLOOKUP(A103,'APC Prices I'!$A$6:$V$13110,22,FALSE) -> 1133
A104: ='APC Prices I'!A103 -> BZ16A | C104: =VLOOKUP(A104,'APC Prices I'!$A$6:$V$13110,20,FALSE) -> 1125 | D104: =VLOOKUP(A104,'APC Prices I'!$A$6:$V$13110,21,FALSE) -> 1125 | F104: =VLOOKUP(A104,'APC Prices I'!$A$6:$V$13110,22,FALSE) -> 966
A105: ='APC Prices I'!A104 -> BZ16B | C105: =VLOOKUP(A105,'APC Prices I'!$A$6:$V$13110,20,FALSE) -> 1106 | D105: =VLOOKUP(A105,'APC Prices I'!$A$6:$V$13110,21,FALSE) -> 1106 | F105: =VLOOKUP(A105,'APC Prices I'!$A$6:$V$13110,22,FALSE) -> 921
A106: ='APC Prices I'!A105 -> BZ17Z | C106: =VLOOKUP(A106,'APC Prices I'!$A$6:$V$13110,20,FALSE) -> 1435 | D106: =VLOOKUP(A106,'APC Prices I'!$A$6:$V$13110,21,FALSE) -> 1435 | F106: =VLOOKUP(A106,'APC Prices I'!$A$6:$V$13110,22,FALSE) -> 1469
A107: ='APC Prices I'!A106 -> BZ18Z | C107: =VLOOKUP(A107,'APC Prices I'!$A$6:$V$13110,20,FALSE) -> 1026 | D107: =VLOOKUP(A107,'APC Prices I'!$A$6:$V$13110,21,FALSE) -> 1026 | F107: =VLOOKUP(A107,'APC Prices I'!$A$6:$V$13110,22,FALSE) -> 1648
A108: ='APC Prices I'!A107 -> BZ19Z | C108: =VLOOKUP(A108,'APC Prices I'!$A$6:$V$13110,20,FALSE) -> 477 | D108: =VLOOKUP(A108,'APC Prices I'!$A$6:$V$13110,21,FALSE) -> 477 | F108: =VLOOKUP(A108,'APC Prices I'!$A$6:$V$13110,22,FALSE) -> 1032
A109: ='APC Prices I'!A108 -> BZ20Z | C109: =VLOOKUP(A109,'APC Prices I'!$A$6:$V$13110,20,FALSE) -> 1913 | D109: =VLOOKUP(A109,'APC Prices I'!$A$6:$V$13110,21,FALSE) -> 1913 | F109: =VLOOKUP(A109,'APC Prices I'!$A$6:$V$13110,22,FALSE) -> 2387
A110: ='APC Prices I'!A109 -> BZ21Z | C110: =VLOOKUP(A110,'APC Prices I'!$A$6:$V$13110,20,FALSE) -> 1496 | D110: =VLOOKUP(A110,'APC Prices I'!$A$6:$V$13110,21,FALSE) -> 1496 | F110: =VLOOKUP(A110,'APC Prices I'!$A$6:$V$13110,22,FALSE) -> 1630
A111: ='APC Prices I'!A110 -> BZ22Z | C111: =VLOOKUP(A111,'APC Prices I'!$A$6:$V$13110,20,FALSE) -> 1243 | D111: =VLOOKUP(A111,'APC Prices I'!$A$6:$V$13110,21,FALSE) -> 1243 | F111: =VLOOKUP(A111,'APC Prices I'!$A$6:$V$13110,22,FALSE) -> 2008
A112: ='APC Prices I'!A111 -> BZ23Z | C112: =VLOOKUP(A112,'APC Prices I'!$A$6:$V$13110,20,FALSE) -> 375 | D112: =VLOOKUP(A112,'APC Prices I'!$A$6:$V$13110,21,FALSE) -> 375 | F112: =VLOOKUP(A112,'APC Prices I'!$A$6:$V$13110,22,FALSE) -> 855
A113: ='APC Prices I'!A112 -> BZ24A | C113: =VLOOKUP(A113,'APC Prices I'!$A$6:$V$13110,20,FALSE) -> 2861 | D113: =VLOOKUP(A113,'APC Prices I'!$A$6:$V$13110,21,FALSE) -> 2861 | F113: =VLOOKUP(A113,'APC Prices I'!$A$6:$V$13110,22,FALSE) -> 2167
A114: ='APC Prices I'!A113 -> BZ24C | C114: =VLOOKUP(A114,'APC Prices I'!$A$6:$V$13110,20,FALSE) -> 331 | D114: =VLOOKUP(A114,'APC Prices I'!$A$6:$V$13110,21,FALSE) -> 331 | F114: =VLOOKUP(A114,'APC Prices I'!$A$6:$V$13110,22,FALSE) -> 424
A115: ='APC Prices I'!A114 -> CZ01S | C115: =VLOOKUP(A115,'APC Prices I'!$A$6:$V$13110,20,FALSE) -> 865 | D115: =VLOOKUP(A115,'APC Prices I'!$A$6:$V$13110,21,FALSE) -> 865 | F115: =VLOOKUP(A115,'APC Prices I'!$A$6:$V$13110,22,FALSE) -> 2768
A116: ='APC Prices I'!A115 -> CZ01T | C116: =VLOOKUP(A116,'APC Prices I'!$A$6:$V$13110,20,FALSE) -> 699 | D116: =VLOOKUP(A116,'APC Prices I'!$A$6:$V$13110,21,FALSE) -> 699 | F116: =VLOOKUP(A116,'APC Prices I'!$A$6:$V$13110,22,FALSE) -> 853
A117: ='APC Prices I'!A116 -> CZ01V | C117: =VLOOKUP(A117,'APC Prices I'!$A$6:$V$13110,20,FALSE) -> 700 | D117: =VLOOKUP(A117,'APC Prices I'!$A$6:$V$13110,21,FALSE) -> 700 | F117: =VLOOKUP(A117,'APC Prices I'!$A$6:$V$13110,22,FALSE) -> 1704
A118: ='APC Prices I'!A117 -> CZ01Y | C118: =VLOOKUP(A118,'APC Prices I'!$A$6:$V$13110,20,FALSE) -> 151 | D118: =VLOOKUP(A118,'APC Prices I'!$A$6:$V$13110,21,FALSE) -> 151 | F118: =VLOOKUP(A118,'APC Prices I'!$A$6:$V$13110,22,FALSE) -> 716
A119: ='APC Prices I'!A118 -> CZ02S | C119: =VLOOKUP(A119,'APC Prices I'!$A$6:$V$13110,20,FALSE) -> 1527 | D119: =VLOOKUP(A119,'APC Prices I'!$A$6:$V$13110,21,FALSE) -> 1527 | F119: =VLOOKUP(A119,'APC Prices I'!$A$6:$V$13110,22,FALSE) -> 3288
A120: ='APC Prices I'!A119 -> CZ02T | C120: =VLOOKUP(A120,'APC Prices I'!$A$6:$V$13110,20,FALSE) -> 1099 | D120: =VLOOKUP(A120,'APC Prices I'!$A$6:$V$13110,21,FALSE) -> 1099 | F120: =VLOOKUP(A120,'APC Prices I'!$A$6:$V$13110,22,FALSE) -> 1299
A121: ='APC Prices I'!A120 -> CZ02W | C121: =VLOOKUP(A121,'APC Prices I'!$A$6:$V$13110,20,FALSE) -> 1586 | D121: =VLOOKUP(A121,'APC Prices I'!$A$6:$V$13110,21,FALSE) -> 1586 | F121: =VLOOKUP(A121,'APC Prices I'!$A$6:$V$13110,22,FALSE) -> 5210
A122: ='APC Prices I'!A121 -> CZ02X | C122: =VLOOKUP(A122,'APC Prices I'!$A$6:$V$13110,20,FALSE) -> 1084 | D122: =VLOOKUP(A122,'APC Prices I'!$A$6:$V$13110,21,FALSE) -> 1084 | F122: =VLOOKUP(A122,'APC Prices I'!$A$6:$V$13110,22,FALSE) -> 1808
A123: ='APC Prices I'!A122 -> CZ02Y | C123: =VLOOKUP(A123,'APC Prices I'!$A$6:$V$13110,20,FALSE) -> 933 | D123: =VLOOKUP(A123,'APC Prices I'!$A$6:$V$13110,21,FALSE) -> 933 | F123: =VLOOKUP(A123,'APC Prices I'!$A$6:$V$13110,22,FALSE) -> 1154
A124: ='APC Prices I'!A123 -> CZ03U | C124: =VLOOKUP(A124,'APC Prices I'!$A$6:$V$13110,20,FALSE) -> 2857 | D124: =VLOOKUP(A124,'APC Prices I'!$A$6:$V$13110,21,FALSE) -> 2857 | F124: =VLOOKUP(A124,'APC Prices I'!$A$6:$V$13110,22,FALSE) -> 3209
A125: ='APC Prices I'!A124 -> CZ03V | C125: =VLOOKUP(A125,'APC Prices I'!$A$6:$V$13110,20,FALSE) -> 2728 | D125: =VLOOKUP(A125,'APC Prices I'!$A$6:$V$13110,21,FALSE) -> 2728 | F125: =VLOOKUP(A125,'APC Prices I'!$A$6:$V$13110,22,FALSE) -> 5270
A126: ='APC Prices I'!A125 -> CZ03Y | C126: =VLOOKUP(A126,'APC Prices I'!$A$6:$V$13110,20,FALSE) -> 2097 | D126: =VLOOKUP(A126,'APC Prices I'!$A$6:$V$13110,21,FALSE) -> 2097 | F126: =VLOOKUP(A126,'APC Prices I'!$A$6:$V$13110,22,FALSE) -> 2506
A127: ='APC Prices I'!A126 -> CZ04O | C127: =VLOOKUP(A127,'APC Prices I'!$A$6:$V$13110,20,FALSE) -> 19718 | D127: =VLOOKUP(A127,'APC Prices I'!$A$6:$V$13110,21,FALSE) -> 19718 | F127: =VLOOKUP(A127,'APC Prices I'!$A$6:$V$13110,22,FALSE) -> 22650
A128: ='APC Prices I'!A127 -> CZ04P | C128: =VLOOKUP(A128,'APC Prices I'!$A$6:$V$13110,20,FALSE) -> 11429 | D128: =VLOOKUP(A128,'APC Prices I'!$A$6:$V$13110,21,FALSE) -> 11429 | F128: =VLOOKUP(A128,'APC Prices I'!$A$6:$V$13110,22,FALSE) -> 17622
A129: ='APC Prices I'!A128 -> CZ04Q | C129: =VLOOKUP(A129,'APC Prices I'!$A$6:$V$13110,20,FALSE) -> 7482 | D129: =VLOOKUP(A129,'APC Prices I'!$A$6:$V$13110,21,FALSE) -> 7482 | F129: =VLOOKUP(A129,'APC Prices I'!$A$6:$V$13110,22,FALSE) -> 8447
A130: ='APC Prices I'!A129 -> CZ05S | C130: =VLOOKUP(A130,'APC Prices I'!$A$6:$V$13110,20,FALSE) -> 1430 | D130: =VLOOKUP(A130,'APC Prices I'!$A$6:$V$13110,21,FALSE) -> 1430 | F130: =VLOOKUP(A130,'APC Prices I'!$A$6:$V$13110,22,FALSE) -> 2212
A131: ='APC Prices I'!A130 -> CZ05T | C131: =VLOOKUP(A131,'APC Prices I'!$A$6:$V$13110,20,FALSE) -> 1205 | D131: =VLOOKUP(A131,'APC Prices I'!$A$6:$V$13110,21,FALSE) -> 1205 | F131: =VLOOKUP(A131,'APC Prices I'!$A$6:$V$13110,22,FALSE) -> 1118
A132: ='APC Prices I'!A131 -> CZ05V | C132: =VLOOKUP(A132,'APC Prices I'!$A$6:$V$13110,20,FALSE) -> 1294 | D132: =VLOOKUP(A132,'APC Prices I'!$A$6:$V$13110,21,FALSE) -> 1294 | F132: =VLOOKUP(A132,'APC Prices I'!$A$6:$V$13110,22,FALSE) -> 1012
A133: ='APC Prices I'!A132 -> CZ05Y | C133: =VLOOKUP(A133,'APC Prices I'!$A$6:$V$13110,20,FALSE) -> 1200 | D133: =VLOOKUP(A133,'APC Prices I'!$A$6:$V$13110,21,FALSE) -> 1200 | F133: =VLOOKUP(A133,'APC Prices I'!$A$6:$V$13110,22,FALSE) -> 857
A134: ='APC Prices I'!A133 -> CZ07O | C134: =VLOOKUP(A134,'APC Prices I'!$A$6:$V$13110,20,FALSE) -> 9603 | D134: =VLOOKUP(A134,'APC Prices I'!$A$6:$V$13110,21,FALSE) -> 9603 | F134: =VLOOKUP(A134,'APC Prices I'!$A$6:$V$13110,22,FALSE) -> 8563
A135: ='APC Prices I'!A134 -> CZ07P | C135: =VLOOKUP(A135,'APC Prices I'!$A$6:$V$13110,20,FALSE) -> 3629 | D135: =VLOOKUP(A135,'APC Prices I'!$A$6:$V$13110,21,FALSE) -> 3629 | F135: =VLOOKUP(A135,'APC Prices I'!$A$6:$V$13110,22,FALSE) -> 5179
A136: ='APC Prices I'!A135 -> CZ07Q | C136: =VLOOKUP(A136,'APC Prices I'!$A$6:$V$13110,20,FALSE) -> 3252 | D136: =VLOOKUP(A136,'APC Prices I'!$A$6:$V$13110,21,FALSE) -> 3252 | F136: =VLOOKUP(A136,'APC Prices I'!$A$6:$V$13110,22,FALSE) -> 3447
A137: ='APC Prices I'!A136 -> CZ08S | C137: =VLOOKUP(A137,'APC Prices I'!$A$6:$V$13110,20,FALSE) -> 1005 | D137: =VLOOKUP(A137,'APC Prices I'!$A$6:$V$13110,21,FALSE) -> 1005 | F137: =VLOOKUP(A137,'APC Prices I'!$A$6:$V$13110,22,FALSE) -> 1795
A138: ='APC Prices I'!A137 -> CZ08T | C138: =VLOOKUP(A138,'APC Prices I'!$A$6:$V$13110,20,FALSE) -> 779 | D138: =VLOOKUP(A138,'APC Prices I'!$A$6:$V$13110,21,FALSE) -> 779 | F138: =VLOOKUP(A138,'APC Prices I'!$A$6:$V$13110,22,FALSE) -> 918
A139: ='APC Prices I'!A138 -> CZ08V | C139: =VLOOKUP(A139,'APC Prices I'!$A$6:$V$13110,20,FALSE) -> 743 | D139: =VLOOKUP(A139,'APC Prices I'!$A$6:$V$13110,21,FALSE) -> 743 | F139: =VLOOKUP(A139,'APC Prices I'!$A$6:$V$13110,22,FALSE) -> 1882
A140: ='APC Prices I'!A139 -> CZ08Y | C140: =VLOOKUP(A140,'APC Prices I'!$A$6:$V$13110,20,FALSE) -> 134 | D140: =VLOOKUP(A140,'APC Prices I'!$A$6:$V$13110,21,FALSE) -> 134 | F140: =VLOOKUP(A140,'APC Prices I'!$A$6:$V$13110,22,FALSE) -> 777
A141: ='APC Prices I'!A140 -> CZ09U | C141: =VLOOKUP(A141,'APC Prices I'!$A$6:$V$13110,20,FALSE) -> 1615 | D141: =VLOOKUP(A141,'APC Prices I'!$A$6:$V$13110,21,FALSE) -> 1615 | F141: =VLOOKUP(A141,'APC Prices I'!$A$6:$V$13110,22,FALSE) -> 1112
A142: ='APC Prices I'!A141 -> CZ09V | C142: =VLOOKUP(A142,'APC Prices I'!$A$6:$V$13110,20,FALSE) -> 1132 | D142: =VLOOKUP(A142,'APC Prices I'!$A$6:$V$13110,21,FALSE) -> 1132 | F142: =VLOOKUP(A142,'APC Prices I'!$A$6:$V$13110,22,FALSE) -> 2007
A143: ='APC Prices I'!A142 -> CZ09Y | C143: =VLOOKUP(A143,'APC Prices I'!$A$6:$V$13110,20,FALSE) -> 1140 | D143: =VLOOKUP(A143,'APC Prices I'!$A$6:$V$13110,21,FALSE) -> 1140 | F143: =VLOOKUP(A143,'APC Prices I'!$A$6:$V$13110,22,FALSE) -> 1045
A144: ='APC Prices I'!A143 -> CZ10U | C144: =VLOOKUP(A144,'APC Prices I'!$A$6:$V$13110,20,FALSE) -> 2244 | D144: =VLOOKUP(A144,'APC Prices I'!$A$6:$V$13110,21,FALSE) -> 2244 | F144: =VLOOKUP(A144,'APC Prices I'!$A$6:$V$13110,22,FALSE) -> 4321
A145: ='APC Prices I'!A144 -> CZ10V | C145: =VLOOKUP(A145,'APC Prices I'!$A$6:$V$13110,20,FALSE) -> 2366 | D145: =VLOOKUP(A145,'APC Prices I'!$A$6:$V$13110,21,FALSE) -> 2366 | F145: =VLOOKUP(A145,'APC Prices I'!$A$6:$V$13110,22,FALSE) -> 6139
A146: ='APC Prices I'!A145 -> CZ10Y | C146: =VLOOKUP(A146,'APC Prices I'!$A$6:$V$13110,20,FALSE) -> 2238 | D146: =VLOOKUP(A146,'APC Prices I'!$A$6:$V$13110,21,FALSE) -> 2238 | F146: =VLOOKUP(A146,'APC Prices I'!$A$6:$V$13110,22,FALSE) -> 2716
A147: ='APC Prices I'!A146 -> CZ11Z | C147: =VLOOKUP(A147,'APC Prices I'!$A$6:$V$13110,20,FALSE) -> 3047 | D147: =VLOOKUP(A147,'APC Prices I'!$A$6:$V$13110,21,FALSE) -> 3047 | F147: =VLOOKUP(A147,'APC Prices I'!$A$6:$V$13110,22,FALSE) -> 3888
A148: ='APC Prices I'!A147 -> CZ12U | C148: =VLOOKUP(A148,'APC Prices I'!$A$6:$V$13110,20,FALSE) -> 724 | D148: =VLOOKUP(A148,'APC Prices I'!$A$6:$V$13110,21,FALSE) -> 724 | F148: =VLOOKUP(A148,'APC Prices I'!$A$6:$V$13110,22,FALSE) -> 815
A149: ='APC Prices I'!A148 -> CZ12V | C149: =VLOOKUP(A149,'APC Prices I'!$A$6:$V$13110,20,FALSE) -> 765 | D149: =VLOOKUP(A149,'APC Prices I'!$A$6:$V$13110,21,FALSE) -> 765 | F149: =VLOOKUP(A149,'APC Prices I'!$A$6:$V$13110,22,FALSE) -> 1060
A150: ='APC Prices I'!A149 -> CZ12Y | C150: =VLOOKUP(A150,'APC Prices I'!$A$6:$V$13110,20,FALSE) -> 651 | D150: =VLOOKUP(A150,'APC Prices I'!$A$6:$V$13110,21,FALSE) -> 651 | F150: =VLOOKUP(A150,'APC Prices I'!$A$6:$V$13110,22,FALSE) -> 800
A151: ='APC Prices I'!A150 -> CZ13U | C151: =VLOOKUP(A151,'APC Prices I'!$A$6:$V$13110,20,FALSE) -> 1276 | D151: =VLOOKUP(A151,'APC Prices I'!$A$6:$V$13110,21,FALSE) -> 1276 | F151: =VLOOKUP(A151,'APC Prices I'!$A$6:$V$13110,22,FALSE) -> 1550
A152: ='APC Prices I'!A151 -> CZ13V | C152: =VLOOKUP(A152,'APC Prices I'!$A$6:$V$13110,20,FALSE) -> 1316 | D152: =VLOOKUP(A152,'APC Prices I'!$A$6:$V$13110,21,FALSE) -> 1316 | F152: =VLOOKUP(A152,'APC Prices I'!$A$6:$V$13110,22,FALSE) -> 1206
A153: ='APC Prices I'!A152 -> CZ13Y | C153: =VLOOKUP(A153,'APC Prices I'!$A$6:$V$13110,20,FALSE) -> 1261 | D153: =VLOOKUP(A153,'APC Prices I'!$A$6:$V$13110,21,FALSE) -> 1261 | F153: =VLOOKUP(A153,'APC Prices I'!$A$6:$V$13110,22,FALSE) -> 1007
A154: ='APC Prices I'!A153 -> CZ14U | C154: =VLOOKUP(A154,'APC Prices I'!$A$6:$V$13110,20,FALSE) -> 1892 | D154: =VLOOKUP(A154,'APC Prices I'!$A$6:$V$13110,21,FALSE) -> 1892 | F154: =VLOOKUP(A154,'APC Prices I'!$A$6:$V$13110,22,FALSE) -> 4274
A155: ='APC Prices I'!A154 -> CZ14V | C155: =VLOOKUP(A155,'APC Prices I'!$A$6:$V$13110,20,FALSE) -> 1643 | D155: =VLOOKUP(A155,'APC Prices I'!$A$6:$V$13110,21,FALSE) -> 1643 | F155: =VLOOKUP(A155,'APC Prices I'!$A$6:$V$13110,22,FALSE) -> 2195
A156: ='APC Prices I'!A155 -> CZ14Y | C156: =VLOOKUP(A156,'APC Prices I'!$A$6:$V$13110,20,FALSE) -> 1572 | D156: =VLOOKUP(A156,'APC Prices I'!$A$6:$V$13110,21,FALSE) -> 1572 | F156: =VLOOKUP(A156,'APC Prices I'!$A$6:$V$13110,22,FALSE) -> 1786
A157: ='APC Prices I'!A156 -> CZ15N | C157: =VLOOKUP(A157,'APC Prices I'!$A$6:$V$13110,20,FALSE) -> 1907 | D157: =VLOOKUP(A157,'APC Prices I'!$A$6:$V$13110,21,FALSE) -> 1907 | F157: =VLOOKUP(A157,'APC Prices I'!$A$6:$V$13110,22,FALSE) -> 4087
A158: ='APC Prices I'!A157 -> CZ15Q | C158: =VLOOKUP(A158,'APC Prices I'!$A$6:$V$13110,20,FALSE) -> 1703 | D158: =VLOOKUP(A158,'APC Prices I'!$A$6:$V$13110,21,FALSE) -> 1703 | F158: =VLOOKUP(A158,'APC Prices I'!$A$6:$V$13110,22,FALSE) -> 3357
A159: ='APC Prices I'!A158 -> CZ16N | C159: =VLOOKUP(A159,'APC Prices I'!$A$6:$V$13110,20,FALSE) -> 1435 | D159: =VLOOKUP(A159,'APC Prices I'!$A$6:$V$13110,21,FALSE) -> 1435 | F159: =VLOOKUP(A159,'APC Prices I'!$A$6:$V$13110,22,FALSE) -> 1785
A160: ='APC Prices I'!A159 -> CZ16Q | C160: =VLOOKUP(A160,'APC Prices I'!$A$6:$V$13110,20,FALSE) -> 1243 | D160: =VLOOKUP(A160,'APC Prices I'!$A$6:$V$13110,21,FALSE) -> 1243 | F160: =VLOOKUP(A160,'APC Prices I'!$A$6:$V$13110,22,FALSE) -> 1668
A161: ='APC Prices I'!A160 -> CZ17U | C161: =VLOOKUP(A161,'APC Prices I'!$A$6:$V$13110,20,FALSE) -> 1586 | D161: =VLOOKUP(A161,'APC Prices I'!$A$6:$V$13110,21,FALSE) -> 1586 | F161: =VLOOKUP(A161,'APC Prices I'!$A$6:$V$13110,22,FALSE) -> 2453
A162: ='APC Prices I'!A161 -> CZ17V | C162: =VLOOKUP(A162,'APC Prices I'!$A$6:$V$13110,20,FALSE) -> 2376 | D162: =VLOOKUP(A162,'APC Prices I'!$A$6:$V$13110,21,FALSE) -> 2376 | F162: =VLOOKUP(A162,'APC Prices I'!$A$6:$V$13110,22,FALSE) -> 2916
A163: ='APC Prices I'!A162 -> CZ17Y | C163: =VLOOKUP(A163,'APC Prices I'!$A$6:$V$13110,20,FALSE) -> 1519 | D163: =VLOOKUP(A163,'APC Prices I'!$A$6:$V$13110,21,FALSE) -> 1519 | F163: =VLOOKUP(A163,'APC Prices I'!$A$6:$V$13110,22,FALSE) -> 2279
A164: ='APC Prices I'!A163 -> CZ18R | C164: =VLOOKUP(A164,'APC Prices I'!$A$6:$V$13110,20,FALSE) -> 3968 | D164: =VLOOKUP(A164,'APC Prices I'!$A$6:$V$13110,21,FALSE) -> 3968 | F164: =VLOOKUP(A164,'APC Prices I'!$A$6:$V$13110,22,FALSE) -> 3911
A165: ='APC Prices I'!A164 -> CZ18U | C165: =VLOOKUP(A165,'APC Prices I'!$A$6:$V$13110,20,FALSE) -> 3731 | D165: =VLOOKUP(A165,'APC Prices I'!$A$6:$V$13110,21,FALSE) -> 3731 | F165: =VLOOKUP(A165,'APC Prices I'!$A$6:$V$13110,22,FALSE) -> 3350
A166: ='APC Prices I'!A165 -> CZ19Z | C166: =VLOOKUP(A166,'APC Prices I'!$A$6:$V$13110,20,FALSE) -> 6932 | D166: =VLOOKUP(A166,'APC Prices I'!$A$6:$V$13110,21,FALSE) -> 6932 | F166: =VLOOKUP(A166,'APC Prices I'!$A$6:$V$13110,22,FALSE) -> 6718
A167: ='APC Prices I'!A166 -> CZ20Z | C167: =VLOOKUP(A167,'APC Prices I'!$A$6:$V$13110,20,FALSE) -> 19038 | D167: =VLOOKUP(A167,'APC Prices I'!$A$6:$V$13110,21,FALSE) -> 19038 | F167: =VLOOKUP(A167,'APC Prices I'!$A$6:$V$13110,22,FALSE) -> 19038
A168: ='APC Prices I'!A167 -> CZ21V | C168: =VLOOKUP(A168,'APC Prices I'!$A$6:$V$13110,20,FALSE) -> 1057 | D168: =VLOOKUP(A168,'APC Prices I'!$A$6:$V$13110,21,FALSE) -> 1057 | F168: =VLOOKUP(A168,'APC Prices I'!$A$6:$V$13110,22,FALSE) -> 728
A169: ='APC Prices I'!A168 -> CZ21Y | C169: =VLOOKUP(A169,'APC Prices I'!$A$6:$V$13110,20,FALSE) -> 684 | D169: =VLOOKUP(A169,'APC Prices I'!$A$6:$V$13110,21,FALSE) -> 684 | F169: =VLOOKUP(A169,'APC Prices I'!$A$6:$V$13110,22,FALSE) -> 472
A170: ='APC Prices I'!A169 -> CZ22W | C170: =VLOOKUP(A170,'APC Prices I'!$A$6:$V$13110,20,FALSE) -> 2051 | D170: =VLOOKUP(A170,'APC Prices I'!$A$6:$V$13110,21,FALSE) -> 2051 | F170: =VLOOKUP(A170,'APC Prices I'!$A$6:$V$13110,22,FALSE) -> 2299
A171: ='APC Prices I'!A170 -> CZ22X | C171: =VLOOKUP(A171,'APC Prices I'!$A$6:$V$13110,20,FALSE) -> 1332 | D171: =VLOOKUP(A171,'APC Prices I'!$A$6:$V$13110,21,FALSE) -> 1332 | F171: =VLOOKUP(A171,'APC Prices I'!$A$6:$V$13110,22,FALSE) -> 938
A172: ='APC Prices I'!A171 -> CZ22Y | C172: =VLOOKUP(A172,'APC Prices I'!$A$6:$V$13110,20,FALSE) -> 781 | D172: =VLOOKUP(A172,'APC Prices I'!$A$6:$V$13110,21,FALSE) -> 781 | F172: =VLOOKUP(A172,'APC Prices I'!$A$6:$V$13110,22,FALSE) -> 662
A173: ='APC Prices I'!A172 -> CZ23W | C173: =VLOOKUP(A173,'APC Prices I'!$A$6:$V$13110,20,FALSE) -> 3019 | D173: =VLOOKUP(A173,'APC Prices I'!$A$6:$V$13110,21,FALSE) -> 3019 | F173: =VLOOKUP(A173,'APC Prices I'!$A$6:$V$13110,22,FALSE) -> 2756
A174: ='APC Prices I'!A173 -> CZ23X | C174: =VLOOKUP(A174,'APC Prices I'!$A$6:$V$13110,20,FALSE) -> 1343 | D174: =VLOOKUP(A174,'APC Prices I'!$A$6:$V$13110,21,FALSE) -> 1343 | F174: =VLOOKUP(A174,'APC Prices I'!$A$6:$V$13110,22,FALSE) -> 1340
A175: ='APC Prices I'!A174 -> CZ23Y | C175: =VLOOKUP(A175,'APC Prices I'!$A$6:$V$13110,20,FALSE) -> 1015 | D175: =VLOOKUP(A175,'APC Prices I'!$A$6:$V$13110,21,FALSE) -> 1015 | F175: =VLOOKUP(A175,'APC Prices I'!$A$6:$V$13110,22,FALSE) -> 621
A176: ='APC Prices I'!A175 -> CZ24O | C176: =VLOOKUP(A176,'APC Prices I'!$A$6:$V$13110,20,FALSE) -> 5442 | D176: =VLOOKUP(A176,'APC Prices I'!$A$6:$V$13110,21,FALSE) -> 5442 | F176: =VLOOKUP(A176,'APC Prices I'!$A$6:$V$13110,22,FALSE) -> 5162
A177: ='APC Prices I'!A176 -> CZ24P | C177: =VLOOKUP(A177,'APC Prices I'!$A$6:$V$13110,20,FALSE) -> 1739 | D177: =VLOOKUP(A177,'APC Prices I'!$A$6:$V$13110,21,FALSE) -> 1739 | F177: =VLOOKUP(A177,'APC Prices I'!$A$6:$V$13110,22,FALSE) -> 3024
A178: ='APC Prices I'!A177 -> CZ24Q | C178: =VLOOKUP(A178,'APC Prices I'!$A$6:$V$13110,20,FALSE) -> 1584 | D178: =VLOOKUP(A178,'APC Prices I'!$A$6:$V$13110,21,FALSE) -> 1584 | F178: =VLOOKUP(A178,'APC Prices I'!$A$6:$V$13110,22,FALSE) -> 2326
A179: ='APC Prices I'!A178 -> CZ27Z | C179: =VLOOKUP(A179,'APC Prices I'!$A$6:$V$13110,20,FALSE) -> 2601 | D179: =VLOOKUP(A179,'APC Prices I'!$A$6:$V$13110,21,FALSE) -> 2601 | F179: =VLOOKUP(A179,'APC Prices I'!$A$6:$V$13110,22,FALSE) -> 2601
A180: ='APC Prices I'!A179 -> CZ30U | C180: =VLOOKUP(A180,'APC Prices I'!$A$6:$V$13110,20,FALSE) -> 482 | D180: =VLOOKUP(A180,'APC Prices I'!$A$6:$V$13110,21,FALSE) -> 482 | F180: =VLOOKUP(A180,'APC Prices I'!$A$6:$V$13110,22,FALSE) -> 893
A181: ='APC Prices I'!A180 -> CZ30Y | C181: =VLOOKUP(A181,'APC Prices I'!$A$6:$V$13110,20,FALSE) -> 220 | D181: =VLOOKUP(A181,'APC Prices I'!$A$6:$V$13110,21,FALSE) -> 220 | F181: =VLOOKUP(A181,'APC Prices I'!$A$6:$V$13110,22,FALSE) -> 853
A182: ='APC Prices I'!A181 -> CZ31U | C182: =VLOOKUP(A182,'APC Prices I'!$A$6:$V$13110,20,FALSE) -> 563 | D182: =VLOOKUP(A182,'APC Prices I'!$A$6:$V$13110,21,FALSE) -> 563 | F182: =VLOOKUP(A182,'APC Prices I'!$A$6:$V$13110,22,FALSE) -> 786
A183: ='APC Prices I'!A182 -> CZ31Y | C183: =VLOOKUP(A183,'APC Prices I'!$A$6:$V$13110,20,FALSE) -> 257 | D183: =VLOOKUP(A183,'APC Prices I'!$A$6:$V$13110,21,FALSE) -> 257 | F183: =VLOOKUP(A183,'APC Prices I'!$A$6:$V$13110,22,FALSE) -> 651
A184: ='APC Prices I'!A183 -> CZ32U | C184: =VLOOKUP(A184,'APC Prices I'!$A$6:$V$13110,20,FALSE) -> 1003 | D184: =VLOOKUP(A184,'APC Prices I'!$A$6:$V$13110,21,FALSE) -> 1003 | F184: =VLOOKUP(A184,'APC Prices I'!$A$6:$V$13110,22,FALSE) -> 652
A185: ='APC Prices I'!A184 -> CZ32Y | C185: =VLOOKUP(A185,'APC Prices I'!$A$6:$V$13110,20,FALSE) -> 867 | D185: =VLOOKUP(A185,'APC Prices I'!$A$6:$V$13110,21,FALSE) -> 867 | F185: =VLOOKUP(A185,'APC Prices I'!$A$6:$V$13110,22,FALSE) -> 509
A186: ='APC Prices I'!A185 -> CZ33U | C186: =VLOOKUP(A186,'APC Prices I'!$A$6:$V$13110,20,FALSE) -> 560 | D186: =VLOOKUP(A186,'APC Prices I'!$A$6:$V$13110,21,FALSE) -> 560 | F186: =VLOOKUP(A186,'APC Prices I'!$A$6:$V$13110,22,FALSE) -> 753
A187: ='APC Prices I'!A186 -> CZ33Y | C187: =VLOOKUP(A187,'APC Prices I'!$A$6:$V$13110,20,FALSE) -> 245 | D187: =VLOOKUP(A187,'APC Prices I'!$A$6:$V$13110,21,FALSE) -> 245 | F187: =VLOOKUP(A187,'APC Prices I'!$A$6:$V$13110,22,FALSE) -> 1090
A188: ='APC Prices I'!A187 -> CZ34U | C188: =VLOOKUP(A188,'APC Prices I'!$A$6:$V$13110,20,FALSE) -> 607 | D188: =VLOOKUP(A188,'APC Prices I'!$A$6:$V$13110,21,FALSE) -> 607 | F188: =VLOOKUP(A188,'APC Prices I'!$A$6:$V$13110,22,FALSE) -> 1023
A189: ='APC Prices I'!A188 -> CZ34Y | C189: =VLOOKUP(A189,'APC Prices I'!$A$6:$V$13110,20,FALSE) -> 133 | D189: =VLOOKUP(A189,'APC Prices I'!$A$6:$V$13110,21,FALSE) -> 133 | F189: =VLOOKUP(A189,'APC Prices I'!$A$6:$V$13110,22,FALSE) -> 1148
A190: ='APC Prices I'!A189 -> CZ35U | C190: =VLOOKUP(A190,'APC Prices I'!$A$6:$V$13110,20,FALSE) -> 117 | D190: =VLOOKUP(A190,'APC Prices I'!$A$6:$V$13110,21,FALSE) -> 117 | F190: =VLOOKUP(A190,'APC Prices I'!$A$6:$V$13110,22,FALSE) -> 241
A191: ='APC Prices I'!A190 -> CZ35Y | C191: =VLOOKUP(A191,'APC Prices I'!$A$6:$V$13110,20,FALSE) -> 119 | D191: =VLOOKUP(A191,'APC Prices I'!$A$6:$V$13110,21,FALSE) -> 119 | F191: =VLOOKUP(A191,'APC Prices I'!$A$6:$V$13110,22,FALSE) -> 1615
A192: ='APC Prices I'!A191 -> CZ36U | C192: =VLOOKUP(A192,'APC Prices I'!$A$6:$V$13110,20,FALSE) -> 717 | D192: =VLOOKUP(A192,'APC Prices I'!$A$6:$V$13110,21,FALSE) -> 717 | F192: =VLOOKUP(A192,'APC Prices I'!$A$6:$V$13110,22,FALSE) -> 913
A193: ='APC Prices I'!A192 -> CZ36Y | C193: =VLOOKUP(A193,'APC Prices I'!$A$6:$V$13110,20,FALSE) -> 591 | D193: =VLOOKUP(A193,'APC Prices I'!$A$6:$V$13110,21,FALSE) -> 591 | F193: =VLOOKUP(A193,'APC Prices I'!$A$6:$V$13110,22,FALSE) -> 756
A194: ='APC Prices I'!A193 -> CZ37U | C194: =VLOOKUP(A194,'APC Prices I'!$A$6:$V$13110,20,FALSE) -> 827 | D194: =VLOOKUP(A194,'APC Prices I'!$A$6:$V$13110,21,FALSE) -> 827 | F194: =VLOOKUP(A194,'APC Prices I'!$A$6:$V$13110,22,FALSE) -> 1056
A195: ='APC Prices I'!A194 -> CZ37Y | C195: =VLOOKUP(A195,'APC Prices I'!$A$6:$V$13110,20,FALSE) -> 525 | D195: =VLOOKUP(A195,'APC Prices I'!$A$6:$V$13110,21,FALSE) -> 525 | F195: =VLOOKUP(A195,'APC Prices I'!$A$6:$V$13110,22,FALSE) -> 1140
A196: ='APC Prices I'!A195 -> CZ38U | C196: =VLOOKUP(A196,'APC Prices I'!$A$6:$V$13110,20,FALSE) -> 124 | D196: =VLOOKUP(A196,'APC Prices I'!$A$6:$V$13110,21,FALSE) -> 124 | F196: =VLOOKUP(A196,'APC Prices I'!$A$6:$V$13110,22,FALSE) -> 1350
A197: ='APC Prices I'!A196 -> CZ38Y | C197: =VLOOKUP(A197,'APC Prices I'!$A$6:$V$13110,20,FALSE) -> 142 | D197: =VLOOKUP(A197,'APC Prices I'!$A$6:$V$13110,21,FALSE) -> 142 | F197: =VLOOKUP(A197,'APC Prices I'!$A$6:$V$13110,22,FALSE) -> 2337
A198: ='APC Prices I'!A197 -> CZ39U | C198: =VLOOKUP(A198,'APC Prices I'!$A$6:$V$13110,20,FALSE) -> 955 | D198: =VLOOKUP(A198,'APC Prices I'!$A$6:$V$13110,21,FALSE) -> 955 | F198: =VLOOKUP(A198,'APC Prices I'!$A$6:$V$13110,22,FALSE) -> 1052
A199: ='APC Prices I'!A198 -> CZ39Y | C199: =VLOOKUP(A199,'APC Prices I'!$A$6:$V$13110,20,FALSE) -> 852 | D199: =VLOOKUP(A199,'APC Prices I'!$A$6:$V$13110,21,FALSE) -> 852 | F199: =VLOOKUP(A199,'APC Prices I'!$A$6:$V$13110,22,FALSE) -> 982
A200: ='APC Prices I'!A199 -> CZ40U | C200: =VLOOKUP(A200,'APC Prices I'!$A$6:$V$13110,20,FALSE) -> 924 | D200: =VLOOKUP(A200,'APC Prices I'!$A$6:$V$13110,21,FALSE) -> 924 | F200: =VLOOKUP(A200,'APC Prices I'!$A$6:$V$13110,22,FALSE) -> 1266
A201: ='APC Prices I'!A200 -> CZ40Y | C201: =VLOOKUP(A201,'APC Prices I'!$A$6:$V$13110,20,FALSE) -> 627 | D201: =VLOOKUP(A201,'APC Prices I'!$A$6:$V$13110,21,FALSE) -> 627 | F201: =VLOOKUP(A201,'APC Prices I'!$A$6:$V$13110,22,FALSE) -> 1342
A202: ='APC Prices I'!A201 -> CZ41U | C202: =VLOOKUP(A202,'APC Prices I'!$A$6:$V$13110,20,FALSE) -> 931 | D202: =VLOOKUP(A202,'APC Prices I'!$A$6:$V$13110,21,FALSE) -> 931 | F202: =VLOOKUP(A202,'APC Prices I'!$A$6:$V$13110,22,FALSE) -> 1039
A203: ='APC Prices I'!A202 -> CZ41Y | C203: =VLOOKUP(A203,'APC Prices I'!$A$6:$V$13110,20,FALSE) -> 702 | D203: =VLOOKUP(A203,'APC Prices I'!$A$6:$V$13110,21,FALSE) -> 702 | F203: =VLOOKUP(A203,'APC Prices I'!$A$6:$V$13110,22,FALSE) -> 1211
... 1130 more rows

Sheet APC Prices I
A2: 2015-16 SQL Data Tariff (after structured outpatient adjustments)
J3: Source: | K3: [APC 15_16 post processing v0.53 (Draft 21).xlsx] | T3: 3 | U3: 4 | V3: 6
B4: Prices | F4: Activity | J4: Total Quantum | Q4: OPROC (ALL HRGs) | S4: Prices
T5: DC | U5: EL | V5: NE
A6: AA02A | T6: =VLOOKUP($A6,'BPT INPUT FROM APC'!$A$5:$F$12320,T$3,FALSE) -> 7762 | U6: =VLOOKUP($A6,'BPT INPUT FROM APC'!$A$5:$F$12320,U$3,FALSE) -> 7762 | V6: =VLOOKUP($A6,'BPT INPUT FROM APC'!$A$5:$F$12320,V$3,FALSE) -> 7172
A7: AA02B | T7: =VLOOKUP($A7,'BPT INPUT FROM APC'!$A$5:$F$12320,T$3,FALSE) -> 2843 | U7: =VLOOKUP($A7,'BPT INPUT FROM APC'!$A$5:$F$12320,U$3,FALSE) -> 2843 | V7: =VLOOKUP($A7,'BPT INPUT FROM APC'!$A$5:$F$12320,V$3,FALSE) -> 5441
A8: AA03A | T8: =VLOOKUP($A8,'BPT INPUT FROM APC'!$A$5:$F$12320,T$3,FALSE) -> 8125 | U8: =VLOOKUP($A8,'BPT INPUT FROM APC'!$A$5:$F$12320,U$3,FALSE) -> 8125 | V8: =VLOOKUP($A8,'BPT INPUT FROM APC'!$A$5:$F$12320,V$3,FALSE) -> 6250
A9: AA03B | T9: =VLOOKUP($A9,'BPT INPUT FROM APC'!$A$5:$F$12320,T$3,FALSE) -> 5124 | U9: =VLOOKUP($A9,'BPT INPUT FROM APC'!$A$5:$F$12320,U$3,FALSE) -> 5124 | V9: =VLOOKUP($A9,'BPT INPUT FROM APC'!$A$5:$F$12320,V$3,FALSE) -> 4876
A10: AA04A | T10: =VLOOKUP($A10,'BPT INPUT FROM APC'!$A$5:$F$12320,T$3,FALSE) -> 10331 | U10: =VLOOKUP($A10,'BPT INPUT FROM APC'!$A$5:$F$12320,U$3,FALSE) -> 10331 | V10: =VLOOKUP($A10,'BPT INPUT FROM APC'!$A$5:$F$12320,V$3,FALSE) -> 14110
A11: AA04B | T11: =VLOOKUP($A11,'BPT INPUT FROM APC'!$A$5:$F$12320,T$3,FALSE) -> 4469 | U11: =VLOOKUP($A11,'BPT INPUT FROM APC'!$A$5:$F$12320,U$3,FALSE) -> 4469 | V11: =VLOOKUP($A11,'BPT INPUT FROM APC'!$A$5:$F$12320,V$3,FALSE) -> 10532
A12: AA05A | T12: =VLOOKUP($A12,'BPT INPUT FROM APC'!$A$5:$F$12320,T$3,FALSE) -> 6425 | U12: =VLOOKUP($A12,'BPT INPUT FROM APC'!$A$5:$F$12320,U$3,FALSE) -> 6425 | V12: =VLOOKUP($A12,'BPT INPUT FROM APC'!$A$5:$F$12320,V$3,FALSE) -> 12684
A13: AA05B | T13: =VLOOKUP($A13,'BPT INPUT FROM APC'!$A$5:$F$12320,T$3,FALSE) -> 4196 | U13: =VLOOKUP($A13,'BPT INPUT FROM APC'!$A$5:$F$12320,U$3,FALSE) -> 4196 | V13: =VLOOKUP($A13,'BPT INPUT FROM APC'!$A$5:$F$12320,V$3,FALSE) -> 9090
A14: AA06A | T14: =VLOOKUP($A14,'BPT INPUT FROM APC'!$A$5:$F$12320,T$3,FALSE) -> 7754 | U14: =VLOOKUP($A14,'BPT INPUT FROM APC'!$A$5:$F$12320,U$3,FALSE) -> 7754 | V14: =VLOOKUP($A14,'BPT INPUT FROM APC'!$A$5:$F$12320,V$3,FALSE) -> 11236
A15: AA06B | T15: =VLOOKUP($A15,'BPT INPUT FROM APC'!$A$5:$F$12320,T$3,FALSE) -> 4917 | U15: =VLOOKUP($A15,'BPT INPUT FROM APC'!$A$5:$F$12320,U$3,FALSE) -> 4917 | V15: =VLOOKUP($A15,'BPT INPUT FROM APC'!$A$5:$F$12320,V$3,FALSE) -> 8828
A16: AA07A | T16: =VLOOKUP($A16,'BPT INPUT FROM APC'!$A$5:$F$12320,T$3,FALSE) -> 5039 | U16: =VLOOKUP($A16,'BPT INPUT FROM APC'!$A$5:$F$12320,U$3,FALSE) -> 5039 | V16: =VLOOKUP($A16,'BPT INPUT FROM APC'!$A$5:$F$12320,V$3,FALSE) -> 8913
A17: AA07B | T17: =VLOOKUP($A17,'BPT INPUT FROM APC'!$A$5:$F$12320,T$3,FALSE) -> 3781 | U17: =VLOOKUP($A17,'BPT INPUT FROM APC'!$A$5:$F$12320,U$3,FALSE) -> 3781 | V17: =VLOOKUP($A17,'BPT INPUT FROM APC'!$A$5:$F$12320,V$3,FALSE) -> 6692
A18: AA08A | T18: =VLOOKUP($A18,'BPT INPUT FROM APC'!$A$5:$F$12320,T$3,FALSE) -> 6823 | U18: =VLOOKUP($A18,'BPT INPUT FROM APC'!$A$5:$F$12320,U$3,FALSE) -> 6823 | V18: =VLOOKUP($A18,'BPT INPUT FROM APC'!$A$5:$F$12320,V$3,FALSE) -> 7066
A19: AA08B | T19: =VLOOKUP($A19,'BPT INPUT FROM APC'!$A$5:$F$12320,T$3,FALSE) -> 7619 | U19: =VLOOKUP($A19,'BPT INPUT FROM APC'!$A$5:$F$12320,U$3,FALSE) -> 7619 | V19: =VLOOKUP($A19,'BPT INPUT FROM APC'!$A$5:$F$12320,V$3,FALSE) -> 5427
A20: AA09A | T20: =VLOOKUP($A20,'BPT INPUT FROM APC'!$A$5:$F$12320,T$3,FALSE) -> 3172 | U20: =VLOOKUP($A20,'BPT INPUT FROM APC'!$A$5:$F$12320,U$3,FALSE) -> 3172 | V20: =VLOOKUP($A20,'BPT INPUT FROM APC'!$A$5:$F$12320,V$3,FALSE) -> 10099
A21: AA09B | T21: =VLOOKUP($A21,'BPT INPUT FROM APC'!$A$5:$F$12320,T$3,FALSE) -> 1077 | U21: =VLOOKUP($A21,'BPT INPUT FROM APC'!$A$5:$F$12320,U$3,FALSE) -> 1077 | V21: =VLOOKUP($A21,'BPT INPUT FROM APC'!$A$5:$F$12320,V$3,FALSE) -> 7298
A22: AA10A | T22: =VLOOKUP($A22,'BPT INPUT FROM APC'!$A$5:$F$12320,T$3,FALSE) -> 7211 | U22: =VLOOKUP($A22,'BPT INPUT FROM APC'!$A$5:$F$12320,U$3,FALSE) -> 7211 | V22: =VLOOKUP($A22,'BPT INPUT FROM APC'!$A$5:$F$12320,V$3,FALSE) -> 14145
A23: AA10B | T23: =VLOOKUP($A23,'BPT INPUT FROM APC'!$A$5:$F$12320,T$3,FALSE) -> 4457 | U23: =VLOOKUP($A23,'BPT INPUT FROM APC'!$A$5:$F$12320,U$3,FALSE) -> 4457 | V23: =VLOOKUP($A23,'BPT INPUT FROM APC'!$A$5:$F$12320,V$3,FALSE) -> 6534
A24: AA11A | T24: =VLOOKUP($A24,'BPT INPUT FROM APC'!$A$5:$F$12320,T$3,FALSE) -> 8563 | U24: =VLOOKUP($A24,'BPT INPUT FROM APC'!$A$5:$F$12320,U$3,FALSE) -> 8563 | V24: =VLOOKUP($A24,'BPT INPUT FROM APC'!$A$5:$F$12320,V$3,FALSE) -> 12838
A25: AA11B | T25: =VLOOKUP($A25,'BPT INPUT FROM APC'!$A$5:$F$12320,T$3,FALSE) -> 2724 | U25: =VLOOKUP($A25,'BPT INPUT FROM APC'!$A$5:$F$12320,U$3,FALSE) -> 2724 | V25: =VLOOKUP($A25,'BPT INPUT FROM APC'!$A$5:$F$12320,V$3,FALSE) -> 8835
A26: AA12A | T26: =VLOOKUP($A26,'BPT INPUT FROM APC'!$A$5:$F$12320,T$3,FALSE) -> 6505 | U26: =VLOOKUP($A26,'BPT INPUT FROM APC'!$A$5:$F$12320,U$3,FALSE) -> 6505 | V26: =VLOOKUP($A26,'BPT INPUT FROM APC'!$A$5:$F$12320,V$3,FALSE) -> 8622
A27: AA12B | T27: =VLOOKUP($A27,'BPT INPUT FROM APC'!$A$5:$F$12320,T$3,FALSE) -> 6058 | U27: =VLOOKUP($A27,'BPT INPUT FROM APC'!$A$5:$F$12320,U$3,FALSE) -> 6058 | V27: =VLOOKUP($A27,'BPT INPUT FROM APC'!$A$5:$F$12320,V$3,FALSE) -> 7737
A28: AA13A | T28: =VLOOKUP($A28,'BPT INPUT FROM APC'!$A$5:$F$12320,T$3,FALSE) -> 5578 | U28: =VLOOKUP($A28,'BPT INPUT FROM APC'!$A$5:$F$12320,U$3,FALSE) -> 5578 | V28: =VLOOKUP($A28,'BPT INPUT FROM APC'!$A$5:$F$12320,V$3,FALSE) -> 7497
A29: AA13B | T29: =VLOOKUP($A29,'BPT INPUT FROM APC'!$A$5:$F$12320,T$3,FALSE) -> 5505 | U29: =VLOOKUP($A29,'BPT INPUT FROM APC'!$A$5:$F$12320,U$3,FALSE) -> 5505 | V29: =VLOOKUP($A29,'BPT INPUT FROM APC'!$A$5:$F$12320,V$3,FALSE) -> 5638
A30: AA14A | T30: =VLOOKUP($A30,'BPT INPUT FROM APC'!$A$5:$F$12320,T$3,FALSE) -> 3032 | U30: =VLOOKUP($A30,'BPT INPUT FROM APC'!$A$5:$F$12320,U$3,FALSE) -> 3032 | V30: =VLOOKUP($A30,'BPT INPUT FROM APC'!$A$5:$F$12320,V$3,FALSE) -> 3758
A31: AA14B | T31: =VLOOKUP($A31,'BPT INPUT FROM APC'!$A$5:$F$12320,T$3,FALSE) -> 3015 | U31: =VLOOKUP($A31,'BPT INPUT FROM APC'!$A$5:$F$12320,U$3,FALSE) -> 3015 | V31: =VLOOKUP($A31,'BPT INPUT FROM APC'!$A$5:$F$12320,V$3,FALSE) -> 5171
A32: AA15A | T32: =VLOOKUP($A32,'BPT INPUT FROM APC'!$A$5:$F$12320,T$3,FALSE) -> 5752 | U32: =VLOOKUP($A32,'BPT INPUT FROM APC'!$A$5:$F$12320,U$3,FALSE) -> 5752 | V32: =VLOOKUP($A32,'BPT INPUT FROM APC'!$A$5:$F$12320,V$3,FALSE) -> 9629
A33: AA15B | T33: =VLOOKUP($A33,'BPT INPUT FROM APC'!$A$5:$F$12320,T$3,FALSE) -> 4675 | U33: =VLOOKUP($A33,'BPT INPUT FROM APC'!$A$5:$F$12320,U$3,FALSE) -> 4675 | V33: =VLOOKUP($A33,'BPT INPUT FROM APC'!$A$5:$F$12320,V$3,FALSE) -> 7559
A34: AA16A | T34: =VLOOKUP($A34,'BPT INPUT FROM APC'!$A$5:$F$12320,T$3,FALSE) -> 6394 | U34: =VLOOKUP($A34,'BPT INPUT FROM APC'!$A$5:$F$12320,U$3,FALSE) -> 6394 | V34: =VLOOKUP($A34,'BPT INPUT FROM APC'!$A$5:$F$12320,V$3,FALSE) -> 8317
A35: AA16B | T35: =VLOOKUP($A35,'BPT INPUT FROM APC'!$A$5:$F$12320,T$3,FALSE) -> 2711 | U35: =VLOOKUP($A35,'BPT INPUT FROM APC'!$A$5:$F$12320,U$3,FALSE) -> 2711 | V35: =VLOOKUP($A35,'BPT INPUT FROM APC'!$A$5:$F$12320,V$3,FALSE) -> 7122
A36: AA17A | T36: =VLOOKUP($A36,'BPT INPUT FROM APC'!$A$5:$F$12320,T$3,FALSE) -> 5778 | U36: =VLOOKUP($A36,'BPT INPUT FROM APC'!$A$5:$F$12320,U$3,FALSE) -> 5778 | V36: =VLOOKUP($A36,'BPT INPUT FROM APC'!$A$5:$F$12320,V$3,FALSE) -> 8412
A37: AA17B | T37: =VLOOKUP($A37,'BPT INPUT FROM APC'!$A$5:$F$12320,T$3,FALSE) -> 8101 | U37: =VLOOKUP($A37,'BPT INPUT FROM APC'!$A$5:$F$12320,U$3,FALSE) -> 8101 | V37: =VLOOKUP($A37,'BPT INPUT FROM APC'!$A$5:$F$12320,V$3,FALSE) -> 5491
A38: AA18A | T38: =VLOOKUP($A38,'BPT INPUT FROM APC'!$A$5:$F$12320,T$3,FALSE) -> 4475 | U38: =VLOOKUP($A38,'BPT INPUT FROM APC'!$A$5:$F$12320,U$3,FALSE) -> 4475 | V38: =VLOOKUP($A38,'BPT INPUT FROM APC'!$A$5:$F$12320,V$3,FALSE) -> 6578
A39: AA18B | T39: =VLOOKUP($A39,'BPT INPUT FROM APC'!$A$5:$F$12320,T$3,FALSE) -> 4332 | U39: =VLOOKUP($A39,'BPT INPUT FROM APC'!$A$5:$F$12320,U$3,FALSE) -> 4332 | V39: =VLOOKUP($A39,'BPT INPUT FROM APC'!$A$5:$F$12320,V$3,FALSE) -> 5817
A40: AA19A | T40: =VLOOKUP($A40,'BPT INPUT FROM APC'!$A$5:$F$12320,T$3,FALSE) -> 2105 | U40: =VLOOKUP($A40,'BPT INPUT FROM APC'!$A$5:$F$12320,U$3,FALSE) -> 2105 | V40: =VLOOKUP($A40,'BPT INPUT FROM APC'!$A$5:$F$12320,V$3,FALSE) -> 4827
A41: AA19B | T41: =VLOOKUP($A41,'BPT INPUT FROM APC'!$A$5:$F$12320,T$3,FALSE) -> 1882 | U41: =VLOOKUP($A41,'BPT INPUT FROM APC'!$A$5:$F$12320,U$3,FALSE) -> 1882 | V41: =VLOOKUP($A41,'BPT INPUT FROM APC'!$A$5:$F$12320,V$3,FALSE) -> 3460
A42: AA20A | T42: =VLOOKUP($A42,'BPT INPUT FROM APC'!$A$5:$F$12320,T$3,FALSE) -> 1669 | U42: =VLOOKUP($A42,'BPT INPUT FROM APC'!$A$5:$F$12320,U$3,FALSE) -> 1669 | V42: =VLOOKUP($A42,'BPT INPUT FROM APC'!$A$5:$F$12320,V$3,FALSE) -> 3601
A43: AA20B | T43: =VLOOKUP($A43,'BPT INPUT FROM APC'!$A$5:$F$12320,T$3,FALSE) -> 1386 | U43: =VLOOKUP($A43,'BPT INPUT FROM APC'!$A$5:$F$12320,U$3,FALSE) -> 1386 | V43: =VLOOKUP($A43,'BPT INPUT FROM APC'!$A$5:$F$12320,V$3,FALSE) -> 1565
A44: AA21A | T44: =VLOOKUP($A44,'BPT INPUT FROM APC'!$A$5:$F$12320,T$3,FALSE) -> 2175 | U44: =VLOOKUP($A44,'BPT INPUT FROM APC'!$A$5:$F$12320,U$3,FALSE) -> 2175 | V44: =VLOOKUP($A44,'BPT INPUT FROM APC'!$A$5:$F$12320,V$3,FALSE) -> 6122
A45: AA21B | T45: =VLOOKUP($A45,'BPT INPUT FROM APC'!$A$5:$F$12320,T$3,FALSE) -> 1297 | U45: =VLOOKUP($A45,'BPT INPUT FROM APC'!$A$5:$F$12320,U$3,FALSE) -> 1297 | V45: =VLOOKUP($A45,'BPT INPUT FROM APC'!$A$5:$F$12320,V$3,FALSE) -> 4557
A46: AA22A | T46: =VLOOKUP($A46,'BPT INPUT FROM APC'!$A$5:$F$12320,T$3,FALSE) -> 3734 | U46: =VLOOKUP($A46,'BPT INPUT FROM APC'!$A$5:$F$12320,U$3,FALSE) -> 3734 | V46: =VLOOKUP($A46,'BPT INPUT FROM APC'!$A$5:$F$12320,V$3,FALSE) -> 4193
A47: AA22B | T47: =VLOOKUP($A47,'BPT INPUT FROM APC'!$A$5:$F$12320,T$3,FALSE) -> 738 | U47: =VLOOKUP($A47,'BPT INPUT FROM APC'!$A$5:$F$12320,U$3,FALSE) -> 738 | V47: =VLOOKUP($A47,'BPT INPUT FROM APC'!$A$5:$F$12320,V$3,FALSE) -> 2490
A48: AA23A | T48: =VLOOKUP($A48,'BPT INPUT FROM APC'!$A$5:$F$12320,T$3,FALSE) -> 7783 | U48: =VLOOKUP($A48,'BPT INPUT FROM APC'!$A$5:$F$12320,U$3,FALSE) -> 7783 | V48: =VLOOKUP($A48,'BPT INPUT FROM APC'!$A$5:$F$12320,V$3,FALSE) -> 4455
A49: AA23B | T49: =VLOOKUP($A49,'BPT INPUT FROM APC'!$A$5:$F$12320,T$3,FALSE) -> 3795 | U49: =VLOOKUP($A49,'BPT INPUT FROM APC'!$A$5:$F$12320,U$3,FALSE) -> 3795 | V49: =VLOOKUP($A49,'BPT INPUT FROM APC'!$A$5:$F$12320,V$3,FALSE) -> 2386
A50: AA24A | T50: =VLOOKUP($A50,'BPT INPUT FROM APC'!$A$5:$F$12320,T$3,FALSE) -> 1040 | U50: =VLOOKUP($A50,'BPT INPUT FROM APC'!$A$5:$F$12320,U$3,FALSE) -> 1040 | V50: =VLOOKUP($A50,'BPT INPUT FROM APC'!$A$5:$F$12320,V$3,FALSE) -> 3599
A51: AA24B | T51: =VLOOKUP($A51,'BPT INPUT FROM APC'!$A$5:$F$12320,T$3,FALSE) -> 707 | U51: =VLOOKUP($A51,'BPT INPUT FROM APC'!$A$5:$F$12320,U$3,FALSE) -> 707 | V51: =VLOOKUP($A51,'BPT INPUT FROM APC'!$A$5:$F$12320,V$3,FALSE) -> 2309
A52: AA25A | T52: =VLOOKUP($A52,'BPT INPUT FROM APC'!$A$5:$F$12320,T$3,FALSE) -> 1393 | U52: =VLOOKUP($A52,'BPT INPUT FROM APC'!$A$5:$F$12320,U$3,FALSE) -> 1393 | V52: =VLOOKUP($A52,'BPT INPUT FROM APC'!$A$5:$F$12320,V$3,FALSE) -> 2900
A53: AA25B | T53: =VLOOKUP($A53,'BPT INPUT FROM APC'!$A$5:$F$12320,T$3,FALSE) -> 540 | U53: =VLOOKUP($A53,'BPT INPUT FROM APC'!$A$5:$F$12320,U$3,FALSE) -> 540 | V53: =VLOOKUP($A53,'BPT INPUT FROM APC'!$A$5:$F$12320,V$3,FALSE) -> 1589
A54: AA26A | T54: =VLOOKUP($A54,'BPT INPUT FROM APC'!$A$5:$F$12320,T$3,FALSE) -> 937 | U54: =VLOOKUP($A54,'BPT INPUT FROM APC'!$A$5:$F$12320,U$3,FALSE) -> 937 | V54: =VLOOKUP($A54,'BPT INPUT FROM APC'!$A$5:$F$12320,V$3,FALSE) -> 1314
A55: AA26B | T55: =VLOOKUP($A55,'BPT INPUT FROM APC'!$A$5:$F$12320,T$3,FALSE) -> 648 | U55: =VLOOKUP($A55,'BPT INPUT FROM APC'!$A$5:$F$12320,U$3,FALSE) -> 648 | V55: =VLOOKUP($A55,'BPT INPUT FROM APC'!$A$5:$F$12320,V$3,FALSE) -> 649
A56: AA27A | T56: =VLOOKUP($A56,'BPT INPUT FROM APC'!$A$5:$F$12320,T$3,FALSE) -> 3453 | U56: =VLOOKUP($A56,'BPT INPUT FROM APC'!$A$5:$F$12320,U$3,FALSE) -> 3453 | V56: =VLOOKUP($A56,'BPT INPUT FROM APC'!$A$5:$F$12320,V$3,FALSE) -> 5130
A57: AA27B | T57: =VLOOKUP($A57,'BPT INPUT FROM APC'!$A$5:$F$12320,T$3,FALSE) -> 427 | U57: =VLOOKUP($A57,'BPT INPUT FROM APC'!$A$5:$F$12320,U$3,FALSE) -> 427 | V57: =VLOOKUP($A57,'BPT INPUT FROM APC'!$A$5:$F$12320,V$3,FALSE) -> 1909
A58: AA28A | T58: =VLOOKUP($A58,'BPT INPUT FROM APC'!$A$5:$F$12320,T$3,FALSE) -> 2427 | U58: =VLOOKUP($A58,'BPT INPUT FROM APC'!$A$5:$F$12320,U$3,FALSE) -> 2427 | V58: =VLOOKUP($A58,'BPT INPUT FROM APC'!$A$5:$F$12320,V$3,FALSE) -> 5188
A59: AA28B | T59: =VLOOKUP($A59,'BPT INPUT FROM APC'!$A$5:$F$12320,T$3,FALSE) -> 1690 | U59: =VLOOKUP($A59,'BPT INPUT FROM APC'!$A$5:$F$12320,U$3,FALSE) -> 1690 | V59: =VLOOKUP($A59,'BPT INPUT FROM APC'!$A$5:$F$12320,V$3,FALSE) -> 3083
A60: AA29A | T60: =VLOOKUP($A60,'BPT INPUT FROM APC'!$A$5:$F$12320,T$3,FALSE) -> 493 | U60: =VLOOKUP($A60,'BPT INPUT FROM APC'!$A$5:$F$12320,U$3,FALSE) -> 493 | V60: =VLOOKUP($A60,'BPT INPUT FROM APC'!$A$5:$F$12320,V$3,FALSE) -> 1391
A61: AA29B | T61: =VLOOKUP($A61,'BPT INPUT FROM APC'!$A$5:$F$12320,T$3,FALSE) -> 469 | U61: =VLOOKUP($A61,'BPT INPUT FROM APC'!$A$5:$F$12320,U$3,FALSE) -> 469 | V61: =VLOOKUP($A61,'BPT INPUT FROM APC'!$A$5:$F$12320,V$3,FALSE) -> 555
A62: AA30A | T62: =VLOOKUP($A62,'BPT INPUT FROM APC'!$A$5:$F$12320,T$3,FALSE) -> 593 | U62: =VLOOKUP($A62,'BPT INPUT FROM APC'!$A$5:$F$12320,U$3,FALSE) -> 593 | V62: =VLOOKUP($A62,'BPT INPUT FROM APC'!$A$5:$F$12320,V$3,FALSE) -> 3705
A63: AA30B | T63: =VLOOKUP($A63,'BPT INPUT FROM APC'!$A$5:$F$12320,T$3,FALSE) -> 442 | U63: =VLOOKUP($A63,'BPT INPUT FROM APC'!$A$5:$F$12320,U$3,FALSE) -> 442 | V63: =VLOOKUP($A63,'BPT INPUT FROM APC'!$A$5:$F$12320,V$3,FALSE) -> 2091
A64: AA31A | T64: =VLOOKUP($A64,'BPT INPUT FROM APC'!$A$5:$F$12320,T$3,FALSE) -> 845 | U64: =VLOOKUP($A64,'BPT INPUT FROM APC'!$A$5:$F$12320,U$3,FALSE) -> 845 | V64: =VLOOKUP($A64,'BPT INPUT FROM APC'!$A$5:$F$12320,V$3,FALSE) -> 748
A65: AA31B | T65: =VLOOKUP($A65,'BPT INPUT FROM APC'!$A$5:$F$12320,T$3,FALSE) -> 433 | U65: =VLOOKUP($A65,'BPT INPUT FROM APC'!$A$5:$F$12320,U$3,FALSE) -> 433 | V65: =VLOOKUP($A65,'BPT INPUT FROM APC'!$A$5:$F$12320,V$3,FALSE) -> 546
A66: AA32Z | T66: =VLOOKUP($A66,'BPT INPUT FROM APC'!$A$5:$F$12320,T$3,FALSE) -> 427 | U66: =VLOOKUP($A66,'BPT INPUT FROM APC'!$A$5:$F$12320,U$3,FALSE) -> 427 | V66: =VLOOKUP($A66,'BPT INPUT FROM APC'!$A$5:$F$12320,V$3,FALSE) -> 382
A67: AA33C | T67: =VLOOKUP($A67,'BPT INPUT FROM APC'!$A$5:$F$12320,T$3,FALSE) -> 173 | U67: =VLOOKUP($A67,'BPT INPUT FROM APC'!$A$5:$F$12320,U$3,FALSE) -> 173 | V67: =VLOOKUP($A67,'BPT INPUT FROM APC'!$A$5:$F$12320,V$3,FALSE) -> 1207
A68: AA33D | T68: =VLOOKUP($A68,'BPT INPUT FROM APC'!$A$5:$F$12320,T$3,FALSE) -> 823 | U68: =VLOOKUP($A68,'BPT INPUT FROM APC'!$A$5:$F$12320,U$3,FALSE) -> 823 | V68: =VLOOKUP($A68,'BPT INPUT FROM APC'!$A$5:$F$12320,V$3,FALSE) -> 1328
A69: AA34E | T69: =VLOOKUP($A69,'BPT INPUT FROM APC'!$A$5:$F$12320,T$3,FALSE) -> 9 | U69: =VLOOKUP($A69,'BPT INPUT FROM APC'!$A$5:$F$12320,U$3,FALSE) -> 9 | V69: =VLOOKUP($A69,'BPT INPUT FROM APC'!$A$5:$F$12320,V$3,FALSE) -> 606
A70: AA34F | T70: =VLOOKUP($A70,'BPT INPUT FROM APC'!$A$5:$F$12320,T$3,FALSE) -> 8 | U70: =VLOOKUP($A70,'BPT INPUT FROM APC'!$A$5:$F$12320,U$3,FALSE) -> 8 | V70: =VLOOKUP($A70,'BPT INPUT FROM APC'!$A$5:$F$12320,V$3,FALSE) -> 220
A71: AB02Z | T71: =VLOOKUP($A71,'BPT INPUT FROM APC'!$A$5:$F$12320,T$3,FALSE) -> 754 | U71: =VLOOKUP($A71,'BPT INPUT FROM APC'!$A$5:$F$12320,U$3,FALSE) -> 754 | V71: =VLOOKUP($A71,'BPT INPUT FROM APC'!$A$5:$F$12320,V$3,FALSE) -> 1529
A72: AB03Z | T72: =VLOOKUP($A72,'BPT INPUT FROM APC'!$A$5:$F$12320,T$3,FALSE) -> 750 | U72: =VLOOKUP($A72,'BPT INPUT FROM APC'!$A$5:$F$12320,U$3,FALSE) -> 750 | V72: =VLOOKUP($A72,'BPT INPUT FROM APC'!$A$5:$F$12320,V$3,FALSE) -> 4285
A73: AB04Z | T73: =VLOOKUP($A73,'BPT INPUT FROM APC'!$A$5:$F$12320,T$3,FALSE) -> 647 | U73: =VLOOKUP($A73,'BPT INPUT FROM APC'!$A$5:$F$12320,U$3,FALSE) -> 647 | V73: =VLOOKUP($A73,'BPT INPUT FROM APC'!$A$5:$F$12320,V$3,FALSE) -> 2492
A74: AB05Z | T74: =VLOOKUP($A74,'BPT INPUT FROM APC'!$A$5:$F$12320,T$3,FALSE) -> 657 | U74: =VLOOKUP($A74,'BPT INPUT FROM APC'!$A$5:$F$12320,U$3,FALSE) -> 657 | V74: =VLOOKUP($A74,'BPT INPUT FROM APC'!$A$5:$F$12320,V$3,FALSE) -> 3205
A75: AB06Z | T75: =VLOOKUP($A75,'BPT INPUT FROM APC'!$A$5:$F$12320,T$3,FALSE) -> 202 | U75: =VLOOKUP($A75,'BPT INPUT FROM APC'!$A$5:$F$12320,U$3,FALSE) -> 202 | V75: =VLOOKUP($A75,'BPT INPUT FROM APC'!$A$5:$F$12320,V$3,FALSE) -> 3436
A76: AB07Z | T76: =VLOOKUP($A76,'BPT INPUT FROM APC'!$A$5:$F$12320,T$3,FALSE) -> 3048 | U76: =VLOOKUP($A76,'BPT INPUT FROM APC'!$A$5:$F$12320,U$3,FALSE) -> 3048 | V76: =VLOOKUP($A76,'BPT INPUT FROM APC'!$A$5:$F$12320,V$3,FALSE) -> 4548
A77: AB08Z | T77: =VLOOKUP($A77,'BPT INPUT FROM APC'!$A$5:$F$12320,T$3,FALSE) -> 695 | U77: =VLOOKUP($A77,'BPT INPUT FROM APC'!$A$5:$F$12320,U$3,FALSE) -> 695 | V77: =VLOOKUP($A77,'BPT INPUT FROM APC'!$A$5:$F$12320,V$3,FALSE) -> 3041
A78: AB09Z | T78: =VLOOKUP($A78,'BPT INPUT FROM APC'!$A$5:$F$12320,T$3,FALSE) -> 587 | U78: =VLOOKUP($A78,'BPT INPUT FROM APC'!$A$5:$F$12320,U$3,FALSE) -> 587 | V78: =VLOOKUP($A78,'BPT INPUT FROM APC'!$A$5:$F$12320,V$3,FALSE) -> 2357
A79: AB10Z | T79: =VLOOKUP($A79,'BPT INPUT FROM APC'!$A$5:$F$12320,T$3,FALSE) -> 397 | U79: =VLOOKUP($A79,'BPT INPUT FROM APC'!$A$5:$F$12320,U$3,FALSE) -> 397 | V79: =VLOOKUP($A79,'BPT INPUT FROM APC'!$A$5:$F$12320,V$3,FALSE) -> 2172
A80: AB11Z | T80: =VLOOKUP($A80,'BPT INPUT FROM APC'!$A$5:$F$12320,T$3,FALSE) -> 72 | U80: =VLOOKUP($A80,'BPT INPUT FROM APC'!$A$5:$F$12320,U$3,FALSE) -> 72 | V80: =VLOOKUP($A80,'BPT INPUT FROM APC'!$A$5:$F$12320,V$3,FALSE) -> 6590
A81: BZ01Z | T81: =VLOOKUP($A81,'BPT INPUT FROM APC'!$A$5:$F$12320,T$3,FALSE) -> 1053 | U81: =VLOOKUP($A81,'BPT INPUT FROM APC'!$A$5:$F$12320,U$3,FALSE) -> 1053 | V81: =VLOOKUP($A81,'BPT INPUT FROM APC'!$A$5:$F$12320,V$3,FALSE) -> 2161
A82: BZ02Z | T82: =VLOOKUP($A82,'BPT INPUT FROM APC'!$A$5:$F$12320,T$3,FALSE) -> 782 | U82: =VLOOKUP($A82,'BPT INPUT FROM APC'!$A$5:$F$12320,U$3,FALSE) -> 782 | V82: =VLOOKUP($A82,'BPT INPUT FROM APC'!$A$5:$F$12320,V$3,FALSE) -> 2805
A83: BZ03Z | T83: =VLOOKUP($A83,'BPT INPUT FROM APC'!$A$5:$F$12320,T$3,FALSE) -> 1005 | U83: =VLOOKUP($A83,'BPT INPUT FROM APC'!$A$5:$F$12320,U$3,FALSE) -> 1005 | V83: =VLOOKUP($A83,'BPT INPUT FROM APC'!$A$5:$F$12320,V$3,FALSE) -> 1303
A84: BZ04Z | T84: =VLOOKUP($A84,'BPT INPUT FROM APC'!$A$5:$F$12320,T$3,FALSE) -> 160 | U84: =VLOOKUP($A84,'BPT INPUT FROM APC'!$A$5:$F$12320,U$3,FALSE) -> 160 | V84: =VLOOKUP($A84,'BPT INPUT FROM APC'!$A$5:$F$12320,V$3,FALSE) -> 465
A85: BZ05Z | T85: =VLOOKUP($A85,'BPT INPUT FROM APC'!$A$5:$F$12320,T$3,FALSE) -> 1324 | U85: =VLOOKUP($A85,'BPT INPUT FROM APC'!$A$5:$F$12320,U$3,FALSE) -> 1324 | V85: =VLOOKUP($A85,'BPT INPUT FROM APC'!$A$5:$F$12320,V$3,FALSE) -> 8505
A86: BZ06A | T86: =VLOOKUP($A86,'BPT INPUT FROM APC'!$A$5:$F$12320,T$3,FALSE) -> 916 | U86: =VLOOKUP($A86,'BPT INPUT FROM APC'!$A$5:$F$12320,U$3,FALSE) -> 916 | V86: =VLOOKUP($A86,'BPT INPUT FROM APC'!$A$5:$F$12320,V$3,FALSE) -> 1272
A87: BZ06B | T87: =VLOOKUP($A87,'BPT INPUT FROM APC'!$A$5:$F$12320,T$3,FALSE) -> 1056 | U87: =VLOOKUP($A87,'BPT INPUT FROM APC'!$A$5:$F$12320,U$3,FALSE) -> 1056 | V87: =VLOOKUP($A87,'BPT INPUT FROM APC'!$A$5:$F$12320,V$3,FALSE) -> 1522
A88: BZ07A | T88: =VLOOKUP($A88,'BPT INPUT FROM APC'!$A$5:$F$12320,T$3,FALSE) -> 640 | U88: =VLOOKUP($A88,'BPT INPUT FROM APC'!$A$5:$F$12320,U$3,FALSE) -> 640 | V88: =VLOOKUP($A88,'BPT INPUT FROM APC'!$A$5:$F$12320,V$3,FALSE) -> 913
A89: BZ07B | T89: =VLOOKUP($A89,'BPT INPUT FROM APC'!$A$5:$F$12320,T$3,FALSE) -> 809 | U89: =VLOOKUP($A89,'BPT INPUT FROM APC'!$A$5:$F$12320,U$3,FALSE) -> 809 | V89: =VLOOKUP($A89,'BPT INPUT FROM APC'!$A$5:$F$12320,V$3,FALSE) -> 1009
A90: BZ08A | T90: =VLOOKUP($A90,'BPT INPUT FROM APC'!$A$5:$F$12320,T$3,FALSE) -> 2120 | U90: =VLOOKUP($A90,'BPT INPUT FROM APC'!$A$5:$F$12320,U$3,FALSE) -> 2120 | V90: =VLOOKUP($A90,'BPT INPUT FROM APC'!$A$5:$F$12320,V$3,FALSE) -> 3342
A91: BZ08B | T91: =VLOOKUP($A91,'BPT INPUT FROM APC'!$A$5:$F$12320,T$3,FALSE) -> 2007 | U91: =VLOOKUP($A91,'BPT INPUT FROM APC'!$A$5:$F$12320,U$3,FALSE) -> 2007 | V91: =VLOOKUP($A91,'BPT INPUT FROM APC'!$A$5:$F$12320,V$3,FALSE) -> 3431
A92: BZ09A | T92: =VLOOKUP($A92,'BPT INPUT FROM APC'!$A$5:$F$12320,T$3,FALSE) -> 1471 | U92: =VLOOKUP($A92,'BPT INPUT FROM APC'!$A$5:$F$12320,U$3,FALSE) -> 1471 | V92: =VLOOKUP($A92,'BPT INPUT FROM APC'!$A$5:$F$12320,V$3,FALSE) -> 3013
A93: BZ09B | T93: =VLOOKUP($A93,'BPT INPUT FROM APC'!$A$5:$F$12320,T$3,FALSE) -> 1603 | U93: =VLOOKUP($A93,'BPT INPUT FROM APC'!$A$5:$F$12320,U$3,FALSE) -> 1603 | V93: =VLOOKUP($A93,'BPT INPUT FROM APC'!$A$5:$F$12320,V$3,FALSE) -> 2628
A94: BZ10A | T94: =VLOOKUP($A94,'BPT INPUT FROM APC'!$A$5:$F$12320,T$3,FALSE) -> 638 | U94: =VLOOKUP($A94,'BPT INPUT FROM APC'!$A$5:$F$12320,U$3,FALSE) -> 638 | V94: =VLOOKUP($A94,'BPT INPUT FROM APC'!$A$5:$F$12320,V$3,FALSE) -> 1238
A95: BZ10B | T95: =VLOOKUP($A95,'BPT INPUT FROM APC'!$A$5:$F$12320,T$3,FALSE) -> 830 | U95: =VLOOKUP($A95,'BPT INPUT FROM APC'!$A$5:$F$12320,U$3,FALSE) -> 830 | V95: =VLOOKUP($A95,'BPT INPUT FROM APC'!$A$5:$F$12320,V$3,FALSE) -> 1331
A96: BZ11Z | T96: =VLOOKUP($A96,'BPT INPUT FROM APC'!$A$5:$F$12320,T$3,FALSE) -> 2054 | U96: =VLOOKUP($A96,'BPT INPUT FROM APC'!$A$5:$F$12320,U$3,FALSE) -> 2054 | V96: =VLOOKUP($A96,'BPT INPUT FROM APC'!$A$5:$F$12320,V$3,FALSE) -> 3660
A97: BZ12Z | T97: =VLOOKUP($A97,'BPT INPUT FROM APC'!$A$5:$F$12320,T$3,FALSE) -> 1592 | U97: =VLOOKUP($A97,'BPT INPUT FROM APC'!$A$5:$F$12320,U$3,FALSE) -> 1592 | V97: =VLOOKUP($A97,'BPT INPUT FROM APC'!$A$5:$F$12320,V$3,FALSE) -> 2649
A98: BZ13Z | T98: =VLOOKUP($A98,'BPT INPUT FROM APC'!$A$5:$F$12320,T$3,FALSE) -> 911 | U98: =VLOOKUP($A98,'BPT INPUT FROM APC'!$A$5:$F$12320,U$3,FALSE) -> 911 | V98: =VLOOKUP($A98,'BPT INPUT FROM APC'!$A$5:$F$12320,V$3,FALSE) -> 2199
A99: BZ14A | T99: =VLOOKUP($A99,'BPT INPUT FROM APC'!$A$5:$F$12320,T$3,FALSE) -> 1284 | U99: =VLOOKUP($A99,'BPT INPUT FROM APC'!$A$5:$F$12320,U$3,FALSE) -> 1284 | V99: =VLOOKUP($A99,'BPT INPUT FROM APC'!$A$5:$F$12320,V$3,FALSE) -> 905
A100: BZ14B | T100: =VLOOKUP($A100,'BPT INPUT FROM APC'!$A$5:$F$12320,T$3,FALSE) -> 1167 | U100: =VLOOKUP($A100,'BPT INPUT FROM APC'!$A$5:$F$12320,U$3,FALSE) -> 1167 | V100: =VLOOKUP($A100,'BPT INPUT FROM APC'!$A$5:$F$12320,V$3,FALSE) -> 2481
A101: BZ15A | T101: =VLOOKUP($A101,'BPT INPUT FROM APC'!$A$5:$F$12320,T$3,FALSE) -> 1165 | U101: =VLOOKUP($A101,'BPT INPUT FROM APC'!$A$5:$F$12320,U$3,FALSE) -> 1165 | V101: =VLOOKUP($A101,'BPT INPUT FROM APC'!$A$5:$F$12320,V$3,FALSE) -> 1365
A102: BZ15B | T102: =VLOOKUP($A102,'BPT INPUT FROM APC'!$A$5:$F$12320,T$3,FALSE) -> 1215 | U102: =VLOOKUP($A102,'BPT INPUT FROM APC'!$A$5:$F$12320,U$3,FALSE) -> 1215 | V102: =VLOOKUP($A102,'BPT INPUT FROM APC'!$A$5:$F$12320,V$3,FALSE) -> 1133
A103: BZ16A | T103: =VLOOKUP($A103,'BPT INPUT FROM APC'!$A$5:$F$12320,T$3,FALSE) -> 1125 | U103: =VLOOKUP($A103,'BPT INPUT FROM APC'!$A$5:$F$12320,U$3,FALSE) -> 1125 | V103: =VLOOKUP($A103,'BPT INPUT FROM APC'!$A$5:$F$12320,V$3,FALSE) -> 966
A104: BZ16B | T104: =VLOOKUP($A104,'BPT INPUT FROM APC'!$A$5:$F$12320,T$3,FALSE) -> 1106 | U104: =VLOOKUP($A104,'BPT INPUT FROM APC'!$A$5:$F$12320,U$3,FALSE) -> 1106 | V104: =VLOOKUP($A104,'BPT INPUT FROM APC'!$A$5:$F$12320,V$3,FALSE) -> 921
A105: BZ17Z | T105: =VLOOKUP($A105,'BPT INPUT FROM APC'!$A$5:$F$12320,T$3,FALSE) -> 1435 | U105: =VLOOKUP($A105,'BPT INPUT FROM APC'!$A$5:$F$12320,U$3,FALSE) -> 1435 | V105: =VLOOKUP($A105,'BPT INPUT FROM APC'!$A$5:$F$12320,V$3,FALSE) -> 1469
A106: BZ18Z | T106: =VLOOKUP($A106,'BPT INPUT FROM APC'!$A$5:$F$12320,T$3,FALSE) -> 1026 | U106: =VLOOKUP($A106,'BPT INPUT FROM APC'!$A$5:$F$12320,U$3,FALSE) -> 1026 | V106: =VLOOKUP($A106,'BPT INPUT FROM APC'!$A$5:$F$12320,V$3,FALSE) -> 1648
A107: BZ19Z | T107: =VLOOKUP($A107,'BPT INPUT FROM APC'!$A$5:$F$12320,T$3,FALSE) -> 477 | U107: =VLOOKUP($A107,'BPT INPUT FROM APC'!$A$5:$F$12320,U$3,FALSE) -> 477 | V107: =VLOOKUP($A107,'BPT INPUT FROM APC'!$A$5:$F$12320,V$3,FALSE) -> 1032
A108: BZ20Z | T108: =VLOOKUP($A108,'BPT INPUT FROM APC'!$A$5:$F$12320,T$3,FALSE) -> 1913 | U108: =VLOOKUP($A108,'BPT INPUT FROM APC'!$A$5:$F$12320,U$3,FALSE) -> 1913 | V108: =VLOOKUP($A108,'BPT INPUT FROM APC'!$A$5:$F$12320,V$3,FALSE) -> 2387
A109: BZ21Z | T109: =VLOOKUP($A109,'BPT INPUT FROM APC'!$A$5:$F$12320,T$3,FALSE) -> 1496 | U109: =VLOOKUP($A109,'BPT INPUT FROM APC'!$A$5:$F$12320,U$3,FALSE) -> 1496 | V109: =VLOOKUP($A109,'BPT INPUT FROM APC'!$A$5:$F$12320,V$3,FALSE) -> 1630
A110: BZ22Z | T110: =VLOOKUP($A110,'BPT INPUT FROM APC'!$A$5:$F$12320,T$3,FALSE) -> 1243 | U110: =VLOOKUP($A110,'BPT INPUT FROM APC'!$A$5:$F$12320,U$3,FALSE) -> 1243 | V110: =VLOOKUP($A110,'BPT INPUT FROM APC'!$A$5:$F$12320,V$3,FALSE) -> 2008
A111: BZ23Z | T111: =VLOOKUP($A111,'BPT INPUT FROM APC'!$A$5:$F$12320,T$3,FALSE) -> 375 | U111: =VLOOKUP($A111,'BPT INPUT FROM APC'!$A$5:$F$12320,U$3,FALSE) -> 375 | V111: =VLOOKUP($A111,'BPT INPUT FROM APC'!$A$5:$F$12320,V$3,FALSE) -> 855
A112: BZ24A | T112: =VLOOKUP($A112,'BPT INPUT FROM APC'!$A$5:$F$12320,T$3,FALSE) -> 2861 | U112: =VLOOKUP($A112,'BPT INPUT FROM APC'!$A$5:$F$12320,U$3,FALSE) -> 2861 | V112: =VLOOKUP($A112,'BPT INPUT FROM APC'!$A$5:$F$12320,V$3,FALSE) -> 2167
A113: BZ24C | T113: =VLOOKUP($A113,'BPT INPUT FROM APC'!$A$5:$F$12320,T$3,FALSE) -> 331 | U113: =VLOOKUP($A113,'BPT INPUT FROM APC'!$A$5:$F$12320,U$3,FALSE) -> 331 | V113: =VLOOKUP($A113,'BPT INPUT FROM APC'!$A$5:$F$12320,V$3,FALSE) -> 424
A114: CZ01S | T114: =VLOOKUP($A114,'BPT INPUT FROM APC'!$A$5:$F$12320,T$3,FALSE) -> 865 | U114: =VLOOKUP($A114,'BPT INPUT FROM APC'!$A$5:$F$12320,U$3,FALSE) -> 865 | V114: =VLOOKUP($A114,'BPT INPUT FROM APC'!$A$5:$F$12320,V$3,FALSE) -> 2768
A115: CZ01T | T115: =VLOOKUP($A115,'BPT INPUT FROM APC'!$A$5:$F$12320,T$3,FALSE) -> 699 | U115: =VLOOKUP($A115,'BPT INPUT FROM APC'!$A$5:$F$12320,U$3,FALSE) -> 699 | V115: =VLOOKUP($A115,'BPT INPUT FROM APC'!$A$5:$F$12320,V$3,FALSE) -> 853
A116: CZ01V | T116: =VLOOKUP($A116,'BPT INPUT FROM APC'!$A$5:$F$12320,T$3,FALSE) -> 700 | U116: =VLOOKUP($A116,'BPT INPUT FROM APC'!$A$5:$F$12320,U$3,FALSE) -> 700 | V116: =VLOOKUP($A116,'BPT INPUT FROM APC'!$A$5:$F$12320,V$3,FALSE) -> 1704
A117: CZ01Y | T117: =VLOOKUP($A117,'BPT INPUT FROM APC'!$A$5:$F$12320,T$3,FALSE) -> 151 | U117: =VLOOKUP($A117,'BPT INPUT FROM APC'!$A$5:$F$12320,U$3,FALSE) -> 151 | V117: =VLOOKUP($A117,'BPT INPUT FROM APC'!$A$5:$F$12320,V$3,FALSE) -> 716
A118: CZ02S | T118: =VLOOKUP($A118,'BPT INPUT FROM APC'!$A$5:$F$12320,T$3,FALSE) -> 1527 | U118: =VLOOKUP($A118,'BPT INPUT FROM APC'!$A$5:$F$12320,U$3,FALSE) -> 1527 | V118: =VLOOKUP($A118,'BPT INPUT FROM APC'!$A$5:$F$12320,V$3,FALSE) -> 3288
A119: CZ02T | T119: =VLOOKUP($A119,'BPT INPUT FROM APC'!$A$5:$F$12320,T$3,FALSE) -> 1099 | U119: =VLOOKUP($A119,'BPT INPUT FROM APC'!$A$5:$F$12320,U$3,FALSE) -> 1099 | V119: =VLOOKUP($A119,'BPT INPUT FROM APC'!$A$5:$F$12320,V$3,FALSE) -> 1299
A120: CZ02W | T120: =VLOOKUP($A120,'BPT INPUT FROM APC'!$A$5:$F$12320,T$3,FALSE) -> 1586 | U120: =VLOOKUP($A120,'BPT INPUT FROM APC'!$A$5:$F$12320,U$3,FALSE) -> 1586 | V120: =VLOOKUP($A120,'BPT INPUT FROM APC'!$A$5:$F$12320,V$3,FALSE) -> 5210
A121: CZ02X | T121: =VLOOKUP($A121,'BPT INPUT FROM APC'!$A$5:$F$12320,T$3,FALSE) -> 1084 | U121: =VLOOKUP($A121,'BPT INPUT FROM APC'!$A$5:$F$12320,U$3,FALSE) -> 1084 | V121: =VLOOKUP($A121,'BPT INPUT FROM APC'!$A$5:$F$12320,V$3,FALSE) -> 1808
A122: CZ02Y | T122: =VLOOKUP($A122,'BPT INPUT FROM APC'!$A$5:$F$12320,T$3,FALSE) -> 933 | U122: =VLOOKUP($A122,'BPT INPUT FROM APC'!$A$5:$F$12320,U$3,FALSE) -> 933 | V122: =VLOOKUP($A122,'BPT INPUT FROM APC'!$A$5:$F$12320,V$3,FALSE) -> 1154
A123: CZ03U | T123: =VLOOKUP($A123,'BPT INPUT FROM APC'!$A$5:$F$12320,T$3,FALSE) -> 2857 | U123: =VLOOKUP($A123,'BPT INPUT FROM APC'!$A$5:$F$12320,U$3,FALSE) -> 2857 | V123: =VLOOKUP($A123,'BPT INPUT FROM APC'!$A$5:$F$12320,V$3,FALSE) -> 3209
A124: CZ03V | T124: =VLOOKUP($A124,'BPT INPUT FROM APC'!$A$5:$F$12320,T$3,FALSE) -> 2728 | U124: =VLOOKUP($A124,'BPT INPUT FROM APC'!$A$5:$F$12320,U$3,FALSE) -> 2728 | V124: =VLOOKUP($A124,'BPT INPUT FROM APC'!$A$5:$F$12320,V$3,FALSE) -> 5270
A125: CZ03Y | T125: =VLOOKUP($A125,'BPT INPUT FROM APC'!$A$5:$F$12320,T$3,FALSE) -> 2097 | U125: =VLOOKUP($A125,'BPT INPUT FROM APC'!$A$5:$F$12320,U$3,FALSE) -> 2097 | V125: =VLOOKUP($A125,'BPT INPUT FROM APC'!$A$5:$F$12320,V$3,FALSE) -> 2506
A126: CZ04O | T126: =VLOOKUP($A126,'BPT INPUT FROM APC'!$A$5:$F$12320,T$3,FALSE) -> 19718 | U126: =VLOOKUP($A126,'BPT INPUT FROM APC'!$A$5:$F$12320,U$3,FALSE) -> 19718 | V126: =VLOOKUP($A126,'BPT INPUT FROM APC'!$A$5:$F$12320,V$3,FALSE) -> 22650
A127: CZ04P | T127: =VLOOKUP($A127,'BPT INPUT FROM APC'!$A$5:$F$12320,T$3,FALSE) -> 11429 | U127: =VLOOKUP($A127,'BPT INPUT FROM APC'!$A$5:$F$12320,U$3,FALSE) -> 11429 | V127: =VLOOKUP($A127,'BPT INPUT FROM APC'!$A$5:$F$12320,V$3,FALSE) -> 17622
A128: CZ04Q | T128: =VLOOKUP($A128,'BPT INPUT FROM APC'!$A$5:$F$12320,T$3,FALSE) -> 7482 | U128: =VLOOKUP($A128,'BPT INPUT FROM APC'!$A$5:$F$12320,U$3,FALSE) -> 7482 | V128: =VLOOKUP($A128,'BPT INPUT FROM APC'!$A$5:$F$12320,V$3,FALSE) -> 8447
A129: CZ05S | T129: =VLOOKUP($A129,'BPT INPUT FROM APC'!$A$5:$F$12320,T$3,FALSE) -> 1430 | U129: =VLOOKUP($A129,'BPT INPUT FROM APC'!$A$5:$F$12320,U$3,FALSE) -> 1430 | V129: =VLOOKUP($A129,'BPT INPUT FROM APC'!$A$5:$F$12320,V$3,FALSE) -> 2212
A130: CZ05T | T130: =VLOOKUP($A130,'BPT INPUT FROM APC'!$A$5:$F$12320,T$3,FALSE) -> 1205 | U130: =VLOOKUP($A130,'BPT INPUT FROM APC'!$A$5:$F$12320,U$3,FALSE) -> 1205 | V130: =VLOOKUP($A130,'BPT INPUT FROM APC'!$A$5:$F$12320,V$3,FALSE) -> 1118
A131: CZ05V | T131: =VLOOKUP($A131,'BPT INPUT FROM APC'!$A$5:$F$12320,T$3,FALSE) -> 1294 | U131: =VLOOKUP($A131,'BPT INPUT FROM APC'!$A$5:$F$12320,U$3,FALSE) -> 1294 | V131: =VLOOKUP($A131,'BPT INPUT FROM APC'!$A$5:$F$12320,V$3,FALSE) -> 1012
A132: CZ05Y | T132: =VLOOKUP($A132,'BPT INPUT FROM APC'!$A$5:$F$12320,T$3,FALSE) -> 1200 | U132: =VLOOKUP($A132,'BPT INPUT FROM APC'!$A$5:$F$12320,U$3,FALSE) -> 1200 | V132: =VLOOKUP($A132,'BPT INPUT FROM APC'!$A$5:$F$12320,V$3,FALSE) -> 857
A133: CZ07O | T133: =VLOOKUP($A133,'BPT INPUT FROM APC'!$A$5:$F$12320,T$3,FALSE) -> 9603 | U133: =VLOOKUP($A133,'BPT INPUT FROM APC'!$A$5:$F$12320,U$3,FALSE) -> 9603 | V133: =VLOOKUP($A133,'BPT INPUT FROM APC'!$A$5:$F$12320,V$3,FALSE) -> 8563
A134: CZ07P | T134: =VLOOKUP($A134,'BPT INPUT FROM APC'!$A$5:$F$12320,T$3,FALSE) -> 3629 | U134: =VLOOKUP($A134,'BPT INPUT FROM APC'!$A$5:$F$12320,U$3,FALSE) -> 3629 | V134: =VLOOKUP($A134,'BPT INPUT FROM APC'!$A$5:$F$12320,V$3,FALSE) -> 5179
A135: CZ07Q | T135: =VLOOKUP($A135,'BPT INPUT FROM APC'!$A$5:$F$12320,T$3,FALSE) -> 3252 | U135: =VLOOKUP($A135,'BPT INPUT FROM APC'!$A$5:$F$12320,U$3,FALSE) -> 3252 | V135: =VLOOKUP($A135,'BPT INPUT FROM APC'!$A$5:$F$12320,V$3,FALSE) -> 3447
A136: CZ08S | T136: =VLOOKUP($A136,'BPT INPUT FROM APC'!$A$5:$F$12320,T$3,FALSE) -> 1005 | U136: =VLOOKUP($A136,'BPT INPUT FROM APC'!$A$5:$F$12320,U$3,FALSE) -> 1005 | V136: =VLOOKUP($A136,'BPT INPUT FROM APC'!$A$5:$F$12320,V$3,FALSE) -> 1795
A137: CZ08T | T137: =VLOOKUP($A137,'BPT INPUT FROM APC'!$A$5:$F$12320,T$3,FALSE) -> 779 | U137: =VLOOKUP($A137,'BPT INPUT FROM APC'!$A$5:$F$12320,U$3,FALSE) -> 779 | V137: =VLOOKUP($A137,'BPT INPUT FROM APC'!$A$5:$F$12320,V$3,FALSE) -> 918
A138: CZ08V | T138: =VLOOKUP($A138,'BPT INPUT FROM APC'!$A$5:$F$12320,T$3,FALSE) -> 743 | U138: =VLOOKUP($A138,'BPT INPUT FROM APC'!$A$5:$F$12320,U$3,FALSE) -> 743 | V138: =VLOOKUP($A138,'BPT INPUT FROM APC'!$A$5:$F$12320,V$3,FALSE) -> 1882
A139: CZ08Y | T139: =VLOOKUP($A139,'BPT INPUT FROM APC'!$A$5:$F$12320,T$3,FALSE) -> 134 | U139: =VLOOKUP($A139,'BPT INPUT FROM APC'!$A$5:$F$12320,U$3,FALSE) -> 134 | V139: =VLOOKUP($A139,'BPT INPUT FROM APC'!$A$5:$F$12320,V$3,FALSE) -> 777
A140: CZ09U | T140: =VLOOKUP($A140,'BPT INPUT FROM APC'!$A$5:$F$12320,T$3,FALSE) -> 1615 | U140: =VLOOKUP($A140,'BPT INPUT FROM APC'!$A$5:$F$12320,U$3,FALSE) -> 1615 | V140: =VLOOKUP($A140,'BPT INPUT FROM APC'!$A$5:$F$12320,V$3,FALSE) -> 1112
A141: CZ09V | T141: =VLOOKUP($A141,'BPT INPUT FROM APC'!$A$5:$F$12320,T$3,FALSE) -> 1132 | U141: =VLOOKUP($A141,'BPT INPUT FROM APC'!$A$5:$F$12320,U$3,FALSE) -> 1132 | V141: =VLOOKUP($A141,'BPT INPUT FROM APC'!$A$5:$F$12320,V$3,FALSE) -> 2007
A142: CZ09Y | T142: =VLOOKUP($A142,'BPT INPUT FROM APC'!$A$5:$F$12320,T$3,FALSE) -> 1140 | U142: =VLOOKUP($A142,'BPT INPUT FROM APC'!$A$5:$F$12320,U$3,FALSE) -> 1140 | V142: =VLOOKUP($A142,'BPT INPUT FROM APC'!$A$5:$F$12320,V$3,FALSE) -> 1045
A143: CZ10U | T143: =VLOOKUP($A143,'BPT INPUT FROM APC'!$A$5:$F$12320,T$3,FALSE) -> 2244 | U143: =VLOOKUP($A143,'BPT INPUT FROM APC'!$A$5:$F$12320,U$3,FALSE) -> 2244 | V143: =VLOOKUP($A143,'BPT INPUT FROM APC'!$A$5:$F$12320,V$3,FALSE) -> 4321
A144: CZ10V | T144: =VLOOKUP($A144,'BPT INPUT FROM APC'!$A$5:$F$12320,T$3,FALSE) -> 2366 | U144: =VLOOKUP($A144,'BPT INPUT FROM APC'!$A$5:$F$12320,U$3,FALSE) -> 2366 | V144: =VLOOKUP($A144,'BPT INPUT FROM APC'!$A$5:$F$12320,V$3,FALSE) -> 6139
A145: CZ10Y | T145: =VLOOKUP($A145,'BPT INPUT FROM APC'!$A$5:$F$12320,T$3,FALSE) -> 2238 | U145: =VLOOKUP($A145,'BPT INPUT FROM APC'!$A$5:$F$12320,U$3,FALSE) -> 2238 | V145: =VLOOKUP($A145,'BPT INPUT FROM APC'!$A$5:$F$12320,V$3,FALSE) -> 2716
A146: CZ11Z | T146: =VLOOKUP($A146,'BPT INPUT FROM APC'!$A$5:$F$12320,T$3,FALSE) -> 3047 | U146: =VLOOKUP($A146,'BPT INPUT FROM APC'!$A$5:$F$12320,U$3,FALSE) -> 3047 | V146: =VLOOKUP($A146,'BPT INPUT FROM APC'!$A$5:$F$12320,V$3,FALSE) -> 3888
A147: CZ12U | T147: =VLOOKUP($A147,'BPT INPUT FROM APC'!$A$5:$F$12320,T$3,FALSE) -> 724 | U147: =VLOOKUP($A147,'BPT INPUT FROM APC'!$A$5:$F$12320,U$3,FALSE) -> 724 | V147: =VLOOKUP($A147,'BPT INPUT FROM APC'!$A$5:$F$12320,V$3,FALSE) -> 815
A148: CZ12V | T148: =VLOOKUP($A148,'BPT INPUT FROM APC'!$A$5:$F$12320,T$3,FALSE) -> 765 | U148: =VLOOKUP($A148,'BPT INPUT FROM APC'!$A$5:$F$12320,U$3,FALSE) -> 765 | V148: =VLOOKUP($A148,'BPT INPUT FROM APC'!$A$5:$F$12320,V$3,FALSE) -> 1060
A149: CZ12Y | T149: =VLOOKUP($A149,'BPT INPUT FROM APC'!$A$5:$F$12320,T$3,FALSE) -> 651 | U149: =VLOOKUP($A149,'BPT INPUT FROM APC'!$A$5:$F$12320,U$3,FALSE) -> 651 | V149: =VLOOKUP($A149,'BPT INPUT FROM APC'!$A$5:$F$12320,V$3,FALSE) -> 800
A150: CZ13U | T150: =VLOOKUP($A150,'BPT INPUT FROM APC'!$A$5:$F$12320,T$3,FALSE) -> 1276 | U150: =VLOOKUP($A150,'BPT INPUT FROM APC'!$A$5:$F$12320,U$3,FALSE) -> 1276 | V150: =VLOOKUP($A150,'BPT INPUT FROM APC'!$A$5:$F$12320,V$3,FALSE) -> 1550
A151: CZ13V | T151: =VLOOKUP($A151,'BPT INPUT FROM APC'!$A$5:$F$12320,T$3,FALSE) -> 1316 | U151: =VLOOKUP($A151,'BPT INPUT FROM APC'!$A$5:$F$12320,U$3,FALSE) -> 1316 | V151: =VLOOKUP($A151,'BPT INPUT FROM APC'!$A$5:$F$12320,V$3,FALSE) -> 1206
A152: CZ13Y | T152: =VLOOKUP($A152,'BPT INPUT FROM APC'!$A$5:$F$12320,T$3,FALSE) -> 1261 | U152: =VLOOKUP($A152,'BPT INPUT FROM APC'!$A$5:$F$12320,U$3,FALSE) -> 1261 | V152: =VLOOKUP($A152,'BPT INPUT FROM APC'!$A$5:$F$12320,V$3,FALSE) -> 1007
A153: CZ14U | T153: =VLOOKUP($A153,'BPT INPUT FROM APC'!$A$5:$F$12320,T$3,FALSE) -> 1892 | U153: =VLOOKUP($A153,'BPT INPUT FROM APC'!$A$5:$F$12320,U$3,FALSE) -> 1892 | V153: =VLOOKUP($A153,'BPT INPUT FROM APC'!$A$5:$F$12320,V$3,FALSE) -> 4274
A154: CZ14V | T154: =VLOOKUP($A154,'BPT INPUT FROM APC'!$A$5:$F$12320,T$3,FALSE) -> 1643 | U154: =VLOOKUP($A154,'BPT INPUT FROM APC'!$A$5:$F$12320,U$3,FALSE) -> 1643 | V154: =VLOOKUP($A154,'BPT INPUT FROM APC'!$A$5:$F$12320,V$3,FALSE) -> 2195
A155: CZ14Y | T155: =VLOOKUP($A155,'BPT INPUT FROM APC'!$A$5:$F$12320,T$3,FALSE) -> 1572 | U155: =VLOOKUP($A155,'BPT INPUT FROM APC'!$A$5:$F$12320,U$3,FALSE) -> 1572 | V155: =VLOOKUP($A155,'BPT INPUT FROM APC'!$A$5:$F$12320,V$3,FALSE) -> 1786
A156: CZ15N | T156: =VLOOKUP($A156,'BPT INPUT FROM APC'!$A$5:$F$12320,T$3,FALSE) -> 1907 | U156: =VLOOKUP($A156,'BPT INPUT FROM APC'!$A$5:$F$12320,U$3,FALSE) -> 1907 | V156: =VLOOKUP($A156,'BPT INPUT FROM APC'!$A$5:$F$12320,V$3,FALSE) -> 4087
A157: CZ15Q | T157: =VLOOKUP($A157,'BPT INPUT FROM APC'!$A$5:$F$12320,T$3,FALSE) -> 1703 | U157: =VLOOKUP($A157,'BPT INPUT FROM APC'!$A$5:$F$12320,U$3,FALSE) -> 1703 | V157: =VLOOKUP($A157,'BPT INPUT FROM APC'!$A$5:$F$12320,V$3,FALSE) -> 3357
A158: CZ16N | T158: =VLOOKUP($A158,'BPT INPUT FROM APC'!$A$5:$F$12320,T$3,FALSE) -> 1435 | U158: =VLOOKUP($A158,'BPT INPUT FROM APC'!$A$5:$F$12320,U$3,FALSE) -> 1435 | V158: =VLOOKUP($A158,'BPT INPUT FROM APC'!$A$5:$F$12320,V$3,FALSE) -> 1785
A159: CZ16Q | T159: =VLOOKUP($A159,'BPT INPUT FROM APC'!$A$5:$F$12320,T$3,FALSE) -> 1243 | U159: =VLOOKUP($A159,'BPT INPUT FROM APC'!$A$5:$F$12320,U$3,FALSE) -> 1243 | V159: =VLOOKUP($A159,'BPT INPUT FROM APC'!$A$5:$F$12320,V$3,FALSE) -> 1668
A160: CZ17U | T160: =VLOOKUP($A160,'BPT INPUT FROM APC'!$A$5:$F$12320,T$3,FALSE) -> 1586 | U160: =VLOOKUP($A160,'BPT INPUT FROM APC'!$A$5:$F$12320,U$3,FALSE) -> 1586 | V160: =VLOOKUP($A160,'BPT INPUT FROM APC'!$A$5:$F$12320,V$3,FALSE) -> 2453
A161: CZ17V | T161: =VLOOKUP($A161,'BPT INPUT FROM APC'!$A$5:$F$12320,T$3,FALSE) -> 2376 | U161: =VLOOKUP($A161,'BPT INPUT FROM APC'!$A$5:$F$12320,U$3,FALSE) -> 2376 | V161: =VLOOKUP($A161,'BPT INPUT FROM APC'!$A$5:$F$12320,V$3,FALSE) -> 2916
A162: CZ17Y | T162: =VLOOKUP($A162,'BPT INPUT FROM APC'!$A$5:$F$12320,T$3,FALSE) -> 1519 | U162: =VLOOKUP($A162,'BPT INPUT FROM APC'!$A$5:$F$12320,U$3,FALSE) -> 1519 | V162: =VLOOKUP($A162,'BPT INPUT FROM APC'!$A$5:$F$12320,V$3,FALSE) -> 2279
A163: CZ18R | T163: =VLOOKUP($A163,'BPT INPUT FROM APC'!$A$5:$F$12320,T$3,FALSE) -> 3968 | U163: =VLOOKUP($A163,'BPT INPUT FROM APC'!$A$5:$F$12320,U$3,FALSE) -> 3968 | V163: =VLOOKUP($A163,'BPT INPUT FROM APC'!$A$5:$F$12320,V$3,FALSE) -> 3911
A164: CZ18U | T164: =VLOOKUP($A164,'BPT INPUT FROM APC'!$A$5:$F$12320,T$3,FALSE) -> 3731 | U164: =VLOOKUP($A164,'BPT INPUT FROM APC'!$A$5:$F$12320,U$3,FALSE) -> 3731 | V164: =VLOOKUP($A164,'BPT INPUT FROM APC'!$A$5:$F$12320,V$3,FALSE) -> 3350
A165: CZ19Z | T165: =VLOOKUP($A165,'BPT INPUT FROM APC'!$A$5:$F$12320,T$3,FALSE) -> 6932 | U165: =VLOOKUP($A165,'BPT INPUT FROM APC'!$A$5:$F$12320,U$3,FALSE) -> 6932 | V165: =VLOOKUP($A165,'BPT INPUT FROM APC'!$A$5:$F$12320,V$3,FALSE) -> 6718
A166: CZ20Z | T166: =VLOOKUP($A166,'BPT INPUT FROM APC'!$A$5:$F$12320,T$3,FALSE) -> 19038 | U166: =VLOOKUP($A166,'BPT INPUT FROM APC'!$A$5:$F$12320,U$3,FALSE) -> 19038 | V166: =VLOOKUP($A166,'BPT INPUT FROM APC'!$A$5:$F$12320,V$3,FALSE) -> 19038
A167: CZ21V | T167: =VLOOKUP($A167,'BPT INPUT FROM APC'!$A$5:$F$12320,T$3,FALSE) -> 1057 | U167: =VLOOKUP($A167,'BPT INPUT FROM APC'!$A$5:$F$12320,U$3,FALSE) -> 1057 | V167: =VLOOKUP($A167,'BPT INPUT FROM APC'!$A$5:$F$12320,V$3,FALSE) -> 728
A168: CZ21Y | T168: =VLOOKUP($A168,'BPT INPUT FROM APC'!$A$5:$F$12320,T$3,FALSE) -> 684 | U168: =VLOOKUP($A168,'BPT INPUT FROM APC'!$A$5:$F$12320,U$3,FALSE) -> 684 | V168: =VLOOKUP($A168,'BPT INPUT FROM APC'!$A$5:$F$12320,V$3,FALSE) -> 472
A169: CZ22W | T169: =VLOOKUP($A169,'BPT INPUT FROM APC'!$A$5:$F$12320,T$3,FALSE) -> 2051 | U169: =VLOOKUP($A169,'BPT INPUT FROM APC'!$A$5:$F$12320,U$3,FALSE) -> 2051 | V169: =VLOOKUP($A169,'BPT INPUT FROM APC'!$A$5:$F$12320,V$3,FALSE) -> 2299
A170: CZ22X | T170: =VLOOKUP($A170,'BPT INPUT FROM APC'!$A$5:$F$12320,T$3,FALSE) -> 1332 | U170: =VLOOKUP($A170,'BPT INPUT FROM APC'!$A$5:$F$12320,U$3,FALSE) -> 1332 | V170: =VLOOKUP($A170,'BPT INPUT FROM APC'!$A$5:$F$12320,V$3,FALSE) -> 938
A171: CZ22Y | T171: =VLOOKUP($A171,'BPT INPUT FROM APC'!$A$5:$F$12320,T$3,FALSE) -> 781 | U171: =VLOOKUP($A171,'BPT INPUT FROM APC'!$A$5:$F$12320,U$3,FALSE) -> 781 | V171: =VLOOKUP($A171,'BPT INPUT FROM APC'!$A$5:$F$12320,V$3,FALSE) -> 662
A172: CZ23W | T172: =VLOOKUP($A172,'BPT INPUT FROM APC'!$A$5:$F$12320,T$3,FALSE) -> 3019 | U172: =VLOOKUP($A172,'BPT INPUT FROM APC'!$A$5:$F$12320,U$3,FALSE) -> 3019 | V172: =VLOOKUP($A172,'BPT INPUT FROM APC'!$A$5:$F$12320,V$3,FALSE) -> 2756
A173: CZ23X | T173: =VLOOKUP($A173,'BPT INPUT FROM APC'!$A$5:$F$12320,T$3,FALSE) -> 1343 | U173: =VLOOKUP($A173,'BPT INPUT FROM APC'!$A$5:$F$12320,U$3,FALSE) -> 1343 | V173: =VLOOKUP($A173,'BPT INPUT FROM APC'!$A$5:$F$12320,V$3,FALSE) -> 1340
A174: CZ23Y | T174: =VLOOKUP($A174,'BPT INPUT FROM APC'!$A$5:$F$12320,T$3,FALSE) -> 1015 | U174: =VLOOKUP($A174,'BPT INPUT FROM APC'!$A$5:$F$12320,U$3,FALSE) -> 1015 | V174: =VLOOKUP($A174,'BPT INPUT FROM APC'!$A$5:$F$12320,V$3,FALSE) -> 621
A175: CZ24O | T175: =VLOOKUP($A175,'BPT INPUT FROM APC'!$A$5:$F$12320,T$3,FALSE) -> 5442 | U175: =VLOOKUP($A175,'BPT INPUT FROM APC'!$A$5:$F$12320,U$3,FALSE) -> 5442 | V175: =VLOOKUP($A175,'BPT INPUT FROM APC'!$A$5:$F$12320,V$3,FALSE) -> 5162
A176: CZ24P | T176: =VLOOKUP($A176,'BPT INPUT FROM APC'!$A$5:$F$12320,T$3,FALSE) -> 1739 | U176: =VLOOKUP($A176,'BPT INPUT FROM APC'!$A$5:$F$12320,U$3,FALSE) -> 1739 | V176: =VLOOKUP($A176,'BPT INPUT FROM APC'!$A$5:$F$12320,V$3,FALSE) -> 3024
A177: CZ24Q | T177: =VLOOKUP($A177,'BPT INPUT FROM APC'!$A$5:$F$12320,T$3,FALSE) -> 1584 | U177: =VLOOKUP($A177,'BPT INPUT FROM APC'!$A$5:$F$12320,U$3,FALSE) -> 1584 | V177: =VLOOKUP($A177,'BPT INPUT FROM APC'!$A$5:$F$12320,V$3,FALSE) -> 2326
A178: CZ27Z | T178: =VLOOKUP($A178,'BPT INPUT FROM APC'!$A$5:$F$12320,T$3,FALSE) -> 2601 | U178: =VLOOKUP($A178,'BPT INPUT FROM APC'!$A$5:$F$12320,U$3,FALSE) -> 2601 | V178: =VLOOKUP($A178,'BPT INPUT FROM APC'!$A$5:$F$12320,V$3,FALSE) -> 2601
A179: CZ30U | T179: =VLOOKUP($A179,'BPT INPUT FROM APC'!$A$5:$F$12320,T$3,FALSE) -> 482 | U179: =VLOOKUP($A179,'BPT INPUT FROM APC'!$A$5:$F$12320,U$3,FALSE) -> 482 | V179: =VLOOKUP($A179,'BPT INPUT FROM APC'!$A$5:$F$12320,V$3,FALSE) -> 893
A180: CZ30Y | T180: =VLOOKUP($A180,'BPT INPUT FROM APC'!$A$5:$F$12320,T$3,FALSE) -> 220 | U180: =VLOOKUP($A180,'BPT INPUT FROM APC'!$A$5:$F$12320,U$3,FALSE) -> 220 | V180: =VLOOKUP($A180,'BPT INPUT FROM APC'!$A$5:$F$12320,V$3,FALSE) -> 853
A181: CZ31U | T181: =VLOOKUP($A181,'BPT INPUT FROM APC'!$A$5:$F$12320,T$3,FALSE) -> 563 | U181: =VLOOKUP($A181,'BPT INPUT FROM APC'!$A$5:$F$12320,U$3,FALSE) -> 563 | V181: =VLOOKUP($A181,'BPT INPUT FROM APC'!$A$5:$F$12320,V$3,FALSE) -> 786
A182: CZ31Y | T182: =VLOOKUP($A182,'BPT INPUT FROM APC'!$A$5:$F$12320,T$3,FALSE) -> 257 | U182: =VLOOKUP($A182,'BPT INPUT FROM APC'!$A$5:$F$12320,U$3,FALSE) -> 257 | V182: =VLOOKUP($A182,'BPT INPUT FROM APC'!$A$5:$F$12320,V$3,FALSE) -> 651
A183: CZ32U | T183: =VLOOKUP($A183,'BPT INPUT FROM APC'!$A$5:$F$12320,T$3,FALSE) -> 1003 | U183: =VLOOKUP($A183,'BPT INPUT FROM APC'!$A$5:$F$12320,U$3,FALSE) -> 1003 | V183: =VLOOKUP($A183,'BPT INPUT FROM APC'!$A$5:$F$12320,V$3,FALSE) -> 652
A184: CZ32Y | T184: =VLOOKUP($A184,'BPT INPUT FROM APC'!$A$5:$F$12320,T$3,FALSE) -> 867 | U184: =VLOOKUP($A184,'BPT INPUT FROM APC'!$A$5:$F$12320,U$3,FALSE) -> 867 | V184: =VLOOKUP($A184,'BPT INPUT FROM APC'!$A$5:$F$12320,V$3,FALSE) -> 509
A185: CZ33U | T185: =VLOOKUP($A185,'BPT INPUT FROM APC'!$A$5:$F$12320,T$3,FALSE) -> 560 | U185: =VLOOKUP($A185,'BPT INPUT FROM APC'!$A$5:$F$12320,U$3,FALSE) -> 560 | V185: =VLOOKUP($A185,'BPT INPUT FROM APC'!$A$5:$F$12320,V$3,FALSE) -> 753
A186: CZ33Y | T186: =VLOOKUP($A186,'BPT INPUT FROM APC'!$A$5:$F$12320,T$3,FALSE) -> 245 | U186: =VLOOKUP($A186,'BPT INPUT FROM APC'!$A$5:$F$12320,U$3,FALSE) -> 245 | V186: =VLOOKUP($A186,'BPT INPUT FROM APC'!$A$5:$F$12320,V$3,FALSE) -> 1090
A187: CZ34U | T187: =VLOOKUP($A187,'BPT INPUT FROM APC'!$A$5:$F$12320,T$3,FALSE) -> 607 | U187: =VLOOKUP($A187,'BPT INPUT FROM APC'!$A$5:$F$12320,U$3,FALSE) -> 607 | V187: =VLOOKUP($A187,'BPT INPUT FROM APC'!$A$5:$F$12320,V$3,FALSE) -> 1023
A188: CZ34Y | T188: =VLOOKUP($A188,'BPT INPUT FROM APC'!$A$5:$F$12320,T$3,FALSE) -> 133 | U188: =VLOOKUP($A188,'BPT INPUT FROM APC'!$A$5:$F$12320,U$3,FALSE) -> 133 | V188: =VLOOKUP($A188,'BPT INPUT FROM APC'!$A$5:$F$12320,V$3,FALSE) -> 1148
A189: CZ35U | T189: =VLOOKUP($A189,'BPT INPUT FROM APC'!$A$5:$F$12320,T$3,FALSE) -> 117 | U189: =VLOOKUP($A189,'BPT INPUT FROM APC'!$A$5:$F$12320,U$3,FALSE) -> 117 | V189: =VLOOKUP($A189,'BPT INPUT FROM APC'!$A$5:$F$12320,V$3,FALSE) -> 241
A190: CZ35Y | T190: =VLOOKUP($A190,'BPT INPUT FROM APC'!$A$5:$F$12320,T$3,FALSE) -> 119 | U190: =VLOOKUP($A190,'BPT INPUT FROM APC'!$A$5:$F$12320,U$3,FALSE) -> 119 | V190: =VLOOKUP($A190,'BPT INPUT FROM APC'!$A$5:$F$12320,V$3,FALSE) -> 1615
A191: CZ36U | T191: =VLOOKUP($A191,'BPT INPUT FROM APC'!$A$5:$F$12320,T$3,FALSE) -> 717 | U191: =VLOOKUP($A191,'BPT INPUT FROM APC'!$A$5:$F$12320,U$3,FALSE) -> 717 | V191: =VLOOKUP($A191,'BPT INPUT FROM APC'!$A$5:$F$12320,V$3,FALSE) -> 913
A192: CZ36Y | T192: =VLOOKUP($A192,'BPT INPUT FROM APC'!$A$5:$F$12320,T$3,FALSE) -> 591 | U192: =VLOOKUP($A192,'BPT INPUT FROM APC'!$A$5:$F$12320,U$3,FALSE) -> 591 | V192: =VLOOKUP($A192,'BPT INPUT FROM APC'!$A$5:$F$12320,V$3,FALSE) -> 756
A193: CZ37U | T193: =VLOOKUP($A193,'BPT INPUT FROM APC'!$A$5:$F$12320,T$3,FALSE) -> 827 | U193: =VLOOKUP($A193,'BPT INPUT FROM APC'!$A$5:$F$12320,U$3,FALSE) -> 827 | V193: =VLOOKUP($A193,'BPT INPUT FROM APC'!$A$5:$F$12320,V$3,FALSE) -> 1056
A194: CZ37Y | T194: =VLOOKUP($A194,'BPT INPUT FROM APC'!$A$5:$F$12320,T$3,FALSE) -> 525 | U194: =VLOOKUP($A194,'BPT INPUT FROM APC'!$A$5:$F$12320,U$3,FALSE) -> 525 | V194: =VLOOKUP($A194,'BPT INPUT FROM APC'!$A$5:$F$12320,V$3,FALSE) -> 1140
A195: CZ38U | T195: =VLOOKUP($A195,'BPT INPUT FROM APC'!$A$5:$F$12320,T$3,FALSE) -> 124 | U195: =VLOOKUP($A195,'BPT INPUT FROM APC'!$A$5:$F$12320,U$3,FALSE) -> 124 | V195: =VLOOKUP($A195,'BPT INPUT FROM APC'!$A$5:$F$12320,V$3,FALSE) -> 1350
A196: CZ38Y | T196: =VLOOKUP($A196,'BPT INPUT FROM APC'!$A$5:$F$12320,T$3,FALSE) -> 142 | U196: =VLOOKUP($A196,'BPT INPUT FROM APC'!$A$5:$F$12320,U$3,FALSE) -> 142 | V196: =VLOOKUP($A196,'BPT INPUT FROM APC'!$A$5:$F$12320,V$3,FALSE) -> 2337
A197: CZ39U | T197: =VLOOKUP($A197,'BPT INPUT FROM APC'!$A$5:$F$12320,T$3,FALSE) -> 955 | U197: =VLOOKUP($A197,'BPT INPUT FROM APC'!$A$5:$F$12320,U$3,FALSE) -> 955 | V197: =VLOOKUP($A197,'BPT INPUT FROM APC'!$A$5:$F$12320,V$3,FALSE) -> 1052
A198: CZ39Y | T198: =VLOOKUP($A198,'BPT INPUT FROM APC'!$A$5:$F$12320,T$3,FALSE) -> 852 | U198: =VLOOKUP($A198,'BPT INPUT FROM APC'!$A$5:$F$12320,U$3,FALSE) -> 852 | V198: =VLOOKUP($A198,'BPT INPUT FROM APC'!$A$5:$F$12320,V$3,FALSE) -> 982
A199: CZ40U | T199: =VLOOKUP($A199,'BPT INPUT FROM APC'!$A$5:$F$12320,T$3,FALSE) -> 924 | U199: =VLOOKUP($A199,'BPT INPUT FROM APC'!$A$5:$F$12320,U$3,FALSE) -> 924 | V199: =VLOOKUP($A199,'BPT INPUT FROM APC'!$A$5:$F$12320,V$3,FALSE) -> 1266
A200: CZ40Y | T200: =VLOOKUP($A200,'BPT INPUT FROM APC'!$A$5:$F$12320,T$3,FALSE) -> 627 | U200: =VLOOKUP($A200,'BPT INPUT FROM APC'!$A$5:$F$12320,U$3,FALSE) -> 627 | V200: =VLOOKUP($A200,'BPT INPUT FROM APC'!$A$5:$F$12320,V$3,FALSE) -> 1342
A201: CZ41U | T201: =VLOOKUP($A201,'BPT INPUT FROM APC'!$A$5:$F$12320,T$3,FALSE) -> 931 | U201: =VLOOKUP($A201,'BPT INPUT FROM APC'!$A$5:$F$12320,U$3,FALSE) -> 931 | V201: =VLOOKUP($A201,'BPT INPUT FROM APC'!$A$5:$F$12320,V$3,FALSE) -> 1039
... 1110 more rows

Sheet OPATT Prices I
A1: 2015-16 tariff - outpatient attendances | M1: 2014-15 tariff - outpatient attendances | U1: Difference between 2015/16 & 2014/15
C3: CONSULTANT-LED (£) | O3: CONSULTANT-LED (£) | W3: CONSULTANT-LED (£)
A4: Treatment function | B4: Treatment function name | C4: WF01B First Attendance - Single Professional | D4: WF02B First Attendance - Multi Professional | E4: WF01A Follow Up Attendance - Single Professional | F4: WF02A Follow Up Attendance - Multi Professional | G4: WF01B Modelled or roll-over | H4: WF02B Modelled or roll-over | I4: WF01A Modelled or roll-over | J4: WF02A Modelled or roll-over | M4: Treatment function | N4: Treatment function name | O4: WF01B First Attendance - Single Professional | P4: WF02B First Attendance - Multi Professional | Q4: WF01A Follow Up Attendance - Single Professional | R4: WF02A Follow Up Attendance - Multi Professional | U4: Treatment function | V4: Treatment function name | W4: WF01B First Attendance - Single Professional | X4: WF02B First Attendance - Multi Professional | Y4: WF01A Follow Up Attendance - Single Professional | Z4: WF02A Follow Up Attendance - Multi Professional
A5: 100 | B5: General Surgery | C5: 141.5059826 | D5: 220.2750234 | E5: 86.87455274 | F5: 126.2825054 | G5: Modelled | H5: Modelled | I5: Modelled | J5: Modelled | M5: 100 | N5: General Surgery | O5: 140 | P5: 150 | Q5: 81 | R5: 95 | U5: 100 | V5: General Surgery | W5: =C5/O5-1 -> 0.01075701876 | X5: 0.4685001559 | Y5: 0.07252534247 | Z5: 0.329289531
A6: 101 | B6: Urology | C6: 130.4279366 | D6: 199.8742628 | E6: 74.40454249 | F6: 103.4719754 | G6: Modelled | H6: Modelled | I6: Modelled | J6: Modelled | M6: 101 | N6: Urology | O6: 127 | P6: 155 | Q6: 70 | R6: 106 | U6: 101 | V6: Urology | W6: 0.02699162667 | X6: 0.2895113731 | Y6: 0.06292203564 | Z6: -0.02384928876
A7: 103 | B7: Breast Surgery | C7: 164.8073655 | D7: 164.8073655 | E7: 94.43208588 | F7: 94.43208588 | G7: Modelled | H7: Modelled | I7: Modelled | J7: Modelled | M7: 103 | N7: Breast Surgery | O7: 148 | P7: 148 | Q7: 85 | R7: 98 | U7: 103 | V7: Breast Surgery | W7: 0.1135632801 | X7: 0.1135632801 | Y7: 0.1109657163 | Z7: -0.03640728689
A8: 104 | B8: Colorectal Surgery | C8: 118.6006197 | D8: 126.8442972 | E8: 73.98364799 | F8: 99.83066143 | G8: Modelled | H8: Modelled | I8: Modelled | J8: Modelled | M8: 104 | N8: Colorectal Surgery | O8: 118 | P8: 118 | Q8: 71 | R8: 108 | U8: 104 | V8: Colorectal Surgery | W8: 0.005089997396 | X8: 0.07495167141 | Y8: 0.04202321119 | Z8: -0.07564202383
A9: 105 | B9: Hepatobiliary & Pancreatic Surgery | C9: 184.1251448 | D9: 204.4968053 | E9: 118.0805797 | F9: 138.47676 | G9: Modelled | H9: Modelled | I9: Modelled | J9: Modelled | M9: 105 | N9: Hepatobiliary & Pancreatic Surgery | O9: 155 | P9: 228 | Q9: 101 | R9: 158 | U9: 105 | V9: Hepatobiliary & Pancreatic Surgery | W9: 0.1879041603 | X9: -0.1030841874 | Y9: 0.1691146506 | Z9: -0.1235648104
A10: 106 | B10: Upper Gastrointestinal Surgery | C10: 111.5611138 | D10: 141.9001582 | E10: 79.53949519 | F10: 98.90828222 | G10: Modelled | H10: Modelled | I10: Modelled | J10: Modelled | M10: 106 | N10: Upper Gastrointestinal Surgery | O10: 118 | P10: 134 | Q10: 75 | R10: 97 | U10: 106 | V10: Upper Gastrointestinal Surgery | W10: -0.05456683191 | X10: 0.05895640465 | Y10: 0.06052660255 | Z10: 0.01967301263
A11: 107 | B11: Vascular Surgery | C11: 162.2797103 | D11: 174.0594624 | E11: 102.8521031 | F11: 117.4709137 | G11: Modelled | H11: Modelled | I11: Modelled | J11: Modelled | M11: 107 | N11: Vascular Surgery | O11: 154 | P11: 154 | Q11: 92 | R11: 92 | U11: 107 | V11: Vascular Surgery | W11: 0.05376435242 | X11: 0.1302562492 | Y11: 0.1179576428 | Z11: 0.2768577581
A12: 108 | B12: Spinal Surgery Service | C12: 159.033738 | D12: 159.033738 | E12: 96.80314485 | F12: 96.80314485 | G12: Roll-Over | H12: Roll-Over | I12: Roll-Over | J12: Roll-Over | M12: 108 | N12: Spinal Surgery Service | O12: 161 | P12: 161 | Q12: 98 | R12: 98 | U12: 108 | V12: Spinal Surgery Service | W12: -0.01221280766 | X12: -0.01221280766 | Y12: -0.01221280766 | Z12: -0.01221280766
A13: 110 | B13: Trauma & Orthopaedics | C13: 127.3348897 | D13: 128.8774781 | E13: 75.00183993 | F13: 84.03326217 | G13: Modelled | H13: Modelled | I13: Modelled | J13: Modelled | M13: 110 | N13: Trauma & Orthopaedics | O13: 119 | P13: 124 | Q13: 70 | R13: 70 | U13: 110 | V13: Trauma & Orthopaedics | W13: 0.07004109018 | X13: 0.03933450097 | Y13: 0.07145485611 | Z13: 0.2004751739
A14: 120 | B14: ENT | C14: 105.4152576 | D14: 164.5951198 | E14: 65.00059566 | F14: 90.10976302 | G14: Modelled | H14: Modelled | I14: Modelled | J14: Modelled | M14: 120 | N14: ENT | O14: 103 | P14: 136 | Q14: 62 | R14: 81 | U14: 120 | V14: ENT | W14: 0.02344910317 | X14: 0.2102582342 | Y14: 0.04839670416 | Z14: 0.1124662101
A15: 130 | B15: Ophthalmology | C15: 110.8745666 | D15: 123.4612452 | E15: 62.67984404 | F15: 92.73871132 | G15: Modelled | H15: Modelled | I15: Modelled | J15: Modelled | M15: 130 | N15: Ophthalmology | O15: 104 | P15: 106 | Q15: 59 | R15: 86 | U15: 130 | V15: Ophthalmology | W15: 0.06610160165 | X15: 0.1647287281 | Y15: 0.06237023794 | Z15: 0.07835710833
A16: 140 | B16: Oral Surgery | C16: 116.9627633 | D16: 181.6780266 | E16: 73.00479874 | F16: 126.0451171 | G16: Modelled | H16: Modelled | I16: Modelled | J16: Modelled | M16: 140 | N16: Oral Surgery | O16: 118 | P16: 147 | Q16: 75 | R16: 106 | U16: 140 | V16: Oral Surgery | W16: -0.008790141594 | X16: 0.2359049429 | Y16: -0.02660268344 | Z16: 0.189104878
A17: 143 | B17: Orthodontics | C17: 152.2741363 | D17: 203.1601821 | E17: 76.75207067 | F17: 104.9619914 | G17: Modelled | H17: Modelled | I17: Modelled | J17: Modelled | M17: 143 | N17: Orthodontics | O17: 180 | P17: 247 | Q17: 80 | R17: 113 | U17: 143 | V17: Orthodontics | W17: -0.1540325759 | X17: -0.1774891413 | Y17: -0.04059911667 | Z17: -0.07113281972
A18: 144 | B18: Maxillo-Facial Surgery | C18: 106.381055 | D18: 171.9381778 | E18: 72.31007782 | F18: 81.39693738 | G18: Modelled | H18: Modelled | I18: Modelled | J18: Modelled | M18: 144 | N18: Maxillo-Facial Surgery | O18: 113 | P18: 178 | Q18: 74 | R18: 74 | U18: 144 | V18: Maxillo-Facial Surgery | W18: -0.0585747347 | X18: -0.03405518066 | Y18: -0.02283678627 | Z18: 0.0999586133
A19: 160 | B19: Plastic Surgery | C19: 112.3560115 | D19: 149.3567217 | E19: 64.85107326 | F19: 99.18530651 | G19: Modelled | H19: Modelled | I19: Modelled | J19: Modelled | M19: 160 | N19: Plastic Surgery | O19: 110 | P19: 124 | Q19: 63 | R19: 80 | U19: 160 | V19: Plastic Surgery | W19: 0.02141828625 | X19: 0.2044896911 | Y19: 0.02938211528 | Z19: 0.2398163314
A20: 170 | B20: Cardiothoracic Surgery | C20: 255.9147023 | D20: 255.9147023 | E20: 174.6593496 | F20: 177.4414179 | G20: Modelled | H20: Modelled | I20: Modelled | J20: Modelled | M20: 170 | N20: Cardiothoracic Surgery | O20: 234 | P20: 234 | Q20: 156 | R20: 156 | U20: 170 | V20: Cardiothoracic Surgery | W20: 0.09365257389 | X20: 0.09365257389 | Y20: 0.1196112151 | Z20: 0.1374449866
A21: 171 | B21: Paediatric Surgery | C21: 166.5583375 | D21: 166.5583375 | E21: 108.6399165 | F21: 110.762968 | G21: Modelled | H21: Modelled | I21: Modelled | J21: Modelled | M21: 171 | N21: Paediatric Surgery | O21: 177 | P21: 288 | Q21: 108 | R21: 176 | U21: 171 | V21: Paediatric Surgery | W21: -0.05899244375 | X21: -0.4216724394 | Y21: 0.005925152987 | Z21: -0.3706649543
A22: 172 | B22: Cardiac Surgery | C22: 275.360739 | D22: 275.360739 | E22: 179.3078843 | F22: 179.3078843 | G22: Modelled | H22: Modelled | I22: Modelled | J22: Modelled | M22: 172 | N22: Cardiac Surgery | O22: 268 | P22: 268 | Q22: 151 | R22: 229 | U22: 172 | V22: Cardiac Surgery | W22: 0.02746544411 | X22: 0.02746544411 | Y22: 0.1874694323 | Z22: -0.2169961385
A23: 173 | B23: Thoracic Surgery | C23: 270.3393974 | D23: 272.3916553 | E23: 166.2514463 | F23: 167.2182921 | G23: Modelled | H23: Modelled | I23: Modelled | J23: Modelled | M23: 173 | N23: Thoracic Surgery | O23: 227 | P23: 227 | Q23: 146 | R23: 155 | U23: 173 | V23: Thoracic Surgery | W23: 0.1909224555 | X23: 0.1999632391 | Y23: 0.1387085366 | Z23: 0.07882769085
A24: 190 | B24: Anaesthetics | C24: 92.93913171 | D24: 92.93913171 | E24: 59.72516987 | F24: 82.81770232 | G24: Modelled | H24: Modelled | I24: Modelled | J24: Modelled | M24: 190 | N24: Anaesthetics | O24: 125 | P24: 125 | Q24: 65 | R24: 95 | U24: 190 | V24: Anaesthetics | W24: -0.2564869463 | X24: -0.2564869463 | Y24: -0.08115123284 | Z24: -0.1282347124
A25: 191 | B25: Pain Management | C25: 161.7358008 | D25: 161.7358008 | E25: 90.80859963 | F25: 90.80859963 | G25: Modelled | H25: Modelled | I25: Modelled | J25: Modelled | M25: 191 | N25: Pain Management | O25: 168 | P25: 168 | Q25: 89 | R25: 123 | U25: 191 | V25: Pain Management | W25: -0.03728689997 | X25: -0.03728689997 | Y25: 0.02032134419 | Z25: -0.2617187022
A26: 211 | B26: Paediatric Urology | C26: 170.1181468 | D26: 298.6430308 | E26: 141.4131664 | F26: 203.8123016 | G26: Modelled | H26: Modelled | I26: Modelled | J26: Modelled | M26: 211 | N26: Paediatric Urology | O26: 162 | P26: 162 | Q26: 94 | R26: 106 | U26: 211 | V26: Paediatric Urology | W26: 0.05011201699 | X26: 0.8434754986 | Y26: 0.5043953872 | Z26: 0.9227575626
A27: 214 | B27: Paediatric Trauma & Orthopaedics | C27: 143.3785744 | D27: 143.3785744 | E27: 92.07766804 | F27: 107.3458145 | G27: Modelled | H27: Modelled | I27: Modelled | J27: Modelled | M27: 214 | N27: Paediatric Trauma & Orthopaedics | O27: 139 | P27: 139 | Q27: 92 | R27: 100 | U27: 214 | V27: Paediatric Trauma & Orthopaedics | W27: 0.03150053494 | X27: 0.03150053494 | Y27: 0.00084421787 | Z27: 0.07345814527
A28: 215 | B28: Paediatric Ear Nose & Throat | C28: 105.4152576 | D28: 164.5951198 | E28: 65.00059566 | F28: 90.10976302 | G28: Modelled | H28: Modelled | I28: Modelled | J28: Modelled | M28: 215 | N28: Paediatric Ear Nose & Throat | O28: 103 | P28: 136 | Q28: 65 | R28: 81 | U28: 215 | V28: Paediatric Ear Nose & Throat | W28: 0.02344910317 | X28: 0.2102582342 | Y28: 9.16397225e-06 | Z28: 0.1124662101
A29: 216 | B29: Paediatric Ophthalmology | C29: 133.518214 | D29: 162.8102849 | E29: 80.22886309 | F29: 133.1788484 | G29: Modelled | H29: Modelled | I29: Modelled | J29: Modelled | M29: 216 | N29: Paediatric Ophthalmology | O29: 149 | P29: 149 | Q29: 100 | R29: 108 | U29: 216 | V29: Paediatric Ophthalmology | W29: -0.1039046043 | X29: 0.09268647581 | Y29: -0.1977113691 | Z29: 0.233137485
A30: 217 | B30: Paediatric Maxillo-Facial Surgery | C30: 126.2597078 | D30: 208.7363638 | E30: 126.2597078 | F30: 184.7096186 | G30: Modelled | H30: Modelled | I30: Modelled | J30: Modelled | M30: 217 | N30: Paediatric Maxillo-Facial Surgery | O30: 188 | P30: 375 | Q30: 133 | R30: 264 | U30: 217 | V30: Paediatric Maxillo-Facial Surgery | W30: -0.3284058097 | X30: -0.4433696965 | Y30: -0.05067888891 | Z30: -0.3003423539
A31: 219 | B31: Paediatric Plastic Surgery | C31: 135.1920058 | D31: 190.3439597 | E31: 103.0840692 | F31: 103.0840692 | G31: Modelled | H31: Modelled | I31: Modelled | J31: Modelled | M31: 219 | N31: Paediatric Plastic Surgery | O31: 134 | P31: 267 | Q31: 99 | R31: 115 | U31: 219 | V31: Paediatric Plastic Surgery | W31: 0.008895565341 | X31: -0.2871012747 | Y31: 0.0412532243 | Z31: -0.1036167895
A32: 223 | B32: Paediatric Epilepsy | C32: 209.4108848 | D32: 209.4108848 | E32: 167.9238227 | F32: 167.9238227 | G32: Roll-Over | H32: Roll-Over | I32: Roll-Over | J32: Roll-Over | M32: 223 | N32: Paediatric Epilepsy | O32: 212 | P32: 212 | Q32: 170 | R32: 170 | U32: 223 | V32: Paediatric Epilepsy | W32: -0.01221280766 | X32: -0.01221280766 | Y32: -0.01221280766 | Z32: -0.01221280766
A33: 251 | B33: Paediatric Gastroenterology | C33: 252.0370765 | D33: 252.0370765 | E33: 146.4479984 | F33: 146.4479984 | G33: Modelled | H33: Modelled | I33: Modelled | J33: Modelled | M33: 251 | N33: Paediatric Gastroenterology | O33: 243 | P33: 258 | Q33: 155 | R33: 155 | U33: 251 | V33: Paediatric Gastroenterology | W33: 0.03718961526 | X33: -0.02311210656 | Y33: -0.0551742039 | Z33: -0.0551742039
A34: 252 | B34: Paediatric Endocrinology | C34: 378.4043702 | D34: 378.4043702 | E34: 182.6823173 | F34: 196.5098438 | G34: Modelled | H34: Modelled | I34: Modelled | J34: Modelled | M34: 252 | N34: Paediatric Endocrinology | O34: 373 | P34: 373 | Q34: 176 | R34: 188 | U34: 252 | V34: Paediatric Endocrinology | W34: 0.01448892817 | X34: 0.01448892817 | Y34: 0.03796771216 | Z34: 0.04526512667
A35: 253 | B35: Paediatric Clinical Haematology | C35: 423.07519 | D35: 454.5620002 | E35: 205.8097461 | F35: 212.2270315 | G35: Modelled | H35: Modelled | I35: Modelled | J35: Modelled | M35: 253 | N35: Paediatric Clinical Haematology | O35: 417 | P35: 417 | Q35: 203 | R35: 212 | U35: 253 | V35: Paediatric Clinical Haematology | W35: 0.01456880095 | X35: 0.09007673911 | Y35: 0.01384111397 | Z35: 0.001070903444
A36: 257 | B36: Paediatric Dermatology | C36: 127.606652 | D36: 197.4196852 | E36: 92.46152498 | F36: 161.3490062 | G36: Modelled | H36: Modelled | I36: Modelled | J36: Modelled | M36: 257 | N36: Paediatric Dermatology | O36: 133 | P36: 133 | Q36: 90 | R36: 110 | U36: 257 | V36: Paediatric Dermatology | W36: -0.0405514885 | X36: 0.4843585355 | Y36: 0.02735027755 | Z36: 0.4668091471
A37: 258 | B37: Paediatric Respiratory Medicine | C37: 279.5169499 | D37: 288.8355688 | E37: 147.7780324 | F37: 170.4026049 | G37: Modelled | H37: Modelled | I37: Modelled | J37: Modelled | M37: 258 | N37: Paediatric Respiratory Medicine | O37: 287 | P37: 287 | Q37: 151 | R37: 165 | U37: 258 | V37: Paediatric Respiratory Medicine | W37: =C37/O37-1 -> -0.02607334538 | X37: 0.006395710001 | Y37: -0.02133753388 | Z37: 0.03274305981
A38: 263 | B38: Paediatric Diabetic Medicine | C38: 145.5764084 | D38: 145.5764084 | E38: 66.76359587 | F38: 96.21743965 | G38: Modelled | H38: Modelled | I38: Modelled | J38: Modelled | M38: 263 | N38: Paediatric Diabetic Medicine | O38: 222 | P38: 224 | Q38: 126 | R38: 126 | U38: 263 | V38: Paediatric Diabetic Medicine | W38: -0.3442504127 | X38: -0.3501053197 | Y38: -0.4701301915 | Z38: -0.2363695266
A39: 300 | B39: General Medicine | C39: 179.4253827 | D39: 254.1650536 | E39: 105.9990888 | F39: 137.1167348 | G39: Manual Adjusted | H39: Manual Adjusted | I39: Manual Adjusted | J39: Manual Adjusted | M39: 300 | N39: General Medicine | O39: 178 | P39: 233 | Q39: 101 | R39: 201 | U39: 300 | V39: General Medicine | W39: 0.008007768256 | X39: 0.09083713984 | Y39: 0.04949592872 | Z39: -0.3178271901
A40: 301 | B40: Gastroenterology | C40: 179.4253827 | D40: 254.1650536 | E40: 105.9990888 | F40: 137.1167348 | G40: Manual Adjusted | H40: Manual Adjusted | I40: Manual Adjusted | J40: Manual Adjusted | M40: 301 | N40: Gastroenterology | O40: 178 | P40: 233 | Q40: 101 | R40: 201 | U40: 301 | V40: Gastroenterology | W40: 0.008007768256 | X40: 0.09083713984 | Y40: 0.04949592872 | Z40: -0.3178271901
A41: 302 | B41: Endocrinology | C41: 186.0648519 | D41: 186.0648519 | E41: 94.30252584 | F41: 104.1338634 | G41: Modelled | H41: Modelled | I41: Modelled | J41: Modelled | M41: 302 | N41: Endocrinology | O41: 187 | P41: 187 | Q41: 93 | R41: 140 | U41: 302 | V41: Endocrinology | W41: -0.005000791727 | X41: -0.005000791727 | Y41: 0.01400565416 | Z41: -0.2561866902
A42: 303 | B42: Clinical Haematology | C42: 282.9785312 | D42: 454.5620002 | E42: 118.4151527 | F42: 212.2270315 | G42: Modelled | H42: Modelled | I42: Modelled | J42: Modelled | M42: 303 | N42: Clinical Haematology | O42: 243 | P42: 244 | Q42: 111 | R42: 171 | U42: 303 | V42: Clinical Haematology | W42: 0.1645207045 | X42: 0.8629590173 | Y42: 0.06680317749 | Z42: 0.2410937516
A43: 306 | B43: Hepatology | C43: 179.4253827 | D43: 254.1650536 | E43: 105.9990888 | F43: 137.1167348 | G43: Manual Adjusted | H43: Manual Adjusted | I43: Manual Adjusted | J43: Manual Adjusted | M43: 306 | N43: Hepatology | O43: 178 | P43: 233 | Q43: 101 | R43: 201 | U43: 306 | V43: Hepatology | W43: 0.008007768256 | X43: 0.09083713984 | Y43: 0.04949592872 | Z43: -0.3178271901
A44: 307 | B44: Diabetic Medicine | C44: 200.964791 | D44: 206.2790595 | E44: 93.80007693 | F44: 110.1133131 | G44: Modelled | H44: Modelled | I44: Modelled | J44: Modelled | M44: 307 | N44: Diabetic Medicine | O44: 222 | P44: 224 | Q44: 99 | R44: 99 | U44: 307 | V44: Diabetic Medicine | W44: -0.09475319388 | X44: -0.07911134162 | Y44: -0.05252447548 | Z44: 0.1122556879
A45: 320 | B45: Cardiology | C45: 163.0466102 | D45: 226.2051199 | E45: 94.61831749 | F45: 145.3774764 | G45: Modelled | H45: Modelled | I45: Modelled | J45: Modelled | M45: 320 | N45: Cardiology | O45: 164 | P45: 189 | Q45: 92 | R45: 131 | U45: 320 | V45: Cardiology | W45: -0.005813352436 | X45: 0.1968524865 | Y45: 0.02845997273 | Z45: 0.109751728
A46: 321 | B46: Paediatric Cardiology | C46: 224.9335052 | D46: 227.8303454 | E46: 122.8250224 | F46: 163.6967191 | G46: Modelled | H46: Modelled | I46: Modelled | J46: Modelled | M46: 321 | N46: Paediatric Cardiology | O46: 217 | P46: 217 | Q46: 144 | R46: 160 | U46: 321 | V46: Paediatric Cardiology | W46: 0.03655993171 | X46: 0.04990942561 | Y46: -0.1470484556 | Z46: 0.02310449438
A47: 329 | B47: Transient Ischaemic Attack | C47: 193.0430063 | D47: 386.0860125 | E47: 142.9954184 | F47: 285.9908367 | G47: Modelled | H47: Modelled | I47: Modelled | J47: Modelled | M47: 329 | N47: Transient Ischaemic Attack | O47: 317 | P47: 317 | Q47: - | R47: - | U47: 329 | V47: Transient Ischaemic Attack | W47: -0.391031526 | X47: 0.2179369481
A48: 330 | B48: Dermatology | C48: 105.6290187 | D48: 120.8319344 | E48: 68.77939312 | F48: 75.59386364 | G48: Modelled | H48: Modelled | I48: Modelled | J48: Modelled | M48: 330 | N48: Dermatology | O48: 104 | P48: 133 | Q48: 68 | R48: 81 | U48: 330 | V48: Dermatology | W48: 0.01566364089 | X48: -0.09148921492 | Y48: 0.01146166346 | Z48: -0.06674242424
A49: 340 | B49: Respiratory Medicine | C49: 178.7230337 | D49: 272.4544019 | E49: 103.6496215 | F49: 170.4026049 | G49: Modelled | H49: Modelled | I49: Modelled | J49: Modelled | M49: 340 | N49: Respiratory Medicine | O49: 186 | P49: 241 | Q49: 102 | R49: 143 | U49: 340 | V49: Respiratory Medicine | W49: -0.03912347461 | X49: 0.1305161905 | Y49: 0.01617275994 | Z49: 0.1916266075
A50: 341 | B50: Respiratory Physiology | C50: 163.995955 | D50: 327.99191 | E50: 134.3380027 | F50: 268.6760053 | G50: Modelled | H50: Modelled | I50: Modelled | J50: Modelled | M50: 341 | N50: Respiratory Physiology | O50: 167 | P50: 335 | Q50: 119 | R50: 238 | U50: 341 | V50: Respiratory Physiology | W50: -0.01798829342 | X50: -0.02091967165 | Y50: 0.1288907786 | Z50: 0.1288907786
A51: 350 | B51: Infectious Diseases | C51: 316.8415952 | D51: 321.223941 | E51: 205.1226797 | F51: 205.1226797 | G51: Modelled | H51: Modelled | I51: Modelled | J51: Modelled | M51: 350 | N51: Infectious Diseases | O51: 263 | P51: 263 | Q51: 209 | R51: 210 | U51: 350 | V51: Infectious Diseases | W51: 0.2047208942 | X51: 0.2213838062 | Y51: -0.01855177187 | Z51: -0.02322533486
A52: 361 | B52: Nephrology | C52: 264.3744669 | D52: 307.7213395 | E52: 126.4681372 | F52: 146.5869674 | G52: Modelled | H52: Modelled | I52: Modelled | J52: Modelled | M52: 361 | N52: Nephrology | O52: 182 | P52: 248 | Q52: 130 | R52: 243 | U52: 361 | V52: Nephrology | W52: 0.452606961 | X52: 0.2408118526 | Y52: -0.02716817573 | Z52: -0.3967614509
A53: 370 | B53: Medical Oncology | C53: 217.3117827 | D53: 235.7748456 | E53: 95.57432415 | F53: 117.2289665 | G53: Modelled | H53: Modelled | I53: Modelled | J53: Modelled | M53: 370 | N53: Medical Oncology | O53: 210 | P53: 220 | Q53: 91 | R53: 103 | U53: 370 | V53: Medical Oncology | W53: 0.03481801307 | X53: 0.07170384374 | Y53: 0.05026729834 | Z53: 0.1381453055
A54: 410 | B54: Rheumatology | C54: 221.4102221 | D54: 241.3826789 | E54: 101.6002659 | F54: 161.7935535 | G54: Modelled | H54: Modelled | I54: Modelled | J54: Modelled | M54: 410 | N54: Rheumatology | O54: 214 | P54: 214 | Q54: 99 | R54: 99 | U54: 410 | V54: Rheumatology | W54: 0.03462720613 | X54: 0.1279564436 | Y54: 0.02626531173 | Z54: 0.6342783182
A55: 420 | B55: Paediatrics | C55: 218.0185584 | D55: 231.1327455 | E55: 132.6059127 | F55: 153.333721 | G55: Modelled | H55: Modelled | I55: Modelled | J55: Modelled | M55: 420 | N55: Paediatrics | O55: 212 | P55: 212 | Q55: 123 | R55: 160 | U55: 420 | V55: Paediatrics | W55: 0.02838942634 | X55: 0.09024879971 | Y55: 0.07809685146 | Z55: -0.04166424395
A56: 430 | B56: Geriatric Medicine | C56: 240.161807 | D56: 240.161807 | E56: 135.0599379 | F56: 135.0599379 | G56: Modelled | H56: Modelled | I56: Modelled | J56: Modelled | M56: 430 | N56: Geriatric Medicine | O56: 253 | P56: 253 | Q56: 134 | R56: 134 | U56: 430 | V56: Geriatric Medicine | W56: -0.05074384588 | X56: -0.05074384588 | Y56: 0.007909984668 | Z56: 0.007909984668
A57: 502 | B57: Gynaecology | C57: 135.6515081 | D57: 147.8242438 | E57: 87.55787923 | F57: 103.4997249 | G57: Modelled | H57: Modelled | I57: Modelled | J57: Modelled | M57: 502 | N57: Gynaecology | O57: 131 | P57: 131 | Q57: 80 | R57: 99 | U57: 502 | V57: Gynaecology | W57: 0.03550769569 | X57: 0.1284293423 | Y57: 0.09447349043 | Z57: 0.04545176676
A58: 503 | B58: Gynaecological Oncology | C58: 157.0996987 | D58: 199.2222017 | E58: 93.81717102 | F58: 106.4269564 | G58: Modelled | H58: Modelled | I58: Modelled | J58: Modelled | M58: 503 | N58: Gynaecological Oncology | O58: 152 | P58: 287 | Q58: 88 | R58: 130 | U58: 503 | V58: Gynaecological Oncology | W58: 0.03355064953 | X58: -0.3058459872 | Y58: 0.06610421616 | Z58: -0.1813311048
A59: 800 | B59: Clinical Oncology | C59: 197.9749921 | D59: 197.9749921 | E59: 88.80114537 | F59: 88.80114537 | G59: Modelled | H59: Modelled | I59: Modelled | J59: Modelled | M59: 800 | N59: Clinical Oncology | O59: 210 | P59: 220 | Q59: 91 | R59: 103 | U59: 800 | V59: Clinical Oncology | W59: -0.05726194217 | X59: -0.1001136721 | Y59: -0.02416323774 | Z59: -0.1378529576
A60: 812 | B60: Diagnostic Imaging | C60: 0 | D60: 0 | E60: 0 | F60: 0 | G60: Roll-Over | H60: Roll-Over | I60: Roll-Over | J60: Roll-Over | M60: 812 | N60: Diagnostic Imaging | O60: 0 | P60: 0 | Q60: 0 | R60: 0 | U60: 812 | V60: Diagnostic Imaging

Sheet SQL Inputs>

Sheet 00_APC_Raw_Activity
B2: FROM [PbR1516_TED_21].[stage].[APC_Unit_Costs]
B10: SPELL HRG | C10: EL ACT | D10: NE ACT | E10: EL TC | F10: NE TC | G10: EL UC | H10: NE UC
B11: AA02A | C11: 21 | D11: 1895 | E11: 165958.2833 | F11: 13903240.49 | G11: 7902.775397 | H11: 7336.802367
B12: AA02B | C12: 3 | D12: 242 | E12: 8685.725127 | F12: 1346864.891 | G12: 2895.241709 | H12: 5565.557399
B13: AA03A | C13: 76 | D13: 1710 | E13: 628704.7848 | F13: 10931772.02 | G13: 8272.431378 | H13: 6392.849135
B14: AA03B | C14: 36 | D14: 178 | E14: 187822.6722 | F14: 887779.8773 | G14: 5217.29645 | H14: 4987.5274
B15: AA04A | C15: 28 | D15: 298 | E15: 294539.4764 | F15: 4301187.41 | G15: 10519.26701 | H15: 14433.5148
B16: AA04B | C16: 4 | D16: 37 | E16: 18199.8708 | F16: 398612.1681 | G16: 4549.9677 | H16: 10773.30184
B17: AA05A | C17: 270 | D17: 407 | E17: 1766299.248 | F17: 5280810.849 | G17: 6541.849067 | H17: 12974.96523
B18: AA05B | C18: 257 | D18: 40 | E18: 1097916.313 | F18: 371927.4379 | G18: 4272.047911 | H18: 9298.185948
B19: AA06A | C19: 2333 | D19: 1105 | E19: 18420308.43 | F19: 12700760.13 | G19: 7895.545834 | H19: 11493.90057
B20: AA06B | C20: 1175 | D20: 229 | E20: 5882916.909 | F20: 2067896.134 | G20: 5006.737795 | H20: 9030.11412
B21: AA07A | C21: 410 | D21: 325 | E21: 2103714.711 | F21: 2963142.205 | G21: 5131.011491 | H21: 9117.360631
B22: AA07B | C22: 293 | D22: 81 | E22: 1128091.434 | F22: 554483.1512 | G22: 3850.141412 | H22: 6845.471002
B23: AA08A | C23: 462 | D23: 23 | E23: 3209398.884 | F23: 166254.7149 | G23: 6946.750831 | H23: 7228.465864
B24: AA08B | C24: 240 | D24: 2 | E24: 1861752.89 | F24: 11102.79952 | G24: 7757.303706 | H24: 5551.399762
B25: AA09A | C25: 890 | D25: 361 | E25: 2874636.125 | F25: 3729152.865 | G25: 3229.92823 | H25: 10330.06334
B26: AA09B | C26: 987 | D26: 66 | E26: 1082074.631 | F26: 492694.2796 | G26: 1096.32688 | H26: 7465.064842
B27: AA10A | C27: 22 | D27: 95 | E27: 161535.148 | F27: 1374568.873 | G27: 7342.506729 | H27: 14469.14603
B28: AA10B | C28: 2 | D28: 10 | E28: 9076.653522 | F28: 66835.61337 | G28: 4538.326761 | H28: 6683.561337
B29: AA11A | C29: 25 | D29: 512 | E29: 217976.9339 | F29: 6723672.851 | G29: 8719.077356 | H29: 13132.17354
B30: AA11B | C30: 4 | D30: 45 | E30: 11095.25345 | F30: 406708.7349 | G30: 2773.813362 | H30: 9037.971886
B31: AA12A | C31: 1644 | D31: 1112 | E31: 10889000.44 | F31: 9807227.811 | G31: 6623.479584 | H31: 8819.449471
B32: AA12B | C32: 507 | D32: 258 | E32: 3127472.767 | F32: 2041808.207 | G32: 6168.58534 | H32: 7913.985299
B33: AA13A | C33: 523 | D33: 473 | E33: 2970632.004 | F33: 3627461.1 | G33: 5679.984711 | H33: 7669.05095
B34: AA13B | C34: 147 | D34: 156 | E34: 823968.491 | F34: 899655.8738 | G34: 5605.22783 | H34: 5767.024832
B35: AA14A | C35: 286 | D35: 34 | E35: 882787.8161 | F35: 130710.2028 | G35: 3086.670686 | H35: 3844.417731
B36: AA14B | C36: 125 | D36: 2 | E36: 383681.3502 | F36: 10578.46884 | G36: 3069.450802 | H36: 5289.234422
B37: AA15A | C37: 370 | D37: 273 | E37: 2167158.645 | F37: 2689123.53 | G37: 5857.185526 | H37: 9850.26934
B38: AA15B | C38: 199 | D38: 57 | E38: 947350.5433 | F38: 440748.661 | G38: 4760.555494 | H38: 7732.432649
B39: AA16A | C39: 14 | D39: 216 | E39: 91144.45563 | F39: 1837571.304 | G39: 6510.318259 | H39: 8507.274555
B40: AA16B | C40: 10 | D40: 32 | E40: 27607.39447 | F40: 233126.0565 | G40: 2760.739447 | H40: 7285.189265
B41: AA17A | C41: 48 | D41: 553 | E41: 282370.5321 | F41: 4758501.959 | G41: 5882.71942 | H41: 8604.886002
B42: AA17B | C42: 20 | D42: 50 | E42: 164960.9824 | F42: 280838.1688 | G42: 8248.049122 | H42: 5616.763376
B43: AA18A | C43: 441 | D43: 442 | E43: 2009327.968 | F43: 2974300.132 | G43: 4556.299247 | H43: 6729.185819
B44: AA18B | C44: 183 | D44: 107 | E44: 807106.4732 | F44: 636675.4019 | G44: 4410.417886 | H44: 5950.237401
B45: AA19A | C45: 1057 | D45: 901 | E45: 2265209.345 | F45: 4448892.254 | G45: 2143.055199 | H45: 4937.727252
B46: AA19B | C46: 647 | D46: 206 | E46: 1239853.601 | F46: 729085.5521 | G46: 1916.311594 | H46: 3539.250253
B47: AA20A | C47: 587 | D47: 85 | E47: 997426.4848 | F47: 313096.9145 | G47: 1699.19333 | H47: 3683.493112
B48: AA20B | C48: 462 | D48: 23 | E48: 651874.119 | F48: 36823.84287 | G48: 1410.982942 | H48: 1601.036646
B49: AA21A | C49: 3950 | D49: 828 | E49: 8746514.645 | F49: 5184871.246 | G49: 2214.307505 | H49: 6261.921795
B50: AA21B | C50: 2679 | D50: 146 | E50: 3537464.894 | F50: 680547.2043 | G50: 1320.44229 | H50: 4661.282221
B51: AA22A | C51: 2391 | D51: 77013 | E51: 9089601.896 | F51: 293997946.4 | G51: 3801.590086 | H51: 3817.510633
B52: AA22B | C52: 829 | D52: 4378 | E52: 623111.5137 | F52: 8645769.225 | G52: 751.6423567 | H52: 1974.821659
B53: AA23A | C53: 531 | D53: 16811 | E53: 4208208.22 | F53: 63808476.04 | G53: 7925.062562 | H53: 3795.638334
B54: AA23B | C54: 70 | D54: 1470 | E54: 270475.8666 | F54: 2217154.612 | G54: 3863.940951 | H54: 1508.268443
B55: AA24A | C55: 2255 | D55: 9574 | E55: 2388260.013 | F55: 30831407.32 | G55: 1059.09535 | H55: 3220.326647
B56: AA24B | C56: 1636 | D56: 995 | E56: 1176919.309 | F56: 1671786.646 | G56: 719.3883305 | H56: 1680.187584
B57: AA25A | C57: 5488 | D57: 28435 | E57: 7785150.717 | F57: 60589637.5 | G57: 1418.577026 | H57: 2130.81194
B58: AA25B | C58: 4647 | D58: 2774 | E58: 2555595.204 | F58: 2983761.035 | G58: 549.9451699 | H58: 1075.616812
B59: AA26A | C59: 11595 | D59: 88746 | E59: 11057741.79 | F59: 119271429.8 | G59: 953.6646648 | H59: 1343.964008
B60: AA26B | C60: 11503 | D60: 15639 | E60: 7586225.584 | F60: 10388685.36 | G60: 659.4997465 | H60: 664.2806678
B61: AA27A | C61: 37 | D61: 2473 | E61: 130067.7503 | F61: 10757439 | G61: 3515.344602 | H61: 4349.955116
B62: AA27B | C62: 30 | D62: 84 | E62: 13054.22905 | F62: 83473.76077 | G62: 435.1409684 | H62: 993.7352472
B63: AA28A | C63: 754 | D63: 914 | E63: 1863578.533 | F63: 4401053.453 | G63: 2471.589566 | H63: 4815.156951
B64: AA28B | C64: 323 | D64: 90 | E64: 555712.7826 | F64: 229427.6742 | G64: 1720.473011 | H64: 2549.19638
B65: AA29A | C65: 647 | D65: 20953 | E65: 324721.7338 | F65: 20506318.61 | G65: 501.8883057 | H65: 978.6817455
B66: AA29B | C66: 61 | D66: 1701 | E66: 29101.9287 | F66: 966308.4656 | G66: 477.0807983 | H66: 568.0825783
B67: AA30A | C67: 5051 | D67: 2609 | E67: 3051938.986 | F67: 8531724.319 | G67: 604.2247052 | H67: 3270.112809
B68: AA30B | C68: 23807 | D68: 1040 | E68: 10704993.46 | F68: 1583392.24 | G68: 449.6573888 | H68: 1522.492538
B69: AA31A | C69: 1263 | D69: 42796 | E69: 1086070.125 | F69: 32734415.37 | G69: 859.9130051 | H69: 764.8942745
B70: AA31B | C70: 1093 | D70: 14634 | E70: 481660.7389 | F70: 8179321.558 | G70: 440.6777117 | H70: 558.9258957
B71: AA32Z | C71: 344 | D71: 4 | E71: 149406.9502 | F71: 1564.55178 | G71: 434.3225297 | H71: 391.137945
B72: AA33C | C72: 1788 | D72: 370 | E72: 1231516.726 | F72: 456858.4861 | G72: 688.7677439 | H72: 1234.752665
B73: AA33D | C73: 1070 | D73: 467 | E73: 896388.8601 | F73: 634403.0744 | G73: 837.7465982 | H73: 1358.464827
B74: AA34C | C74: 6104 | D74: 673 | E74: 55945.8483 | F74: 417062.6 | G74: 9.165440416 | H74: 619.7066864
B75: AA34D | C75: 2743 | D75: 505 | E75: 21464.04847 | F75: 113636.4017 | G75: 7.825026784 | H75: 225.0225775
B76: AB02Z | C76: 831 | D76: 2 | E76: 638095.2606 | F76: 3127.422394 | G76: 767.8643328 | H76: 1563.711197
B77: AB03Z | C77: 14981 | D77: 114 | E77: 11434777.75 | F77: 499651.8319 | G77: 763.285345 | H77: 4382.910806
B78: AB04Z | C78: 87110 | D78: 1482 | E78: 57401581.13 | F78: 3777511.249 | G78: 658.9551272 | H78: 2548.927968
B79: AB05Z | C79: 22079 | D79: 581 | E79: 14780290.2 | F79: 1904804.81 | G79: 669.4275192 | H79: 3278.493648
B80: AB06Z | C80: 19479 | D80: 194 | E80: 11484727.19 | F80: 681773.5174 | G80: 589.5953173 | H80: 3514.296482
B81: AB07Z | C81: 1787 | D81: 19 | E81: 5546765.135 | F81: 88395.45156 | G81: 3103.953629 | H81: 4652.392187
B82: AB08Z | C82: 16170 | D82: 74 | E82: 11437879.21 | F82: 230173.6018 | G82: 707.3518373 | H82: 3110.454078
B83: AB09Z | C83: 5129 | D83: 81 | E83: 3067355.138 | F83: 195265.8365 | G83: 598.0415554 | H83: 2410.689339
B84: AB10Z | C84: 388 | D84: 16 | E84: 156772.16 | F84: 35540.85487 | G84: 404.0519588 | H84: 2221.303429
B85: AB11Z | C85: 2537 | D85: 1 | E85: 187029.5253 | F85: 6740.933017 | G85: 73.72074312 | H85: 6740.933017
B86: BZ01Z | C86: 8194 | D86: 68 | E86: 8787609.888 | F86: 150340.11 | G86: 1072.444458 | H86: 2210.88397
B87: BZ02Z | C87: 279506 | D87: 284 | E87: 222625203 | F87: 814789.4069 | G87: 796.495256 | H87: 2868.976785
B88: BZ03Z | C88: 4245 | D88: 119 | E88: 4343824.889 | F88: 158636.8057 | G88: 1023.280304 | H88: 1333.082401
B89: BZ04Z | C89: 11514 | D89: 364 | E89: 3523228.471 | F89: 172958.1552 | G89: 305.9951773 | H89: 475.159767
B90: BZ05Z | C90: 2485 | D90: 41 | E90: 3348902.826 | F90: 356681.0303 | G90: 1347.647012 | H90: 8699.537324
B91: BZ06A | C91: 17006 | D91: 212 | E91: 15855588.84 | F91: 275884.8787 | G91: 932.3526308 | H91: 1301.343768
B92: BZ06B | C92: 954 | D92: 41 | E92: 1025796.139 | F92: 63841.3679 | G92: 1075.258008 | H92: 1557.106534
B93: BZ07A | C93: 43712 | D93: 1599 | E93: 28474822.78 | F93: 1492625.068 | G93: 651.4188959 | H93: 933.4740886
B94: BZ07B | C94: 3702 | D94: 954 | E94: 3048860.754 | F94: 984190.0561 | G94: 823.5712462 | H94: 1031.645761
B95: BZ08A | C95: 2131 | D95: 352 | E95: 4600624.039 | F95: 1203468.286 | G95: 2158.90382 | H95: 3418.943994
B96: BZ08B | C96: 265 | D96: 131 | E96: 541414.8429 | F96: 459782.9552 | G96: 2043.074879 | H96: 3509.793551
B97: BZ09A | C97: 5940 | D97: 182 | E97: 8894548.531 | F97: 560926.8616 | G97: 1497.398743 | H97: 3082.015723
B98: BZ09B | C98: 289 | D98: 29 | E98: 471720.5227 | F98: 77961.99814 | G98: 1632.250943 | H98: 2688.344763
B99: BZ10A | C99: 7372 | D99: 118 | E99: 4785857.686 | F99: 149493.0352 | G99: 649.1939346 | H99: 1266.890129
B100: BZ10B | C100: 1967 | D100: 43 | E100: 1663160.868 | F100: 58523.37733 | G100: 845.531707 | H100: 1361.008775
B101: BZ11Z | C101: 934 | D101: 32 | E101: 1953759.12 | F101: 119810.6562 | G101: 2091.819186 | H101: 3744.083007
B102: BZ12Z | C102: 2892 | D102: 437 | E102: 4688517.647 | F102: 1184266.749 | G102: 1621.202506 | H102: 2709.992561
B103: BZ13Z | C103: 3621 | D103: 739 | E103: 3358531.35 | F103: 1662476.69 | G103: 927.5148715 | H103: 2249.630162
B104: BZ14A | C104: 1020 | D104: 1 | E104: 1333596.989 | F104: 925.4167359 | G104: 1307.448029 | H104: 925.4167359
B105: BZ14B | C105: 312 | D105: 1 | E105: 370869.5609 | F105: 2538.234451 | G105: 1188.68449 | H105: 2538.234451
B106: BZ15A | C106: 2746 | D106: 13 | E106: 3258234.659 | F106: 18153.22445 | G106: 1186.538478 | H106: 1396.401881
B107: BZ15B | C107: 4872 | D107: 4 | E107: 6027832.64 | F107: 4634.939874 | G107: 1237.239869 | H107: 1158.734968
B108: BZ16A | C108: 1342 | D108: 2 | E108: 1537537.826 | F108: 1975.47104 | G108: 1145.706279 | H108: 987.7355199
B109: BZ16B | C109: 1462 | D109: 2 | E109: 1645921.394 | F109: 1884.714012 | G109: 1125.801227 | H109: 942.357006
B110: BZ17Z | C110: 1918 | D110: 52 | E110: 2801562.76 | F110: 78146.09022 | G110: 1460.668801 | H110: 1502.809427
B111: BZ18Z | C111: 8546 | D111: 366 | E111: 8924585.752 | F111: 616851.1154 | G111: 1044.29976 | H111: 1685.385561
B112: BZ19Z | C112: 6014 | D112: 508 | E112: 2920466.704 | F112: 536242.6474 | G112: 485.6113575 | H112: 1055.595763
B113: BZ20Z | C113: 3738 | D113: 298 | E113: 7279739.322 | F113: 727683.9513 | G113: 1947.495806 | H113: 2441.892454
B114: BZ21Z | C114: 12530 | D114: 3244 | E114: 19082860.07 | F114: 5410599.791 | G114: 1522.973669 | H114: 1667.879097
B115: BZ22Z | C115: 4987 | D115: 1101 | E115: 6309323.91 | F115: 2261084.533 | G115: 1265.154183 | H115: 2053.664426
B116: BZ23Z | C116: 88418 | D116: 1691 | E116: 33757158.62 | F116: 1478845.796 | G116: 381.7905701 | H116: 874.5392054
B117: BZ24A | C117: 482 | D117: 5969 | E117: 1404172.08 | F117: 13233863.14 | G117: 2913.220082 | H117: 2217.098868
B118: BZ24C | C118: 7888 | D118: 9108 | E118: 2660543.091 | F118: 3952890.197 | G118: 337.2899456 | H118: 434.0019979
B119: CZ01S | C119: 154 | D119: 199 | E119: 135640.4645 | F119: 563439.9534 | G119: 880.782237 | H119: 2831.35655
B120: CZ01T | C120: 464 | D120: 1740 | E120: 330315.5958 | F120: 1518915.897 | G120: 711.8870599 | H120: 872.9401708
B121: CZ01V | C121: 1528 | D121: 2473 | E121: 1089749.401 | F121: 4311632.341 | G121: 713.1867804 | H121: 1743.482548
B122: CZ01Y | C122: 2274 | D122: 1620 | E122: 1245128.728 | F122: 1186552.043 | G122: 547.5500122 | H122: 732.4395325
B123: CZ02S | C123: 774 | D123: 275 | E123: 1203632.222 | F123: 924814.6086 | G123: 1555.08039 | H123: 3362.962213
B124: CZ02T | C124: 2570 | D124: 724 | E124: 2876382.238 | F124: 962156.4081 | G124: 1119.214878 | H124: 1328.945315
B125: CZ02W | C125: 279 | D125: 374 | E125: 450602.1498 | F125: 1993275.7 | G125: 1615.061469 | H125: 5329.614171
B126: CZ02X | C126: 10872 | D126: 1140 | E126: 11995547.57 | F126: 2108171.726 | G126: 1103.343227 | H126: 1849.273444
B127: CZ02Y | C127: 10332 | D127: 944 | E127: 9811802.443 | F127: 1114678.223 | G127: 949.6518044 | H127: 1180.803203
B128: CZ03U | C128: 2031 | D128: 122 | E128: 5907231.904 | F128: 400431.402 | G128: 2908.53368 | H128: 3282.224607
B129: CZ03V | C129: 6171 | D129: 418 | E129: 17142969.15 | F129: 2253291.553 | G129: 2777.988844 | H129: 5390.649648
B130: CZ03Y | C130: 5596 | D130: 203 | E130: 11950515.67 | F130: 520480.6518 | G130: 2135.546046 | H130: 2563.944098
B131: CZ04O | C131: 295 | D131: 57 | E131: 5922717.855 | F131: 1320655.843 | G131: 20077.00968 | H131: 23169.40075
B132: CZ04P | C132: 716 | D132: 62 | E132: 8331989.612 | F132: 1117619.652 | G132: 11636.857 | H132: 18026.12342
B133: CZ04Q | C133: 253 | D133: 13 | E133: 1927410.45 | F133: 112333.1026 | G133: 7618.223124 | H133: 8641.007895
B134: CZ05S | C134: 6519 | D134: 283 | E134: 9494198.098 | F134: 640256.9238 | G134: 1456.388725 | H134: 2262.391957
B135: CZ05T | C135: 32212 | D135: 782 | E135: 39523277.42 | F135: 894202.5377 | G135: 1226.973719 | H135: 1143.481506
B136: CZ05V | C136: 5107 | D136: 1586 | E136: 6727898.229 | F136: 1642407.91 | G136: 1317.387552 | H136: 1035.566148
B137: CZ05Y | C137: 10199 | D137: 2556 | E137: 12466701.16 | F137: 2241547.986 | G137: 1222.345442 | H137: 876.9749555
B138: CZ07O | C138: 148 | D138: 3271 | E138: 1447034.915 | F138: 28651121.58 | G138: 9777.262936 | H138: 8759.132248
B139: CZ07P | C139: 312 | D139: 870 | E139: 1152993.238 | F139: 4609094.819 | G139: 3695.491148 | H139: 5297.810137
B140: CZ07Q | C140: 105 | D140: 111 | E140: 347704.1663 | F140: 391400.6224 | G140: 3311.468251 | H140: 3526.131734
B141: CZ08S | C141: 1767 | D141: 218 | E141: 1807519.73 | F141: 400233.759 | G141: 1022.931369 | H141: 1835.934674
B142: CZ08T | C142: 24239 | D142: 1146 | E142: 19215264.28 | F142: 1076396.498 | G142: 792.7416263 | H142: 939.2639594
B143: CZ08V | C143: 8419 | D143: 1329 | E143: 6367486.832 | F143: 2558861.642 | G143: 756.3234152 | H143: 1925.403794
B144: CZ08Y | C144: 12943 | D144: 1109 | E144: 9240757.949 | F144: 881065.167 | G144: 713.9579656 | H144: 794.4681397
B145: CZ09U | C145: 2586 | D145: 32 | E145: 4251441.028 | F145: 36413.01257 | G145: 1644.022053 | H145: 1137.906643
B146: CZ09V | C146: 1027 | D146: 52 | E146: 1183936.063 | F146: 106772.3814 | G146: 1152.810188 | H146: 2053.315027
B147: CZ09Y | C147: 1250 | D147: 40 | E147: 1451357.198 | F147: 42744.0646 | G147: 1161.085758 | H147: 1068.601615
B148: CZ10U | C148: 4150 | D148: 128 | E148: 9483794.459 | F148: 565733.708 | G148: 2285.251677 | H148: 4419.794594
B149: CZ10V | C149: 4503 | D149: 106 | E149: 10846961.87 | F149: 665621.6269 | G149: 2408.830085 | H149: 6279.449311
B150: CZ10Y | C150: 7368 | D150: 48 | E150: 16788091.06 | F150: 133348.0379 | G150: 2278.513988 | H150: 2778.084123
B151: CZ11Z | C151: 105 | D151: 5 | E151: 325745.6642 | F151: 19887.76977 | G151: 3102.339659 | H151: 3977.553954
B152: CZ12U | C152: 6366 | D152: 1820 | E152: 4696009.313 | F152: 1517728.596 | G152: 737.6703287 | H152: 833.916811
B153: CZ12V | C153: 9291 | D153: 8636 | E153: 7232912.571 | F153: 9366857.341 | G153: 778.4859079 | H153: 1084.62915
B154: CZ12Y | C154: 16292 | D154: 2382 | E154: 10803566.54 | F154: 1948475.507 | G154: 663.1209514 | H154: 817.9997931
B155: CZ13U | C155: 1755 | D155: 215 | E155: 2279319.033 | F155: 340919.1078 | G155: 1298.757283 | H155: 1585.670269
B156: CZ13V | C156: 7654 | D156: 3318 | E156: 10254925.59 | F156: 4094139.758 | G156: 1339.812593 | H156: 1233.91795
B157: CZ13Y | C157: 14653 | D157: 849 | E157: 18809079.47 | F157: 874330.7106 | G157: 1283.633349 | H157: 1029.835937
B158: CZ14U | C158: 1217 | D158: 50 | E158: 2344989.96 | F158: 218574.1948 | G158: 1926.861101 | H158: 4371.483896
B159: CZ14V | C159: 6249 | D159: 620 | E159: 10451888.55 | F159: 1392093.649 | G159: 1672.569779 | H159: 2245.312338
B160: CZ14Y | C160: 10520 | D160: 186 | E160: 16843669.64 | F160: 339805.6452 | G160: 1601.109281 | H160: 1826.912071
B161: CZ15N | C161: 971 | D161: 334 | E161: 1885711.612 | F161: 1396253.644 | G161: 1942.030497 | H161: 4180.400132
B162: CZ15Q | C162: 1092 | D162: 153 | E162: 1894048.382 | F162: 525398.4383 | G162: 1734.47654 | H162: 3433.976721
B163: CZ16N | C163: 1228 | D163: 373 | E163: 1793737.877 | F163: 680899.8521 | G163: 1460.698597 | H163: 1825.468772
B164: CZ16Q | C164: 2315 | D164: 475 | E164: 2929818.165 | F164: 810633.0332 | G164: 1265.580201 | H164: 1706.595859
B165: CZ17U | C165: 933 | D165: 870 | E165: 1506882.764 | F165: 2183234.738 | G165: 1615.094066 | H165: 2509.465216
B166: CZ17V | C166: 4370 | D166: 3150 | E166: 10573922.57 | F166: 9395180.091 | G166: 2419.661916 | H166: 2982.596854
B167: CZ17Y | C167: 4624 | D167: 2716 | E167: 7152901.435 | F167: 6330355.207 | G167: 1546.90775 | H167: 2330.764067
B168: CZ18R | C168: 2618 | D168: 56 | E168: 10577983.02 | F168: 224038.0923 | G168: 4040.482439 | H168: 4000.68022
B169: CZ18U | C169: 730 | D169: 10 | E169: 2773058.352 | F169: 34269.78127 | G169: 3798.710071 | H169: 3426.978127
B170: CZ19Z | C170: 281 | D170: 19 | E170: 1983431.232 | F170: 130565.1664 | G170: 7058.474135 | H170: 6871.850864
B171: CZ20Z | C171: 16 | D171: NULL | E171: 310156.4202 | F171: NULL | G171: 19384.77626 | H171: NULL
B172: CZ21V | C172: 1190 | D172: 44220 | E172: 1280354.8 | F172: 25457970.79 | G172: 1075.928404 | H172: 575.7116868
B173: CZ21Y | C173: 2179 | D173: 12726 | E173: 1517075.577 | F173: 6141763.404 | G173: 696.2255977 | H173: 482.6153862
B174: CZ22W | C174: 112 | D174: 3958 | E174: 233878.3039 | F174: 6035196.816 | G174: 2088.199142 | H174: 1524.809706
B175: CZ22X | C175: 540 | D175: 16886 | E175: 732353.7119 | F175: 13041964.9 | G175: 1356.210578 | H175: 772.3537188
B176: CZ22Y | C176: 464 | D176: 14193 | E176: 369140.7241 | F176: 9606130.42 | G176: 795.5619054 | H176: 676.8217022
B177: CZ23W | C177: 193 | D177: 2098 | E177: 593321.7898 | F177: 4474382.22 | G177: 3074.206165 | H177: 2132.689333
B178: CZ23X | C178: 1040 | D178: 7607 | E178: 1422257.083 | F178: 7050928.648 | G178: 1367.554888 | H178: 926.9000458
B179: CZ23Y | C179: 555 | D179: 3870 | E179: 573515.2025 | F179: 2459813.591 | G179: 1033.360725 | H179: 635.6107471
B180: CZ24O | C180: 433 | D180: 1098 | E180: 2399054.056 | F180: 5452946.646 | G180: 5540.540546 | H180: 4966.253776
B181: CZ24P | C181: 3004 | D181: 1105 | E181: 5320400.053 | F181: 2819241.681 | G181: 1771.105211 | H181: 2551.349937
B182: CZ24Q | C182: 806 | D182: 174 | E182: 1299722.953 | F182: 310497.2509 | G182: 1612.559495 | H182: 1784.466959
B183: CZ25N | C183: 352 | D183: 3 | E183: 7029157.171 | F183: 45159.07231 | G183: 19969.19651 | H183: 15053.0241
B184: CZ25Q | C184: 700 | D184: NULL | E184: 14176433.43 | F184: NULL | G184: 20252.04776 | H184: NULL
B185: CZ27Z | C185: 1223 | D185: NULL | E185: 3239181.004 | F185: NULL | G185: 2648.55356 | H185: NULL
B186: CZ28Z | C186: 123 | D186: 5 | E186: 311363.3131 | F186: 14814.5932 | G186: 2531.40905 | H186: 2962.91864
B187: CZ30U | C187: 5245 | D187: 201 | E187: 2573442.831 | F187: 183518.2935 | G187: 490.6468696 | H187: 913.0263359
B188: CZ30Y | C188: 12173 | D188: 315 | E188: 4561874.726 | F188: 274906.9768 | G188: 374.7535304 | H188: 872.7205611
B189: CZ31U | C189: 217 | D189: 3 | E189: 124378.8685 | F189: 2413.197298 | G189: 573.1745093 | H189: 804.3990993
B190: CZ31Y | C190: 8923 | D190: 82 | E190: 3585694.593 | F190: 54574.27338 | G190: 401.8485479 | H190: 665.5399193
B191: CZ32U | C191: 2208 | D191: 21 | E191: 2255340.533 | F191: 14000.45489 | G191: 1021.440459 | H191: 666.688328
B192: CZ32Y | C192: 371 | D192: 16 | E192: 327650.2774 | F192: 8332.916696 | G192: 883.1543864 | H192: 520.8072935
B193: CZ33U | C193: 2734 | D193: 11 | E193: 1559411.518 | F193: 8469.928496 | G193: 570.3772928 | H193: 769.9934997
B194: CZ33Y | C194: 3681 | D194: 6 | E194: 1570428.991 | F194: 6692.131608 | G194: 426.6310762 | H194: 1115.355268
B195: CZ34U | C195: 7602 | D195: 1221 | E195: 4696679.749 | F195: 1278054.108 | G195: 617.8215929 | H195: 1046.727361
B196: CZ34Y | C196: 5651 | D196: 1693 | E196: 3305326.312 | F196: 1987704.497 | G196: 584.9099827 | H196: 1174.072355
B197: CZ35U | C197: 21 | D197: 4 | E197: 15406.38841 | F197: 984.9175545 | G197: 733.6375431 | H197: 246.2293886
B198: CZ35Y | C198: 4 | D198: NULL | E198: 6576.267525 | F198: NULL | G198: 1644.066881 | H198: NULL
B199: CZ36U | C199: 1914 | D199: 25 | E199: 1397034.773 | F199: 23341.92672 | G199: 729.9032252 | H199: 933.6770689
B200: CZ36Y | C200: 20816 | D200: 114 | E200: 12532165.51 | F200: 88110.23487 | G200: 602.0448457 | H200: 772.8967971
B201: CZ37U | C201: 11794 | D201: 225 | E201: 9933406.061 | F201: 243086.6898 | G201: 842.2423318 | H201: 1080.385288
B202: CZ37Y | C202: 29793 | D202: 486 | E202: 15922414.89 | F202: 566586.5432 | G202: 534.434763 | H202: 1165.815932
B203: CZ38U | C203: 46 | D203: 5 | E203: 47529.9975 | F203: 6905.80876 | G203: 1033.260815 | H203: 1381.161752
B204: CZ38Y | C204: 234 | D204: 5 | E204: 133124.2301 | F204: 11953.36116 | G204: 568.9069662 | H204: 2390.672233
B205: CZ39U | C205: 320 | D205: 68 | E205: 311291.5879 | F205: 73156.77191 | G205: 972.7862123 | H205: 1075.834881
B206: CZ39Y | C206: 3150 | D206: 169 | E206: 2733656.44 | F206: 169703.0893 | G206: 867.8274412 | H206: 1004.160291
B207: CZ40U | C207: 5278 | D207: 11 | E207: 4964289.187 | F207: 14247.93517 | G207: 940.562559 | H207: 1295.266834
B208: CZ40Y | C208: 33097 | D208: 262 | E208: 21145267.5 | F208: 359604.5343 | G208: 638.8877391 | H208: 1372.53639
... 1129 more rows

Sheet 01_APC_Raw_UC
B2: FROM [PbR1516_TED_21].[stage].[APC_Tariff]
B10: Spell HRG | C10: HRG Name | D10: EL Tariff | E10: EL Trim | F10: NE Tariff | G10: NE Trim | H10: Longstay Payment | I10: SSEM Eligible | J10: SSEM Tariff | K10: SSNDS Eligible
B11: AA02A | C11: Intracranial Procedures for Trauma with Diagnosis of Intracranial Injury with CC | D11: 7762 | E11: 37 | F11: 7172 | G11: 45 | H11: 227 | I11: No | J11: 0 | K11: Yes
B12: AA02B | C12: Intracranial Procedures for Trauma with Diagnosis of Intracranial Injury without CC | D12: 2843 | E12: 15 | F12: 5441 | G12: 21 | H12: 227 | I12: No | J12: 0 | K12: Yes
B13: AA03A | C13: Intracranial Procedures for Trauma with Diagnosis of Head Injury or Skull Fracture, with CC | D13: 8125 | E13: 26 | F13: 6250 | G13: 28 | H13: 227 | I13: No | J13: 0 | K13: Yes
B14: AA03B | C14: Intracranial Procedures for Trauma with Diagnosis of Head Injury or Skull Fracture, without CC | D14: 5124 | E14: 10 | F14: 4876 | G14: 16 | H14: 227 | I14: No | J14: 0 | K14: Yes
B15: AA04A | C15: Major Intracranial Procedures Except Trauma with Non-Transient Stroke or Cerebrovascular Accident, Nervous System Infections or Encephalopathy, with CC | D15: 10331 | E15: 50 | F15: 14110 | G15: 87 | H15: 227 | I15: No | J15: 0 | K15: Yes
B16: AA04B | C16: Major Intracranial Procedures Except Trauma with Non-Transient Stroke or Cerebrovascular Accident, Nervous System Infections or Encephalopathy, without CC | D16: 4469 | E16: 13 | F16: 10532 | G16: 61 | H16: 227 | I16: No | J16: 0 | K16: Yes
B17: AA05A | C17: Major Intracranial Procedures Except Trauma with Haemorrhagic Cerebrovascular Disorders with CC | D17: 6425 | E17: 20 | F17: 12684 | G17: 62 | H17: 227 | I17: No | J17: 0 | K17: Yes
B18: AA05B | C18: Major Intracranial Procedures Except Trauma with Haemorrhagic Cerebrovascular Disorders without CC | D18: 4196 | E18: 4 | F18: 9090 | G18: 34 | H18: 227 | I18: No | J18: 0 | K18: Yes
B19: AA06A | C19: Major Intracranial Procedures Except Trauma with Brain Tumours or Cerebral Cysts, with CC | D19: 7754 | E19: 18 | F19: 11236 | G19: 42 | H19: 227 | I19: No | J19: 0 | K19: Yes
B20: AA06B | C20: Major Intracranial Procedures Except Trauma with Brain Tumours or Cerebral Cysts, without CC | D20: 4917 | E20: 14 | F20: 8828 | G20: 24 | H20: 227 | I20: No | J20: 0 | K20: Yes
B21: AA07A | C21: Major Intracranial Procedures Except Trauma with Cerebral Degenerations or Miscellaneous Disorders of Nervous System, with CC | D21: 5039 | E21: 15 | F21: 8913 | G21: 34 | H21: 227 | I21: No | J21: 0 | K21: Yes
B22: AA07B | C22: Major Intracranial Procedures Except Trauma with Cerebral Degenerations or Miscellaneous Disorders of Nervous System, without CC | D22: 3781 | E22: 10 | F22: 6692 | G22: 22 | H22: 227 | I22: No | J22: 0 | K22: Yes
B23: AA08A | C23: Major Intracranial Procedures Except Trauma with Muscular, Balance, Cranial or Peripheral Nerve Disorders or Epilepsy, with CC | D23: 6823 | E23: 12 | F23: 7066 | G23: 39 | H23: 227 | I23: No | J23: 0 | K23: Yes
B24: AA08B | C24: Major Intracranial Procedures Except Trauma with Muscular, Balance, Cranial or Peripheral Nerve Disorders or Epilepsy, without CC | D24: 7619 | E24: 11 | F24: 5427 | G24: 17 | H24: 227 | I24: No | J24: 0 | K24: Yes
B25: AA09A | C25: Major Intracranial Procedures Except Trauma with Other Diagnoses with CC | D25: 3172 | E25: 8 | F25: 10099 | G25: 54 | H25: 227 | I25: No | J25: 0 | K25: Yes
B26: AA09B | C26: Major Intracranial Procedures Except Trauma with Other Diagnoses without CC | D26: 1077 | E26: 1 | F26: 7298 | G26: 34 | H26: 227 | I26: No | J26: 0 | K26: Yes
B27: AA10A | C27: Intermediate Intracranial Procedures Except Trauma with Non-Transient Stroke or Cerebrovascular Accident, Nervous System Infections or Encephalopathy, with CC | D27: 7211 | E27: 32 | F27: 14145 | G27: 86 | H27: 227 | I27: No | J27: 0 | K27: Yes
B28: AA10B | C28: Intermediate Intracranial Procedures Except Trauma with Non-Transient Stroke or Cerebrovascular Accident, Nervous System Infections or Encephalopathy, without CC | D28: 4457 | E28: 19 | F28: 6534 | G28: 34 | H28: 227 | I28: No | J28: 0 | K28: Yes
B29: AA11A | C29: Intermediate Intracranial Procedures Except Trauma with Haemorrhagic Cerebrovascular Disorders with CC | D29: 8563 | E29: 47 | F29: 12838 | G29: 79 | H29: 227 | I29: No | J29: 0 | K29: Yes
B30: AA11B | C30: Intermediate Intracranial Procedures Except Trauma with Haemorrhagic Cerebrovascular Disorders without CC | D30: 2724 | E30: 188 | F30: 8835 | G30: 53 | H30: 227 | I30: No | J30: 0 | K30: Yes
B31: AA12A | C31: Intermediate Intracranial Procedures Except Trauma with Brain Tumours or Cerebral Cysts, with CC | D31: 6505 | E31: 13 | F31: 8622 | G31: 30 | H31: 227 | I31: No | J31: 0 | K31: Yes
B32: AA12B | C32: Intermediate Intracranial Procedures Except Trauma with Brain Tumours or Cerebral Cysts, without CC | D32: 6058 | E32: 11 | F32: 7737 | G32: 20 | H32: 227 | I32: No | J32: 0 | K32: Yes
B33: AA13A | C33: Intermediate Intracranial Procedures Except Trauma with Cerebral Degenerations or Miscellaneous Disorders of Nervous System with CC | D33: 5578 | E33: 13 | F33: 7497 | G33: 35 | H33: 227 | I33: No | J33: 0 | K33: Yes
B34: AA13B | C34: Intermediate Intracranial Procedures Except Trauma with Cerebral Degenerations or Miscellaneous Disorders of Nervous System without CC | D34: 5505 | E34: 10 | F34: 5638 | G34: 21 | H34: 227 | I34: No | J34: 0 | K34: Yes
B35: AA14A | C35: Intermediate Intracranial Procedures Except Trauma with Muscular, Balance, Cranial or Peripheral Nerve Disorders or Epilepsy, with CC | D35: 3032 | E35: 5 | F35: 3758 | G35: 23 | H35: 227 | I35: No | J35: 0 | K35: Yes
B36: AA14B | C36: Intermediate Intracranial Procedures Except Trauma with Muscular, Balance, Cranial or Peripheral Nerve Disorders or Epilepsy, without CC | D36: 3015 | E36: 8 | F36: 5171 | G36: 19 | H36: 227 | I36: No | J36: 0 | K36: Yes
B37: AA15A | C37: Intermediate Intracranial Procedures Except Trauma with Other Diagnoses with CC | D37: 5752 | E37: 16 | F37: 9629 | G37: 56 | H37: 227 | I37: No | J37: 0 | K37: Yes
B38: AA15B | C38: Intermediate Intracranial Procedures Except Trauma with Other Diagnoses without CC | D38: 4675 | E38: 11 | F38: 7559 | G38: 40 | H38: 227 | I38: No | J38: 0 | K38: Yes
B39: AA16A | C39: Minor Intracranial Procedures Except Trauma with Non-Transient Stroke or Cerebrovascular Accident, Nervous System Infections or Encephalopathy, with CC | D39: 6394 | E39: 24 | F39: 8317 | G39: 54 | H39: 227 | I39: No | J39: 0 | K39: Yes
B40: AA16B | C40: Minor Intracranial Procedures Except Trauma with Non-Transient Stroke or Cerebrovascular Accident, Nervous System Infections or Encephalopathy, without CC | D40: 2711 | E40: 6 | F40: 7122 | G40: 38 | H40: 227 | I40: No | J40: 0 | K40: Yes
B41: AA17A | C41: Minor Intracranial Procedures Except Trauma with Haemorrhagic Cerebrovascular Disorders with CC | D41: 5778 | E41: 19 | F41: 8412 | G41: 60 | H41: 227 | I41: No | J41: 0 | K41: Yes
B42: AA17B | C42: Minor Intracranial Procedures Except Trauma with Haemorrhagic Cerebrovascular Disorders without CC | D42: 8101 | E42: 8 | F42: 5491 | G42: 33 | H42: 227 | I42: No | J42: 0 | K42: Yes
B43: AA18A | C43: Minor Intracranial Procedures Except Trauma with Brain Tumours or Cerebral Cysts, with CC | D43: 4475 | E43: 11 | F43: 6578 | G43: 29 | H43: 227 | I43: No | J43: 0 | K43: Yes
B44: AA18B | C44: Minor Intracranial Procedures Except Trauma with Brain Tumours or Cerebral Cysts, without CC | D44: 4332 | E44: 9 | F44: 5817 | G44: 21 | H44: 227 | I44: No | J44: 0 | K44: Yes
B45: AA19A | C45: Minor Intracranial Procedures Except Trauma with Cerebral Degenerations or Miscellaneous Disorders of Nervous System, with CC | D45: 2105 | E45: 8 | F45: 4827 | G45: 20 | H45: 227 | I45: No | J45: 0 | K45: Yes
B46: AA19B | C46: Minor Intracranial Procedures Except Trauma with Cerebral Degenerations or Miscellaneous Disorders of Nervous System, without CC | D46: 1882 | E46: 3 | F46: 3460 | G46: 11 | H46: 227 | I46: No | J46: 0 | K46: Yes
B47: AA20A | C47: Minor Intracranial Procedures Except Trauma with Muscular, Balance, Cranial or Peripheral Nerve Disorders or Epilepsy, with CC | D47: 1669 | E47: 3 | F47: 3601 | G47: 19 | H47: 227 | I47: No | J47: 0 | K47: Yes
B48: AA20B | C48: Minor Intracranial Procedures Except Trauma with Muscular, Balance, Cranial or Peripheral Nerve Disorders or Epilepsy, without CC | D48: 1386 | E48: 3 | F48: 1565 | G48: 10 | H48: 227 | I48: No | J48: 0 | K48: Yes
B49: AA21A | C49: Minor Intracranial Procedures Except Trauma with Other Diagnoses with CC | D49: 2175 | E49: 5 | F49: 6122 | G49: 36 | H49: 227 | I49: No | J49: 0 | K49: Yes
B50: AA21B | C50: Minor Intracranial Procedures Except Trauma with Other Diagnoses without CC | D50: 1297 | E50: 1 | F50: 4557 | G50: 21 | H50: 227 | I50: No | J50: 0 | K50: Yes
B51: AA22A | C51: Non-Transient Stroke or Cerebrovascular Accident, Nervous System Infections or Encephalopathy, with CC | D51: 3734 | E51: 63 | F51: 4193 | G51: 41 | H51: 227 | I51: Yes | J51: 1048 | K51: Yes
B52: AA22B | C52: Non-Transient Stroke or Cerebrovascular Accident, Nervous System Infections or Encephalopathy, without CC | D52: 738 | E52: 1 | F52: 2490 | G52: 16 | H52: 227 | I52: Yes | J52: 622 | K52: Yes
B53: AA23A | C53: Haemorrhagic Cerebrovascular Disorders with CC | D53: 7783 | E53: 117 | F53: 4455 | G53: 45 | H53: 227 | I53: Yes | J53: 1114 | K53: Yes
B54: AA23B | C54: Haemorrhagic Cerebrovascular Disorders without CC | D54: 3795 | E54: 44 | F54: 2386 | G54: 13 | H54: 227 | I54: Yes | J54: 597 | K54: Yes
B55: AA24A | C55: Brain Tumours or Cerebral Cysts, with CC | D55: 1040 | E55: 5 | F55: 3599 | G55: 32 | H55: 227 | I55: Yes | J55: 900 | K55: Yes
B56: AA24B | C56: Brain Tumours or Cerebral Cysts, without CC | D56: 707 | E56: 1 | F56: 2309 | G56: 14 | H56: 227 | I56: Yes | J56: 577 | K56: Yes
B57: AA25A | C57: Cerebral Degenerations or Miscellaneous Disorders of Nervous System, with CC | D57: 1393 | E57: 5 | F57: 2900 | G57: 24 | H57: 227 | I57: Yes | J57: 725 | K57: Yes
B58: AA25B | C58: Cerebral Degenerations or Miscellaneous Disorders of Nervous System, without CC | D58: 540 | E58: 1 | F58: 1589 | G58: 8 | H58: 227 | I58: Yes | J58: 715 | K58: Yes
B59: AA26A | C59: Muscular, Balance, Cranial or Peripheral Nerve Disorders, Epilepsy or Head Injury, with CC | D59: 937 | E59: 1 | F59: 1314 | G59: 13 | H59: 227 | I59: No | J59: 0 | K59: Yes
B60: AA26B | C60: Muscular, Balance, Cranial or Peripheral Nerve Disorders, Epilepsy or Head Injury, without CC | D60: 648 | E60: 1 | F60: 649 | G60: 3 | H60: 227 | I60: No | J60: 0 | K60: Yes
B61: AA27A | C61: Medical Care of Patients with Alzheimer's Disease with CC | D61: 3453 | E61: 84 | F61: 5130 | G61: 55 | H61: 227 | I61: Yes | J61: 1282 | K61: Yes
B62: AA27B | C62: Medical Care of Patients with Alzheimer's Disease without CC | D62: 427 | E62: 1 | F62: 1909 | G62: 9 | H62: 227 | I62: Yes | J62: 477 | K62: Yes
B63: AA28A | C63: Motor Neuron Disease with CC | D63: 2427 | E63: 18 | F63: 5188 | G63: 51 | H63: 227 | I63: Yes | J63: 1297 | K63: Yes
B64: AA28B | C64: Motor Neuron Disease without CC | D64: 1690 | E64: 10 | F64: 3083 | G64: 19 | H64: 227 | I64: Yes | J64: 771 | K64: Yes
B65: AA29A | C65: Transient Ischaemic Attack with CC | D65: 493 | E65: 1 | F65: 1391 | G65: 6 | H65: 227 | I65: Yes | J65: 626 | K65: Yes
B66: AA29B | C66: Transient Ischaemic Attack without CC | D66: 469 | E66: 1 | F66: 555 | G66: 3 | H66: 227 | I66: No | J66: 0 | K66: Yes
B67: AA30A | C67: Medical Care of Patients with Multiple Sclerosis with CC | D67: 593 | E67: 1 | F67: 3705 | G67: 37 | H67: 227 | I67: Yes | J67: 926 | K67: Yes
B68: AA30B | C68: Medical Care of Patients with Multiple Sclerosis without CC | D68: 442 | E68: 1 | F68: 2091 | G68: 13 | H68: 227 | I68: Yes | J68: 941 | K68: Yes
B69: AA31A | C69: Headache, Migraine or Cerebrospinal Fluid Leak, with CC | D69: 845 | E69: 5 | F69: 748 | G69: 5 | H69: 227 | I69: No | J69: 0 | K69: Yes
B70: AA31B | C70: Headache, Migraine or Cerebrospinal Fluid Leak, without CC | D70: 433 | E70: 1 | F70: 546 | G70: 3 | H70: 227 | I70: No | J70: 0 | K70: Yes
B71: AA32Z | C71: Neuropsychology Tests with length of stay 2 days or less | D71: 427 | E71: 1 | F71: 382 | G71: 2 | H71: 227 | I71: No | J71: 0 | K71: Yes
B72: AA33C | C72: Conventional EEG, EMG or Nerve Conduction Studies with length of stay 2 days or less, 19 years and over | D72: 676 | E72: 1 | F72: 1207 | G72: 4 | H72: 227 | I72: No | J72: 0 | K72: Yes
B73: AA33D | C73: Conventional EEG, EMG or Nerve Conduction Studies with length of stay 2 days or less, 18 years and under | D73: 823 | E73: 1 | F73: 1328 | G73: 4 | H73: 227 | I73: No | J73: 0 | K73: Yes
B74: AA34C | C74: Neurophysiological operations 19 years and over | D74: 9 | E74: 4 | F74: 606 | G74: 36 | H74: 227 | I74: No | J74: 0 | K74: Yes
B75: AA34D | C75: Neurophysiological operations 18 years and under | D75: 8 | E75: 4 | F75: 220 | G75: 21 | H75: 227 | I75: No | J75: 0 | K75: Yes
B76: AB02Z | C76: Complex Major Pain Procedures | D76: 754 | E76: 1 | F76: 1529 | G76: 52 | H76: 227 | I76: No | J76: 0 | K76: Yes
B77: AB03Z | C77: Complex Pain Procedures | D77: 750 | E77: 1 | F77: 4285 | G77: 45 | H77: 227 | I77: No | J77: 0 | K77: Yes
B78: AB04Z | C78: Major Pain Procedures | D78: 647 | E78: 1 | F78: 2492 | G78: 21 | H78: 227 | I78: No | J78: 0 | K78: Yes
B79: AB05Z | C79: Intermediate Pain Procedures | D79: 657 | E79: 1 | F79: 3205 | G79: 32 | H79: 227 | I79: No | J79: 0 | K79: Yes
B80: AB06Z | C80: Minor Pain Procedures | D80: 579 | E80: 1 | F80: 3436 | G80: 39 | H80: 227 | I80: No | J80: 0 | K80: Yes
B81: AB07Z | C81: Insertion of Neurostimulator or Intrathecal Drug Delivery Device | D81: 3048 | E81: 3 | F81: 4548 | G81: 37 | H81: 227 | I81: No | J81: 0 | K81: Yes
B82: AB08Z | C82: Pain Radiofrequency Treatments | D82: 695 | E82: 1 | F82: 3041 | G82: 27 | H82: 227 | I82: No | J82: 0 | K82: Yes
B83: AB09Z | C83: Other Specified Pain Procedures | D83: 587 | E83: 1 | F83: 2357 | G83: 23 | H83: 227 | I83: No | J83: 0 | K83: Yes
B84: AB10Z | C84: Unspecified Pain Procedures | D84: 397 | E84: 1 | F84: 2172 | G84: 44 | H84: 227 | I84: No | J84: 0 | K84: Yes
B85: AB11Z | C85: Cognitive Behavioural Therapy | D85: 72 | E85: 1 | F85: 6590 | G85: 14 | H85: 227 | I85: No | J85: 0 | K85: Yes
B86: BZ01Z | C86: Enhanced Cataract Surgery | D86: 1053 | E86: 1 | F86: 2161 | G86: 12 | H86: 271 | I86: No | J86: 0 | K86: Yes
B87: BZ02Z | C87: Phacoemulsification Cataract Extraction and Lens Implant | D87: 782 | E87: 1 | F87: 2805 | G87: 35 | H87: 271 | I87: No | J87: 0 | K87: Yes
B88: BZ03Z | C88: Non-Phacoemulsification Cataract Surgery | D88: 1005 | E88: 1 | F88: 1303 | G88: 5 | H88: 271 | I88: No | J88: 0 | K88: Yes
B89: BZ04Z | C89: Lens Capsulotomy | D89: 301 | E89: 1 | F89: 465 | G89: 1 | H89: 271 | I89: No | J89: 0 | K89: Yes
B90: BZ05Z | C90: Major Oculoplastics Procedures | D90: 1324 | E90: 1 | F90: 8505 | G90: 50 | H90: 271 | I90: No | J90: 0 | K90: Yes
B91: BZ06A | C91: Intermediate Oculoplastics Procedures, 19 years and over | D91: 916 | E91: 1 | F91: 1272 | G91: 5 | H91: 271 | I91: No | J91: 0 | K91: Yes
B92: BZ06B | C92: Intermediate Oculoplastics Procedures, 18 years and under | D92: 1056 | E92: 1 | F92: 1522 | G92: 8 | H92: 271 | I92: No | J92: 0 | K92: Yes
B93: BZ07A | C93: Minor Oculoplastics Procedures, 19 years and over | D93: 640 | E93: 1 | F93: 913 | G93: 3 | H93: 271 | I93: No | J93: 0 | K93: Yes
B94: BZ07B | C94: Minor Oculoplastics Procedures, 18 years and under | D94: 809 | E94: 1 | F94: 1009 | G94: 3 | H94: 271 | I94: No | J94: 0 | K94: Yes
B95: BZ08A | C95: Major Orbits or Lacrimal Procedures, 19 years and over | D95: 2120 | E95: 3 | F95: 3342 | G95: 14 | H95: 271 | I95: No | J95: 0 | K95: Yes
B96: BZ08B | C96: Major Orbits or Lacrimal Procedures, 18 years and under | D96: 2007 | E96: 3 | F96: 3431 | G96: 10 | H96: 271 | I96: No | J96: 0 | K96: Yes
B97: BZ09A | C97: Intermediate Orbits or Lacrimal Procedures, 19 years and over | D97: 1471 | E97: 3 | F97: 3013 | G97: 16 | H97: 271 | I97: No | J97: 0 | K97: Yes
B98: BZ09B | C98: Intermediate Orbits or Lacrimal Procedures, 18 years and under | D98: 1603 | E98: 1 | F98: 2628 | G98: 5 | H98: 271 | I98: No | J98: 0 | K98: Yes
B99: BZ10A | C99: Minor Orbits or Lacrimal Procedures, 19 years and over | D99: 638 | E99: 1 | F99: 1238 | G99: 5 | H99: 271 | I99: No | J99: 0 | K99: Yes
B100: BZ10B | C100: Minor Orbits or Lacrimal Procedures, 18 years and under | D100: 830 | E100: 1 | F100: 1331 | G100: 8 | H100: 271 | I100: No | J100: 0 | K100: Yes
B101: BZ11Z | C101: Major Cornea or Sclera Procedures | D101: 2054 | E101: 3 | F101: 3660 | G101: 20 | H101: 271 | I101: No | J101: 0 | K101: Yes
B102: BZ12Z | C102: Intermediate Cornea or Sclera Procedures | D102: 1592 | E102: 3 | F102: 2649 | G102: 14 | H102: 271 | I102: No | J102: 0 | K102: Yes
B103: BZ13Z | C103: Minor Cornea or Sclera Procedures | D103: 911 | E103: 1 | F103: 2199 | G103: 13 | H103: 271 | I103: No | J103: 0 | K103: Yes
B104: BZ14A | C104: Major Ocular Motility Procedures, 19 years and over | D104: 1284 | E104: 1 | F104: 905 | G104: 1 | H104: 271 | I104: No | J104: 0 | K104: Yes
B105: BZ14B | C105: Major Ocular Motility Procedures, 18 years and under | D105: 1167 | E105: 1 | F105: 2481 | G105: 1 | H105: 271 | I105: No | J105: 0 | K105: Yes
B106: BZ15A | C106: Intermediate Ocular Motility Procedures, 19 years and over | D106: 1165 | E106: 1 | F106: 1365 | G106: 11 | H106: 271 | I106: No | J106: 0 | K106: Yes
B107: BZ15B | C107: Intermediate Ocular Motility Procedures, 18 years and under | D107: 1215 | E107: 1 | F107: 1133 | G107: 1 | H107: 271 | I107: No | J107: 0 | K107: Yes
B108: BZ16A | C108: Minor Ocular Motility Procedures, 19 years and over | D108: 1125 | E108: 1 | F108: 966 | G108: 1 | H108: 271 | I108: No | J108: 0 | K108: Yes
B109: BZ16B | C109: Minor Ocular Motility Procedures, 18 years and under | D109: 1106 | E109: 1 | F109: 921 | G109: 1 | H109: 271 | I109: No | J109: 0 | K109: Yes
B110: BZ17Z | C110: Major Glaucoma Procedures | D110: 1435 | E110: 1 | F110: 1469 | G110: 8 | H110: 271 | I110: No | J110: 0 | K110: Yes
B111: BZ18Z | C111: Intermediate Glaucoma Procedures | D111: 1026 | E111: 1 | F111: 1648 | G111: 8 | H111: 271 | I111: No | J111: 0 | K111: Yes
B112: BZ19Z | C112: Minor Glaucoma Procedures | D112: 477 | E112: 1 | F112: 1032 | G112: 5 | H112: 271 | I112: No | J112: 0 | K112: Yes
B113: BZ20Z | C113: Complex Vitreous Retinal Procedures | D113: 1913 | E113: 3 | F113: 2387 | G113: 5 | H113: 271 | I113: No | J113: 0 | K113: Yes
B114: BZ21Z | C114: Major Vitreous Retinal Procedures | D114: 1496 | E114: 1 | F114: 1630 | G114: 3 | H114: 271 | I114: No | J114: 0 | K114: Yes
B115: BZ22Z | C115: Intermediate Vitreous Retinal Procedures | D115: 1243 | E115: 1 | F115: 2008 | G115: 5 | H115: 271 | I115: No | J115: 0 | K115: Yes
B116: BZ23Z | C116: Minor Vitreous Retinal Procedures | D116: 375 | E116: 1 | F116: 855 | G116: 1 | H116: 271 | I116: No | J116: 0 | K116: Yes
B117: BZ24A | C117: Non-Surgical Ophthalmology with length of stay 2 days or more | D117: 2861 | E117: 12 | F117: 2167 | G117: 17 | H117: 271 | I117: No | J117: 0 | K117: Yes
B118: BZ24C | C118: Non-Surgical Ophthalmology with length of stay 1 day or less | D118: 331 | E118: 1 | F118: 424 | G118: 3 | H118: 271 | I118: No | J118: 0 | K118: Yes
B119: CZ01S | C119: Minor Mouth or Throat Procedures, 18 years and under with CC | D119: 865 | E119: 1 | F119: 2768 | G119: 8 | H119: 256 | I119: No | J119: 0 | K119: Yes
B120: CZ01T | C120: Minor Mouth or Throat Procedures, 18 years and under without CC | D120: 699 | E120: 1 | F120: 853 | G120: 3 | H120: 256 | I120: No | J120: 0 | K120: Yes
B121: CZ01V | C121: Minor Mouth or Throat Procedures, 19 years and over with CC | D121: 700 | E121: 1 | F121: 1704 | G121: 11 | H121: 256 | I121: No | J121: 0 | K121: Yes
B122: CZ01Y | C122: Minor Mouth or Throat Procedures, 19 years and over without CC | D122: 538 | E122: 1 | F122: 716 | G122: 3 | H122: 256 | I122: No | J122: 0 | K122: Yes
B123: CZ02S | C123: Intermediate Mouth or Throat Procedures, 18 years and under with CC | D123: 1527 | E123: 3 | F123: 3288 | G123: 20 | H123: 256 | I123: No | J123: 0 | K123: Yes
B124: CZ02T | C124: Intermediate Mouth or Throat Procedures, 18 years and under without CC | D124: 1099 | E124: 1 | F124: 1299 | G124: 5 | H124: 256 | I124: No | J124: 0 | K124: Yes
B125: CZ02W | C125: Intermediate Mouth or Throat Procedures, 19 years and over with Major CC | D125: 1586 | E125: 3 | F125: 5210 | G125: 47 | H125: 256 | I125: No | J125: 0 | K125: Yes
B126: CZ02X | C126: Intermediate Mouth or Throat Procedures, 19 years and over with Intermediate CC | D126: 1084 | E126: 3 | F126: 1808 | G126: 9 | H126: 256 | I126: No | J126: 0 | K126: Yes
B127: CZ02Y | C127: Intermediate Mouth or Throat Procedures, 19 years and over without CC | D127: 933 | E127: 1 | F127: 1154 | G127: 5 | H127: 256 | I127: No | J127: 0 | K127: Yes
B128: CZ03U | C128: Major Mouth or Throat Procedures, 18 years and under | D128: 2857 | E128: 4 | F128: 3209 | G128: 12 | H128: 256 | I128: No | J128: 0 | K128: Yes
B129: CZ03V | C129: Major Mouth or Throat Procedures, 19 years and over with CC | D129: 2728 | E129: 5 | F129: 5270 | G129: 31 | H129: 256 | I129: No | J129: 0 | K129: Yes
B130: CZ03Y | C130: Major Mouth or Throat Procedures, 19 years and over without CC | D130: 2097 | E130: 3 | F130: 2506 | G130: 10 | H130: 256 | I130: No | J130: 0 | K130: Yes
B131: CZ04O | C131: Complex Major Mouth or Throat Procedures, with Major CC | D131: 19718 | E131: 67 | F131: 22650 | G131: 110 | H131: 256 | I131: No | J131: 0 | K131: Yes
B132: CZ04P | C132: Complex Major Mouth or Throat Procedures, with Intermediate CC | D132: 11429 | E132: 42 | F132: 17622 | G132: 86 | H132: 256 | I132: No | J132: 0 | K132: Yes
B133: CZ04Q | C133: Complex Major Mouth or Throat Procedures, without CC | D133: 7482 | E133: 35 | F133: 8447 | G133: 60 | H133: 256 | I133: No | J133: 0 | K133: Yes
B134: CZ05S | C134: Tonsillectomy, 18 years and under with CC | D134: 1430 | E134: 3 | F134: 2212 | G134: 6 | H134: 256 | I134: No | J134: 0 | K134: Yes
B135: CZ05T | C135: Tonsillectomy, 18 years and under without CC | D135: 1205 | E135: 3 | F135: 1118 | G135: 4 | H135: 256 | I135: No | J135: 0 | K135: Yes
B136: CZ05V | C136: Tonsillectomy, 19 years and over with CC | D136: 1294 | E136: 3 | F136: 1012 | G136: 4 | H136: 256 | I136: No | J136: 0 | K136: Yes
B137: CZ05Y | C137: Tonsillectomy, 19 years and over without CC | D137: 1200 | E137: 3 | F137: 857 | G137: 4 | H137: 256 | I137: No | J137: 0 | K137: Yes
B138: CZ07O | C138: Exteriorisation of Trachea with Major CC | D138: 9603 | E138: 104 | F138: 8563 | G138: 99 | H138: 256 | I138: No | J138: 0 | K138: Yes
B139: CZ07P | C139: Exteriorisation of Trachea with Intermediate CC | D139: 3629 | E139: 21 | F139: 5179 | G139: 60 | H139: 256 | I139: No | J139: 0 | K139: Yes
B140: CZ07Q | C140: Exteriorisation of Trachea without CC | D140: 3252 | E140: 11 | F140: 3447 | G140: 35 | H140: 256 | I140: No | J140: 0 | K140: Yes
B141: CZ08S | C141: Minor Ear Procedures, 18 years and under with CC | D141: 1005 | E141: 1 | F141: 1795 | G141: 11 | H141: 256 | I141: No | J141: 0 | K141: Yes
B142: CZ08T | C142: Minor Ear Procedures, 18 years and under without CC | D142: 779 | E142: 1 | F142: 918 | G142: 5 | H142: 256 | I142: No | J142: 0 | K142: Yes
B143: CZ08V | C143: Minor Ear Procedures, 19 years and over with CC | D143: 743 | E143: 1 | F143: 1882 | G143: 16 | H143: 256 | I143: No | J143: 0 | K143: Yes
B144: CZ08Y | C144: Minor Ear Procedures, 19 years and over without CC | D144: 701 | E144: 1 | F144: 777 | G144: 5 | H144: 256 | I144: No | J144: 0 | K144: Yes
B145: CZ09U | C145: Intermediate Ear Procedures, 18 years and under | D145: 1615 | E145: 1 | F145: 1112 | G145: 8 | H145: 256 | I145: No | J145: 0 | K145: Yes
B146: CZ09V | C146: Intermediate Ear Procedures, 19 years and over with CC | D146: 1132 | E146: 1 | F146: 2007 | G146: 16 | H146: 256 | I146: No | J146: 0 | K146: Yes
B147: CZ09Y | C147: Intermediate Ear Procedures, 19 years and over without CC | D147: 1140 | E147: 1 | F147: 1045 | G147: 5 | H147: 256 | I147: No | J147: 0 | K147: Yes
B148: CZ10U | C148: Major Ear Procedures, 18 years and under | D148: 2244 | E148: 3 | F148: 4321 | G148: 13 | H148: 256 | I148: No | J148: 0 | K148: Yes
B149: CZ10V | C149: Major Ear Procedures, 19 years and over with CC | D149: 2366 | E149: 3 | F149: 6139 | G149: 39 | H149: 256 | I149: No | J149: 0 | K149: Yes
B150: CZ10Y | C150: Major Ear Procedures, 19 years and over without CC | D150: 2238 | E150: 3 | F150: 2716 | G150: 15 | H150: 256 | I150: No | J150: 0 | K150: Yes
B151: CZ11Z | C151: Complex Major Ear Procedures | D151: 3047 | E151: 5 | F151: 3888 | G151: 25 | H151: 256 | I151: No | J151: 0 | K151: Yes
B152: CZ12U | C152: Minor Nose Procedures, 18 years and under | D152: 724 | E152: 1 | F152: 815 | G152: 3 | H152: 256 | I152: No | J152: 0 | K152: Yes
B153: CZ12V | C153: Minor Nose Procedures, 19 years and over with CC | D153: 765 | E153: 1 | F153: 1060 | G153: 6 | H153: 256 | I153: No | J153: 0 | K153: Yes
B154: CZ12Y | C154: Minor Nose Procedures, 19 years and over without CC | D154: 651 | E154: 1 | F154: 800 | G154: 5 | H154: 256 | I154: No | J154: 0 | K154: Yes
B155: CZ13U | C155: Intermediate Nose Procedures, 18 years and under | D155: 1276 | E155: 3 | F155: 1550 | G155: 8 | H155: 256 | I155: No | J155: 0 | K155: Yes
B156: CZ13V | C156: Intermediate Nose Procedures, 19 years and over with CC | D156: 1316 | E156: 3 | F156: 1206 | G156: 6 | H156: 256 | I156: No | J156: 0 | K156: Yes
B157: CZ13Y | C157: Intermediate Nose Procedures, 19 years and over without CC | D157: 1261 | E157: 3 | F157: 1007 | G157: 4 | H157: 256 | I157: No | J157: 0 | K157: Yes
B158: CZ14U | C158: Major Nose Procedures, 18 years and under | D158: 1892 | E158: 3 | F158: 4274 | G158: 17 | H158: 256 | I158: No | J158: 0 | K158: Yes
B159: CZ14V | C159: Major Nose Procedures, 19 years and over with CC | D159: 1643 | E159: 3 | F159: 2195 | G159: 11 | H159: 256 | I159: No | J159: 0 | K159: Yes
B160: CZ14Y | C160: Major Nose Procedures, 19 years and over without CC | D160: 1572 | E160: 3 | F160: 1786 | G160: 9 | H160: 256 | I160: No | J160: 0 | K160: Yes
B161: CZ15N | C161: Complex Major Nose Procedures with CC | D161: 1907 | E161: 3 | F161: 4087 | G161: 16 | H161: 256 | I161: No | J161: 0 | K161: Yes
B162: CZ15Q | C162: Complex Major Nose Procedures without CC | D162: 1703 | E162: 3 | F162: 3357 | G162: 12 | H162: 256 | I162: No | J162: 0 | K162: Yes
B163: CZ16N | C163: Minor Maxillo-facial Procedures with CC | D163: 1435 | E163: 3 | F163: 1785 | G163: 4 | H163: 256 | I163: No | J163: 0 | K163: Yes
B164: CZ16Q | C164: Minor Maxillo-facial Procedures without CC | D164: 1243 | E164: 3 | F164: 1668 | G164: 4 | H164: 256 | I164: No | J164: 0 | K164: Yes
B165: CZ17U | C165: Intermediate Maxillo-facial Procedures, 18 years and under | D165: 1586 | E165: 3 | F165: 2453 | G165: 4 | H165: 256 | I165: No | J165: 0 | K165: Yes
B166: CZ17V | C166: Intermediate Maxillo-facial Procedures, 19 years and over with CC | D166: 2376 | E166: 5 | F166: 2916 | G166: 9 | H166: 256 | I166: No | J166: 0 | K166: Yes
B167: CZ17Y | C167: Intermediate Maxillo-facial Procedures, 19 years and over without CC | D167: 1519 | E167: 3 | F167: 2279 | G167: 4 | H167: 256 | I167: No | J167: 0 | K167: Yes
B168: CZ18R | C168: Major Maxillo-facial Procedures, 19 years and over | D168: 3968 | E168: 4 | F168: 3911 | G168: 16 | H168: 256 | I168: No | J168: 0 | K168: Yes
B169: CZ18U | C169: Major Maxillo-facial Procedures, 18 years and under | D169: 3731 | E169: 4 | F169: 3350 | G169: 10 | H169: 256 | I169: No | J169: 0 | K169: Yes
B170: CZ19Z | C170: Complex Major Maxillo-facial Procedures | D170: 6932 | E170: 21 | F170: 6718 | G170: 35 | H170: 256 | I170: No | J170: 0 | K170: Yes
B171: CZ20Z | C171: Complex Major Head or Neck Procedures with Reconstruction | D171: 19038 | E171: 46 | F171: 19038 | G171: 46 | H171: 256 | I171: No | J171: 0 | K171: Yes
B172: CZ21V | C172: Minor Head, Neck and Ear Disorders, with CC | D172: 1057 | E172: 5 | F172: 728 | G172: 3 | H172: 256 | I172: Yes | J172: 509 | K172: Yes
B173: CZ21Y | C173: Minor Head, Neck and Ear Disorders, without CC | D173: 684 | E173: 1 | F173: 472 | G173: 3 | H173: 256 | I173: No | J173: 0 | K173: Yes
B174: CZ22W | C174: Intermediate Head, Neck and Ear Disorders, with Major CC | D174: 2051 | E174: 17 | F174: 2299 | G174: 15 | H174: 256 | I174: Yes | J174: 575 | K174: Yes
B175: CZ22X | C175: Intermediate Head, Neck and Ear Disorders, with Intermediate CC | D175: 1332 | E175: 8 | F175: 938 | G175: 5 | H175: 256 | I175: Yes | J175: 657 | K175: Yes
B176: CZ22Y | C176: Intermediate Head, Neck and Ear Disorders, without CC | D176: 781 | E176: 3 | F176: 662 | G176: 5 | H176: 256 | I176: No | J176: 0 | K176: Yes
B177: CZ23W | C177: Major Head, Neck and Ear Disorders, with Major CC | D177: 3019 | E177: 29 | F177: 2756 | G177: 21 | H177: 256 | I177: Yes | J177: 689 | K177: Yes
B178: CZ23X | C178: Major Head, Neck and Ear Disorders, with Intermediate CC | D178: 1343 | E178: 10 | F178: 1340 | G178: 8 | H178: 256 | I178: Yes | J178: 603 | K178: Yes
B179: CZ23Y | C179: Major Head, Neck and Ear Disorders, without CC | D179: 1015 | E179: 8 | F179: 621 | G179: 5 | H179: 256 | I179: No | J179: 0 | K179: Yes
B180: CZ24O | C180: Complex Major Head, Neck and Ear Disorders, with Major CC | D180: 5442 | E180: 42 | F180: 5162 | G180: 44 | H180: 256 | I180: Yes | J180: 1290 | K180: Yes
B181: CZ24P | C181: Complex Major Head, Neck and Ear Disorders, with Intermediate CC | D181: 1739 | E181: 11 | F181: 3024 | G181: 20 | H181: 256 | I181: Yes | J181: 756 | K181: Yes
B182: CZ24Q | C182: Complex Major Head, Neck and Ear Disorders, without CC | D182: 1584 | E182: 13 | F182: 2326 | G182: 14 | H182: 256 | I182: Yes | J182: 581 | K182: Yes
B183: CZ25N | C183: Cochlear Implants with CC | D183: 19612 | E183: 1 | F183: 14716 | G183: 32 | H183: 256 | I183: No | J183: 0 | K183: No
B184: CZ25Q | C184: Cochlear Implants without CC | D184: 19890 | E184: 1 | F184: 19890 | G184: 1 | H184: 256 | I184: No | J184: 0 | K184: No
B185: CZ27Z | C185: Fixture for Bone Anchored Hearing Aids | D185: 2601 | E185: 1 | F185: 2601 | G185: 1 | H185: 256 | I185: No | J185: 0 | K185: Yes
B186: CZ28Z | C186: Fitting of Bone Anchored Hearing Aids | D186: 2486 | E186: 3 | F186: 2897 | G186: 133 | H186: 256 | I186: No | J186: 0 | K186: Yes
B187: CZ30U | C187: Minor Extraction of Tooth, 18 years and under | D187: 482 | E187: 1 | F187: 893 | G187: 3 | H187: 256 | I187: No | J187: 0 | K187: Yes
B188: CZ30Y | C188: Minor Extraction of Tooth, 19 years and over | D188: 368 | E188: 1 | F188: 853 | G188: 5 | H188: 256 | I188: No | J188: 0 | K188: Yes
B189: CZ31U | C189: Minor Dental Biopsy, 18 years and under | D189: 563 | E189: 1 | F189: 786 | G189: 5 | H189: 256 | I189: No | J189: 0 | K189: Yes
B190: CZ31Y | C190: Minor Dental Biopsy, 19 years and over | D190: 395 | E190: 1 | F190: 651 | G190: 1 | H190: 256 | I190: No | J190: 0 | K190: Yes
B191: CZ32U | C191: Dental Fitting or Insertion Procedures, 18 years and under | D191: 1003 | E191: 1 | F191: 652 | G191: 1 | H191: 256 | I191: No | J191: 0 | K191: Yes
B192: CZ32Y | C192: Dental Fitting or Insertion Procedures, 19 years and over | D192: 867 | E192: 1 | F192: 509 | G192: 5 | H192: 256 | I192: No | J192: 0 | K192: Yes
B193: CZ33U | C193: Minor Dental Restoration Procedures, 18 years and under | D193: 560 | E193: 1 | F193: 753 | G193: 3 | H193: 256 | I193: No | J193: 0 | K193: Yes
B194: CZ33Y | C194: Minor Dental Restoration Procedures, 19 years and over | D194: 419 | E194: 1 | F194: 1090 | G194: 1 | H194: 256 | I194: No | J194: 0 | K194: Yes
B195: CZ34U | C195: Minor Dental Procedures, 18 years and under | D195: 607 | E195: 1 | F195: 1023 | G195: 3 | H195: 256 | I195: No | J195: 0 | K195: Yes
B196: CZ34Y | C196: Minor Dental Procedures, 19 years and over | D196: 574 | E196: 1 | F196: 1148 | G196: 4 | H196: 256 | I196: No | J196: 0 | K196: Yes
B197: CZ35U | C197: Adjustment of Dental Device, 18 years and under | D197: 721 | E197: 1 | F197: 241 | G197: 1 | H197: 256 | I197: No | J197: 0 | K197: Yes
B198: CZ35Y | C198: Adjustment of Dental Device, 19 years and over | D198: 1615 | E198: 3 | F198: 1615 | G198: 3 | H198: 256 | I198: No | J198: 0 | K198: Yes
B199: CZ36U | C199: Dental Excision or Biopsy Procedures, 18 years and under | D199: 717 | E199: 1 | F199: 913 | G199: 5 | H199: 256 | I199: No | J199: 0 | K199: Yes
B200: CZ36Y | C200: Dental Excision or Biopsy Procedures, 19 years and over | D200: 591 | E200: 1 | F200: 756 | G200: 1 | H200: 256 | I200: No | J200: 0 | K200: Yes
B201: CZ37U | C201: Surgical Removal of Tooth, 18 years and under | D201: 827 | E201: 1 | F201: 1056 | G201: 3 | H201: 256 | I201: No | J201: 0 | K201: Yes
B202: CZ37Y | C202: Surgical Removal of Tooth, 19 years and over | D202: 525 | E202: 1 | F202: 1140 | G202: 4 | H202: 256 | I202: No | J202: 0 | K202: Yes
B203: CZ38U | C203: Creation of Dental Impression, 18 years and under | D203: 1015 | E203: 1 | F203: 1350 | G203: 3 | H203: 256 | I203: No | J203: 0 | K203: Yes
B204: CZ38Y | C204: Creation of Dental Impression, 19 years and over | D204: 559 | E204: 1 | F204: 2337 | G204: 3 | H204: 256 | I204: No | J204: 0 | K204: Yes
B205: CZ39U | C205: Intermediate Dental Procedures, 18 years and under | D205: 955 | E205: 1 | F205: 1052 | G205: 3 | H205: 256 | I205: No | J205: 0 | K205: Yes
B206: CZ39Y | C206: Intermediate Dental Procedures, 19 years and over | D206: 852 | E206: 1 | F206: 982 | G206: 5 | H206: 256 | I206: No | J206: 0 | K206: Yes
B207: CZ40U | C207: Major Surgical Removal of Tooth, 18 years and under | D207: 924 | E207: 1 | F207: 1266 | G207: 5 | H207: 256 | I207: No | J207: 0 | K207: Yes
B208: CZ40Y | C208: Major Surgical Removal of Tooth, 19 years and over | D208: 627 | E208: 1 | F208: 1342 | G208: 4 | H208: 256 | I208: No | J208: 0 | K208: Yes
... 1129 more rows

Sheet 03_OPROC_RAW
B2: FROM [PbR1516_TED_21].[output].[OPROC_Final Tariff]
B10: HRG | C10: TOTAL ACT | D10: REVISED TC | E10: OPROC_Tariff
B11: AA33C | C11: 30120 | D11: 4320525.491 | E11: 143
B12: AB05Z | C12: 11496 | D12: 1965966.976 | E12: 171
B13: AB06Z | C13: 74463 | D13: 7673667.757 | E13: 103
B14: AB09Z | C14: 2806 | D14: 325436.6511 | E14: 116
B15: BZ04Z | C15: 32716 | D15: 3634802.165 | E15: 111
B16: BZ07A | C16: 25364 | D16: 3079639.299 | E16: 121
B17: BZ07B | C17: 669 | D17: 100819.4855 | E17: 151
B18: BZ10A | C18: 11664 | D18: 1294533.583 | E18: 111
B19: BZ10B | C19: 126 | D19: 16130.4457 | E19: 128
B20: BZ13Z | C20: 8199 | D20: 1255899.133 | E20: 153
B21: BZ18Z | C21: 24942 | D21: 2453118.472 | E21: 98
B22: BZ19Z | C22: 10556 | D22: 1128457.056 | E22: 107
B23: BZ22Z | C23: 58419 | D23: 9195063.107 | E23: 157
B24: BZ23Z | C24: 646155 | D24: 77237381.85 | E24: 120
B25: CZ01T | C25: 14283 | D25: 1691099.328 | E25: 118
B26: CZ01Y | C26: 113875 | D26: 16238669.55 | E26: 143
B27: CZ02T | C27: 4517 | D27: 532244.3037 | E27: 118
B28: CZ02Y | C28: 145662 | D28: 17665609.41 | E28: 121
B29: CZ08T | C29: 100444 | D29: 10989038.44 | E29: 109
B30: CZ08Y | C30: 429120 | D30: 50323880.31 | E30: 117
B31: CZ12U | C31: 6913 | D31: 828898.6767 | E31: 120
B32: CZ12Y | C32: 22848 | D32: 2858727.044 | E32: 125
B33: CZ13Y | C33: 12889 | D33: 1660964.253 | E33: 129
B34: CZ30Y | C34: 17665 | D34: 2077496.193 | E34: 118
B35: CZ31Y | C35: 13467 | D35: 2219215.694 | E35: 165
B36: CZ32U | C36: 41509 | D36: 4983474.42 | E36: 120
B37: CZ32Y | C37: 20985 | D37: 2735670.921 | E37: 130
B38: CZ33Y | C38: 6418 | D38: 927958.8033 | E38: 145
B39: CZ34U | C39: 132811 | D39: 14780233.14 | E39: 111
B40: CZ34Y | C40: 197280 | D40: 23630811.4 | E40: 120
B41: CZ35U | C41: 164689 | D41: 19276051.04 | E41: 117
B42: CZ35Y | C42: 44387 | D42: 5298503.47 | E42: 119
B43: CZ36Y | C43: 10723 | D43: 1898064.651 | E43: 177
B44: CZ37Y | C44: 30808 | D44: 3856026.253 | E44: 125
B45: CZ38U | C45: 35132 | D45: 4337149.052 | E45: 123
B46: CZ38Y | C46: 20454 | D46: 2799545.009 | E46: 137
B47: CZ39U | C47: 19556 | D47: 2582635.664 | E47: 132
B48: CZ39Y | C48: 6415 | D48: 907966.4957 | E48: 142
B49: CZ40Y | C49: 7757 | D49: 1017354.761 | E49: 131
B50: CZ41Y | C50: 7384 | D50: 1082937.242 | E50: 147
B51: CZ42Y | C51: 10677 | D51: 1359783.673 | E51: 127
B52: DZ31Z | C52: 17766 | D52: 3623948.545 | E52: 204
B53: DZ32Z | C53: 7429 | D53: 1318651.703 | E53: 178
B54: DZ37A | C54: 5639 | D54: 623416.5463 | E54: 111
B55: DZ42Z | C55: 12145 | D55: 1932179.62 | E55: 159
B56: DZ50Z | C56: 628 | D56: 131139.4429 | E56: 209
B57: DZ52Z | C57: 9552 | D57: 1339745.292 | E57: 140
B58: EA44Z | C58: 62874 | D58: 6708430.448 | E58: 107
B59: EA45Z | C59: 37280 | D59: 4274399.918 | E59: 115
B60: EA47Z | C60: 408246 | D60: 63766776.02 | E60: 156
B61: FZ22A | C61: 622 | D61: 221867.2115 | E61: 357
B62: FZ50Z | C62: 19420 | D62: 4368610.637 | E62: 225
B63: FZ51Z | C63: 2994 | D63: 855373.2193 | E63: 286
B64: FZ52Z | C64: 1907 | D64: 569616.383 | E64: 299
B65: FZ54Z | C65: 19017 | D65: 3397832.11 | E65: 179
B66: FZ55Z | C66: 3874 | D66: 726639.5064 | E66: 188
B67: FZ57Z | C67: 99851 | D67: 16651579.92 | E67: 167
B68: FZ59Z | C68: 4444 | D68: 615509.4032 | E68: 139
B69: FZ60Z | C69: 5791 | D69: 1402271.168 | E69: 242
B70: FZ61Z | C70: 6669 | D70: 1649840.619 | E70: 247
B71: FZ83B | C71: 2113 | D71: 173347.438 | E71: 82
B72: HB25F | C72: 734 | D72: 135569.6002 | E72: 185
B73: HB29Z | C73: 10052 | D73: 1712873.19 | E73: 170
B74: HB35C | C74: 3331 | D74: 1456033.091 | E74: 437
B75: HB56C | C75: 289 | D75: 56231.13003 | E75: 195
B76: HB69Z | C76: 9182 | D76: 1534209.221 | E76: 167
B77: HB79Z | C77: 4980 | D77: 1086890.792 | E77: 218
B78: JA18C | C78: 67937 | D78: 24027444.52 | E78: 354
B79: JC03C | C79: 4258 | D79: 515331.9291 | E79: 121
B80: JC04C | C80: 13873 | D80: 1798373.761 | E80: 130
B81: JC05C | C81: 19759 | D81: 2868953.078 | E81: 145
B82: JC09Z | C82: 28975 | D82: 2956139.528 | E82: 102
B83: JC10Z | C83: 23169 | D83: 3540061.022 | E83: 153
B84: JC11Z | C84: 20275 | D84: 3254258.53 | E84: 161
B85: JC14Z | C85: 142945 | D85: 18276585.88 | E85: 128
B86: JC15Z | C86: 223953 | D86: 31362959.37 | E86: 140
B87: JC18Z | C87: 124194 | D87: 14238037.05 | E87: 115
B88: JC19D | C88: 2606 | D88: 255695.4379 | E88: 98
B89: JC20Z | C89: 12794 | D89: 913035.1107 | E89: 71
B90: JC33Z | C90: 34795 | D90: 3454683.837 | E90: 99
B91: JC34Z | C91: 387003 | D91: 30130841.31 | E91: 78
B92: KB04Z | C92: 516 | D92: 118075.9496 | E92: 229
B93: LB15E | C93: 19686 | D93: 4249682.71 | E93: 216
B94: LB17Z | C94: 27664 | D94: 3897653.131 | E94: 141
B95: LB27Z | C95: 17523 | D95: 3860748.45 | E95: 220
B96: LB42A | C96: 88706 | D96: 26895203.08 | E96: 303
B97: MA10Z | C97: 859 | D97: 89094.27665 | E97: 104
B98: MA21Z | C98: 31685 | D98: 5812040.241 | E98: 183
B99: MA23Z | C99: 448453 | D99: 69220729.16 | E99: 154
B100: MA25Z | C100: 135733 | D100: 19482597.18 | E100: 144
B101: QZ05B | C101: 5734 | D101: 1208815.981 | E101: 211
B102: QZ14B | C102: 28250 | D102: 4161400.533 | E102: 147
B103: SA13A | C103: 21908 | D103: 3513028.296 | E103: 160
B104: SA13B | C104: 865 | D104: 165802.1512 | E104: 192
B105: UZ01Z | C105: 28890 | D105: 6530009.526 | E105: 0

Sheet 04_HES_Activity_RAW
B2: FROM [PbR1516_TED_21].[stage].[APC_Unit_Costs]
B10: SPELL HRG | C10: EL ACT | D10: NE ACT | E10: EL TC | F10: NE TC | G10: EL UC | H10: NE UC
B11: AA02A | C11: 21 | D11: 1895 | E11: 165958.2833 | F11: 13903240.49 | G11: 7902.775397 | H11: 7336.802367
B12: AA02B | C12: 3 | D12: 242 | E12: 8685.725127 | F12: 1346864.891 | G12: 2895.241709 | H12: 5565.557399
B13: AA03A | C13: 76 | D13: 1710 | E13: 628704.7848 | F13: 10931772.02 | G13: 8272.431378 | H13: 6392.849135
B14: AA03B | C14: 36 | D14: 178 | E14: 187822.6722 | F14: 887779.8773 | G14: 5217.29645 | H14: 4987.5274
B15: AA04A | C15: 28 | D15: 298 | E15: 294539.4764 | F15: 4301187.41 | G15: 10519.26701 | H15: 14433.5148
B16: AA04B | C16: 4 | D16: 37 | E16: 18199.8708 | F16: 398612.1681 | G16: 4549.9677 | H16: 10773.30184
B17: AA05A | C17: 270 | D17: 407 | E17: 1766299.248 | F17: 5280810.849 | G17: 6541.849067 | H17: 12974.96523
B18: AA05B | C18: 257 | D18: 40 | E18: 1097916.313 | F18: 371927.4379 | G18: 4272.047911 | H18: 9298.185948
B19: AA06A | C19: 2333 | D19: 1105 | E19: 18420308.43 | F19: 12700760.13 | G19: 7895.545834 | H19: 11493.90057
